Workbook

Sheet الرئيسية
B4: برنامج الحضور والانصراف والرواتب

Sheet كشف تحضير
F2: اسم الموظف/ | H2: سامي عيظة بن بشر | AF2: اسم الموظف/ | AH2: عبدالله سالم باهبري | BF2: اسم الموظف/ | BH2: ابوبكر علي بن عبدالمانع
B4: اليوم | C4: التاريخ | D4: الفترة الصباحية | J4: الفترة المسائية | AB4: اليوم | AC4: التاريخ | AD4: الفترة الصباحية | AJ4: الفترة المسائية | BB4: اليوم | BC4: التاريخ | BD4: الفترة الصباحية | BJ4: الفترة المسائية
D5: وقت الحضور | E5: حالة الحضور | F5: وقت التأخير الصباحي | G5: وقت الانصراف | H5: حالة الانصراف | I5: وقت الخروج قبل الدوام | J5: وقت الحضور | K5: حالة الحضور | L5: وقت التأخير المسائي | M5: وقت الانصراف | N5: حالة الانصراف | O5: وقت الخروج قبل الدوام | AD5: وقت الحضور | AE5: حالة الحضور | AF5: وقت التأخير الصباحي | AG5: وقت الانصراف | AH5: حالة الانصراف | AI5: وقت الخروج قبل الدوام | AJ5: وقت الحضور | AK5: حالة الحضور | AL5: وقت التأخير المسائي | AM5: وقت الانصراف | AN5: حالة الانصراف | AO5: وقت الخروج قبل الدوام | BD5: وقت الحضور | BE5: حالة الحضور | BF5: وقت التأخير الصباحي | BG5: وقت الانصراف | BH5: حالة الانصراف | BI5: وقت الخروج قبل الدوام | BJ5: وقت الحضور | BK5: حالة الحضور | BL5: وقت التأخير المسائي | BM5: وقت الانصراف | BN5: حالة الانصراف | BO5: وقت الخروج قبل الدوام
D6: 06:35:00 | G6: 13:00:00 | J6: 16:00:00 | M6: 21:00:00 | AD6: 06:35:00 | AG6: 13:00:00 | AJ6: 16:00:00 | AM6: 21:00:00 | BD6: 06:35:00 | BG6: 13:00:00 | BJ6: 16:00:00 | BM6: 21:00:00
B7: السبت | C7: 2019-06-01 | D7: 06:35:00 | E7: =IF(D7="","غائب",IF(D7=$D$6," تــم الحضور في الموعد",IF(D7<$D$6,"تم الحضور قبل الموعد",IF(D7>$D$6,"تم الحضور بعد الموعد","")))) -> تــم الحضور في الموعد | F7: =IF(E7="غائب","6:30",IF(E7="تم الحضور قبل الموعد","0:00",IF(E7="تم الحضور في الموعد","0:00",IF(E7>$D$6,D7-$D$6,"")))) -> 00:00:00 | G7: 13:00:00 | H7: =IF(G7="","غائب",IF(G7=$G$6," تم الانصراف في الموعد",IF(G7<$G$6,"تم الانصراف قبل الموعد",IF(G7>$G$6,"تم الانصراف بعد الموعد","")))) -> تم الانصراف في الموعد | I7: =IF(H7="غائب","6:30",IF(H7="تم الانصراف بعد الموعد","0:00",IF(H7="تم الانصراف في الموعد","0:00",IF(H7>$G$6,$G$6-G7,"")))) -> 00:00:00 | J7: 16:00:00 | K7: =IF(J7="","غائب",IF(J7=$J$6," تــم الحضور في الموعد",IF(J7<$J$6,"تم الحضور قبل الموعد",IF(J7>$J$6,"تم الحضور بعد الموعد","")))) -> تــم الحضور في الموعد | L7: =IF(K7="غائب","5:00",IF(K7="تم الحضور قبل الموعد","0:00",IF(K7="تم الحضور في الموعد","0:00",IF(K7>$J$6,J7-$J$6,"")))) -> 00:00:00 | M7: 21:00:00 | N7: =IF(M7="","غائب",IF(M7=$M$6," تم الانصراف في الموعد",IF(M7<$M$6,"تم الانصراف قبل الموعد",IF(M7>$M$6,"تم الانصراف بعد الموعد","")))) -> تم الانصراف في الموعد | O7: =IF(N7="غائب","5:00",IF(N7="تم الانصراف بعد الموعد","0:00",IF(N7="تم الانصراف في الموعد","0:00",IF(N7>$M$6,$M$6-M7,"")))) -> 00:00:00 | P7: =IF(H7="غائب","6:30",I7)+IF(N7="غائب","5:00",O7)+IF(E7="غائب","0:00",F7)+IF(K7="غائب","0:00",L7) -> 00:00:00 | Q7: =(HOUR(P7)*3600+MINUTE(P7)*60+SECOND(P7))/60 -> 0 | AB7: السبت | AC7: 2019-06-01 | AD7: 06:35:00 | AE7: =IF(AD7="","غائب",IF(AD7=$D$6," تــم الحضور في الموعد",IF(AD7<$D$6,"تم الحضور قبل الموعد",IF(AD7>$D$6,"تم الحضور بعد الموعد","")))) -> تــم الحضور في الموعد | AF7: =IF(AE7="غائب","6:30",IF(AE7="تم الحضور قبل الموعد","0:00",IF(AE7="تم الحضور في الموعد","0:00",IF(AE7>$D$6,AD7-$D$6,"")))) -> 00:00:00 | AG7: 13:00:00 | AH7: =IF(AG7="","غائب",IF(AG7=$G$6," تم الانصراف في الموعد",IF(AG7<$G$6,"تم الانصراف قبل الموعد",IF(AG7>$G$6,"تم الانصراف بعد الموعد","")))) -> تم الانصراف في الموعد | AI7: =IF(AH7="غائب","6:30",IF(AH7="تم الانصراف بعد الموعد","0:00",IF(AH7="تم الانصراف في الموعد","0:00",IF(AH7>$G$6,$G$6-AG7,"")))) -> 00:00:00 | AJ7: 16:00:00 | AK7: =IF(AJ7="","غائب",IF(AJ7=$J$6," تــم الحضور في الموعد",IF(AJ7<$J$6,"تم الحضور قبل الموعد",IF(AJ7>$J$6,"تم الحضور بعد الموعد","")))) -> تــم الحضور في الموعد | AL7: =IF(AK7="غائب","5:00",IF(AK7="تم الحضور قبل الموعد","0:00",IF(AK7="تم الحضور في الموعد","0:00",IF(AK7>$J$6,AJ7-$J$6,"")))) -> 00:00:00 | AM7: 21:00:00 | AN7: =IF(AM7="","غائب",IF(AM7=$M$6," تم الانصراف في الموعد",IF(AM7<$M$6,"تم الانصراف قبل الموعد",IF(AM7>$M$6,"تم الانصراف بعد الموعد","")))) -> تم الانصراف في الموعد | AO7: =IF(AN7="غائب","5:00",IF(AN7="تم الانصراف بعد الموعد","0:00",IF(AN7="تم الانصراف في الموعد","0:00",IF(AN7>$M$6,$M$6-AM7,"")))) -> 00:00:00 | AP7: =IF(AH7="غائب","6:30",AI7)+IF(AN7="غائب","5:00",AO7)+IF(AE7="غائب","0:00",AF7)+IF(AK7="غائب","0:00",AL7) -> 00:00:00 | AQ7: =(HOUR(AP7)*3600+MINUTE(AP7)*60+SECOND(AP7))/60 -> 0 | BB7: السبت | BC7: 2019-06-01 | BD7: 06:35:00 | BE7: =IF(BD7="","غائب",IF(BD7=$D$6," تــم الحضور في الموعد",IF(BD7<$D$6,"تم الحضور قبل الموعد",IF(BD7>$D$6,"تم الحضور بعد الموعد","")))) -> تــم الحضور في الموعد | BF7: =IF(BE7="غائب","6:30",IF(BE7="تم الحضور قبل الموعد","0:00",IF(BE7="تم الحضور في الموعد","0:00",IF(BE7>$D$6,BD7-$D$6,"")))) -> 00:00:00 | BG7: 13:00:00 | BH7: =IF(BG7="","غائب",IF(BG7=$G$6," تم الانصراف في الموعد",IF(BG7<$G$6,"تم الانصراف قبل الموعد",IF(BG7>$G$6,"تم الانصراف بعد الموعد","")))) -> تم الانصراف في الموعد | BI7: =IF(BH7="غائب","6:30",IF(BH7="تم الانصراف بعد الموعد","0:00",IF(BH7="تم الانصراف في الموعد","0:00",IF(BH7>$G$6,$G$6-BG7,"")))) -> 00:00:00 | BJ7: 16:00:00 | BK7: =IF(BJ7="","غائب",IF(BJ7=$J$6," تــم الحضور في الموعد",IF(BJ7<$J$6,"تم الحضور قبل الموعد",IF(BJ7>$J$6,"تم الحضور بعد الموعد","")))) -> تــم الحضور في الموعد | BL7: =IF(BK7="غائب","5:00",IF(BK7="تم الحضور قبل الموعد","0:00",IF(BK7="تم الحضور في الموعد","0:00",IF(BK7>$J$6,BJ7-$J$6,"")))) -> 00:00:00 | BM7: 21:00:00 | BN7: =IF(BM7="","غائب",IF(BM7=$M$6," تم الانصراف في الموعد",IF(BM7<$M$6,"تم الانصراف قبل الموعد",IF(BM7>$M$6,"تم الانصراف بعد الموعد","")))) -> تم الانصراف في الموعد | BO7: =IF(BN7="غائب","5:00",IF(BN7="تم الانصراف بعد الموعد","0:00",IF(BN7="تم الانصراف في الموعد","0:00",IF(BN7>$M$6,$M$6-BM7,"")))) -> 00:00:00 | BP7: =IF(BH7="غائب","6:30",BI7)+IF(BN7="غائب","5:00",BO7)+IF(BE7="غائب","0:00",BF7)+IF(BK7="غائب","0:00",BL7) -> 00:00:00 | BQ7: =(HOUR(BP7)*3600+MINUTE(BP7)*60+SECOND(BP7))/60 -> 0
B8: الأحد | C8: 2019-06-02 | D8: 06:35:00 | E8: =IF(D8="","غائب",IF(D8=$D$6," تــم الحضور في الموعد",IF(D8<$D$6,"تم الحضور قبل الموعد",IF(D8>$D$6,"تم الحضور بعد الموعد","")))) -> تــم الحضور في الموعد | F8: =IF(E8="غائب","6:30",IF(E8="تم الحضور قبل الموعد","0:00",IF(E8="تم الحضور في الموعد","0:00",IF(E8>$D$6,D8-$D$6,"")))) -> 00:00:00 | G8: 13:00:00 | H8: =IF(G8="","غائب",IF(G8=$G$6," تم الانصراف في الموعد",IF(G8<$G$6,"تم الانصراف قبل الموعد",IF(G8>$G$6,"تم الانصراف بعد الموعد","")))) -> تم الانصراف في الموعد | I8: =IF(H8="غائب","6:30",IF(H8="تم الانصراف بعد الموعد","0:00",IF(H8="تم الانصراف في الموعد","0:00",IF(H8>$G$6,$G$6-G8,"")))) -> 00:00:00 | J8: 16:00:00 | K8: =IF(J8="","غائب",IF(J8=$J$6," تــم الحضور في الموعد",IF(J8<$J$6,"تم الحضور قبل الموعد",IF(J8>$J$6,"تم الحضور بعد الموعد","")))) -> تــم الحضور في الموعد | L8: =IF(K8="غائب","5:00",IF(K8="تم الحضور قبل الموعد","0:00",IF(K8="تم الحضور في الموعد","0:00",IF(K8>$J$6,J8-$J$6,"")))) -> 00:00:00 | M8: 21:00:00 | N8: =IF(M8="","غائب",IF(M8=$M$6," تم الانصراف في الموعد",IF(M8<$M$6,"تم الانصراف قبل الموعد",IF(M8>$M$6,"تم الانصراف بعد الموعد","")))) -> تم الانصراف في الموعد | O8: =IF(N8="غائب","5:00",IF(N8="تم الانصراف بعد الموعد","0:00",IF(N8="تم الانصراف في الموعد","0:00",IF(N8>$M$6,$M$6-M8,"")))) -> 00:00:00 | P8: =IF(H8="غائب","6:30",I8)+IF(N8="غائب","5:00",O8)+IF(E8="غائب","0:00",F8)+IF(K8="غائب","0:00",L8) -> 00:00:00 | Q8: =(HOUR(P8)*3600+MINUTE(P8)*60+SECOND(P8))/60 -> 0 | AB8: الأحد | AC8: 2019-06-02 | AD8: 06:35:00 | AE8: =IF(AD8="","غائب",IF(AD8=$D$6," تــم الحضور في الموعد",IF(AD8<$D$6,"تم الحضور قبل الموعد",IF(AD8>$D$6,"تم الحضور بعد الموعد","")))) -> تــم الحضور في الموعد | AF8: =IF(AE8="غائب","6:30",IF(AE8="تم الحضور قبل الموعد","0:00",IF(AE8="تم الحضور في الموعد","0:00",IF(AE8>$D$6,AD8-$D$6,"")))) -> 00:00:00 | AG8: 13:00:00 | AH8: =IF(AG8="","غائب",IF(AG8=$G$6," تم الانصراف في الموعد",IF(AG8<$G$6,"تم الانصراف قبل الموعد",IF(AG8>$G$6,"تم الانصراف بعد الموعد","")))) -> تم الانصراف في الموعد | AI8: =IF(AH8="غائب","6:30",IF(AH8="تم الانصراف بعد الموعد","0:00",IF(AH8="تم الانصراف في الموعد","0:00",IF(AH8>$G$6,$G$6-AG8,"")))) -> 00:00:00 | AJ8: 16:00:00 | AK8: =IF(AJ8="","غائب",IF(AJ8=$J$6," تــم الحضور في الموعد",IF(AJ8<$J$6,"تم الحضور قبل الموعد",IF(AJ8>$J$6,"تم الحضور بعد الموعد","")))) -> تــم الحضور في الموعد | AL8: =IF(AK8="غائب","5:00",IF(AK8="تم الحضور قبل الموعد","0:00",IF(AK8="تم الحضور في الموعد","0:00",IF(AK8>$J$6,AJ8-$J$6,"")))) -> 00:00:00 | AM8: 21:00:00 | AN8: =IF(AM8="","غائب",IF(AM8=$M$6," تم الانصراف في الموعد",IF(AM8<$M$6,"تم الانصراف قبل الموعد",IF(AM8>$M$6,"تم الانصراف بعد الموعد","")))) -> تم الانصراف في الموعد | AO8: =IF(AN8="غائب","5:00",IF(AN8="تم الانصراف بعد الموعد","0:00",IF(AN8="تم الانصراف في الموعد","0:00",IF(AN8>$M$6,$M$6-AM8,"")))) -> 00:00:00 | AP8: =IF(AH8="غائب","6:30",AI8)+IF(AN8="غائب","5:00",AO8)+IF(AE8="غائب","0:00",AF8)+IF(AK8="غائب","0:00",AL8) -> 00:00:00 | AQ8: =(HOUR(AP8)*3600+MINUTE(AP8)*60+SECOND(AP8))/60 -> 0 | BB8: الأحد | BC8: 2019-06-02 | BD8: 06:35:00 | BE8: =IF(BD8="","غائب",IF(BD8=$D$6," تــم الحضور في الموعد",IF(BD8<$D$6,"تم الحضور قبل الموعد",IF(BD8>$D$6,"تم الحضور بعد الموعد","")))) -> تــم الحضور في الموعد | BF8: =IF(BE8="غائب","6:30",IF(BE8="تم الحضور قبل الموعد","0:00",IF(BE8="تم الحضور في الموعد","0:00",IF(BE8>$D$6,BD8-$D$6,"")))) -> 00:00:00 | BG8: 13:00:00 | BH8: =IF(BG8="","غائب",IF(BG8=$G$6," تم الانصراف في الموعد",IF(BG8<$G$6,"تم الانصراف قبل الموعد",IF(BG8>$G$6,"تم الانصراف بعد الموعد","")))) -> تم الانصراف في الموعد | BI8: =IF(BH8="غائب","6:30",IF(BH8="تم الانصراف بعد الموعد","0:00",IF(BH8="تم الانصراف في الموعد","0:00",IF(BH8>$G$6,$G$6-BG8,"")))) -> 00:00:00 | BJ8: 16:00:00 | BK8: =IF(BJ8="","غائب",IF(BJ8=$J$6," تــم الحضور في الموعد",IF(BJ8<$J$6,"تم الحضور قبل الموعد",IF(BJ8>$J$6,"تم الحضور بعد الموعد","")))) -> تــم الحضور في الموعد | BL8: =IF(BK8="غائب","5:00",IF(BK8="تم الحضور قبل الموعد","0:00",IF(BK8="تم الحضور في الموعد","0:00",IF(BK8>$J$6,BJ8-$J$6,"")))) -> 00:00:00 | BM8: 21:00:00 | BN8: =IF(BM8="","غائب",IF(BM8=$M$6," تم الانصراف في الموعد",IF(BM8<$M$6,"تم الانصراف قبل الموعد",IF(BM8>$M$6,"تم الانصراف بعد الموعد","")))) -> تم الانصراف في الموعد | BO8: =IF(BN8="غائب","5:00",IF(BN8="تم الانصراف بعد الموعد","0:00",IF(BN8="تم الانصراف في الموعد","0:00",IF(BN8>$M$6,$M$6-BM8,"")))) -> 00:00:00 | BP8: =IF(BH8="غائب","6:30",BI8)+IF(BN8="غائب","5:00",BO8)+IF(BE8="غائب","0:00",BF8)+IF(BK8="غائب","0:00",BL8) -> 00:00:00 | BQ8: =(HOUR(BP8)*3600+MINUTE(BP8)*60+SECOND(BP8))/60 -> 0
B9: الإثنين | C9: 2019-06-03 | D9: 06:35:00 | E9: تــم الحضور في الموعد | F9: 00:00:00 | G9: 13:00:00 | H9: تم الانصراف في الموعد | I9: 00:00:00 | J9: 16:00:00 | K9: تــم الحضور في الموعد | L9: 00:00:00 | M9: 21:00:00 | N9: تم الانصراف في الموعد | O9: 00:00:00 | P9: 00:00:00 | Q9: 0 | AB9: الإثنين | AC9: 2019-06-03 | AD9: 06:35:00 | AE9: تــم الحضور في الموعد | AF9: 00:00:00 | AG9: 13:00:00 | AH9: تم الانصراف في الموعد | AI9: 00:00:00 | AJ9: 16:00:00 | AK9: تــم الحضور في الموعد | AL9: 00:00:00 | AM9: 21:00:00 | AN9: تم الانصراف في الموعد | AO9: 00:00:00 | AP9: 00:00:00 | AQ9: 0 | BB9: الإثنين | BC9: 2019-06-03 | BD9: 06:35:00 | BE9: تــم الحضور في الموعد | BF9: 00:00:00 | BG9: 13:00:00 | BH9: تم الانصراف في الموعد | BI9: 00:00:00 | BJ9: 16:00:00 | BK9: تــم الحضور في الموعد | BL9: 00:00:00 | BM9: 21:00:00 | BN9: تم الانصراف في الموعد | BO9: 00:00:00 | BP9: 00:00:00 | BQ9: 0
B10: الثلاثاء | C10: 2019-06-04 | D10: 06:35:00 | E10: تــم الحضور في الموعد | F10: 00:00:00 | G10: 13:00:00 | H10: تم الانصراف في الموعد | I10: 00:00:00 | J10: 16:00:00 | K10: تــم الحضور في الموعد | L10: 00:00:00 | M10: 21:00:00 | N10: تم الانصراف في الموعد | O10: 00:00:00 | P10: 00:00:00 | Q10: 0 | AB10: الثلاثاء | AC10: 2019-06-04 | AD10: 06:35:00 | AE10: تــم الحضور في الموعد | AF10: 00:00:00 | AG10: 13:00:00 | AH10: تم الانصراف في الموعد | AI10: 00:00:00 | AJ10: 16:00:00 | AK10: تــم الحضور في الموعد | AL10: 00:00:00 | AM10: 21:00:00 | AN10: تم الانصراف في الموعد | AO10: 00:00:00 | AP10: 00:00:00 | AQ10: 0 | BB10: الثلاثاء | BC10: 2019-06-04 | BD10: 06:35:00 | BE10: تــم الحضور في الموعد | BF10: 00:00:00 | BG10: 13:00:00 | BH10: تم الانصراف في الموعد | BI10: 00:00:00 | BJ10: 16:00:00 | BK10: تــم الحضور في الموعد | BL10: 00:00:00 | BM10: 21:00:00 | BN10: تم الانصراف في الموعد | BO10: 00:00:00 | BP10: 00:00:00 | BQ10: 0
B11: الأربعاء | C11: 2019-06-05 | D11: 06:35:00 | E11: تــم الحضور في الموعد | F11: 00:00:00 | G11: 13:00:00 | H11: تم الانصراف في الموعد | I11: 00:00:00 | J11: 16:00:00 | K11: تــم الحضور في الموعد | L11: 00:00:00 | M11: 21:00:00 | N11: تم الانصراف في الموعد | O11: 00:00:00 | P11: 00:00:00 | Q11: 0 | AB11: الأربعاء | AC11: 2019-06-05 | AD11: 06:35:00 | AE11: تــم الحضور في الموعد | AF11: 00:00:00 | AG11: 13:00:00 | AH11: تم الانصراف في الموعد | AI11: 00:00:00 | AJ11: 16:00:00 | AK11: تــم الحضور في الموعد | AL11: 00:00:00 | AM11: 21:00:00 | AN11: تم الانصراف في الموعد | AO11: 00:00:00 | AP11: 00:00:00 | AQ11: 0 | BB11: الأربعاء | BC11: 2019-06-05 | BD11: 06:35:00 | BE11: تــم الحضور في الموعد | BF11: 00:00:00 | BG11: 13:00:00 | BH11: تم الانصراف في الموعد | BI11: 00:00:00 | BJ11: 16:00:00 | BK11: تــم الحضور في الموعد | BL11: 00:00:00 | BM11: 21:00:00 | BN11: تم الانصراف في الموعد | BO11: 00:00:00 | BP11: 00:00:00 | BQ11: 0
B12: الخميس | C12: 2019-06-06 | D12: 06:35:00 | E12: تــم الحضور في الموعد | F12: 00:00:00 | G12: 13:00:00 | H12: تم الانصراف في الموعد | I12: 00:00:00 | J12: 16:00:00 | K12: تــم الحضور في الموعد | L12: 00:00:00 | M12: 21:00:00 | N12: تم الانصراف في الموعد | O12: 00:00:00 | P12: 00:00:00 | Q12: 0 | AB12: الخميس | AC12: 2019-06-06 | AD12: 06:35:00 | AE12: تــم الحضور في الموعد | AF12: 00:00:00 | AG12: 13:00:00 | AH12: تم الانصراف في الموعد | AI12: 00:00:00 | AJ12: 16:00:00 | AK12: تــم الحضور في الموعد | AL12: 00:00:00 | AM12: 21:00:00 | AN12: تم الانصراف في الموعد | AO12: 00:00:00 | AP12: 00:00:00 | AQ12: 0 | BB12: الخميس | BC12: 2019-06-06 | BD12: 06:35:00 | BE12: تــم الحضور في الموعد | BF12: 00:00:00 | BG12: 13:00:00 | BH12: تم الانصراف في الموعد | BI12: 00:00:00 | BJ12: 16:00:00 | BK12: تــم الحضور في الموعد | BL12: 00:00:00 | BM12: 21:00:00 | BN12: تم الانصراف في الموعد | BO12: 00:00:00 | BP12: 00:00:00 | BQ12: 0
B13: الجمعة | C13: 2019-06-07 | D13: 06:35:00 | E13: اجازة | F13: 00:00:00 | G13: 13:00:00 | H13: اجازة | I13: 00:00:00 | J13: 16:00:00 | K13: اجازة | L13: 00:00:00 | M13: 21:00:00 | N13: اجازة | O13: 00:00:00 | P13: 00:00:00 | Q13: 0 | AB13: الجمعة | AC13: 2019-06-07 | AD13: 06:35:00 | AE13: اجازة | AF13: 00:00:00 | AG13: 13:00:00 | AH13: اجازة | AI13: 00:00:00 | AJ13: 16:00:00 | AK13: اجازة | AL13: 00:00:00 | AM13: 21:00:00 | AN13: اجازة | AO13: 00:00:00 | AP13: 00:00:00 | AQ13: 0 | BB13: الجمعة | BC13: 2019-06-07 | BD13: 06:35:00 | BE13: اجازة | BF13: 00:00:00 | BG13: 13:00:00 | BH13: اجازة | BI13: 00:00:00 | BJ13: 16:00:00 | BK13: اجازة | BL13: 00:00:00 | BM13: 21:00:00 | BN13: اجازة | BO13: 00:00:00 | BP13: 00:00:00 | BQ13: 0
B14: السبت | C14: 2019-06-08 | D14: 06:35:00 | E14: =IF(D14="","غائب",IF(D14=$D$6," تــم الحضور في الموعد",IF(D14<$D$6,"تم الحضور قبل الموعد",IF(D14>$D$6,"تم الحضور بعد الموعد","")))) -> تــم الحضور في الموعد | F14: 00:00:00 | G14: 13:00:00 | H14: تم الانصراف في الموعد | I14: 00:00:00 | J14: 16:00:00 | K14: تــم الحضور في الموعد | L14: 00:00:00 | M14: 21:00:00 | N14: تم الانصراف في الموعد | O14: 00:00:00 | P14: 00:00:00 | Q14: 0 | AB14: السبت | AC14: 2019-06-08 | AD14: 06:35:00 | AE14: =IF(AD14="","غائب",IF(AD14=$D$6," تــم الحضور في الموعد",IF(AD14<$D$6,"تم الحضور قبل الموعد",IF(AD14>$D$6,"تم الحضور بعد الموعد","")))) -> تــم الحضور في الموعد | AF14: =IF(AE14="غائب","6:30",IF(AE14="تم الحضور قبل الموعد","0:00",IF(AE14="تم الحضور في الموعد","0:00",IF(AE14>$D$6,AD14-$D$6,"")))) -> 00:00:00 | AG14: 13:00:00 | AH14: =IF(AG14="","غائب",IF(AG14=$G$6," تم الانصراف في الموعد",IF(AG14<$G$6,"تم الانصراف قبل الموعد",IF(AG14>$G$6,"تم الانصراف بعد الموعد","")))) -> تم الانصراف في الموعد | AI14: =IF(AH14="غائب","6:30",IF(AH14="تم الانصراف بعد الموعد","0:00",IF(AH14="تم الانصراف في الموعد","0:00",IF(AH14>$G$6,$G$6-AG14,"")))) -> 00:00:00 | AJ14: 16:00:00 | AK14: =IF(AJ14="","غائب",IF(AJ14=$J$6," تــم الحضور في الموعد",IF(AJ14<$J$6,"تم الحضور قبل الموعد",IF(AJ14>$J$6,"تم الحضور بعد الموعد","")))) -> تــم الحضور في الموعد | AL14: =IF(AK14="غائب","5:00",IF(AK14="تم الحضور قبل الموعد","0:00",IF(AK14="تم الحضور في الموعد","0:00",IF(AK14>$J$6,AJ14-$J$6,"")))) -> 00:00:00 | AM14: 21:00:00 | AN14: =IF(AM14="","غائب",IF(AM14=$M$6," تم الانصراف في الموعد",IF(AM14<$M$6,"تم الانصراف قبل الموعد",IF(AM14>$M$6,"تم الانصراف بعد الموعد","")))) -> تم الانصراف في الموعد | AO14: =IF(AN14="غائب","5:00",IF(AN14="تم الانصراف بعد الموعد","0:00",IF(AN14="تم الانصراف في الموعد","0:00",IF(AN14>$M$6,$M$6-AM14,"")))) -> 00:00:00 | AP14: 00:00:00 | AQ14: 0 | BB14: السبت | BC14: 2019-06-08 | BD14: 06:35:00 | BE14: =IF(BD14="","غائب",IF(BD14=$D$6," تــم الحضور في الموعد",IF(BD14<$D$6,"تم الحضور قبل الموعد",IF(BD14>$D$6,"تم الحضور بعد الموعد","")))) -> تــم الحضور في الموعد | BF14: =IF(BE14="غائب","6:30",IF(BE14="تم الحضور قبل الموعد","0:00",IF(BE14="تم الحضور في الموعد","0:00",IF(BE14>$D$6,BD14-$D$6,"")))) -> 00:00:00 | BG14: 13:00:00 | BH14: =IF(BG14="","غائب",IF(BG14=$G$6," تم الانصراف في الموعد",IF(BG14<$G$6,"تم الانصراف قبل الموعد",IF(BG14>$G$6,"تم الانصراف بعد الموعد","")))) -> تم الانصراف في الموعد | BI14: =IF(BH14="غائب","6:30",IF(BH14="تم الانصراف بعد الموعد","0:00",IF(BH14="تم الانصراف في الموعد","0:00",IF(BH14>$G$6,$G$6-BG14,"")))) -> 00:00:00 | BJ14: 16:00:00 | BK14: =IF(BJ14="","غائب",IF(BJ14=$J$6," تــم الحضور في الموعد",IF(BJ14<$J$6,"تم الحضور قبل الموعد",IF(BJ14>$J$6,"تم الحضور بعد الموعد","")))) -> تــم الحضور في الموعد | BL14: =IF(BK14="غائب","5:00",IF(BK14="تم الحضور قبل الموعد","0:00",IF(BK14="تم الحضور في الموعد","0:00",IF(BK14>$J$6,BJ14-$J$6,"")))) -> 00:00:00 | BM14: 21:00:00 | BN14: =IF(BM14="","غائب",IF(BM14=$M$6," تم الانصراف في الموعد",IF(BM14<$M$6,"تم الانصراف قبل الموعد",IF(BM14>$M$6,"تم الانصراف بعد الموعد","")))) -> تم الانصراف في الموعد | BO14: =IF(BN14="غائب","5:00",IF(BN14="تم الانصراف بعد الموعد","0:00",IF(BN14="تم الانصراف في الموعد","0:00",IF(BN14>$M$6,$M$6-BM14,"")))) -> 00:00:00 | BP14: 00:00:00 | BQ14: 0
B15: الأحد | C15: 2019-06-09 | D15: 06:35:00 | E15: تــم الحضور في الموعد | F15: 00:00:00 | G15: 13:00:00 | H15: تم الانصراف في الموعد | I15: 00:00:00 | J15: 16:00:00 | K15: تــم الحضور في الموعد | L15: 00:00:00 | M15: 21:00:00 | N15: تم الانصراف في الموعد | O15: 00:00:00 | P15: 00:00:00 | Q15: 0 | AB15: الأحد | AC15: 2019-06-09 | AD15: 06:35:00 | AE15: تــم الحضور في الموعد | AF15: 00:00:00 | AG15: 13:00:00 | AH15: تم الانصراف في الموعد | AI15: 00:00:00 | AJ15: 16:00:00 | AK15: تــم الحضور في الموعد | AL15: 00:00:00 | AM15: 21:00:00 | AN15: تم الانصراف في الموعد | AO15: 00:00:00 | AP15: 00:00:00 | AQ15: 0 | BB15: الأحد | BC15: 2019-06-09 | BD15: 06:35:00 | BE15: تــم الحضور في الموعد | BF15: 00:00:00 | BG15: 13:00:00 | BH15: تم الانصراف في الموعد | BI15: 00:00:00 | BJ15: 16:00:00 | BK15: تــم الحضور في الموعد | BL15: 00:00:00 | BM15: 21:00:00 | BN15: تم الانصراف في الموعد | BO15: 00:00:00 | BP15: 00:00:00 | BQ15: 0
B16: الإثنين | C16: 2019-06-10 | D16: 06:35:00 | E16: تــم الحضور في الموعد | F16: 00:00:00 | G16: 13:00:00 | H16: تم الانصراف في الموعد | I16: 00:00:00 | J16: 16:00:00 | K16: تــم الحضور في الموعد | L16: 00:00:00 | M16: 21:00:00 | N16: تم الانصراف في الموعد | O16: 00:00:00 | P16: 00:00:00 | Q16: 0 | AB16: الإثنين | AC16: 2019-06-10 | AD16: 06:35:00 | AE16: تــم الحضور في الموعد | AF16: 00:00:00 | AG16: 13:00:00 | AH16: تم الانصراف في الموعد | AI16: 00:00:00 | AJ16: 16:00:00 | AK16: تــم الحضور في الموعد | AL16: 00:00:00 | AM16: 21:00:00 | AN16: تم الانصراف في الموعد | AO16: 00:00:00 | AP16: 00:00:00 | AQ16: 0 | BB16: الإثنين | BC16: 2019-06-10 | BD16: 06:35:00 | BE16: تــم الحضور في الموعد | BF16: 00:00:00 | BG16: 13:00:00 | BH16: تم الانصراف في الموعد | BI16: 00:00:00 | BJ16: 16:00:00 | BK16: تــم الحضور في الموعد | BL16: 00:00:00 | BM16: 21:00:00 | BN16: تم الانصراف في الموعد | BO16: 00:00:00 | BP16: 00:00:00 | BQ16: 0
B17: الثلاثاء | C17: 2019-06-11 | D17: 06:35:00 | E17: تــم الحضور في الموعد | F17: 00:00:00 | G17: 13:00:00 | H17: تم الانصراف في الموعد | I17: 00:00:00 | J17: 16:00:00 | K17: تــم الحضور في الموعد | L17: 00:00:00 | M17: 21:00:00 | N17: تم الانصراف في الموعد | O17: 00:00:00 | P17: 00:00:00 | Q17: 0 | AB17: الثلاثاء | AC17: 2019-06-11 | AD17: 06:35:00 | AE17: تــم الحضور في الموعد | AF17: 00:00:00 | AG17: 13:00:00 | AH17: تم الانصراف في الموعد | AI17: 00:00:00 | AJ17: 16:00:00 | AK17: تــم الحضور في الموعد | AL17: 00:00:00 | AM17: 21:00:00 | AN17: تم الانصراف في الموعد | AO17: 00:00:00 | AP17: 00:00:00 | AQ17: 0 | BB17: الثلاثاء | BC17: 2019-06-11 | BD17: 06:35:00 | BE17: تــم الحضور في الموعد | BF17: 00:00:00 | BG17: 13:00:00 | BH17: تم الانصراف في الموعد | BI17: 00:00:00 | BJ17: 16:00:00 | BK17: تــم الحضور في الموعد | BL17: 00:00:00 | BM17: 21:00:00 | BN17: تم الانصراف في الموعد | BO17: 00:00:00 | BP17: 00:00:00 | BQ17: 0
B18: الأربعاء | C18: 2019-06-12 | D18: 06:35:00 | E18: تــم الحضور في الموعد | F18: 00:00:00 | G18: 13:00:00 | H18: تم الانصراف في الموعد | I18: 00:00:00 | J18: 16:00:00 | K18: تــم الحضور في الموعد | L18: 00:00:00 | M18: 21:00:00 | N18: تم الانصراف في الموعد | O18: 00:00:00 | P18: 00:00:00 | Q18: 0 | AB18: الأربعاء | AC18: 2019-06-12 | AD18: 06:35:00 | AE18: تــم الحضور في الموعد | AF18: 00:00:00 | AG18: 13:00:00 | AH18: تم الانصراف في الموعد | AI18: 00:00:00 | AJ18: 16:00:00 | AK18: تــم الحضور في الموعد | AL18: 00:00:00 | AM18: 21:00:00 | AN18: تم الانصراف في الموعد | AO18: 00:00:00 | AP18: 00:00:00 | AQ18: 0 | BB18: الأربعاء | BC18: 2019-06-12 | BD18: 06:35:00 | BE18: تــم الحضور في الموعد | BF18: 00:00:00 | BG18: 13:00:00 | BH18: تم الانصراف في الموعد | BI18: 00:00:00 | BJ18: 16:00:00 | BK18: تــم الحضور في الموعد | BL18: 00:00:00 | BM18: 21:00:00 | BN18: تم الانصراف في الموعد | BO18: 00:00:00 | BP18: 00:00:00 | BQ18: 0
B19: الخميس | C19: 2019-06-13 | D19: 06:35:00 | E19: تــم الحضور في الموعد | F19: 00:00:00 | G19: 13:00:00 | H19: تم الانصراف في الموعد | I19: 00:00:00 | J19: 16:00:00 | K19: تــم الحضور في الموعد | L19: 00:00:00 | M19: 21:00:00 | N19: تم الانصراف في الموعد | O19: 00:00:00 | P19: 00:00:00 | Q19: 0 | AB19: الخميس | AC19: 2019-06-13 | AD19: 06:35:00 | AE19: تــم الحضور في الموعد | AF19: 00:00:00 | AG19: 13:00:00 | AH19: تم الانصراف في الموعد | AI19: 00:00:00 | AJ19: 16:00:00 | AK19: تــم الحضور في الموعد | AL19: 00:00:00 | AM19: 21:00:00 | AN19: تم الانصراف في الموعد | AO19: 00:00:00 | AP19: 00:00:00 | AQ19: 0 | BB19: الخميس | BC19: 2019-06-13 | BD19: 06:35:00 | BE19: تــم الحضور في الموعد | BF19: 00:00:00 | BG19: 13:00:00 | BH19: تم الانصراف في الموعد | BI19: 00:00:00 | BJ19: 16:00:00 | BK19: تــم الحضور في الموعد | BL19: 00:00:00 | BM19: 21:00:00 | BN19: تم الانصراف في الموعد | BO19: 00:00:00 | BP19: 00:00:00 | BQ19: 0
B20: الجمعة | C20: 2019-06-14 | D20: 06:35:00 | E20: اجازة | F20: 00:00:00 | G20: 13:00:00 | H20: اجازة | I20: 00:00:00 | J20: 16:00:00 | K20: اجازة | L20: 00:00:00 | M20: 21:00:00 | N20: اجازة | O20: 00:00:00 | P20: 00:00:00 | Q20: 0 | AB20: الجمعة | AC20: 2019-06-14 | AD20: 06:35:00 | AE20: اجازة | AF20: 00:00:00 | AG20: 13:00:00 | AH20: اجازة | AI20: 00:00:00 | AJ20: 16:00:00 | AK20: اجازة | AL20: 00:00:00 | AM20: 21:00:00 | AN20: اجازة | AO20: 00:00:00 | AP20: 00:00:00 | AQ20: 0 | BB20: الجمعة | BC20: 2019-06-14 | BD20: 06:35:00 | BE20: اجازة | BF20: 00:00:00 | BG20: 13:00:00 | BH20: اجازة | BI20: 00:00:00 | BJ20: 16:00:00 | BK20: اجازة | BL20: 00:00:00 | BM20: 21:00:00 | BN20: اجازة | BO20: 00:00:00 | BP20: 00:00:00 | BQ20: 0
B21: السبت | C21: 2019-06-15 | D21: 06:35:00 | E21: تــم الحضور في الموعد | F21: 00:00:00 | G21: 13:00:00 | H21: تم الانصراف في الموعد | I21: 00:00:00 | J21: 16:00:00 | K21: تــم الحضور في الموعد | L21: 00:00:00 | M21: 21:00:00 | N21: تم الانصراف في الموعد | O21: 00:00:00 | P21: 00:00:00 | Q21: 0 | AB21: السبت | AC21: 2019-06-15 | AD21: 06:35:00 | AE21: =IF(AD21="","غائب",IF(AD21=$D$6," تــم الحضور في الموعد",IF(AD21<$D$6,"تم الحضور قبل الموعد",IF(AD21>$D$6,"تم الحضور بعد الموعد","")))) -> تــم الحضور في الموعد | AF21: =IF(AE21="غائب","6:30",IF(AE21="تم الحضور قبل الموعد","0:00",IF(AE21="تم الحضور في الموعد","0:00",IF(AE21>$D$6,AD21-$D$6,"")))) -> 00:00:00 | AG21: 13:00:00 | AH21: =IF(AG21="","غائب",IF(AG21=$G$6," تم الانصراف في الموعد",IF(AG21<$G$6,"تم الانصراف قبل الموعد",IF(AG21>$G$6,"تم الانصراف بعد الموعد","")))) -> تم الانصراف في الموعد | AI21: =IF(AH21="غائب","6:30",IF(AH21="تم الانصراف بعد الموعد","0:00",IF(AH21="تم الانصراف في الموعد","0:00",IF(AH21>$G$6,$G$6-AG21,"")))) -> 00:00:00 | AJ21: 16:00:00 | AK21: =IF(AJ21="","غائب",IF(AJ21=$J$6," تــم الحضور في الموعد",IF(AJ21<$J$6,"تم الحضور قبل الموعد",IF(AJ21>$J$6,"تم الحضور بعد الموعد","")))) -> تــم الحضور في الموعد | AL21: =IF(AK21="غائب","5:00",IF(AK21="تم الحضور قبل الموعد","0:00",IF(AK21="تم الحضور في الموعد","0:00",IF(AK21>$J$6,AJ21-$J$6,"")))) -> 00:00:00 | AM21: 21:00:00 | AN21: =IF(AM21="","غائب",IF(AM21=$M$6," تم الانصراف في الموعد",IF(AM21<$M$6,"تم الانصراف قبل الموعد",IF(AM21>$M$6,"تم الانصراف بعد الموعد","")))) -> تم الانصراف في الموعد | AO21: =IF(AN21="غائب","5:00",IF(AN21="تم الانصراف بعد الموعد","0:00",IF(AN21="تم الانصراف في الموعد","0:00",IF(AN21>$M$6,$M$6-AM21,"")))) -> 00:00:00 | AP21: 00:00:00 | AQ21: 0 | BB21: السبت | BC21: 2019-06-15 | BD21: 06:35:00 | BE21: =IF(BD21="","غائب",IF(BD21=$D$6," تــم الحضور في الموعد",IF(BD21<$D$6,"تم الحضور قبل الموعد",IF(BD21>$D$6,"تم الحضور بعد الموعد","")))) -> تــم الحضور في الموعد | BF21: =IF(BE21="غائب","6:30",IF(BE21="تم الحضور قبل الموعد","0:00",IF(BE21="تم الحضور في الموعد","0:00",IF(BE21>$D$6,BD21-$D$6,"")))) -> 00:00:00 | BG21: 13:00:00 | BH21: =IF(BG21="","غائب",IF(BG21=$G$6," تم الانصراف في الموعد",IF(BG21<$G$6,"تم الانصراف قبل الموعد",IF(BG21>$G$6,"تم الانصراف بعد الموعد","")))) -> تم الانصراف في الموعد | BI21: =IF(BH21="غائب","6:30",IF(BH21="تم الانصراف بعد الموعد","0:00",IF(BH21="تم الانصراف في الموعد","0:00",IF(BH21>$G$6,$G$6-BG21,"")))) -> 00:00:00 | BJ21: 16:00:00 | BK21: =IF(BJ21="","غائب",IF(BJ21=$J$6," تــم الحضور في الموعد",IF(BJ21<$J$6,"تم الحضور قبل الموعد",IF(BJ21>$J$6,"تم الحضور بعد الموعد","")))) -> تــم الحضور في الموعد | BL21: =IF(BK21="غائب","5:00",IF(BK21="تم الحضور قبل الموعد","0:00",IF(BK21="تم الحضور في الموعد","0:00",IF(BK21>$J$6,BJ21-$J$6,"")))) -> 00:00:00 | BM21: 21:00:00 | BN21: =IF(BM21="","غائب",IF(BM21=$M$6," تم الانصراف في الموعد",IF(BM21<$M$6,"تم الانصراف قبل الموعد",IF(BM21>$M$6,"تم الانصراف بعد الموعد","")))) -> تم الانصراف في الموعد | BO21: =IF(BN21="غائب","5:00",IF(BN21="تم الانصراف بعد الموعد","0:00",IF(BN21="تم الانصراف في الموعد","0:00",IF(BN21>$M$6,$M$6-BM21,"")))) -> 00:00:00 | BP21: 00:00:00 | BQ21: 0
B22: الأحد | C22: 2019-06-16 | D22: 06:35:00 | E22: تــم الحضور في الموعد | F22: 00:00:00 | G22: 13:00:00 | H22: تم الانصراف في الموعد | I22: 00:00:00 | J22: 16:00:00 | K22: تــم الحضور في الموعد | L22: 00:00:00 | M22: 21:00:00 | N22: تم الانصراف في الموعد | O22: 00:00:00 | P22: 00:00:00 | Q22: 0 | AB22: الأحد | AC22: 2019-06-16 | AD22: 06:35:00 | AE22: تــم الحضور في الموعد | AF22: 00:00:00 | AG22: 13:00:00 | AH22: تم الانصراف في الموعد | AI22: 00:00:00 | AJ22: 16:00:00 | AK22: تــم الحضور في الموعد | AL22: 00:00:00 | AM22: 21:00:00 | AN22: تم الانصراف في الموعد | AO22: 00:00:00 | AP22: 00:00:00 | AQ22: 0 | BB22: الأحد | BC22: 2019-06-16 | BD22: 06:35:00 | BE22: تــم الحضور في الموعد | BF22: 00:00:00 | BG22: 13:00:00 | BH22: تم الانصراف في الموعد | BI22: 00:00:00 | BJ22: 16:00:00 | BK22: تــم الحضور في الموعد | BL22: 00:00:00 | BM22: 21:00:00 | BN22: تم الانصراف في الموعد | BO22: 00:00:00 | BP22: 00:00:00 | BQ22: 0
B23: الإثنين | C23: 2019-06-17 | D23: 06:35:00 | E23: تــم الحضور في الموعد | F23: 00:00:00 | G23: 13:00:00 | H23: تم الانصراف في الموعد | I23: 00:00:00 | J23: 16:00:00 | K23: تــم الحضور في الموعد | L23: 00:00:00 | M23: 21:00:00 | N23: تم الانصراف في الموعد | O23: 00:00:00 | P23: 00:00:00 | Q23: 0 | AB23: الإثنين | AC23: 2019-06-17 | AD23: 06:35:00 | AE23: تــم الحضور في الموعد | AF23: 00:00:00 | AG23: 13:00:00 | AH23: تم الانصراف في الموعد | AI23: 00:00:00 | AJ23: 16:00:00 | AK23: تــم الحضور في الموعد | AL23: 00:00:00 | AM23: 21:00:00 | AN23: تم الانصراف في الموعد | AO23: 00:00:00 | AP23: 00:00:00 | AQ23: 0 | BB23: الإثنين | BC23: 2019-06-17 | BD23: 06:35:00 | BE23: تــم الحضور في الموعد | BF23: 00:00:00 | BG23: 13:00:00 | BH23: تم الانصراف في الموعد | BI23: 00:00:00 | BJ23: 16:00:00 | BK23: تــم الحضور في الموعد | BL23: 00:00:00 | BM23: 21:00:00 | BN23: تم الانصراف في الموعد | BO23: 00:00:00 | BP23: 00:00:00 | BQ23: 0
B24: الثلاثاء | C24: 2019-06-18 | D24: 06:35:00 | E24: تــم الحضور في الموعد | F24: 00:00:00 | G24: 13:00:00 | H24: تم الانصراف في الموعد | I24: 00:00:00 | J24: 16:00:00 | K24: تــم الحضور في الموعد | L24: 00:00:00 | M24: 21:00:00 | N24: تم الانصراف في الموعد | O24: 00:00:00 | P24: 00:00:00 | Q24: 0 | AB24: الثلاثاء | AC24: 2019-06-18 | AD24: 06:35:00 | AE24: تــم الحضور في الموعد | AF24: 00:00:00 | AG24: 13:00:00 | AH24: تم الانصراف في الموعد | AI24: 00:00:00 | AJ24: 16:00:00 | AK24: تــم الحضور في الموعد | AL24: 00:00:00 | AM24: 21:00:00 | AN24: تم الانصراف في الموعد | AO24: 00:00:00 | AP24: 00:00:00 | AQ24: 0 | BB24: الثلاثاء | BC24: 2019-06-18 | BD24: 06:35:00 | BE24: تــم الحضور في الموعد | BF24: 00:00:00 | BG24: 13:00:00 | BH24: تم الانصراف في الموعد | BI24: 00:00:00 | BJ24: 16:00:00 | BK24: تــم الحضور في الموعد | BL24: 00:00:00 | BM24: 21:00:00 | BN24: تم الانصراف في الموعد | BO24: 00:00:00 | BP24: 00:00:00 | BQ24: 0
B25: الأربعاء | C25: 2019-06-19 | D25: 06:35:00 | E25: تــم الحضور في الموعد | F25: 00:00:00 | G25: 13:00:00 | H25: تم الانصراف في الموعد | I25: 00:00:00 | J25: 16:00:00 | K25: تــم الحضور في الموعد | L25: 00:00:00 | M25: 21:00:00 | N25: تم الانصراف في الموعد | O25: 00:00:00 | P25: 00:00:00 | Q25: 0 | AB25: الأربعاء | AC25: 2019-06-19 | AD25: 06:35:00 | AE25: تــم الحضور في الموعد | AF25: 00:00:00 | AG25: 13:00:00 | AH25: تم الانصراف في الموعد | AI25: 00:00:00 | AJ25: 16:00:00 | AK25: تــم الحضور في الموعد | AL25: 00:00:00 | AM25: 21:00:00 | AN25: تم الانصراف في الموعد | AO25: 00:00:00 | AP25: 00:00:00 | AQ25: 0 | BB25: الأربعاء | BC25: 2019-06-19 | BD25: 06:35:00 | BE25: تــم الحضور في الموعد | BF25: 00:00:00 | BG25: 13:00:00 | BH25: تم الانصراف في الموعد | BI25: 00:00:00 | BJ25: 16:00:00 | BK25: تــم الحضور في الموعد | BL25: 00:00:00 | BM25: 21:00:00 | BN25: تم الانصراف في الموعد | BO25: 00:00:00 | BP25: 00:00:00 | BQ25: 0
B26: الخميس | C26: 2019-06-20 | D26: 06:35:00 | E26: تــم الحضور في الموعد | F26: 00:00:00 | G26: 13:00:00 | H26: تم الانصراف في الموعد | I26: 00:00:00 | J26: =IF('تحضير سامي'!F26=1,NOW(),"") ->  | K26: غائب | L26: 5:00 | M26: =IF('تحضير سامي'!G26=1,NOW(),"") ->  | N26: غائب | O26: 5:00 | P26: 05:00:00 | Q26: 300 | AB26: الخميس | AC26: 2019-06-20 | AD26: 06:35:00 | AE26: تــم الحضور في الموعد | AF26: 00:00:00 | AG26: 13:00:00 | AH26: تم الانصراف في الموعد | AI26: 00:00:00 | AJ26: 16:00:00 | AK26: تــم الحضور في الموعد | AL26: 00:00:00 | AM26: 21:00:00 | AN26: تم الانصراف في الموعد | AO26: 00:00:00 | AP26: 00:00:00 | AQ26: 0 | BB26: الخميس | BC26: 2019-06-20 | BD26: 06:35:00 | BE26: تــم الحضور في الموعد | BF26: 00:00:00 | BG26: 13:00:00 | BH26: تم الانصراف في الموعد | BI26: 00:00:00 | BJ26: 16:00:00 | BK26: تــم الحضور في الموعد | BL26: 00:00:00 | BM26: 21:00:00 | BN26: تم الانصراف في الموعد | BO26: 00:00:00 | BP26: 00:00:00 | BQ26: 0
B27: الجمعة | C27: 2019-06-21 | D27: =IF('تحضير سامي'!D27=1,NOW(),"") ->  | E27: اجازة | F27: 00:00:00 | G27: =IF('تحضير سامي'!E27=1,NOW(),"") ->  | H27: اجازة | I27: 00:00:00 | J27: =IF('تحضير سامي'!F27=1,NOW(),"") ->  | K27: اجازة | L27: 00:00:00 | M27: =IF('تحضير سامي'!G27=1,NOW(),"") ->  | N27: اجازة | O27: 00:00:00 | P27: 00:00:00 | Q27: 0 | AB27: الجمعة | AC27: 2019-06-21 | AD27: =IF('تحضير باهبري'!D27=1,NOW(),"") ->  | AE27: اجازة | AF27: 00:00:00 | AG27: =IF('تحضير باهبري'!E27=1,NOW(),"") ->  | AH27: اجازة | AI27: 00:00:00 | AJ27: =IF('تحضير باهبري'!F27=1,NOW(),"") ->  | AK27: اجازة | AL27: 00:00:00 | AM27: =IF('تحضير باهبري'!G27=1,NOW(),"") ->  | AN27: اجازة | AO27: 00:00:00 | AP27: 00:00:00 | AQ27: 0 | BB27: الجمعة | BC27: 2019-06-21 | BD27: =IF('تحضير ابوبكر'!D27=1,NOW(),"") ->  | BE27: اجازة | BF27: 00:00:00 | BG27: =IF('تحضير ابوبكر'!E27=1,NOW(),"") ->  | BH27: اجازة | BI27: 00:00:00 | BJ27: =IF('تحضير ابوبكر'!F27=1,NOW(),"") ->  | BK27: اجازة | BL27: 00:00:00 | BM27: =IF('تحضير ابوبكر'!G27=1,NOW(),"") ->  | BN27: اجازة | BO27: 00:00:00 | BP27: 00:00:00 | BQ27: 0
B28: السبت | C28: 2019-06-22 | D28: =IF('تحضير سامي'!D28=1,NOW(),"") ->  | E28: غائب | F28: 6:30 | G28: =IF('تحضير سامي'!E28=1,NOW(),"") ->  | H28: غائب | I28: 6:30 | J28: =IF('تحضير سامي'!F28=1,NOW(),"") ->  | K28: غائب | L28: 5:00 | M28: =IF('تحضير سامي'!G28=1,NOW(),"") ->  | N28: غائب | O28: 5:00 | P28: 11:30:00 | Q28: 690 | AB28: السبت | AC28: 2019-06-22 | AD28: =IF('تحضير باهبري'!D28=1,NOW(),"") ->  | AE28: =IF(AD28="","غائب",IF(AD28=$D$6," تــم الحضور في الموعد",IF(AD28<$D$6,"تم الحضور قبل الموعد",IF(AD28>$D$6,"تم الحضور بعد الموعد","")))) -> غائب | AF28: =IF(AE28="غائب","6:30",IF(AE28="تم الحضور قبل الموعد","0:00",IF(AE28="تم الحضور في الموعد","0:00",IF(AE28>$D$6,AD28-$D$6,"")))) -> 6:30 | AG28: =IF('تحضير باهبري'!E28=1,NOW(),"") ->  | AH28: =IF(AG28="","غائب",IF(AG28=$G$6," تم الانصراف في الموعد",IF(AG28<$G$6,"تم الانصراف قبل الموعد",IF(AG28>$G$6,"تم الانصراف بعد الموعد","")))) -> غائب | AI28: =IF(AH28="غائب","6:30",IF(AH28="تم الانصراف بعد الموعد","0:00",IF(AH28="تم الانصراف في الموعد","0:00",IF(AH28>$G$6,$G$6-AG28,"")))) -> 6:30 | AJ28: =IF('تحضير باهبري'!F28=1,NOW(),"") ->  | AK28: =IF(AJ28="","غائب",IF(AJ28=$J$6," تــم الحضور في الموعد",IF(AJ28<$J$6,"تم الحضور قبل الموعد",IF(AJ28>$J$6,"تم الحضور بعد الموعد","")))) -> غائب | AL28: =IF(AK28="غائب","5:00",IF(AK28="تم الحضور قبل الموعد","0:00",IF(AK28="تم الحضور في الموعد","0:00",IF(AK28>$J$6,AJ28-$J$6,"")))) -> 5:00 | AM28: =IF('تحضير باهبري'!G28=1,NOW(),"") ->  | AN28: =IF(AM28="","غائب",IF(AM28=$M$6," تم الانصراف في الموعد",IF(AM28<$M$6,"تم الانصراف قبل الموعد",IF(AM28>$M$6,"تم الانصراف بعد الموعد","")))) -> غائب | AO28: =IF(AN28="غائب","5:00",IF(AN28="تم الانصراف بعد الموعد","0:00",IF(AN28="تم الانصراف في الموعد","0:00",IF(AN28>$M$6,$M$6-AM28,"")))) -> 5:00 | AP28: 11:30:00 | AQ28: 690 | BB28: السبت | BC28: 2019-06-22 | BD28: =IF('تحضير ابوبكر'!D28=1,NOW(),"") ->  | BE28: =IF(BD28="","غائب",IF(BD28=$D$6," تــم الحضور في الموعد",IF(BD28<$D$6,"تم الحضور قبل الموعد",IF(BD28>$D$6,"تم الحضور بعد الموعد","")))) -> غائب | BF28: =IF(BE28="غائب","6:30",IF(BE28="تم الحضور قبل الموعد","0:00",IF(BE28="تم الحضور في الموعد","0:00",IF(BE28>$D$6,BD28-$D$6,"")))) -> 6:30 | BG28: =IF('تحضير ابوبكر'!E28=1,NOW(),"") ->  | BH28: =IF(BG28="","غائب",IF(BG28=$G$6," تم الانصراف في الموعد",IF(BG28<$G$6,"تم الانصراف قبل الموعد",IF(BG28>$G$6,"تم الانصراف بعد الموعد","")))) -> غائب | BI28: =IF(BH28="غائب","6:30",IF(BH28="تم الانصراف بعد الموعد","0:00",IF(BH28="تم الانصراف في الموعد","0:00",IF(BH28>$G$6,$G$6-BG28,"")))) -> 6:30 | BJ28: =IF('تحضير ابوبكر'!F28=1,NOW(),"") ->  | BK28: =IF(BJ28="","غائب",IF(BJ28=$J$6," تــم الحضور في الموعد",IF(BJ28<$J$6,"تم الحضور قبل الموعد",IF(BJ28>$J$6,"تم الحضور بعد الموعد","")))) -> غائب | BL28: =IF(BK28="غائب","5:00",IF(BK28="تم الحضور قبل الموعد","0:00",IF(BK28="تم الحضور في الموعد","0:00",IF(BK28>$J$6,BJ28-$J$6,"")))) -> 5:00 | BM28: =IF('تحضير ابوبكر'!G28=1,NOW(),"") ->  | BN28: =IF(BM28="","غائب",IF(BM28=$M$6," تم الانصراف في الموعد",IF(BM28<$M$6,"تم الانصراف قبل الموعد",IF(BM28>$M$6,"تم الانصراف بعد الموعد","")))) -> غائب | BO28: =IF(BN28="غائب","5:00",IF(BN28="تم الانصراف بعد الموعد","0:00",IF(BN28="تم الانصراف في الموعد","0:00",IF(BN28>$M$6,$M$6-BM28,"")))) -> 5:00 | BP28: 11:30:00 | BQ28: 690
B29: الأحد | C29: 2019-06-23 | D29: =IF('تحضير سامي'!D29=1,NOW(),"") ->  | E29: غائب | F29: 6:30 | G29: =IF('تحضير سامي'!E29=1,NOW(),"") ->  | H29: غائب | I29: 6:30 | J29: =IF('تحضير سامي'!F29=1,NOW(),"") ->  | K29: غائب | L29: 5:00 | M29: =IF('تحضير سامي'!G29=1,NOW(),"") ->  | N29: غائب | O29: 5:00 | P29: 11:30:00 | Q29: 690 | AB29: الأحد | AC29: 2019-06-23 | AD29: =IF('تحضير باهبري'!D29=1,NOW(),"") ->  | AE29: غائب | AF29: 6:30 | AG29: =IF('تحضير باهبري'!E29=1,NOW(),"") ->  | AH29: غائب | AI29: 6:30 | AJ29: =IF('تحضير باهبري'!F29=1,NOW(),"") ->  | AK29: غائب | AL29: 5:00 | AM29: =IF('تحضير باهبري'!G29=1,NOW(),"") ->  | AN29: غائب | AO29: 5:00 | AP29: 11:30:00 | AQ29: 690 | BB29: الأحد | BC29: 2019-06-23 | BD29: =IF('تحضير ابوبكر'!D29=1,NOW(),"") ->  | BE29: غائب | BF29: 6:30 | BG29: =IF('تحضير ابوبكر'!E29=1,NOW(),"") ->  | BH29: غائب | BI29: 6:30 | BJ29: =IF('تحضير ابوبكر'!F29=1,NOW(),"") ->  | BK29: غائب | BL29: 5:00 | BM29: =IF('تحضير ابوبكر'!G29=1,NOW(),"") ->  | BN29: غائب | BO29: 5:00 | BP29: 11:30:00 | BQ29: 690
B30: الإثنين | C30: 2019-06-24 | D30: =IF('تحضير سامي'!D30=1,NOW(),"") ->  | E30: غائب | F30: 6:30 | G30: =IF('تحضير سامي'!E30=1,NOW(),"") ->  | H30: غائب | I30: 6:30 | J30: =IF('تحضير سامي'!F30=1,NOW(),"") ->  | K30: غائب | L30: 5:00 | M30: =IF('تحضير سامي'!G30=1,NOW(),"") ->  | N30: غائب | O30: 5:00 | P30: 11:30:00 | Q30: 690 | AB30: الإثنين | AC30: 2019-06-24 | AD30: =IF('تحضير باهبري'!D30=1,NOW(),"") ->  | AE30: غائب | AF30: 6:30 | AG30: =IF('تحضير باهبري'!E30=1,NOW(),"") ->  | AH30: غائب | AI30: 6:30 | AJ30: =IF('تحضير باهبري'!F30=1,NOW(),"") ->  | AK30: غائب | AL30: 5:00 | AM30: =IF('تحضير باهبري'!G30=1,NOW(),"") ->  | AN30: غائب | AO30: 5:00 | AP30: 11:30:00 | AQ30: 690 | BB30: الإثنين | BC30: 2019-06-24 | BD30: =IF('تحضير ابوبكر'!D30=1,NOW(),"") ->  | BE30: غائب | BF30: 6:30 | BG30: =IF('تحضير ابوبكر'!E30=1,NOW(),"") ->  | BH30: غائب | BI30: 6:30 | BJ30: =IF('تحضير ابوبكر'!F30=1,NOW(),"") ->  | BK30: غائب | BL30: 5:00 | BM30: =IF('تحضير ابوبكر'!G30=1,NOW(),"") ->  | BN30: غائب | BO30: 5:00 | BP30: 11:30:00 | BQ30: 690
B31: الثلاثاء | C31: 2019-06-25 | D31: =IF('تحضير سامي'!D31=1,NOW(),"") ->  | E31: غائب | F31: 6:30 | G31: =IF('تحضير سامي'!E31=1,NOW(),"") ->  | H31: غائب | I31: 6:30 | J31: =IF('تحضير سامي'!F31=1,NOW(),"") ->  | K31: غائب | L31: 5:00 | M31: =IF('تحضير سامي'!G31=1,NOW(),"") ->  | N31: غائب | O31: 5:00 | P31: 11:30:00 | Q31: 690 | AB31: الثلاثاء | AC31: 2019-06-25 | AD31: =IF('تحضير باهبري'!D31=1,NOW(),"") ->  | AE31: غائب | AF31: 6:30 | AG31: =IF('تحضير باهبري'!E31=1,NOW(),"") ->  | AH31: غائب | AI31: 6:30 | AJ31: =IF('تحضير باهبري'!F31=1,NOW(),"") ->  | AK31: غائب | AL31: 5:00 | AM31: =IF('تحضير باهبري'!G31=1,NOW(),"") ->  | AN31: غائب | AO31: 5:00 | AP31: 11:30:00 | AQ31: 690 | BB31: الثلاثاء | BC31: 2019-06-25 | BD31: =IF('تحضير ابوبكر'!D31=1,NOW(),"") ->  | BE31: غائب | BF31: 6:30 | BG31: =IF('تحضير ابوبكر'!E31=1,NOW(),"") ->  | BH31: غائب | BI31: 6:30 | BJ31: =IF('تحضير ابوبكر'!F31=1,NOW(),"") ->  | BK31: غائب | BL31: 5:00 | BM31: =IF('تحضير ابوبكر'!G31=1,NOW(),"") ->  | BN31: غائب | BO31: 5:00 | BP31: 11:30:00 | BQ31: 690
B32: الأربعاء | C32: 2019-06-26 | D32: =IF('تحضير سامي'!D32=1,NOW(),"") ->  | E32: غائب | F32: 6:30 | G32: =IF('تحضير سامي'!E32=1,NOW(),"") ->  | H32: غائب | I32: 6:30 | J32: =IF('تحضير سامي'!F32=1,NOW(),"") ->  | K32: غائب | L32: 5:00 | M32: =IF('تحضير سامي'!G32=1,NOW(),"") ->  | N32: غائب | O32: 5:00 | P32: 11:30:00 | Q32: 690 | AB32: الأربعاء | AC32: 2019-06-26 | AD32: =IF('تحضير باهبري'!D32=1,NOW(),"") ->  | AE32: غائب | AF32: 6:30 | AG32: =IF('تحضير باهبري'!E32=1,NOW(),"") ->  | AH32: غائب | AI32: 6:30 | AJ32: =IF('تحضير باهبري'!F32=1,NOW(),"") ->  | AK32: غائب | AL32: 5:00 | AM32: =IF('تحضير باهبري'!G32=1,NOW(),"") ->  | AN32: غائب | AO32: 5:00 | AP32: 11:30:00 | AQ32: 690 | BB32: الأربعاء | BC32: 2019-06-26 | BD32: =IF('تحضير ابوبكر'!D32=1,NOW(),"") ->  | BE32: غائب | BF32: 6:30 | BG32: =IF('تحضير ابوبكر'!E32=1,NOW(),"") ->  | BH32: غائب | BI32: 6:30 | BJ32: =IF('تحضير ابوبكر'!F32=1,NOW(),"") ->  | BK32: غائب | BL32: 5:00 | BM32: =IF('تحضير ابوبكر'!G32=1,NOW(),"") ->  | BN32: غائب | BO32: 5:00 | BP32: 11:30:00 | BQ32: 690
B33: الخميس | C33: 2019-06-27 | D33: =IF('تحضير سامي'!D33=1,NOW(),"") ->  | E33: غائب | F33: 6:30 | G33: =IF('تحضير سامي'!E33=1,NOW(),"") ->  | H33: غائب | I33: 6:30 | J33: =IF('تحضير سامي'!F33=1,NOW(),"") ->  | K33: غائب | L33: 5:00 | M33: =IF('تحضير سامي'!G33=1,NOW(),"") ->  | N33: غائب | O33: 5:00 | P33: 11:30:00 | Q33: 690 | AB33: الخميس | AC33: 2019-06-27 | AD33: =IF('تحضير باهبري'!D33=1,NOW(),"") ->  | AE33: غائب | AF33: 6:30 | AG33: =IF('تحضير باهبري'!E33=1,NOW(),"") ->  | AH33: غائب | AI33: 6:30 | AJ33: =IF('تحضير باهبري'!F33=1,NOW(),"") ->  | AK33: غائب | AL33: 5:00 | AM33: =IF('تحضير باهبري'!G33=1,NOW(),"") ->  | AN33: غائب | AO33: 5:00 | AP33: 11:30:00 | AQ33: 690 | BB33: الخميس | BC33: 2019-06-27 | BD33: =IF('تحضير ابوبكر'!D33=1,NOW(),"") ->  | BE33: غائب | BF33: 6:30 | BG33: =IF('تحضير ابوبكر'!E33=1,NOW(),"") ->  | BH33: غائب | BI33: 6:30 | BJ33: =IF('تحضير ابوبكر'!F33=1,NOW(),"") ->  | BK33: غائب | BL33: 5:00 | BM33: =IF('تحضير ابوبكر'!G33=1,NOW(),"") ->  | BN33: غائب | BO33: 5:00 | BP33: 11:30:00 | BQ33: 690
B34: الجمعة | C34: 2019-06-28 | D34: =IF('تحضير سامي'!D34=1,NOW(),"") ->  | E34: اجازة | F34: 00:00:00 | G34: =IF('تحضير سامي'!E34=1,NOW(),"") ->  | H34: اجازة | I34: 00:00:00 | J34: =IF('تحضير سامي'!F34=1,NOW(),"") ->  | K34: اجازة | L34: 00:00:00 | M34: =IF('تحضير سامي'!G34=1,NOW(),"") ->  | N34: اجازة | O34: 00:00:00 | P34: 00:00:00 | Q34: 0 | AB34: الجمعة | AC34: 2019-06-28 | AD34: =IF('تحضير باهبري'!D34=1,NOW(),"") ->  | AE34: اجازة | AF34: 00:00:00 | AG34: =IF('تحضير باهبري'!E34=1,NOW(),"") ->  | AH34: اجازة | AI34: 00:00:00 | AJ34: =IF('تحضير باهبري'!F34=1,NOW(),"") ->  | AK34: اجازة | AL34: 00:00:00 | AM34: =IF('تحضير باهبري'!G34=1,NOW(),"") ->  | AN34: اجازة | AO34: 00:00:00 | AP34: 00:00:00 | AQ34: 0 | BB34: الجمعة | BC34: 2019-06-28 | BD34: =IF('تحضير ابوبكر'!D34=1,NOW(),"") ->  | BE34: اجازة | BF34: 00:00:00 | BG34: =IF('تحضير ابوبكر'!E34=1,NOW(),"") ->  | BH34: اجازة | BI34: 00:00:00 | BJ34: =IF('تحضير ابوبكر'!F34=1,NOW(),"") ->  | BK34: اجازة | BL34: 00:00:00 | BM34: =IF('تحضير ابوبكر'!G34=1,NOW(),"") ->  | BN34: اجازة | BO34: 00:00:00 | BP34: 00:00:00 | BQ34: 0
B35: السبت | C35: 2019-06-29 | D35: =IF('تحضير سامي'!D35=1,NOW(),"") ->  | E35: غائب | F35: 6:30 | G35: =IF('تحضير سامي'!E35=1,NOW(),"") ->  | H35: غائب | I35: 6:30 | J35: =IF('تحضير سامي'!F35=1,NOW(),"") ->  | K35: غائب | L35: 5:00 | M35: =IF('تحضير سامي'!G35=1,NOW(),"") ->  | N35: غائب | O35: 5:00 | P35: 11:30:00 | Q35: 690 | AB35: السبت | AC35: 2019-06-29 | AD35: =IF('تحضير باهبري'!D35=1,NOW(),"") ->  | AE35: =IF(AD35="","غائب",IF(AD35=$D$6," تــم الحضور في الموعد",IF(AD35<$D$6,"تم الحضور قبل الموعد",IF(AD35>$D$6,"تم الحضور بعد الموعد","")))) -> غائب | AF35: =IF(AE35="غائب","6:30",IF(AE35="تم الحضور قبل الموعد","0:00",IF(AE35="تم الحضور في الموعد","0:00",IF(AE35>$D$6,AD35-$D$6,"")))) -> 6:30 | AG35: =IF('تحضير باهبري'!E35=1,NOW(),"") ->  | AH35: =IF(AG35="","غائب",IF(AG35=$G$6," تم الانصراف في الموعد",IF(AG35<$G$6,"تم الانصراف قبل الموعد",IF(AG35>$G$6,"تم الانصراف بعد الموعد","")))) -> غائب | AI35: =IF(AH35="غائب","6:30",IF(AH35="تم الانصراف بعد الموعد","0:00",IF(AH35="تم الانصراف في الموعد","0:00",IF(AH35>$G$6,$G$6-AG35,"")))) -> 6:30 | AJ35: =IF('تحضير باهبري'!F35=1,NOW(),"") ->  | AK35: =IF(AJ35="","غائب",IF(AJ35=$J$6," تــم الحضور في الموعد",IF(AJ35<$J$6,"تم الحضور قبل الموعد",IF(AJ35>$J$6,"تم الحضور بعد الموعد","")))) -> غائب | AL35: =IF(AK35="غائب","5:00",IF(AK35="تم الحضور قبل الموعد","0:00",IF(AK35="تم الحضور في الموعد","0:00",IF(AK35>$J$6,AJ35-$J$6,"")))) -> 5:00 | AM35: =IF('تحضير باهبري'!G35=1,NOW(),"") ->  | AN35: =IF(AM35="","غائب",IF(AM35=$M$6," تم الانصراف في الموعد",IF(AM35<$M$6,"تم الانصراف قبل الموعد",IF(AM35>$M$6,"تم الانصراف بعد الموعد","")))) -> غائب | AO35: =IF(AN35="غائب","5:00",IF(AN35="تم الانصراف بعد الموعد","0:00",IF(AN35="تم الانصراف في الموعد","0:00",IF(AN35>$M$6,$M$6-AM35,"")))) -> 5:00 | AP35: 11:30:00 | AQ35: 690 | BB35: السبت | BC35: 2019-06-29 | BD35: =IF('تحضير ابوبكر'!D35=1,NOW(),"") ->  | BE35: =IF(BD35="","غائب",IF(BD35=$D$6," تــم الحضور في الموعد",IF(BD35<$D$6,"تم الحضور قبل الموعد",IF(BD35>$D$6,"تم الحضور بعد الموعد","")))) -> غائب | BF35: =IF(BE35="غائب","6:30",IF(BE35="تم الحضور قبل الموعد","0:00",IF(BE35="تم الحضور في الموعد","0:00",IF(BE35>$D$6,BD35-$D$6,"")))) -> 6:30 | BG35: =IF('تحضير ابوبكر'!E35=1,NOW(),"") ->  | BH35: =IF(BG35="","غائب",IF(BG35=$G$6," تم الانصراف في الموعد",IF(BG35<$G$6,"تم الانصراف قبل الموعد",IF(BG35>$G$6,"تم الانصراف بعد الموعد","")))) -> غائب | BI35: =IF(BH35="غائب","6:30",IF(BH35="تم الانصراف بعد الموعد","0:00",IF(BH35="تم الانصراف في الموعد","0:00",IF(BH35>$G$6,$G$6-BG35,"")))) -> 6:30 | BJ35: =IF('تحضير ابوبكر'!F35=1,NOW(),"") ->  | BK35: =IF(BJ35="","غائب",IF(BJ35=$J$6," تــم الحضور في الموعد",IF(BJ35<$J$6,"تم الحضور قبل الموعد",IF(BJ35>$J$6,"تم الحضور بعد الموعد","")))) -> غائب | BL35: =IF(BK35="غائب","5:00",IF(BK35="تم الحضور قبل الموعد","0:00",IF(BK35="تم الحضور في الموعد","0:00",IF(BK35>$J$6,BJ35-$J$6,"")))) -> 5:00 | BM35: =IF('تحضير ابوبكر'!G35=1,NOW(),"") ->  | BN35: =IF(BM35="","غائب",IF(BM35=$M$6," تم الانصراف في الموعد",IF(BM35<$M$6,"تم الانصراف قبل الموعد",IF(BM35>$M$6,"تم الانصراف بعد الموعد","")))) -> غائب | BO35: =IF(BN35="غائب","5:00",IF(BN35="تم الانصراف بعد الموعد","0:00",IF(BN35="تم الانصراف في الموعد","0:00",IF(BN35>$M$6,$M$6-BM35,"")))) -> 5:00 | BP35: 11:30:00 | BQ35: 690
B36: الأحد | C36: 2019-06-30 | D36: =IF('تحضير سامي'!D36=1,NOW(),"") ->  | E36: غائب | F36: 6:30 | G36: =IF('تحضير سامي'!E36=1,NOW(),"") ->  | H36: غائب | I36: 6:30 | J36: =IF('تحضير سامي'!F36=1,NOW(),"") ->  | K36: غائب | L36: 5:00 | M36: =IF('تحضير سامي'!G36=1,NOW(),"") ->  | N36: غائب | O36: 5:00 | P36: 11:30:00 | Q36: 690 | AB36: الأحد | AC36: 2019-06-30 | AD36: =IF('تحضير باهبري'!D36=1,NOW(),"") ->  | AE36: غائب | AF36: 6:30 | AG36: =IF('تحضير باهبري'!E36=1,NOW(),"") ->  | AH36: غائب | AI36: 6:30 | AJ36: =IF('تحضير باهبري'!F36=1,NOW(),"") ->  | AK36: غائب | AL36: 5:00 | AM36: =IF('تحضير باهبري'!G36=1,NOW(),"") ->  | AN36: غائب | AO36: 5:00 | AP36: 11:30:00 | AQ36: 690 | BB36: الأحد | BC36: 2019-06-30 | BD36: =IF('تحضير ابوبكر'!D36=1,NOW(),"") ->  | BE36: غائب | BF36: 6:30 | BG36: =IF('تحضير ابوبكر'!E36=1,NOW(),"") ->  | BH36: غائب | BI36: 6:30 | BJ36: =IF('تحضير ابوبكر'!F36=1,NOW(),"") ->  | BK36: غائب | BL36: 5:00 | BM36: =IF('تحضير ابوبكر'!G36=1,NOW(),"") ->  | BN36: غائب | BO36: 5:00 | BP36: 11:30:00 | BQ36: 690
D38: اجمالي وقت الدوام | F38: 19140 | H38: اجمالي وقت التاخير بالدقائق | I38: =SUM(Q7:Q36) -> 5820 | L38: الراتب | N38: 50000 | AE38: اجمالي وقت الدوام | AF38: 19140 | AH38: اجمالي وقت التاخير بالدقائق | AI38: =SUM(AQ7:AQ36) -> 5520 | AL38: الراتب | AN38: 55000 | BE38: اجمالي وقت الدوام | BF38: 19140 | BH38: اجمالي وقت التاخير بالدقائق | BI38: =SUM(BQ7:BQ36) -> 5520 | BL38: الراتب | BN38: 45000
B39: الاثنين | C39: 2019-07-01 | D39: =IF('تحضير سامي'!D39=1,NOW(),"") ->  | E39: غائب | F39: 6:30 | G39: =IF('تحضير سامي'!E39=1,NOW(),"") ->  | H39: غائب | I39: =IF(H39="غائب","6:30",IF(H39="تم الانصراف بعد الموعد","0:00",IF(H39="تم الانصراف في الموعد","0:00",IF(H39>$G$6,$G$6-G39,"")))) -> 6:30 | J39: =IF('تحضير سامي'!F39=1,NOW(),"") ->  | K39: غائب | L39: =IF(K39="غائب","5:00",IF(K39="تم الحضور قبل الموعد","0:00",IF(K39="تم الحضور في الموعد","0:00",IF(K39>$J$6,J39-$J$6,"")))) -> 5:00 | M39: =IF('تحضير سامي'!G39=1,NOW(),"") ->  | N39: غائب | O39: =IF(N39="غائب","5:00",IF(N39="تم الانصراف بعد الموعد","0:00",IF(N39="تم الانصراف في الموعد","0:00",IF(N39>$M$6,$M$6-M39,"")))) -> 5:00 | P39: =IF(H39="غائب","6:30",I39)+IF(N39="غائب","5:00",O39)+IF(E39="غائب","0:00",F39)+IF(K39="غائب","0:00",L39) -> 11:30:00 | Q39: =(HOUR(P39)*3600+MINUTE(P39)*60+SECOND(P39))/60 -> 690 | AB39: الاثنين | AC39: 2019-07-01 | AD39: =IF('تحضير باهبري'!D39=1,NOW(),"") ->  | AE39: =IF(AD39="","غائب",IF(AD39=$D$6," تــم الحضور في الموعد",IF(AD39<$D$6,"تم الحضور قبل الموعد",IF(AD39>$D$6,"تم الحضور بعد الموعد","")))) -> غائب | AF39: =IF(AE39="غائب","6:30",IF(AE39="تم الحضور قبل الموعد","0:00",IF(AE39="تم الحضور في الموعد","0:00",IF(AE39>$D$6,AD39-$D$6,"")))) -> 6:30 | AG39: =IF('تحضير باهبري'!E39=1,NOW(),"") ->  | AH39: =IF(AG39="","غائب",IF(AG39=$G$6," تم الانصراف في الموعد",IF(AG39<$G$6,"تم الانصراف قبل الموعد",IF(AG39>$G$6,"تم الانصراف بعد الموعد","")))) -> غائب | AI39: =IF(AH39="غائب","6:30",IF(AH39="تم الانصراف بعد الموعد","0:00",IF(AH39="تم الانصراف في الموعد","0:00",IF(AH39>$G$6,$G$6-AG39,"")))) -> 6:30 | AJ39: =IF('تحضير باهبري'!F39=1,NOW(),"") ->  | AK39: =IF(AJ39="","غائب",IF(AJ39=$J$6," تــم الحضور في الموعد",IF(AJ39<$J$6,"تم الحضور قبل الموعد",IF(AJ39>$J$6,"تم الحضور بعد الموعد","")))) -> غائب | AL39: =IF(AK39="غائب","5:00",IF(AK39="تم الحضور قبل الموعد","0:00",IF(AK39="تم الحضور في الموعد","0:00",IF(AK39>$J$6,AJ39-$J$6,"")))) -> 5:00 | AM39: =IF('تحضير باهبري'!G39=1,NOW(),"") ->  | AN39: =IF(AM39="","غائب",IF(AM39=$M$6," تم الانصراف في الموعد",IF(AM39<$M$6,"تم الانصراف قبل الموعد",IF(AM39>$M$6,"تم الانصراف بعد الموعد","")))) -> غائب | AO39: =IF(AN39="غائب","5:00",IF(AN39="تم الانصراف بعد الموعد","0:00",IF(AN39="تم الانصراف في الموعد","0:00",IF(AN39>$M$6,$M$6-AM39,"")))) -> 5:00 | AP39: =IF(AH39="غائب","6:30",AI39)+IF(AN39="غائب","5:00",AO39)+IF(AE39="غائب","0:00",AF39)+IF(AK39="غائب","0:00",AL39) -> 11:30:00 | AQ39: =(HOUR(AP39)*3600+MINUTE(AP39)*60+SECOND(AP39))/60 -> 690 | BB39: الاثنين | BC39: 2019-07-01 | BD39: =IF('تحضير ابوبكر'!D39=1,NOW(),"") ->  | BE39: =IF(BD39="","غائب",IF(BD39=$D$6," تــم الحضور في الموعد",IF(BD39<$D$6,"تم الحضور قبل الموعد",IF(BD39>$D$6,"تم الحضور بعد الموعد","")))) -> غائب | BF39: =IF(BE39="غائب","6:30",IF(BE39="تم الحضور قبل الموعد","0:00",IF(BE39="تم الحضور في الموعد","0:00",IF(BE39>$D$6,BD39-$D$6,"")))) -> 6:30 | BG39: =IF('تحضير ابوبكر'!E39=1,NOW(),"") ->  | BH39: =IF(BG39="","غائب",IF(BG39=$G$6," تم الانصراف في الموعد",IF(BG39<$G$6,"تم الانصراف قبل الموعد",IF(BG39>$G$6,"تم الانصراف بعد الموعد","")))) -> غائب | BI39: =IF(BH39="غائب","6:30",IF(BH39="تم الانصراف بعد الموعد","0:00",IF(BH39="تم الانصراف في الموعد","0:00",IF(BH39>$G$6,$G$6-BG39,"")))) -> 6:30 | BJ39: =IF('تحضير ابوبكر'!F39=1,NOW(),"") ->  | BK39: =IF(BJ39="","غائب",IF(BJ39=$J$6," تــم الحضور في الموعد",IF(BJ39<$J$6,"تم الحضور قبل الموعد",IF(BJ39>$J$6,"تم الحضور بعد الموعد","")))) -> غائب | BL39: =IF(BK39="غائب","5:00",IF(BK39="تم الحضور قبل الموعد","0:00",IF(BK39="تم الحضور في الموعد","0:00",IF(BK39>$J$6,BJ39-$J$6,"")))) -> 5:00 | BM39: =IF('تحضير ابوبكر'!G39=1,NOW(),"") ->  | BN39: =IF(BM39="","غائب",IF(BM39=$M$6," تم الانصراف في الموعد",IF(BM39<$M$6,"تم الانصراف قبل الموعد",IF(BM39>$M$6,"تم الانصراف بعد الموعد","")))) -> غائب | BO39: =IF(BN39="غائب","5:00",IF(BN39="تم الانصراف بعد الموعد","0:00",IF(BN39="تم الانصراف في الموعد","0:00",IF(BN39>$M$6,$M$6-BM39,"")))) -> 5:00 | BP39: =IF(BH39="غائب","6:30",BI39)+IF(BN39="غائب","5:00",BO39)+IF(BE39="غائب","0:00",BF39)+IF(BK39="غائب","0:00",BL39) -> 11:30:00 | BQ39: =(HOUR(BP39)*3600+MINUTE(BP39)*60+SECOND(BP39))/60 -> 690
B40: الثلاثاء | C40: 2019-07-02 | D40: =IF('تحضير سامي'!D40=1,NOW(),"") ->  | E40: غائب | F40: 6:30 | G40: =IF('تحضير سامي'!E40=1,NOW(),"") ->  | H40: غائب | I40: 6:30 | J40: =IF('تحضير سامي'!F40=1,NOW(),"") ->  | K40: غائب | L40: 5:00 | M40: =IF('تحضير سامي'!G40=1,NOW(),"") ->  | N40: غائب | O40: 5:00 | P40: 11:30:00 | Q40: 690 | AB40: الثلاثاء | AC40: 2019-07-02 | AD40: =IF('تحضير باهبري'!D40=1,NOW(),"") ->  | AE40: غائب | AF40: 6:30 | AG40: =IF('تحضير باهبري'!E40=1,NOW(),"") ->  | AH40: غائب | AI40: 6:30 | AJ40: =IF('تحضير باهبري'!F40=1,NOW(),"") ->  | AK40: غائب | AL40: 5:00 | AM40: =IF('تحضير باهبري'!G40=1,NOW(),"") ->  | AN40: غائب | AO40: 5:00 | AP40: 11:30:00 | AQ40: 690 | BB40: الثلاثاء | BC40: 2019-07-02 | BD40: =IF('تحضير ابوبكر'!D40=1,NOW(),"") ->  | BE40: غائب | BF40: 6:30 | BG40: =IF('تحضير ابوبكر'!E40=1,NOW(),"") ->  | BH40: غائب | BI40: 6:30 | BJ40: =IF('تحضير ابوبكر'!F40=1,NOW(),"") ->  | BK40: غائب | BL40: 5:00 | BM40: =IF('تحضير ابوبكر'!G40=1,NOW(),"") ->  | BN40: غائب | BO40: 5:00 | BP40: 11:30:00 | BQ40: 690
B41: الأربعاء | C41: 2019-07-03 | D41: =IF('تحضير سامي'!D41=1,NOW(),"") ->  | E41: غائب | F41: 6:30 | G41: =IF('تحضير سامي'!E41=1,NOW(),"") ->  | H41: غائب | I41: 6:30 | J41: =IF('تحضير سامي'!F41=1,NOW(),"") ->  | K41: غائب | L41: 5:00 | M41: =IF('تحضير سامي'!G41=1,NOW(),"") ->  | N41: غائب | O41: 5:00 | P41: 11:30:00 | Q41: 690 | AB41: الأربعاء | AC41: 2019-07-03 | AD41: =IF('تحضير باهبري'!D41=1,NOW(),"") ->  | AE41: غائب | AF41: 6:30 | AG41: =IF('تحضير باهبري'!E41=1,NOW(),"") ->  | AH41: غائب | AI41: 6:30 | AJ41: =IF('تحضير باهبري'!F41=1,NOW(),"") ->  | AK41: غائب | AL41: 5:00 | AM41: =IF('تحضير باهبري'!G41=1,NOW(),"") ->  | AN41: غائب | AO41: 5:00 | AP41: 11:30:00 | AQ41: 690 | BB41: الأربعاء | BC41: 2019-07-03 | BD41: =IF('تحضير ابوبكر'!D41=1,NOW(),"") ->  | BE41: غائب | BF41: 6:30 | BG41: =IF('تحضير ابوبكر'!E41=1,NOW(),"") ->  | BH41: غائب | BI41: 6:30 | BJ41: =IF('تحضير ابوبكر'!F41=1,NOW(),"") ->  | BK41: غائب | BL41: 5:00 | BM41: =IF('تحضير ابوبكر'!G41=1,NOW(),"") ->  | BN41: غائب | BO41: 5:00 | BP41: 11:30:00 | BQ41: 690
B42: الخميس | C42: 2019-07-04 | D42: =IF('تحضير سامي'!D42=1,NOW(),"") ->  | E42: غائب | F42: 6:30 | G42: =IF('تحضير سامي'!E42=1,NOW(),"") ->  | H42: غائب | I42: 6:30 | J42: =IF('تحضير سامي'!F42=1,NOW(),"") ->  | K42: غائب | L42: 5:00 | M42: =IF('تحضير سامي'!G42=1,NOW(),"") ->  | N42: غائب | O42: 5:00 | P42: 11:30:00 | Q42: 690 | AB42: الخميس | AC42: 2019-07-04 | AD42: =IF('تحضير باهبري'!D42=1,NOW(),"") ->  | AE42: غائب | AF42: 6:30 | AG42: =IF('تحضير باهبري'!E42=1,NOW(),"") ->  | AH42: غائب | AI42: 6:30 | AJ42: =IF('تحضير باهبري'!F42=1,NOW(),"") ->  | AK42: غائب | AL42: 5:00 | AM42: =IF('تحضير باهبري'!G42=1,NOW(),"") ->  | AN42: غائب | AO42: 5:00 | AP42: 11:30:00 | AQ42: 690 | BB42: الخميس | BC42: 2019-07-04 | BD42: =IF('تحضير ابوبكر'!D42=1,NOW(),"") ->  | BE42: غائب | BF42: 6:30 | BG42: =IF('تحضير ابوبكر'!E42=1,NOW(),"") ->  | BH42: غائب | BI42: 6:30 | BJ42: =IF('تحضير ابوبكر'!F42=1,NOW(),"") ->  | BK42: غائب | BL42: 5:00 | BM42: =IF('تحضير ابوبكر'!G42=1,NOW(),"") ->  | BN42: غائب | BO42: 5:00 | BP42: 11:30:00 | BQ42: 690
B43: الجمعة | C43: 2019-07-05 | D43: =IF('تحضير سامي'!D43=1,NOW(),"") ->  | E43: اجازة | F43: 00:00:00 | G43: =IF('تحضير سامي'!E43=1,NOW(),"") ->  | H43: اجازة | I43: 00:00:00 | J43: =IF('تحضير سامي'!F43=1,NOW(),"") ->  | K43: اجازة | L43: 00:00:00 | M43: =IF('تحضير سامي'!G43=1,NOW(),"") ->  | N43: اجازة | O43: 00:00:00 | P43: 00:00:00 | Q43: 0 | AB43: الجمعة | AC43: 2019-07-05 | AD43: =IF('تحضير باهبري'!D43=1,NOW(),"") ->  | AE43: اجازة | AF43: 00:00:00 | AG43: =IF('تحضير باهبري'!E43=1,NOW(),"") ->  | AH43: اجازة | AI43: 00:00:00 | AJ43: =IF('تحضير باهبري'!F43=1,NOW(),"") ->  | AK43: اجازة | AL43: 00:00:00 | AM43: =IF('تحضير باهبري'!G43=1,NOW(),"") ->  | AN43: اجازة | AO43: 00:00:00 | AP43: 00:00:00 | AQ43: 0 | BB43: الجمعة | BC43: 2019-07-05 | BD43: =IF('تحضير ابوبكر'!D43=1,NOW(),"") ->  | BE43: اجازة | BF43: 00:00:00 | BG43: =IF('تحضير ابوبكر'!E43=1,NOW(),"") ->  | BH43: اجازة | BI43: 00:00:00 | BJ43: =IF('تحضير ابوبكر'!F43=1,NOW(),"") ->  | BK43: اجازة | BL43: 00:00:00 | BM43: =IF('تحضير ابوبكر'!G43=1,NOW(),"") ->  | BN43: اجازة | BO43: 00:00:00 | BP43: 00:00:00 | BQ43: 0
B44: السبت | C44: 2019-07-06 | D44: =IF('تحضير سامي'!D44=1,NOW(),"") ->  | E44: غائب | F44: 6:30 | G44: =IF('تحضير سامي'!E44=1,NOW(),"") ->  | H44: غائب | I44: 6:30 | J44: =IF('تحضير سامي'!F44=1,NOW(),"") ->  | K44: غائب | L44: 5:00 | M44: =IF('تحضير سامي'!G44=1,NOW(),"") ->  | N44: غائب | O44: 5:00 | P44: 11:30:00 | Q44: 690 | AB44: السبت | AC44: 2019-07-06 | AD44: =IF('تحضير باهبري'!D44=1,NOW(),"") ->  | AE44: =IF(AD44="","غائب",IF(AD44=$D$6," تــم الحضور في الموعد",IF(AD44<$D$6,"تم الحضور قبل الموعد",IF(AD44>$D$6,"تم الحضور بعد الموعد","")))) -> غائب | AF44: =IF(AE44="غائب","6:30",IF(AE44="تم الحضور قبل الموعد","0:00",IF(AE44="تم الحضور في الموعد","0:00",IF(AE44>$D$6,AD44-$D$6,"")))) -> 6:30 | AG44: =IF('تحضير باهبري'!E44=1,NOW(),"") ->  | AH44: =IF(AG44="","غائب",IF(AG44=$G$6," تم الانصراف في الموعد",IF(AG44<$G$6,"تم الانصراف قبل الموعد",IF(AG44>$G$6,"تم الانصراف بعد الموعد","")))) -> غائب | AI44: =IF(AH44="غائب","6:30",IF(AH44="تم الانصراف بعد الموعد","0:00",IF(AH44="تم الانصراف في الموعد","0:00",IF(AH44>$G$6,$G$6-AG44,"")))) -> 6:30 | AJ44: =IF('تحضير باهبري'!F44=1,NOW(),"") ->  | AK44: =IF(AJ44="","غائب",IF(AJ44=$J$6," تــم الحضور في الموعد",IF(AJ44<$J$6,"تم الحضور قبل الموعد",IF(AJ44>$J$6,"تم الحضور بعد الموعد","")))) -> غائب | AL44: =IF(AK44="غائب","5:00",IF(AK44="تم الحضور قبل الموعد","0:00",IF(AK44="تم الحضور في الموعد","0:00",IF(AK44>$J$6,AJ44-$J$6,"")))) -> 5:00 | AM44: =IF('تحضير باهبري'!G44=1,NOW(),"") ->  | AN44: =IF(AM44="","غائب",IF(AM44=$M$6," تم الانصراف في الموعد",IF(AM44<$M$6,"تم الانصراف قبل الموعد",IF(AM44>$M$6,"تم الانصراف بعد الموعد","")))) -> غائب | AO44: =IF(AN44="غائب","5:00",IF(AN44="تم الانصراف بعد الموعد","0:00",IF(AN44="تم الانصراف في الموعد","0:00",IF(AN44>$M$6,$M$6-AM44,"")))) -> 5:00 | AP44: 11:30:00 | AQ44: 690 | BB44: السبت | BC44: 2019-07-06 | BD44: =IF('تحضير ابوبكر'!D44=1,NOW(),"") ->  | BE44: =IF(BD44="","غائب",IF(BD44=$D$6," تــم الحضور في الموعد",IF(BD44<$D$6,"تم الحضور قبل الموعد",IF(BD44>$D$6,"تم الحضور بعد الموعد","")))) -> غائب | BF44: =IF(BE44="غائب","6:30",IF(BE44="تم الحضور قبل الموعد","0:00",IF(BE44="تم الحضور في الموعد","0:00",IF(BE44>$D$6,BD44-$D$6,"")))) -> 6:30 | BG44: =IF('تحضير ابوبكر'!E44=1,NOW(),"") ->  | BH44: =IF(BG44="","غائب",IF(BG44=$G$6," تم الانصراف في الموعد",IF(BG44<$G$6,"تم الانصراف قبل الموعد",IF(BG44>$G$6,"تم الانصراف بعد الموعد","")))) -> غائب | BI44: =IF(BH44="غائب","6:30",IF(BH44="تم الانصراف بعد الموعد","0:00",IF(BH44="تم الانصراف في الموعد","0:00",IF(BH44>$G$6,$G$6-BG44,"")))) -> 6:30 | BJ44: =IF('تحضير ابوبكر'!F44=1,NOW(),"") ->  | BK44: =IF(BJ44="","غائب",IF(BJ44=$J$6," تــم الحضور في الموعد",IF(BJ44<$J$6,"تم الحضور قبل الموعد",IF(BJ44>$J$6,"تم الحضور بعد الموعد","")))) -> غائب | BL44: =IF(BK44="غائب","5:00",IF(BK44="تم الحضور قبل الموعد","0:00",IF(BK44="تم الحضور في الموعد","0:00",IF(BK44>$J$6,BJ44-$J$6,"")))) -> 5:00 | BM44: =IF('تحضير ابوبكر'!G44=1,NOW(),"") ->  | BN44: =IF(BM44="","غائب",IF(BM44=$M$6," تم الانصراف في الموعد",IF(BM44<$M$6,"تم الانصراف قبل الموعد",IF(BM44>$M$6,"تم الانصراف بعد الموعد","")))) -> غائب | BO44: =IF(BN44="غائب","5:00",IF(BN44="تم الانصراف بعد الموعد","0:00",IF(BN44="تم الانصراف في الموعد","0:00",IF(BN44>$M$6,$M$6-BM44,"")))) -> 5:00 | BP44: 11:30:00 | BQ44: 690
B45: الأحد | C45: 2019-07-07 | D45: =IF('تحضير سامي'!D45=1,NOW(),"") ->  | E45: غائب | F45: 6:30 | G45: =IF('تحضير سامي'!E45=1,NOW(),"") ->  | H45: غائب | I45: 6:30 | J45: =IF('تحضير سامي'!F45=1,NOW(),"") ->  | K45: غائب | L45: 5:00 | M45: =IF('تحضير سامي'!G45=1,NOW(),"") ->  | N45: غائب | O45: 5:00 | P45: 11:30:00 | Q45: 690 | AB45: الأحد | AC45: 2019-07-07 | AD45: =IF('تحضير باهبري'!D45=1,NOW(),"") ->  | AE45: غائب | AF45: 6:30 | AG45: =IF('تحضير باهبري'!E45=1,NOW(),"") ->  | AH45: غائب | AI45: 6:30 | AJ45: =IF('تحضير باهبري'!F45=1,NOW(),"") ->  | AK45: غائب | AL45: 5:00 | AM45: =IF('تحضير باهبري'!G45=1,NOW(),"") ->  | AN45: غائب | AO45: 5:00 | AP45: 11:30:00 | AQ45: 690 | BB45: الأحد | BC45: 2019-07-07 | BD45: =IF('تحضير ابوبكر'!D45=1,NOW(),"") ->  | BE45: غائب | BF45: 6:30 | BG45: =IF('تحضير ابوبكر'!E45=1,NOW(),"") ->  | BH45: غائب | BI45: 6:30 | BJ45: =IF('تحضير ابوبكر'!F45=1,NOW(),"") ->  | BK45: غائب | BL45: 5:00 | BM45: =IF('تحضير ابوبكر'!G45=1,NOW(),"") ->  | BN45: غائب | BO45: 5:00 | BP45: 11:30:00 | BQ45: 690
B46: الإثنين | C46: 2019-07-08 | D46: =IF('تحضير سامي'!D46=1,NOW(),"") ->  | E46: غائب | F46: 6:30 | G46: =IF('تحضير سامي'!E46=1,NOW(),"") ->  | H46: غائب | I46: 6:30 | J46: =IF('تحضير سامي'!F46=1,NOW(),"") ->  | K46: غائب | L46: 5:00 | M46: =IF('تحضير سامي'!G46=1,NOW(),"") ->  | N46: غائب | O46: 5:00 | P46: 11:30:00 | Q46: 690 | AB46: الإثنين | AC46: 2019-07-08 | AD46: =IF('تحضير باهبري'!D46=1,NOW(),"") ->  | AE46: غائب | AF46: 6:30 | AG46: =IF('تحضير باهبري'!E46=1,NOW(),"") ->  | AH46: غائب | AI46: 6:30 | AJ46: =IF('تحضير باهبري'!F46=1,NOW(),"") ->  | AK46: غائب | AL46: 5:00 | AM46: =IF('تحضير باهبري'!G46=1,NOW(),"") ->  | AN46: غائب | AO46: 5:00 | AP46: 11:30:00 | AQ46: 690 | BB46: الإثنين | BC46: 2019-07-08 | BD46: =IF('تحضير ابوبكر'!D46=1,NOW(),"") ->  | BE46: غائب | BF46: 6:30 | BG46: =IF('تحضير ابوبكر'!E46=1,NOW(),"") ->  | BH46: غائب | BI46: 6:30 | BJ46: =IF('تحضير ابوبكر'!F46=1,NOW(),"") ->  | BK46: غائب | BL46: 5:00 | BM46: =IF('تحضير ابوبكر'!G46=1,NOW(),"") ->  | BN46: غائب | BO46: 5:00 | BP46: 11:30:00 | BQ46: 690
B47: الثلاثاء | C47: 2019-07-09 | D47: =IF('تحضير سامي'!D47=1,NOW(),"") ->  | E47: غائب | F47: 6:30 | G47: =IF('تحضير سامي'!E47=1,NOW(),"") ->  | H47: غائب | I47: 6:30 | J47: =IF('تحضير سامي'!F47=1,NOW(),"") ->  | K47: غائب | L47: 5:00 | M47: =IF('تحضير سامي'!G47=1,NOW(),"") ->  | N47: غائب | O47: 5:00 | P47: 11:30:00 | Q47: 690 | AB47: الثلاثاء | AC47: 2019-07-09 | AD47: =IF('تحضير باهبري'!D47=1,NOW(),"") ->  | AE47: غائب | AF47: 6:30 | AG47: =IF('تحضير باهبري'!E47=1,NOW(),"") ->  | AH47: غائب | AI47: 6:30 | AJ47: =IF('تحضير باهبري'!F47=1,NOW(),"") ->  | AK47: غائب | AL47: 5:00 | AM47: =IF('تحضير باهبري'!G47=1,NOW(),"") ->  | AN47: غائب | AO47: 5:00 | AP47: 11:30:00 | AQ47: 690 | BB47: الثلاثاء | BC47: 2019-07-09 | BD47: =IF('تحضير ابوبكر'!D47=1,NOW(),"") ->  | BE47: غائب | BF47: 6:30 | BG47: =IF('تحضير ابوبكر'!E47=1,NOW(),"") ->  | BH47: غائب | BI47: 6:30 | BJ47: =IF('تحضير ابوبكر'!F47=1,NOW(),"") ->  | BK47: غائب | BL47: 5:00 | BM47: =IF('تحضير ابوبكر'!G47=1,NOW(),"") ->  | BN47: غائب | BO47: 5:00 | BP47: 11:30:00 | BQ47: 690
B48: الأربعاء | C48: 2019-07-10 | D48: =IF('تحضير سامي'!D48=1,NOW(),"") ->  | E48: غائب | F48: 6:30 | G48: =IF('تحضير سامي'!E48=1,NOW(),"") ->  | H48: غائب | I48: 6:30 | J48: =IF('تحضير سامي'!F48=1,NOW(),"") ->  | K48: غائب | L48: 5:00 | M48: =IF('تحضير سامي'!G48=1,NOW(),"") ->  | N48: غائب | O48: 5:00 | P48: 11:30:00 | Q48: 690 | AB48: الأربعاء | AC48: 2019-07-10 | AD48: =IF('تحضير باهبري'!D48=1,NOW(),"") ->  | AE48: غائب | AF48: 6:30 | AG48: =IF('تحضير باهبري'!E48=1,NOW(),"") ->  | AH48: غائب | AI48: 6:30 | AJ48: =IF('تحضير باهبري'!F48=1,NOW(),"") ->  | AK48: غائب | AL48: 5:00 | AM48: =IF('تحضير باهبري'!G48=1,NOW(),"") ->  | AN48: غائب | AO48: 5:00 | AP48: 11:30:00 | AQ48: 690 | BB48: الأربعاء | BC48: 2019-07-10 | BD48: =IF('تحضير ابوبكر'!D48=1,NOW(),"") ->  | BE48: غائب | BF48: 6:30 | BG48: =IF('تحضير ابوبكر'!E48=1,NOW(),"") ->  | BH48: غائب | BI48: 6:30 | BJ48: =IF('تحضير ابوبكر'!F48=1,NOW(),"") ->  | BK48: غائب | BL48: 5:00 | BM48: =IF('تحضير ابوبكر'!G48=1,NOW(),"") ->  | BN48: غائب | BO48: 5:00 | BP48: 11:30:00 | BQ48: 690
B49: الخميس | C49: 2019-07-11 | D49: =IF('تحضير سامي'!D49=1,NOW(),"") ->  | E49: غائب | F49: 6:30 | G49: =IF('تحضير سامي'!E49=1,NOW(),"") ->  | H49: غائب | I49: 6:30 | J49: =IF('تحضير سامي'!F49=1,NOW(),"") ->  | K49: غائب | L49: 5:00 | M49: =IF('تحضير سامي'!G49=1,NOW(),"") ->  | N49: غائب | O49: 5:00 | P49: 11:30:00 | Q49: 690 | AB49: الخميس | AC49: 2019-07-11 | AD49: =IF('تحضير باهبري'!D49=1,NOW(),"") ->  | AE49: غائب | AF49: 6:30 | AG49: =IF('تحضير باهبري'!E49=1,NOW(),"") ->  | AH49: غائب | AI49: 6:30 | AJ49: =IF('تحضير باهبري'!F49=1,NOW(),"") ->  | AK49: غائب | AL49: 5:00 | AM49: =IF('تحضير باهبري'!G49=1,NOW(),"") ->  | AN49: غائب | AO49: 5:00 | AP49: 11:30:00 | AQ49: 690 | BB49: الخميس | BC49: 2019-07-11 | BD49: =IF('تحضير ابوبكر'!D49=1,NOW(),"") ->  | BE49: غائب | BF49: 6:30 | BG49: =IF('تحضير ابوبكر'!E49=1,NOW(),"") ->  | BH49: غائب | BI49: 6:30 | BJ49: =IF('تحضير ابوبكر'!F49=1,NOW(),"") ->  | BK49: غائب | BL49: 5:00 | BM49: =IF('تحضير ابوبكر'!G49=1,NOW(),"") ->  | BN49: غائب | BO49: 5:00 | BP49: 11:30:00 | BQ49: 690
B50: الجمعة | C50: 2019-07-12 | D50: =IF('تحضير سامي'!D50=1,NOW(),"") ->  | E50: اجازة | F50: 00:00:00 | G50: =IF('تحضير سامي'!E50=1,NOW(),"") ->  | H50: اجازة | I50: 00:00:00 | J50: =IF('تحضير سامي'!F50=1,NOW(),"") ->  | K50: اجازة | L50: 00:00:00 | M50: =IF('تحضير سامي'!G50=1,NOW(),"") ->  | N50: اجازة | O50: 00:00:00 | P50: 00:00:00 | Q50: 0 | AB50: الجمعة | AC50: 2019-07-12 | AD50: =IF('تحضير باهبري'!D50=1,NOW(),"") ->  | AE50: اجازة | AF50: 00:00:00 | AG50: =IF('تحضير باهبري'!E50=1,NOW(),"") ->  | AH50: اجازة | AI50: 00:00:00 | AJ50: =IF('تحضير باهبري'!F50=1,NOW(),"") ->  | AK50: اجازة | AL50: 00:00:00 | AM50: =IF('تحضير باهبري'!G50=1,NOW(),"") ->  | AN50: اجازة | AO50: 00:00:00 | AP50: 00:00:00 | AQ50: 0 | BB50: الجمعة | BC50: 2019-07-12 | BD50: =IF('تحضير ابوبكر'!D50=1,NOW(),"") ->  | BE50: اجازة | BF50: 00:00:00 | BG50: =IF('تحضير ابوبكر'!E50=1,NOW(),"") ->  | BH50: اجازة | BI50: 00:00:00 | BJ50: =IF('تحضير ابوبكر'!F50=1,NOW(),"") ->  | BK50: اجازة | BL50: 00:00:00 | BM50: =IF('تحضير ابوبكر'!G50=1,NOW(),"") ->  | BN50: اجازة | BO50: 00:00:00 | BP50: 00:00:00 | BQ50: 0
B51: السبت | C51: 2019-07-13 | D51: =IF('تحضير سامي'!D51=1,NOW(),"") ->  | E51: غائب | F51: 6:30 | G51: =IF('تحضير سامي'!E51=1,NOW(),"") ->  | H51: غائب | I51: 6:30 | J51: =IF('تحضير سامي'!F51=1,NOW(),"") ->  | K51: غائب | L51: 5:00 | M51: =IF('تحضير سامي'!G51=1,NOW(),"") ->  | N51: غائب | O51: 5:00 | P51: 11:30:00 | Q51: 690 | AB51: السبت | AC51: 2019-07-13 | AD51: =IF('تحضير باهبري'!D51=1,NOW(),"") ->  | AE51: =IF(AD51="","غائب",IF(AD51=$D$6," تــم الحضور في الموعد",IF(AD51<$D$6,"تم الحضور قبل الموعد",IF(AD51>$D$6,"تم الحضور بعد الموعد","")))) -> غائب | AF51: =IF(AE51="غائب","6:30",IF(AE51="تم الحضور قبل الموعد","0:00",IF(AE51="تم الحضور في الموعد","0:00",IF(AE51>$D$6,AD51-$D$6,"")))) -> 6:30 | AG51: =IF('تحضير باهبري'!E51=1,NOW(),"") ->  | AH51: =IF(AG51="","غائب",IF(AG51=$G$6," تم الانصراف في الموعد",IF(AG51<$G$6,"تم الانصراف قبل الموعد",IF(AG51>$G$6,"تم الانصراف بعد الموعد","")))) -> غائب | AI51: =IF(AH51="غائب","6:30",IF(AH51="تم الانصراف بعد الموعد","0:00",IF(AH51="تم الانصراف في الموعد","0:00",IF(AH51>$G$6,$G$6-AG51,"")))) -> 6:30 | AJ51: =IF('تحضير باهبري'!F51=1,NOW(),"") ->  | AK51: =IF(AJ51="","غائب",IF(AJ51=$J$6," تــم الحضور في الموعد",IF(AJ51<$J$6,"تم الحضور قبل الموعد",IF(AJ51>$J$6,"تم الحضور بعد الموعد","")))) -> غائب | AL51: =IF(AK51="غائب","5:00",IF(AK51="تم الحضور قبل الموعد","0:00",IF(AK51="تم الحضور في الموعد","0:00",IF(AK51>$J$6,AJ51-$J$6,"")))) -> 5:00 | AM51: =IF('تحضير باهبري'!G51=1,NOW(),"") ->  | AN51: =IF(AM51="","غائب",IF(AM51=$M$6," تم الانصراف في الموعد",IF(AM51<$M$6,"تم الانصراف قبل الموعد",IF(AM51>$M$6,"تم الانصراف بعد الموعد","")))) -> غائب | AO51: =IF(AN51="غائب","5:00",IF(AN51="تم الانصراف بعد الموعد","0:00",IF(AN51="تم الانصراف في الموعد","0:00",IF(AN51>$M$6,$M$6-AM51,"")))) -> 5:00 | AP51: 11:30:00 | AQ51: 690 | BB51: السبت | BC51: 2019-07-13 | BD51: =IF('تحضير ابوبكر'!D51=1,NOW(),"") ->  | BE51: =IF(BD51="","غائب",IF(BD51=$D$6," تــم الحضور في الموعد",IF(BD51<$D$6,"تم الحضور قبل الموعد",IF(BD51>$D$6,"تم الحضور بعد الموعد","")))) -> غائب | BF51: =IF(BE51="غائب","6:30",IF(BE51="تم الحضور قبل الموعد","0:00",IF(BE51="تم الحضور في الموعد","0:00",IF(BE51>$D$6,BD51-$D$6,"")))) -> 6:30 | BG51: =IF('تحضير ابوبكر'!E51=1,NOW(),"") ->  | BH51: =IF(BG51="","غائب",IF(BG51=$G$6," تم الانصراف في الموعد",IF(BG51<$G$6,"تم الانصراف قبل الموعد",IF(BG51>$G$6,"تم الانصراف بعد الموعد","")))) -> غائب | BI51: =IF(BH51="غائب","6:30",IF(BH51="تم الانصراف بعد الموعد","0:00",IF(BH51="تم الانصراف في الموعد","0:00",IF(BH51>$G$6,$G$6-BG51,"")))) -> 6:30 | BJ51: =IF('تحضير ابوبكر'!F51=1,NOW(),"") ->  | BK51: =IF(BJ51="","غائب",IF(BJ51=$J$6," تــم الحضور في الموعد",IF(BJ51<$J$6,"تم الحضور قبل الموعد",IF(BJ51>$J$6,"تم الحضور بعد الموعد","")))) -> غائب | BL51: =IF(BK51="غائب","5:00",IF(BK51="تم الحضور قبل الموعد","0:00",IF(BK51="تم الحضور في الموعد","0:00",IF(BK51>$J$6,BJ51-$J$6,"")))) -> 5:00 | BM51: =IF('تحضير ابوبكر'!G51=1,NOW(),"") ->  | BN51: =IF(BM51="","غائب",IF(BM51=$M$6," تم الانصراف في الموعد",IF(BM51<$M$6,"تم الانصراف قبل الموعد",IF(BM51>$M$6,"تم الانصراف بعد الموعد","")))) -> غائب | BO51: =IF(BN51="غائب","5:00",IF(BN51="تم الانصراف بعد الموعد","0:00",IF(BN51="تم الانصراف في الموعد","0:00",IF(BN51>$M$6,$M$6-BM51,"")))) -> 5:00 | BP51: 11:30:00 | BQ51: 690
B52: الأحد | C52: 2019-07-14 | D52: =IF('تحضير سامي'!D52=1,NOW(),"") ->  | E52: غائب | F52: 6:30 | G52: =IF('تحضير سامي'!E52=1,NOW(),"") ->  | H52: غائب | I52: 6:30 | J52: =IF('تحضير سامي'!F52=1,NOW(),"") ->  | K52: غائب | L52: 5:00 | M52: =IF('تحضير سامي'!G52=1,NOW(),"") ->  | N52: غائب | O52: 5:00 | P52: 11:30:00 | Q52: 690 | AB52: الأحد | AC52: 2019-07-14 | AD52: =IF('تحضير باهبري'!D52=1,NOW(),"") ->  | AE52: غائب | AF52: 6:30 | AG52: =IF('تحضير باهبري'!E52=1,NOW(),"") ->  | AH52: غائب | AI52: 6:30 | AJ52: =IF('تحضير باهبري'!F52=1,NOW(),"") ->  | AK52: غائب | AL52: 5:00 | AM52: =IF('تحضير باهبري'!G52=1,NOW(),"") ->  | AN52: غائب | AO52: 5:00 | AP52: 11:30:00 | AQ52: 690 | BB52: الأحد | BC52: 2019-07-14 | BD52: =IF('تحضير ابوبكر'!D52=1,NOW(),"") ->  | BE52: غائب | BF52: 6:30 | BG52: =IF('تحضير ابوبكر'!E52=1,NOW(),"") ->  | BH52: غائب | BI52: 6:30 | BJ52: =IF('تحضير ابوبكر'!F52=1,NOW(),"") ->  | BK52: غائب | BL52: 5:00 | BM52: =IF('تحضير ابوبكر'!G52=1,NOW(),"") ->  | BN52: غائب | BO52: 5:00 | BP52: 11:30:00 | BQ52: 690
B53: الإثنين | C53: 2019-07-15 | D53: =IF('تحضير سامي'!D53=1,NOW(),"") ->  | E53: غائب | F53: 6:30 | G53: =IF('تحضير سامي'!E53=1,NOW(),"") ->  | H53: غائب | I53: 6:30 | J53: =IF('تحضير سامي'!F53=1,NOW(),"") ->  | K53: غائب | L53: 5:00 | M53: =IF('تحضير سامي'!G53=1,NOW(),"") ->  | N53: غائب | O53: 5:00 | P53: 11:30:00 | Q53: 690 | AB53: الإثنين | AC53: 2019-07-15 | AD53: =IF('تحضير باهبري'!D53=1,NOW(),"") ->  | AE53: غائب | AF53: 6:30 | AG53: =IF('تحضير باهبري'!E53=1,NOW(),"") ->  | AH53: غائب | AI53: 6:30 | AJ53: =IF('تحضير باهبري'!F53=1,NOW(),"") ->  | AK53: غائب | AL53: 5:00 | AM53: =IF('تحضير باهبري'!G53=1,NOW(),"") ->  | AN53: غائب | AO53: 5:00 | AP53: 11:30:00 | AQ53: 690 | BB53: الإثنين | BC53: 2019-07-15 | BD53: =IF('تحضير ابوبكر'!D53=1,NOW(),"") ->  | BE53: غائب | BF53: 6:30 | BG53: =IF('تحضير ابوبكر'!E53=1,NOW(),"") ->  | BH53: غائب | BI53: 6:30 | BJ53: =IF('تحضير ابوبكر'!F53=1,NOW(),"") ->  | BK53: غائب | BL53: 5:00 | BM53: =IF('تحضير ابوبكر'!G53=1,NOW(),"") ->  | BN53: غائب | BO53: 5:00 | BP53: 11:30:00 | BQ53: 690
B54: الثلاثاء | C54: 2019-07-16 | D54: =IF('تحضير سامي'!D54=1,NOW(),"") ->  | E54: غائب | F54: 6:30 | G54: =IF('تحضير سامي'!E54=1,NOW(),"") ->  | H54: غائب | I54: 6:30 | J54: =IF('تحضير سامي'!F54=1,NOW(),"") ->  | K54: غائب | L54: 5:00 | M54: =IF('تحضير سامي'!G54=1,NOW(),"") ->  | N54: غائب | O54: 5:00 | P54: 11:30:00 | Q54: 690 | AB54: الثلاثاء | AC54: 2019-07-16 | AD54: =IF('تحضير باهبري'!D54=1,NOW(),"") ->  | AE54: غائب | AF54: 6:30 | AG54: =IF('تحضير باهبري'!E54=1,NOW(),"") ->  | AH54: غائب | AI54: 6:30 | AJ54: =IF('تحضير باهبري'!F54=1,NOW(),"") ->  | AK54: غائب | AL54: 5:00 | AM54: =IF('تحضير باهبري'!G54=1,NOW(),"") ->  | AN54: غائب | AO54: 5:00 | AP54: 11:30:00 | AQ54: 690 | BB54: الثلاثاء | BC54: 2019-07-16 | BD54: =IF('تحضير ابوبكر'!D54=1,NOW(),"") ->  | BE54: غائب | BF54: 6:30 | BG54: =IF('تحضير ابوبكر'!E54=1,NOW(),"") ->  | BH54: غائب | BI54: 6:30 | BJ54: =IF('تحضير ابوبكر'!F54=1,NOW(),"") ->  | BK54: غائب | BL54: 5:00 | BM54: =IF('تحضير ابوبكر'!G54=1,NOW(),"") ->  | BN54: غائب | BO54: 5:00 | BP54: 11:30:00 | BQ54: 690
B55: الأربعاء | C55: 2019-07-17 | D55: =IF('تحضير سامي'!D55=1,NOW(),"") ->  | E55: غائب | F55: 6:30 | G55: =IF('تحضير سامي'!E55=1,NOW(),"") ->  | H55: غائب | I55: 6:30 | J55: =IF('تحضير سامي'!F55=1,NOW(),"") ->  | K55: غائب | L55: 5:00 | M55: =IF('تحضير سامي'!G55=1,NOW(),"") ->  | N55: غائب | O55: 5:00 | P55: 11:30:00 | Q55: 690 | AB55: الأربعاء | AC55: 2019-07-17 | AD55: =IF('تحضير باهبري'!D55=1,NOW(),"") ->  | AE55: غائب | AF55: 6:30 | AG55: =IF('تحضير باهبري'!E55=1,NOW(),"") ->  | AH55: غائب | AI55: 6:30 | AJ55: =IF('تحضير باهبري'!F55=1,NOW(),"") ->  | AK55: غائب | AL55: 5:00 | AM55: =IF('تحضير باهبري'!G55=1,NOW(),"") ->  | AN55: غائب | AO55: 5:00 | AP55: 11:30:00 | AQ55: 690 | BB55: الأربعاء | BC55: 2019-07-17 | BD55: =IF('تحضير ابوبكر'!D55=1,NOW(),"") ->  | BE55: غائب | BF55: 6:30 | BG55: =IF('تحضير ابوبكر'!E55=1,NOW(),"") ->  | BH55: غائب | BI55: 6:30 | BJ55: =IF('تحضير ابوبكر'!F55=1,NOW(),"") ->  | BK55: غائب | BL55: 5:00 | BM55: =IF('تحضير ابوبكر'!G55=1,NOW(),"") ->  | BN55: غائب | BO55: 5:00 | BP55: 11:30:00 | BQ55: 690
B56: الخميس | C56: 2019-07-18 | D56: =IF('تحضير سامي'!D56=1,NOW(),"") ->  | E56: غائب | F56: 6:30 | G56: =IF('تحضير سامي'!E56=1,NOW(),"") ->  | H56: غائب | I56: 6:30 | J56: =IF('تحضير سامي'!F56=1,NOW(),"") ->  | K56: غائب | L56: 5:00 | M56: =IF('تحضير سامي'!G56=1,NOW(),"") ->  | N56: غائب | O56: 5:00 | P56: 11:30:00 | Q56: 690 | AB56: الخميس | AC56: 2019-07-18 | AD56: =IF('تحضير باهبري'!D56=1,NOW(),"") ->  | AE56: غائب | AF56: 6:30 | AG56: =IF('تحضير باهبري'!E56=1,NOW(),"") ->  | AH56: غائب | AI56: 6:30 | AJ56: =IF('تحضير باهبري'!F56=1,NOW(),"") ->  | AK56: غائب | AL56: 5:00 | AM56: =IF('تحضير باهبري'!G56=1,NOW(),"") ->  | AN56: غائب | AO56: 5:00 | AP56: 11:30:00 | AQ56: 690 | BB56: الخميس | BC56: 2019-07-18 | BD56: =IF('تحضير ابوبكر'!D56=1,NOW(),"") ->  | BE56: غائب | BF56: 6:30 | BG56: =IF('تحضير ابوبكر'!E56=1,NOW(),"") ->  | BH56: غائب | BI56: 6:30 | BJ56: =IF('تحضير ابوبكر'!F56=1,NOW(),"") ->  | BK56: غائب | BL56: 5:00 | BM56: =IF('تحضير ابوبكر'!G56=1,NOW(),"") ->  | BN56: غائب | BO56: 5:00 | BP56: 11:30:00 | BQ56: 690
B57: الجمعة | C57: 2019-07-19 | D57: =IF('تحضير سامي'!D57=1,NOW(),"") ->  | E57: اجازة | F57: 00:00:00 | G57: =IF('تحضير سامي'!E57=1,NOW(),"") ->  | H57: اجازة | I57: 00:00:00 | J57: =IF('تحضير سامي'!F57=1,NOW(),"") ->  | K57: اجازة | L57: 00:00:00 | M57: =IF('تحضير سامي'!G57=1,NOW(),"") ->  | N57: اجازة | O57: 00:00:00 | P57: 00:00:00 | Q57: 0 | AB57: الجمعة | AC57: 2019-07-19 | AD57: =IF('تحضير باهبري'!D57=1,NOW(),"") ->  | AE57: اجازة | AF57: 00:00:00 | AG57: =IF('تحضير باهبري'!E57=1,NOW(),"") ->  | AH57: اجازة | AI57: 00:00:00 | AJ57: =IF('تحضير باهبري'!F57=1,NOW(),"") ->  | AK57: اجازة | AL57: 00:00:00 | AM57: =IF('تحضير باهبري'!G57=1,NOW(),"") ->  | AN57: اجازة | AO57: 00:00:00 | AP57: 00:00:00 | AQ57: 0 | BB57: الجمعة | BC57: 2019-07-19 | BD57: =IF('تحضير ابوبكر'!D57=1,NOW(),"") ->  | BE57: اجازة | BF57: 00:00:00 | BG57: =IF('تحضير ابوبكر'!E57=1,NOW(),"") ->  | BH57: اجازة | BI57: 00:00:00 | BJ57: =IF('تحضير ابوبكر'!F57=1,NOW(),"") ->  | BK57: اجازة | BL57: 00:00:00 | BM57: =IF('تحضير ابوبكر'!G57=1,NOW(),"") ->  | BN57: اجازة | BO57: 00:00:00 | BP57: 00:00:00 | BQ57: 0
B58: السبت | C58: 2019-07-20 | D58: =IF('تحضير سامي'!D58=1,NOW(),"") ->  | E58: غائب | F58: 6:30 | G58: =IF('تحضير سامي'!E58=1,NOW(),"") ->  | H58: غائب | I58: 6:30 | J58: =IF('تحضير سامي'!F58=1,NOW(),"") ->  | K58: غائب | L58: 5:00 | M58: =IF('تحضير سامي'!G58=1,NOW(),"") ->  | N58: غائب | O58: 5:00 | P58: 11:30:00 | Q58: 690 | AB58: السبت | AC58: 2019-07-20 | AD58: =IF('تحضير باهبري'!D58=1,NOW(),"") ->  | AE58: =IF(AD58="","غائب",IF(AD58=$D$6," تــم الحضور في الموعد",IF(AD58<$D$6,"تم الحضور قبل الموعد",IF(AD58>$D$6,"تم الحضور بعد الموعد","")))) -> غائب | AF58: =IF(AE58="غائب","6:30",IF(AE58="تم الحضور قبل الموعد","0:00",IF(AE58="تم الحضور في الموعد","0:00",IF(AE58>$D$6,AD58-$D$6,"")))) -> 6:30 | AG58: =IF('تحضير باهبري'!E58=1,NOW(),"") ->  | AH58: =IF(AG58="","غائب",IF(AG58=$G$6," تم الانصراف في الموعد",IF(AG58<$G$6,"تم الانصراف قبل الموعد",IF(AG58>$G$6,"تم الانصراف بعد الموعد","")))) -> غائب | AI58: =IF(AH58="غائب","6:30",IF(AH58="تم الانصراف بعد الموعد","0:00",IF(AH58="تم الانصراف في الموعد","0:00",IF(AH58>$G$6,$G$6-AG58,"")))) -> 6:30 | AJ58: =IF('تحضير باهبري'!F58=1,NOW(),"") ->  | AK58: =IF(AJ58="","غائب",IF(AJ58=$J$6," تــم الحضور في الموعد",IF(AJ58<$J$6,"تم الحضور قبل الموعد",IF(AJ58>$J$6,"تم الحضور بعد الموعد","")))) -> غائب | AL58: =IF(AK58="غائب","5:00",IF(AK58="تم الحضور قبل الموعد","0:00",IF(AK58="تم الحضور في الموعد","0:00",IF(AK58>$J$6,AJ58-$J$6,"")))) -> 5:00 | AM58: =IF('تحضير باهبري'!G58=1,NOW(),"") ->  | AN58: =IF(AM58="","غائب",IF(AM58=$M$6," تم الانصراف في الموعد",IF(AM58<$M$6,"تم الانصراف قبل الموعد",IF(AM58>$M$6,"تم الانصراف بعد الموعد","")))) -> غائب | AO58: =IF(AN58="غائب","5:00",IF(AN58="تم الانصراف بعد الموعد","0:00",IF(AN58="تم الانصراف في الموعد","0:00",IF(AN58>$M$6,$M$6-AM58,"")))) -> 5:00 | AP58: 11:30:00 | AQ58: 690 | BB58: السبت | BC58: 2019-07-20 | BD58: =IF('تحضير ابوبكر'!D58=1,NOW(),"") ->  | BE58: =IF(BD58="","غائب",IF(BD58=$D$6," تــم الحضور في الموعد",IF(BD58<$D$6,"تم الحضور قبل الموعد",IF(BD58>$D$6,"تم الحضور بعد الموعد","")))) -> غائب | BF58: =IF(BE58="غائب","6:30",IF(BE58="تم الحضور قبل الموعد","0:00",IF(BE58="تم الحضور في الموعد","0:00",IF(BE58>$D$6,BD58-$D$6,"")))) -> 6:30 | BG58: =IF('تحضير ابوبكر'!E58=1,NOW(),"") ->  | BH58: =IF(BG58="","غائب",IF(BG58=$G$6," تم الانصراف في الموعد",IF(BG58<$G$6,"تم الانصراف قبل الموعد",IF(BG58>$G$6,"تم الانصراف بعد الموعد","")))) -> غائب | BI58: =IF(BH58="غائب","6:30",IF(BH58="تم الانصراف بعد الموعد","0:00",IF(BH58="تم الانصراف في الموعد","0:00",IF(BH58>$G$6,$G$6-BG58,"")))) -> 6:30 | BJ58: =IF('تحضير ابوبكر'!F58=1,NOW(),"") ->  | BK58: =IF(BJ58="","غائب",IF(BJ58=$J$6," تــم الحضور في الموعد",IF(BJ58<$J$6,"تم الحضور قبل الموعد",IF(BJ58>$J$6,"تم الحضور بعد الموعد","")))) -> غائب | BL58: =IF(BK58="غائب","5:00",IF(BK58="تم الحضور قبل الموعد","0:00",IF(BK58="تم الحضور في الموعد","0:00",IF(BK58>$J$6,BJ58-$J$6,"")))) -> 5:00 | BM58: =IF('تحضير ابوبكر'!G58=1,NOW(),"") ->  | BN58: =IF(BM58="","غائب",IF(BM58=$M$6," تم الانصراف في الموعد",IF(BM58<$M$6,"تم الانصراف قبل الموعد",IF(BM58>$M$6,"تم الانصراف بعد الموعد","")))) -> غائب | BO58: =IF(BN58="غائب","5:00",IF(BN58="تم الانصراف بعد الموعد","0:00",IF(BN58="تم الانصراف في الموعد","0:00",IF(BN58>$M$6,$M$6-BM58,"")))) -> 5:00 | BP58: 11:30:00 | BQ58: 690
B59: الأحد | C59: 2019-07-21 | D59: =IF('تحضير سامي'!D59=1,NOW(),"") ->  | E59: غائب | F59: 6:30 | G59: =IF('تحضير سامي'!E59=1,NOW(),"") ->  | H59: غائب | I59: 6:30 | J59: =IF('تحضير سامي'!F59=1,NOW(),"") ->  | K59: غائب | L59: 5:00 | M59: =IF('تحضير سامي'!G59=1,NOW(),"") ->  | N59: غائب | O59: 5:00 | P59: 11:30:00 | Q59: 690 | AB59: الأحد | AC59: 2019-07-21 | AD59: =IF('تحضير باهبري'!D59=1,NOW(),"") ->  | AE59: غائب | AF59: 6:30 | AG59: =IF('تحضير باهبري'!E59=1,NOW(),"") ->  | AH59: غائب | AI59: 6:30 | AJ59: =IF('تحضير باهبري'!F59=1,NOW(),"") ->  | AK59: غائب | AL59: 5:00 | AM59: =IF('تحضير باهبري'!G59=1,NOW(),"") ->  | AN59: غائب | AO59: 5:00 | AP59: 11:30:00 | AQ59: 690 | BB59: الأحد | BC59: 2019-07-21 | BD59: =IF('تحضير ابوبكر'!D59=1,NOW(),"") ->  | BE59: غائب | BF59: 6:30 | BG59: =IF('تحضير ابوبكر'!E59=1,NOW(),"") ->  | BH59: غائب | BI59: 6:30 | BJ59: =IF('تحضير ابوبكر'!F59=1,NOW(),"") ->  | BK59: غائب | BL59: 5:00 | BM59: =IF('تحضير ابوبكر'!G59=1,NOW(),"") ->  | BN59: غائب | BO59: 5:00 | BP59: 11:30:00 | BQ59: 690
B60: الإثنين | C60: 2019-07-22 | D60: =IF('تحضير سامي'!D60=1,NOW(),"") ->  | E60: غائب | F60: 6:30 | G60: =IF('تحضير سامي'!E60=1,NOW(),"") ->  | H60: غائب | I60: 6:30 | J60: =IF('تحضير سامي'!F60=1,NOW(),"") ->  | K60: غائب | L60: 5:00 | M60: =IF('تحضير سامي'!G60=1,NOW(),"") ->  | N60: غائب | O60: 5:00 | P60: 11:30:00 | Q60: 690 | AB60: الإثنين | AC60: 2019-07-22 | AD60: =IF('تحضير باهبري'!D60=1,NOW(),"") ->  | AE60: غائب | AF60: 6:30 | AG60: =IF('تحضير باهبري'!E60=1,NOW(),"") ->  | AH60: غائب | AI60: 6:30 | AJ60: =IF('تحضير باهبري'!F60=1,NOW(),"") ->  | AK60: غائب | AL60: 5:00 | AM60: =IF('تحضير باهبري'!G60=1,NOW(),"") ->  | AN60: غائب | AO60: 5:00 | AP60: 11:30:00 | AQ60: 690 | BB60: الإثنين | BC60: 2019-07-22 | BD60: =IF('تحضير ابوبكر'!D60=1,NOW(),"") ->  | BE60: غائب | BF60: 6:30 | BG60: =IF('تحضير ابوبكر'!E60=1,NOW(),"") ->  | BH60: غائب | BI60: 6:30 | BJ60: =IF('تحضير ابوبكر'!F60=1,NOW(),"") ->  | BK60: غائب | BL60: 5:00 | BM60: =IF('تحضير ابوبكر'!G60=1,NOW(),"") ->  | BN60: غائب | BO60: 5:00 | BP60: 11:30:00 | BQ60: 690
B61: الثلاثاء | C61: 2019-07-23 | D61: =IF('تحضير سامي'!D61=1,NOW(),"") ->  | E61: غائب | F61: 6:30 | G61: =IF('تحضير سامي'!E61=1,NOW(),"") ->  | H61: غائب | I61: 6:30 | J61: =IF('تحضير سامي'!F61=1,NOW(),"") ->  | K61: غائب | L61: 5:00 | M61: =IF('تحضير سامي'!G61=1,NOW(),"") ->  | N61: غائب | O61: 5:00 | P61: 11:30:00 | Q61: 690 | AB61: الثلاثاء | AC61: 2019-07-23 | AD61: =IF('تحضير باهبري'!D61=1,NOW(),"") ->  | AE61: غائب | AF61: 6:30 | AG61: =IF('تحضير باهبري'!E61=1,NOW(),"") ->  | AH61: غائب | AI61: 6:30 | AJ61: =IF('تحضير باهبري'!F61=1,NOW(),"") ->  | AK61: غائب | AL61: 5:00 | AM61: =IF('تحضير باهبري'!G61=1,NOW(),"") ->  | AN61: غائب | AO61: 5:00 | AP61: 11:30:00 | AQ61: 690 | BB61: الثلاثاء | BC61: 2019-07-23 | BD61: =IF('تحضير ابوبكر'!D61=1,NOW(),"") ->  | BE61: غائب | BF61: 6:30 | BG61: =IF('تحضير ابوبكر'!E61=1,NOW(),"") ->  | BH61: غائب | BI61: 6:30 | BJ61: =IF('تحضير ابوبكر'!F61=1,NOW(),"") ->  | BK61: غائب | BL61: 5:00 | BM61: =IF('تحضير ابوبكر'!G61=1,NOW(),"") ->  | BN61: غائب | BO61: 5:00 | BP61: 11:30:00 | BQ61: 690
B62: الأربعاء | C62: 2019-07-24 | D62: =IF('تحضير سامي'!D62=1,NOW(),"") ->  | E62: غائب | F62: 6:30 | G62: =IF('تحضير سامي'!E62=1,NOW(),"") ->  | H62: غائب | I62: 6:30 | J62: =IF('تحضير سامي'!F62=1,NOW(),"") ->  | K62: غائب | L62: 5:00 | M62: =IF('تحضير سامي'!G62=1,NOW(),"") ->  | N62: غائب | O62: 5:00 | P62: 11:30:00 | Q62: 690 | AB62: الأربعاء | AC62: 2019-07-24 | AD62: =IF('تحضير باهبري'!D62=1,NOW(),"") ->  | AE62: غائب | AF62: 6:30 | AG62: =IF('تحضير باهبري'!E62=1,NOW(),"") ->  | AH62: غائب | AI62: 6:30 | AJ62: =IF('تحضير باهبري'!F62=1,NOW(),"") ->  | AK62: غائب | AL62: 5:00 | AM62: =IF('تحضير باهبري'!G62=1,NOW(),"") ->  | AN62: غائب | AO62: 5:00 | AP62: 11:30:00 | AQ62: 690 | BB62: الأربعاء | BC62: 2019-07-24 | BD62: =IF('تحضير ابوبكر'!D62=1,NOW(),"") ->  | BE62: غائب | BF62: 6:30 | BG62: =IF('تحضير ابوبكر'!E62=1,NOW(),"") ->  | BH62: غائب | BI62: 6:30 | BJ62: =IF('تحضير ابوبكر'!F62=1,NOW(),"") ->  | BK62: غائب | BL62: 5:00 | BM62: =IF('تحضير ابوبكر'!G62=1,NOW(),"") ->  | BN62: غائب | BO62: 5:00 | BP62: 11:30:00 | BQ62: 690
B63: الخميس | C63: 2019-07-25 | D63: =IF('تحضير سامي'!D63=1,NOW(),"") ->  | E63: غائب | F63: 6:30 | G63: =IF('تحضير سامي'!E63=1,NOW(),"") ->  | H63: غائب | I63: 6:30 | J63: =IF('تحضير سامي'!F63=1,NOW(),"") ->  | K63: غائب | L63: 5:00 | M63: =IF('تحضير سامي'!G63=1,NOW(),"") ->  | N63: غائب | O63: 5:00 | P63: 11:30:00 | Q63: 690 | AB63: الخميس | AC63: 2019-07-25 | AD63: =IF('تحضير باهبري'!D63=1,NOW(),"") ->  | AE63: غائب | AF63: 6:30 | AG63: =IF('تحضير باهبري'!E63=1,NOW(),"") ->  | AH63: غائب | AI63: 6:30 | AJ63: =IF('تحضير باهبري'!F63=1,NOW(),"") ->  | AK63: غائب | AL63: 5:00 | AM63: =IF('تحضير باهبري'!G63=1,NOW(),"") ->  | AN63: غائب | AO63: 5:00 | AP63: 11:30:00 | AQ63: 690 | BB63: الخميس | BC63: 2019-07-25 | BD63: =IF('تحضير ابوبكر'!D63=1,NOW(),"") ->  | BE63: غائب | BF63: 6:30 | BG63: =IF('تحضير ابوبكر'!E63=1,NOW(),"") ->  | BH63: غائب | BI63: 6:30 | BJ63: =IF('تحضير ابوبكر'!F63=1,NOW(),"") ->  | BK63: غائب | BL63: 5:00 | BM63: =IF('تحضير ابوبكر'!G63=1,NOW(),"") ->  | BN63: غائب | BO63: 5:00 | BP63: 11:30:00 | BQ63: 690
B64: الجمعة | C64: 2019-07-26 | D64: =IF('تحضير سامي'!D64=1,NOW(),"") ->  | E64: اجازة | F64: 00:00:00 | G64: =IF('تحضير سامي'!E64=1,NOW(),"") ->  | H64: اجازة | I64: 00:00:00 | J64: =IF('تحضير سامي'!F64=1,NOW(),"") ->  | K64: اجازة | L64: 00:00:00 | M64: =IF('تحضير سامي'!G64=1,NOW(),"") ->  | N64: اجازة | O64: 00:00:00 | P64: 00:00:00 | Q64: 0 | AB64: الجمعة | AC64: 2019-07-26 | AD64: =IF('تحضير باهبري'!D64=1,NOW(),"") ->  | AE64: اجازة | AF64: 00:00:00 | AG64: =IF('تحضير باهبري'!E64=1,NOW(),"") ->  | AH64: اجازة | AI64: 00:00:00 | AJ64: =IF('تحضير باهبري'!F64=1,NOW(),"") ->  | AK64: اجازة | AL64: 00:00:00 | AM64: =IF('تحضير باهبري'!G64=1,NOW(),"") ->  | AN64: اجازة | AO64: 00:00:00 | AP64: 00:00:00 | AQ64: 0 | BB64: الجمعة | BC64: 2019-07-26 | BD64: =IF('تحضير ابوبكر'!D64=1,NOW(),"") ->  | BE64: اجازة | BF64: 00:00:00 | BG64: =IF('تحضير ابوبكر'!E64=1,NOW(),"") ->  | BH64: اجازة | BI64: 00:00:00 | BJ64: =IF('تحضير ابوبكر'!F64=1,NOW(),"") ->  | BK64: اجازة | BL64: 00:00:00 | BM64: =IF('تحضير ابوبكر'!G64=1,NOW(),"") ->  | BN64: اجازة | BO64: 00:00:00 | BP64: 00:00:00 | BQ64: 0
B65: السبت | C65: 2019-07-27 | D65: =IF('تحضير سامي'!D65=1,NOW(),"") ->  | E65: غائب | F65: 6:30 | G65: =IF('تحضير سامي'!E65=1,NOW(),"") ->  | H65: غائب | I65: 6:30 | J65: =IF('تحضير سامي'!F65=1,NOW(),"") ->  | K65: غائب | L65: 5:00 | M65: =IF('تحضير سامي'!G65=1,NOW(),"") ->  | N65: غائب | O65: 5:00 | P65: 11:30:00 | Q65: 690 | AB65: السبت | AC65: 2019-07-27 | AD65: =IF('تحضير باهبري'!D65=1,NOW(),"") ->  | AE65: =IF(AD65="","غائب",IF(AD65=$D$6," تــم الحضور في الموعد",IF(AD65<$D$6,"تم الحضور قبل الموعد",IF(AD65>$D$6,"تم الحضور بعد الموعد","")))) -> غائب | AF65: =IF(AE65="غائب","6:30",IF(AE65="تم الحضور قبل الموعد","0:00",IF(AE65="تم الحضور في الموعد","0:00",IF(AE65>$D$6,AD65-$D$6,"")))) -> 6:30 | AG65: =IF('تحضير باهبري'!E65=1,NOW(),"") ->  | AH65: =IF(AG65="","غائب",IF(AG65=$G$6," تم الانصراف في الموعد",IF(AG65<$G$6,"تم الانصراف قبل الموعد",IF(AG65>$G$6,"تم الانصراف بعد الموعد","")))) -> غائب | AI65: =IF(AH65="غائب","6:30",IF(AH65="تم الانصراف بعد الموعد","0:00",IF(AH65="تم الانصراف في الموعد","0:00",IF(AH65>$G$6,$G$6-AG65,"")))) -> 6:30 | AJ65: =IF('تحضير باهبري'!F65=1,NOW(),"") ->  | AK65: =IF(AJ65="","غائب",IF(AJ65=$J$6," تــم الحضور في الموعد",IF(AJ65<$J$6,"تم الحضور قبل الموعد",IF(AJ65>$J$6,"تم الحضور بعد الموعد","")))) -> غائب | AL65: =IF(AK65="غائب","5:00",IF(AK65="تم الحضور قبل الموعد","0:00",IF(AK65="تم الحضور في الموعد","0:00",IF(AK65>$J$6,AJ65-$J$6,"")))) -> 5:00 | AM65: =IF('تحضير باهبري'!G65=1,NOW(),"") ->  | AN65: =IF(AM65="","غائب",IF(AM65=$M$6," تم الانصراف في الموعد",IF(AM65<$M$6,"تم الانصراف قبل الموعد",IF(AM65>$M$6,"تم الانصراف بعد الموعد","")))) -> غائب | AO65: =IF(AN65="غائب","5:00",IF(AN65="تم الانصراف بعد الموعد","0:00",IF(AN65="تم الانصراف في الموعد","0:00",IF(AN65>$M$6,$M$6-AM65,"")))) -> 5:00 | AP65: 11:30:00 | AQ65: 690 | BB65: السبت | BC65: 2019-07-27 | BD65: =IF('تحضير ابوبكر'!D65=1,NOW(),"") ->  | BE65: =IF(BD65="","غائب",IF(BD65=$D$6," تــم الحضور في الموعد",IF(BD65<$D$6,"تم الحضور قبل الموعد",IF(BD65>$D$6,"تم الحضور بعد الموعد","")))) -> غائب | BF65: =IF(BE65="غائب","6:30",IF(BE65="تم الحضور قبل الموعد","0:00",IF(BE65="تم الحضور في الموعد","0:00",IF(BE65>$D$6,BD65-$D$6,"")))) -> 6:30 | BG65: =IF('تحضير ابوبكر'!E65=1,NOW(),"") ->  | BH65: =IF(BG65="","غائب",IF(BG65=$G$6," تم الانصراف في الموعد",IF(BG65<$G$6,"تم الانصراف قبل الموعد",IF(BG65>$G$6,"تم الانصراف بعد الموعد","")))) -> غائب | BI65: =IF(BH65="غائب","6:30",IF(BH65="تم الانصراف بعد الموعد","0:00",IF(BH65="تم الانصراف في الموعد","0:00",IF(BH65>$G$6,$G$6-BG65,"")))) -> 6:30 | BJ65: =IF('تحضير ابوبكر'!F65=1,NOW(),"") ->  | BK65: =IF(BJ65="","غائب",IF(BJ65=$J$6," تــم الحضور في الموعد",IF(BJ65<$J$6,"تم الحضور قبل الموعد",IF(BJ65>$J$6,"تم الحضور بعد الموعد","")))) -> غائب | BL65: =IF(BK65="غائب","5:00",IF(BK65="تم الحضور قبل الموعد","0:00",IF(BK65="تم الحضور في الموعد","0:00",IF(BK65>$J$6,BJ65-$J$6,"")))) -> 5:00 | BM65: =IF('تحضير ابوبكر'!G65=1,NOW(),"") ->  | BN65: =IF(BM65="","غائب",IF(BM65=$M$6," تم الانصراف في الموعد",IF(BM65<$M$6,"تم الانصراف قبل الموعد",IF(BM65>$M$6,"تم الانصراف بعد الموعد","")))) -> غائب | BO65: =IF(BN65="غائب","5:00",IF(BN65="تم الانصراف بعد الموعد","0:00",IF(BN65="تم الانصراف في الموعد","0:00",IF(BN65>$M$6,$M$6-BM65,"")))) -> 5:00 | BP65: 11:30:00 | BQ65: 690
B66: الأحد | C66: 2019-07-28 | D66: =IF('تحضير سامي'!D66=1,NOW(),"") ->  | E66: غائب | F66: 6:30 | G66: =IF('تحضير سامي'!E66=1,NOW(),"") ->  | H66: غائب | I66: 6:30 | J66: =IF('تحضير سامي'!F66=1,NOW(),"") ->  | K66: غائب | L66: 5:00 | M66: =IF('تحضير سامي'!G66=1,NOW(),"") ->  | N66: غائب | O66: 5:00 | P66: 11:30:00 | Q66: 690 | AB66: الأحد | AC66: 2019-07-28 | AD66: =IF('تحضير باهبري'!D66=1,NOW(),"") ->  | AE66: غائب | AF66: 6:30 | AG66: =IF('تحضير باهبري'!E66=1,NOW(),"") ->  | AH66: غائب | AI66: 6:30 | AJ66: =IF('تحضير باهبري'!F66=1,NOW(),"") ->  | AK66: غائب | AL66: 5:00 | AM66: =IF('تحضير باهبري'!G66=1,NOW(),"") ->  | AN66: غائب | AO66: 5:00 | AP66: 11:30:00 | AQ66: 690 | BB66: الأحد | BC66: 2019-07-28 | BD66: =IF('تحضير ابوبكر'!D66=1,NOW(),"") ->  | BE66: غائب | BF66: 6:30 | BG66: =IF('تحضير ابوبكر'!E66=1,NOW(),"") ->  | BH66: غائب | BI66: 6:30 | BJ66: =IF('تحضير ابوبكر'!F66=1,NOW(),"") ->  | BK66: غائب | BL66: 5:00 | BM66: =IF('تحضير ابوبكر'!G66=1,NOW(),"") ->  | BN66: غائب | BO66: 5:00 | BP66: 11:30:00 | BQ66: 690
B67: الإثنين | C67: 2019-07-29 | D67: =IF('تحضير سامي'!D67=1,NOW(),"") ->  | E67: غائب | F67: 6:30 | G67: =IF('تحضير سامي'!E67=1,NOW(),"") ->  | H67: غائب | I67: 6:30 | J67: =IF('تحضير سامي'!F67=1,NOW(),"") ->  | K67: غائب | L67: 5:00 | M67: =IF('تحضير سامي'!G67=1,NOW(),"") ->  | N67: غائب | O67: 5:00 | P67: 11:30:00 | Q67: 690 | AB67: الإثنين | AC67: 2019-07-29 | AD67: =IF('تحضير باهبري'!D67=1,NOW(),"") ->  | AE67: غائب | AF67: 6:30 | AG67: =IF('تحضير باهبري'!E67=1,NOW(),"") ->  | AH67: غائب | AI67: 6:30 | AJ67: =IF('تحضير باهبري'!F67=1,NOW(),"") ->  | AK67: غائب | AL67: 5:00 | AM67: =IF('تحضير باهبري'!G67=1,NOW(),"") ->  | AN67: غائب | AO67: 5:00 | AP67: 11:30:00 | AQ67: 690 | BB67: الإثنين | BC67: 2019-07-29 | BD67: =IF('تحضير ابوبكر'!D67=1,NOW(),"") ->  | BE67: غائب | BF67: 6:30 | BG67: =IF('تحضير ابوبكر'!E67=1,NOW(),"") ->  | BH67: غائب | BI67: 6:30 | BJ67: =IF('تحضير ابوبكر'!F67=1,NOW(),"") ->  | BK67: غائب | BL67: 5:00 | BM67: =IF('تحضير ابوبكر'!G67=1,NOW(),"") ->  | BN67: غائب | BO67: 5:00 | BP67: 11:30:00 | BQ67: 690
B68: الثلاثاء | C68: 2019-07-30 | D68: =IF('تحضير سامي'!D68=1,NOW(),"") ->  | E68: غائب | F68: 6:30 | G68: =IF('تحضير سامي'!E68=1,NOW(),"") ->  | H68: غائب | I68: 6:30 | J68: =IF('تحضير سامي'!F68=1,NOW(),"") ->  | K68: غائب | L68: 5:00 | M68: =IF('تحضير سامي'!G68=1,NOW(),"") ->  | N68: غائب | O68: 5:00 | P68: 11:30:00 | Q68: 690 | AB68: الثلاثاء | AC68: 2019-07-30 | AD68: =IF('تحضير باهبري'!D68=1,NOW(),"") ->  | AE68: غائب | AF68: 6:30 | AG68: =IF('تحضير باهبري'!E68=1,NOW(),"") ->  | AH68: غائب | AI68: 6:30 | AJ68: =IF('تحضير باهبري'!F68=1,NOW(),"") ->  | AK68: غائب | AL68: 5:00 | AM68: =IF('تحضير باهبري'!G68=1,NOW(),"") ->  | AN68: غائب | AO68: 5:00 | AP68: 11:30:00 | AQ68: 690 | BB68: الثلاثاء | BC68: 2019-07-30 | BD68: =IF('تحضير ابوبكر'!D68=1,NOW(),"") ->  | BE68: غائب | BF68: 6:30 | BG68: =IF('تحضير ابوبكر'!E68=1,NOW(),"") ->  | BH68: غائب | BI68: 6:30 | BJ68: =IF('تحضير ابوبكر'!F68=1,NOW(),"") ->  | BK68: غائب | BL68: 5:00 | BM68: =IF('تحضير ابوبكر'!G68=1,NOW(),"") ->  | BN68: غائب | BO68: 5:00 | BP68: 11:30:00 | BQ68: 690
B69: الأربعاء | C69: 2019-07-31 | D69: =IF('تحضير سامي'!D69=1,NOW(),"") ->  | E69: غائب | F69: 6:30 | G69: =IF('تحضير سامي'!E69=1,NOW(),"") ->  | H69: غائب | I69: 6:30 | J69: =IF('تحضير سامي'!F69=1,NOW(),"") ->  | K69: غائب | L69: 5:00 | M69: =IF('تحضير سامي'!G69=1,NOW(),"") ->  | N69: غائب | O69: 5:00 | P69: 11:30:00 | Q69: 690 | AB69: الأربعاء | AC69: 2019-07-31 | AD69: =IF('تحضير باهبري'!D69=1,NOW(),"") ->  | AE69: غائب | AF69: 6:30 | AG69: =IF('تحضير باهبري'!E69=1,NOW(),"") ->  | AH69: غائب | AI69: 6:30 | AJ69: =IF('تحضير باهبري'!F69=1,NOW(),"") ->  | AK69: غائب | AL69: 5:00 | AM69: =IF('تحضير باهبري'!G69=1,NOW(),"") ->  | AN69: غائب | AO69: 5:00 | AP69: 11:30:00 | AQ69: 690 | BB69: الأربعاء | BC69: 2019-07-31 | BD69: =IF('تحضير ابوبكر'!D69=1,NOW(),"") ->  | BE69: غائب | BF69: 6:30 | BG69: =IF('تحضير ابوبكر'!E69=1,NOW(),"") ->  | BH69: غائب | BI69: 6:30 | BJ69: =IF('تحضير ابوبكر'!F69=1,NOW(),"") ->  | BK69: غائب | BL69: 5:00 | BM69: =IF('تحضير ابوبكر'!G69=1,NOW(),"") ->  | BN69: غائب | BO69: 5:00 | BP69: 11:30:00 | BQ69: 690
C71: اجمالي وقت الدوام | E71: 19830 | H71: اجمالي وقت التاخير بالدقائق | I71: =SUM(Q39:Q69) -> 18630 | L71: الراتب | N71: 50000 | AE71: اجمالي وقت الدوام | AF71: 19830 | AH71: اجمالي وقت التاخير بالدقائق | AI71: =SUM(AQ39:AQ69) -> 18630 | AL71: الراتب | AN71: 55000 | BE71: اجمالي وقت الدوام | BF71: 19830 | BH71: اجمالي وقت التاخير بالدقائق | BI71: =SUM(BQ39:BQ69) -> 18630 | BL71: الراتب | BN71: 45000
B72: الخميس | C72: 2019-08-01 | D72: =IF('تحضير سامي'!D72=1,NOW(),"") ->  | E72: غائب | F72: 6:30 | G72: =IF('تحضير سامي'!E72=1,NOW(),"") ->  | H72: غائب | I72: =IF(H72="غائب","6:30",IF(H72="تم الانصراف بعد الموعد","0:00",IF(H72="تم الانصراف في الموعد","0:00",IF(H72>$G$6,$G$6-G72,"")))) -> 6:30 | J72: =IF('تحضير سامي'!F72=1,NOW(),"") ->  | K72: غائب | L72: =IF(K72="غائب","5:00",IF(K72="تم الحضور قبل الموعد","0:00",IF(K72="تم الحضور في الموعد","0:00",IF(K72>$J$6,J72-$J$6,"")))) -> 5:00 | M72: =IF('تحضير سامي'!G72=1,NOW(),"") ->  | N72: غائب | O72: =IF(N72="غائب","5:00",IF(N72="تم الانصراف بعد الموعد","0:00",IF(N72="تم الانصراف في الموعد","0:00",IF(N72>$M$6,$M$6-M72,"")))) -> 5:00 | P72: =IF(H72="غائب","6:30",I72)+IF(N72="غائب","5:00",O72)+IF(E72="غائب","0:00",F72)+IF(K72="غائب","0:00",L72) -> 11:30:00 | Q72: =(HOUR(P72)*3600+MINUTE(P72)*60+SECOND(P72))/60 -> 690 | AB72: الخميس | AC72: 2019-08-01 | AD72: =IF('تحضير باهبري'!D72=1,NOW(),"") ->  | AE72: =IF(AD72="","غائب",IF(AD72=$D$6," تــم الحضور في الموعد",IF(AD72<$D$6,"تم الحضور قبل الموعد",IF(AD72>$D$6,"تم الحضور بعد الموعد","")))) -> غائب | AF72: =IF(AE72="غائب","6:30",IF(AE72="تم الحضور قبل الموعد","0:00",IF(AE72="تم الحضور في الموعد","0:00",IF(AE72>$D$6,AD72-$D$6,"")))) -> 6:30 | AG72: =IF('تحضير باهبري'!E72=1,NOW(),"") ->  | AH72: =IF(AG72="","غائب",IF(AG72=$G$6," تم الانصراف في الموعد",IF(AG72<$G$6,"تم الانصراف قبل الموعد",IF(AG72>$G$6,"تم الانصراف بعد الموعد","")))) -> غائب | AI72: =IF(AH72="غائب","6:30",IF(AH72="تم الانصراف بعد الموعد","0:00",IF(AH72="تم الانصراف في الموعد","0:00",IF(AH72>$G$6,$G$6-AG72,"")))) -> 6:30 | AJ72: =IF('تحضير باهبري'!F72=1,NOW(),"") ->  | AK72: =IF(AJ72="","غائب",IF(AJ72=$J$6," تــم الحضور في الموعد",IF(AJ72<$J$6,"تم الحضور قبل الموعد",IF(AJ72>$J$6,"تم الحضور بعد الموعد","")))) -> غائب | AL72: =IF(AK72="غائب","5:00",IF(AK72="تم الحضور قبل الموعد","0:00",IF(AK72="تم الحضور في الموعد","0:00",IF(AK72>$J$6,AJ72-$J$6,"")))) -> 5:00 | AM72: =IF('تحضير باهبري'!G72=1,NOW(),"") ->  | AN72: =IF(AM72="","غائب",IF(AM72=$M$6," تم الانصراف في الموعد",IF(AM72<$M$6,"تم الانصراف قبل الموعد",IF(AM72>$M$6,"تم الانصراف بعد الموعد","")))) -> غائب | AO72: =IF(AN72="غائب","5:00",IF(AN72="تم الانصراف بعد الموعد","0:00",IF(AN72="تم الانصراف في الموعد","0:00",IF(AN72>$M$6,$M$6-AM72,"")))) -> 5:00 | AP72: =IF(AH72="غائب","6:30",AI72)+IF(AN72="غائب","5:00",AO72)+IF(AE72="غائب","0:00",AF72)+IF(AK72="غائب","0:00",AL72) -> 11:30:00 | AQ72: =(HOUR(AP72)*3600+MINUTE(AP72)*60+SECOND(AP72))/60 -> 690 | BB72: الخميس | BC72: 2019-08-01 | BD72: =IF('تحضير ابوبكر'!D72=1,NOW(),"") ->  | BE72: =IF(BD72="","غائب",IF(BD72=$D$6," تــم الحضور في الموعد",IF(BD72<$D$6,"تم الحضور قبل الموعد",IF(BD72>$D$6,"تم الحضور بعد الموعد","")))) -> غائب | BF72: =IF(BE72="غائب","6:30",IF(BE72="تم الحضور قبل الموعد","0:00",IF(BE72="تم الحضور في الموعد","0:00",IF(BE72>$D$6,BD72-$D$6,"")))) -> 6:30 | BG72: =IF('تحضير ابوبكر'!E72=1,NOW(),"") ->  | BH72: =IF(BG72="","غائب",IF(BG72=$G$6," تم الانصراف في الموعد",IF(BG72<$G$6,"تم الانصراف قبل الموعد",IF(BG72>$G$6,"تم الانصراف بعد الموعد","")))) -> غائب | BI72: =IF(BH72="غائب","6:30",IF(BH72="تم الانصراف بعد الموعد","0:00",IF(BH72="تم الانصراف في الموعد","0:00",IF(BH72>$G$6,$G$6-BG72,"")))) -> 6:30 | BJ72: =IF('تحضير ابوبكر'!F72=1,NOW(),"") ->  | BK72: =IF(BJ72="","غائب",IF(BJ72=$J$6," تــم الحضور في الموعد",IF(BJ72<$J$6,"تم الحضور قبل الموعد",IF(BJ72>$J$6,"تم الحضور بعد الموعد","")))) -> غائب | BL72: =IF(BK72="غائب","5:00",IF(BK72="تم الحضور قبل الموعد","0:00",IF(BK72="تم الحضور في الموعد","0:00",IF(BK72>$J$6,BJ72-$J$6,"")))) -> 5:00 | BM72: =IF('تحضير ابوبكر'!G72=1,NOW(),"") ->  | BN72: =IF(BM72="","غائب",IF(BM72=$M$6," تم الانصراف في الموعد",IF(BM72<$M$6,"تم الانصراف قبل الموعد",IF(BM72>$M$6,"تم الانصراف بعد الموعد","")))) -> غائب | BO72: =IF(BN72="غائب","5:00",IF(BN72="تم الانصراف بعد الموعد","0:00",IF(BN72="تم الانصراف في الموعد","0:00",IF(BN72>$M$6,$M$6-BM72,"")))) -> 5:00 | BP72: =IF(BH72="غائب","6:30",BI72)+IF(BN72="غائب","5:00",BO72)+IF(BE72="غائب","0:00",BF72)+IF(BK72="غائب","0:00",BL72) -> 11:30:00 | BQ72: =(HOUR(BP72)*3600+MINUTE(BP72)*60+SECOND(BP72))/60 -> 690
B73: الجمعة | C73: 2019-08-02 | D73: =IF('تحضير سامي'!D73=1,NOW(),"") ->  | E73: اجازة | F73: 00:00:00 | G73: =IF('تحضير سامي'!E73=1,NOW(),"") ->  | H73: اجازة | I73: 00:00:00 | J73: =IF('تحضير سامي'!F73=1,NOW(),"") ->  | K73: اجازة | L73: 00:00:00 | M73: =IF('تحضير سامي'!G73=1,NOW(),"") ->  | N73: اجازة | O73: 00:00:00 | P73: 00:00:00 | Q73: 0 | AB73: الجمعة | AC73: 2019-08-02 | AD73: =IF('تحضير باهبري'!D73=1,NOW(),"") ->  | AE73: اجازة | AF73: 00:00:00 | AG73: =IF('تحضير باهبري'!E73=1,NOW(),"") ->  | AH73: اجازة | AI73: 00:00:00 | AJ73: =IF('تحضير باهبري'!F73=1,NOW(),"") ->  | AK73: اجازة | AL73: 00:00:00 | AM73: =IF('تحضير باهبري'!G73=1,NOW(),"") ->  | AN73: اجازة | AO73: 00:00:00 | AP73: 00:00:00 | AQ73: 0 | BB73: الجمعة | BC73: 2019-08-02 | BD73: =IF('تحضير ابوبكر'!D73=1,NOW(),"") ->  | BE73: اجازة | BF73: 00:00:00 | BG73: =IF('تحضير ابوبكر'!E73=1,NOW(),"") ->  | BH73: اجازة | BI73: 00:00:00 | BJ73: =IF('تحضير ابوبكر'!F73=1,NOW(),"") ->  | BK73: اجازة | BL73: 00:00:00 | BM73: =IF('تحضير ابوبكر'!G73=1,NOW(),"") ->  | BN73: اجازة | BO73: 00:00:00 | BP73: 00:00:00 | BQ73: 0
B74: السبت | C74: 2019-08-03 | D74: =IF('تحضير سامي'!D74=1,NOW(),"") ->  | E74: =IF(D74="","غائب",IF(D74=$D$6," تــم الحضور في الموعد",IF(D74<$D$6,"تم الحضور قبل الموعد",IF(D74>$D$6,"تم الحضور بعد الموعد","")))) -> غائب | F74: =IF(E74="غائب","6:30",IF(E74="تم الحضور قبل الموعد","0:00",IF(E74="تم الحضور في الموعد","0:00",IF(E74>$D$6,D74-$D$6,"")))) -> 6:30 | G74: =IF('تحضير سامي'!E74=1,NOW(),"") ->  | H74: =IF(G74="","غائب",IF(G74=$G$6," تم الانصراف في الموعد",IF(G74<$G$6,"تم الانصراف قبل الموعد",IF(G74>$G$6,"تم الانصراف بعد الموعد","")))) -> غائب | I74: 6:30 | J74: =IF('تحضير سامي'!F74=1,NOW(),"") ->  | K74: =IF(J74="","غائب",IF(J74=$J$6," تــم الحضور في الموعد",IF(J74<$J$6,"تم الحضور قبل الموعد",IF(J74>$J$6,"تم الحضور بعد الموعد","")))) -> غائب | L74: 5:00 | M74: =IF('تحضير سامي'!G74=1,NOW(),"") ->  | N74: =IF(M74="","غائب",IF(M74=$M$6," تم الانصراف في الموعد",IF(M74<$M$6,"تم الانصراف قبل الموعد",IF(M74>$M$6,"تم الانصراف بعد الموعد","")))) -> غائب | O74: 5:00 | P74: 11:30:00 | Q74: 690 | AB74: السبت | AC74: 2019-08-03 | AD74: =IF('تحضير باهبري'!D74=1,NOW(),"") ->  | AE74: =IF(AD74="","غائب",IF(AD74=$D$6," تــم الحضور في الموعد",IF(AD74<$D$6,"تم الحضور قبل الموعد",IF(AD74>$D$6,"تم الحضور بعد الموعد","")))) -> غائب | AF74: =IF(AE74="غائب","6:30",IF(AE74="تم الحضور قبل الموعد","0:00",IF(AE74="تم الحضور في الموعد","0:00",IF(AE74>$D$6,AD74-$D$6,"")))) -> 6:30 | AG74: =IF('تحضير باهبري'!E74=1,NOW(),"") ->  | AH74: =IF(AG74="","غائب",IF(AG74=$G$6," تم الانصراف في الموعد",IF(AG74<$G$6,"تم الانصراف قبل الموعد",IF(AG74>$G$6,"تم الانصراف بعد الموعد","")))) -> غائب | AI74: =IF(AH74="غائب","6:30",IF(AH74="تم الانصراف بعد الموعد","0:00",IF(AH74="تم الانصراف في الموعد","0:00",IF(AH74>$G$6,$G$6-AG74,"")))) -> 6:30 | AJ74: =IF('تحضير باهبري'!F74=1,NOW(),"") ->  | AK74: =IF(AJ74="","غائب",IF(AJ74=$J$6," تــم الحضور في الموعد",IF(AJ74<$J$6,"تم الحضور قبل الموعد",IF(AJ74>$J$6,"تم الحضور بعد الموعد","")))) -> غائب | AL74: =IF(AK74="غائب","5:00",IF(AK74="تم الحضور قبل الموعد","0:00",IF(AK74="تم الحضور في الموعد","0:00",IF(AK74>$J$6,AJ74-$J$6,"")))) -> 5:00 | AM74: =IF('تحضير باهبري'!G74=1,NOW(),"") ->  | AN74: =IF(AM74="","غائب",IF(AM74=$M$6," تم الانصراف في الموعد",IF(AM74<$M$6,"تم الانصراف قبل الموعد",IF(AM74>$M$6,"تم الانصراف بعد الموعد","")))) -> غائب | AO74: =IF(AN74="غائب","5:00",IF(AN74="تم الانصراف بعد الموعد","0:00",IF(AN74="تم الانصراف في الموعد","0:00",IF(AN74>$M$6,$M$6-AM74,"")))) -> 5:00 | AP74: 11:30:00 | AQ74: 690 | BB74: السبت | BC74: 2019-08-03 | BD74: =IF('تحضير ابوبكر'!D74=1,NOW(),"") ->  | BE74: =IF(BD74="","غائب",IF(BD74=$D$6," تــم الحضور في الموعد",IF(BD74<$D$6,"تم الحضور قبل الموعد",IF(BD74>$D$6,"تم الحضور بعد الموعد","")))) -> غائب | BF74: =IF(BE74="غائب","6:30",IF(BE74="تم الحضور قبل الموعد","0:00",IF(BE74="تم الحضور في الموعد","0:00",IF(BE74>$D$6,BD74-$D$6,"")))) -> 6:30 | BG74: =IF('تحضير ابوبكر'!E74=1,NOW(),"") ->  | BH74: =IF(BG74="","غائب",IF(BG74=$G$6," تم الانصراف في الموعد",IF(BG74<$G$6,"تم الانصراف قبل الموعد",IF(BG74>$G$6,"تم الانصراف بعد الموعد","")))) -> غائب | BI74: =IF(BH74="غائب","6:30",IF(BH74="تم الانصراف بعد الموعد","0:00",IF(BH74="تم الانصراف في الموعد","0:00",IF(BH74>$G$6,$G$6-BG74,"")))) -> 6:30 | BJ74: =IF('تحضير ابوبكر'!F74=1,NOW(),"") ->  | BK74: =IF(BJ74="","غائب",IF(BJ74=$J$6," تــم الحضور في الموعد",IF(BJ74<$J$6,"تم الحضور قبل الموعد",IF(BJ74>$J$6,"تم الحضور بعد الموعد","")))) -> غائب | BL74: =IF(BK74="غائب","5:00",IF(BK74="تم الحضور قبل الموعد","0:00",IF(BK74="تم الحضور في الموعد","0:00",IF(BK74>$J$6,BJ74-$J$6,"")))) -> 5:00 | BM74: =IF('تحضير ابوبكر'!G74=1,NOW(),"") ->  | BN74: =IF(BM74="","غائب",IF(BM74=$M$6," تم الانصراف في الموعد",IF(BM74<$M$6,"تم الانصراف قبل الموعد",IF(BM74>$M$6,"تم الانصراف بعد الموعد","")))) -> غائب | BO74: =IF(BN74="غائب","5:00",IF(BN74="تم الانصراف بعد الموعد","0:00",IF(BN74="تم الانصراف في الموعد","0:00",IF(BN74>$M$6,$M$6-BM74,"")))) -> 5:00 | BP74: 11:30:00 | BQ74: 690
B75: الأحد | C75: 2019-08-04 | D75: =IF('تحضير سامي'!D75=1,NOW(),"") ->  | E75: غائب | F75: 6:30 | G75: =IF('تحضير سامي'!E75=1,NOW(),"") ->  | H75: غائب | I75: 6:30 | J75: =IF('تحضير سامي'!F75=1,NOW(),"") ->  | K75: غائب | L75: 5:00 | M75: =IF('تحضير سامي'!G75=1,NOW(),"") ->  | N75: غائب | O75: 5:00 | P75: 11:30:00 | Q75: 690 | AB75: الأحد | AC75: 2019-08-04 | AD75: =IF('تحضير باهبري'!D75=1,NOW(),"") ->  | AE75: غائب | AF75: 6:30 | AG75: =IF('تحضير باهبري'!E75=1,NOW(),"") ->  | AH75: غائب | AI75: 6:30 | AJ75: =IF('تحضير باهبري'!F75=1,NOW(),"") ->  | AK75: غائب | AL75: 5:00 | AM75: =IF('تحضير باهبري'!G75=1,NOW(),"") ->  | AN75: غائب | AO75: 5:00 | AP75: 11:30:00 | AQ75: 690 | BB75: الأحد | BC75: 2019-08-04 | BD75: =IF('تحضير ابوبكر'!D75=1,NOW(),"") ->  | BE75: غائب | BF75: 6:30 | BG75: =IF('تحضير ابوبكر'!E75=1,NOW(),"") ->  | BH75: غائب | BI75: 6:30 | BJ75: =IF('تحضير ابوبكر'!F75=1,NOW(),"") ->  | BK75: غائب | BL75: 5:00 | BM75: =IF('تحضير ابوبكر'!G75=1,NOW(),"") ->  | BN75: غائب | BO75: 5:00 | BP75: 11:30:00 | BQ75: 690
B76: الإثنين | C76: 2019-08-05 | D76: =IF('تحضير سامي'!D76=1,NOW(),"") ->  | E76: غائب | F76: 6:30 | G76: =IF('تحضير سامي'!E76=1,NOW(),"") ->  | H76: غائب | I76: 6:30 | J76: =IF('تحضير سامي'!F76=1,NOW(),"") ->  | K76: غائب | L76: 5:00 | M76: =IF('تحضير سامي'!G76=1,NOW(),"") ->  | N76: غائب | O76: 5:00 | P76: 11:30:00 | Q76: 690 | AB76: الإثنين | AC76: 2019-08-05 | AD76: =IF('تحضير باهبري'!D76=1,NOW(),"") ->  | AE76: غائب | AF76: 6:30 | AG76: =IF('تحضير باهبري'!E76=1,NOW(),"") ->  | AH76: غائب | AI76: 6:30 | AJ76: =IF('تحضير باهبري'!F76=1,NOW(),"") ->  | AK76: غائب | AL76: 5:00 | AM76: =IF('تحضير باهبري'!G76=1,NOW(),"") ->  | AN76: غائب | AO76: 5:00 | AP76: 11:30:00 | AQ76: 690 | BB76: الإثنين | BC76: 2019-08-05 | BD76: =IF('تحضير ابوبكر'!D76=1,NOW(),"") ->  | BE76: غائب | BF76: 6:30 | BG76: =IF('تحضير ابوبكر'!E76=1,NOW(),"") ->  | BH76: غائب | BI76: 6:30 | BJ76: =IF('تحضير ابوبكر'!F76=1,NOW(),"") ->  | BK76: غائب | BL76: 5:00 | BM76: =IF('تحضير ابوبكر'!G76=1,NOW(),"") ->  | BN76: غائب | BO76: 5:00 | BP76: 11:30:00 | BQ76: 690
B77: الثلاثاء | C77: 2019-08-06 | D77: =IF('تحضير سامي'!D77=1,NOW(),"") ->  | E77: غائب | F77: 6:30 | G77: =IF('تحضير سامي'!E77=1,NOW(),"") ->  | H77: غائب | I77: 6:30 | J77: =IF('تحضير سامي'!F77=1,NOW(),"") ->  | K77: غائب | L77: 5:00 | M77: =IF('تحضير سامي'!G77=1,NOW(),"") ->  | N77: غائب | O77: 5:00 | P77: 11:30:00 | Q77: 690 | AB77: الثلاثاء | AC77: 2019-08-06 | AD77: =IF('تحضير باهبري'!D77=1,NOW(),"") ->  | AE77: غائب | AF77: 6:30 | AG77: =IF('تحضير باهبري'!E77=1,NOW(),"") ->  | AH77: غائب | AI77: 6:30 | AJ77: =IF('تحضير باهبري'!F77=1,NOW(),"") ->  | AK77: غائب | AL77: 5:00 | AM77: =IF('تحضير باهبري'!G77=1,NOW(),"") ->  | AN77: غائب | AO77: 5:00 | AP77: 11:30:00 | AQ77: 690 | BB77: الثلاثاء | BC77: 2019-08-06 | BD77: =IF('تحضير ابوبكر'!D77=1,NOW(),"") ->  | BE77: غائب | BF77: 6:30 | BG77: =IF('تحضير ابوبكر'!E77=1,NOW(),"") ->  | BH77: غائب | BI77: 6:30 | BJ77: =IF('تحضير ابوبكر'!F77=1,NOW(),"") ->  | BK77: غائب | BL77: 5:00 | BM77: =IF('تحضير ابوبكر'!G77=1,NOW(),"") ->  | BN77: غائب | BO77: 5:00 | BP77: 11:30:00 | BQ77: 690
B78: الأربعاء | C78: 2019-08-07 | D78: =IF('تحضير سامي'!D78=1,NOW(),"") ->  | E78: غائب | F78: 6:30 | G78: =IF('تحضير سامي'!E78=1,NOW(),"") ->  | H78: غائب | I78: 6:30 | J78: =IF('تحضير سامي'!F78=1,NOW(),"") ->  | K78: غائب | L78: 5:00 | M78: =IF('تحضير سامي'!G78=1,NOW(),"") ->  | N78: غائب | O78: 5:00 | P78: 11:30:00 | Q78: 690 | AB78: الأربعاء | AC78: 2019-08-07 | AD78: =IF('تحضير باهبري'!D78=1,NOW(),"") ->  | AE78: غائب | AF78: 6:30 | AG78: =IF('تحضير باهبري'!E78=1,NOW(),"") ->  | AH78: غائب | AI78: 6:30 | AJ78: =IF('تحضير باهبري'!F78=1,NOW(),"") ->  | AK78: غائب | AL78: 5:00 | AM78: =IF('تحضير باهبري'!G78=1,NOW(),"") ->  | AN78: غائب | AO78: 5:00 | AP78: 11:30:00 | AQ78: 690 | BB78: الأربعاء | BC78: 2019-08-07 | BD78: =IF('تحضير ابوبكر'!D78=1,NOW(),"") ->  | BE78: غائب | BF78: 6:30 | BG78: =IF('تحضير ابوبكر'!E78=1,NOW(),"") ->  | BH78: غائب | BI78: 6:30 | BJ78: =IF('تحضير ابوبكر'!F78=1,NOW(),"") ->  | BK78: غائب | BL78: 5:00 | BM78: =IF('تحضير ابوبكر'!G78=1,NOW(),"") ->  | BN78: غائب | BO78: 5:00 | BP78: 11:30:00 | BQ78: 690
B79: الخميس | C79: 2019-08-08 | D79: =IF('تحضير سامي'!D79=1,NOW(),"") ->  | E79: غائب | F79: 6:30 | G79: =IF('تحضير سامي'!E79=1,NOW(),"") ->  | H79: غائب | I79: 6:30 | J79: =IF('تحضير سامي'!F79=1,NOW(),"") ->  | K79: غائب | L79: 5:00 | M79: =IF('تحضير سامي'!G79=1,NOW(),"") ->  | N79: غائب | O79: 5:00 | P79: 11:30:00 | Q79: 690 | AB79: الخميس | AC79: 2019-08-08 | AD79: =IF('تحضير باهبري'!D79=1,NOW(),"") ->  | AE79: غائب | AF79: 6:30 | AG79: =IF('تحضير باهبري'!E79=1,NOW(),"") ->  | AH79: غائب | AI79: 6:30 | AJ79: =IF('تحضير باهبري'!F79=1,NOW(),"") ->  | AK79: غائب | AL79: 5:00 | AM79: =IF('تحضير باهبري'!G79=1,NOW(),"") ->  | AN79: غائب | AO79: 5:00 | AP79: 11:30:00 | AQ79: 690 | BB79: الخميس | BC79: 2019-08-08 | BD79: =IF('تحضير ابوبكر'!D79=1,NOW(),"") ->  | BE79: غائب | BF79: 6:30 | BG79: =IF('تحضير ابوبكر'!E79=1,NOW(),"") ->  | BH79: غائب | BI79: 6:30 | BJ79: =IF('تحضير ابوبكر'!F79=1,NOW(),"") ->  | BK79: غائب | BL79: 5:00 | BM79: =IF('تحضير ابوبكر'!G79=1,NOW(),"") ->  | BN79: غائب | BO79: 5:00 | BP79: 11:30:00 | BQ79: 690
B80: الجمعة | C80: 2019-08-09 | D80: =IF('تحضير سامي'!D80=1,NOW(),"") ->  | E80: اجازة | F80: 00:00:00 | G80: =IF('تحضير سامي'!E80=1,NOW(),"") ->  | H80: اجازة | I80: 00:00:00 | J80: =IF('تحضير سامي'!F80=1,NOW(),"") ->  | K80: اجازة | L80: 00:00:00 | M80: =IF('تحضير سامي'!G80=1,NOW(),"") ->  | N80: اجازة | O80: 00:00:00 | P80: 00:00:00 | Q80: 0 | AB80: الجمعة | AC80: 2019-08-09 | AD80: =IF('تحضير باهبري'!D80=1,NOW(),"") ->  | AE80: اجازة | AF80: 00:00:00 | AG80: =IF('تحضير باهبري'!E80=1,NOW(),"") ->  | AH80: اجازة | AI80: 00:00:00 | AJ80: =IF('تحضير باهبري'!F80=1,NOW(),"") ->  | AK80: اجازة | AL80: 00:00:00 | AM80: =IF('تحضير باهبري'!G80=1,NOW(),"") ->  | AN80: اجازة | AO80: 00:00:00 | AP80: 00:00:00 | AQ80: 0 | BB80: الجمعة | BC80: 2019-08-09 | BD80: =IF('تحضير ابوبكر'!D80=1,NOW(),"") ->  | BE80: اجازة | BF80: 00:00:00 | BG80: =IF('تحضير ابوبكر'!E80=1,NOW(),"") ->  | BH80: اجازة | BI80: 00:00:00 | BJ80: =IF('تحضير ابوبكر'!F80=1,NOW(),"") ->  | BK80: اجازة | BL80: 00:00:00 | BM80: =IF('تحضير ابوبكر'!G80=1,NOW(),"") ->  | BN80: اجازة | BO80: 00:00:00 | BP80: 00:00:00 | BQ80: 0
B81: السبت | C81: 2019-08-10 | D81: =IF('تحضير سامي'!D81=1,NOW(),"") ->  | E81: غائب | F81: 6:30 | G81: =IF('تحضير سامي'!E81=1,NOW(),"") ->  | H81: غائب | I81: 6:30 | J81: =IF('تحضير سامي'!F81=1,NOW(),"") ->  | K81: غائب | L81: 5:00 | M81: =IF('تحضير سامي'!G81=1,NOW(),"") ->  | N81: غائب | O81: 5:00 | P81: 11:30:00 | Q81: 690 | AB81: السبت | AC81: 2019-08-10 | AD81: =IF('تحضير باهبري'!D81=1,NOW(),"") ->  | AE81: =IF(AD81="","غائب",IF(AD81=$D$6," تــم الحضور في الموعد",IF(AD81<$D$6,"تم الحضور قبل الموعد",IF(AD81>$D$6,"تم الحضور بعد الموعد","")))) -> غائب | AF81: =IF(AE81="غائب","6:30",IF(AE81="تم الحضور قبل الموعد","0:00",IF(AE81="تم الحضور في الموعد","0:00",IF(AE81>$D$6,AD81-$D$6,"")))) -> 6:30 | AG81: =IF('تحضير باهبري'!E81=1,NOW(),"") ->  | AH81: =IF(AG81="","غائب",IF(AG81=$G$6," تم الانصراف في الموعد",IF(AG81<$G$6,"تم الانصراف قبل الموعد",IF(AG81>$G$6,"تم الانصراف بعد الموعد","")))) -> غائب | AI81: =IF(AH81="غائب","6:30",IF(AH81="تم الانصراف بعد الموعد","0:00",IF(AH81="تم الانصراف في الموعد","0:00",IF(AH81>$G$6,$G$6-AG81,"")))) -> 6:30 | AJ81: =IF('تحضير باهبري'!F81=1,NOW(),"") ->  | AK81: =IF(AJ81="","غائب",IF(AJ81=$J$6," تــم الحضور في الموعد",IF(AJ81<$J$6,"تم الحضور قبل الموعد",IF(AJ81>$J$6,"تم الحضور بعد الموعد","")))) -> غائب | AL81: =IF(AK81="غائب","5:00",IF(AK81="تم الحضور قبل الموعد","0:00",IF(AK81="تم الحضور في الموعد","0:00",IF(AK81>$J$6,AJ81-$J$6,"")))) -> 5:00 | AM81: =IF('تحضير باهبري'!G81=1,NOW(),"") ->  | AN81: =IF(AM81="","غائب",IF(AM81=$M$6," تم الانصراف في الموعد",IF(AM81<$M$6,"تم الانصراف قبل الموعد",IF(AM81>$M$6,"تم الانصراف بعد الموعد","")))) -> غائب | AO81: =IF(AN81="غائب","5:00",IF(AN81="تم الانصراف بعد الموعد","0:00",IF(AN81="تم الانصراف في الموعد","0:00",IF(AN81>$M$6,$M$6-AM81,"")))) -> 5:00 | AP81: 11:30:00 | AQ81: 690 | BB81: السبت | BC81: 2019-08-10 | BD81: =IF('تحضير ابوبكر'!D81=1,NOW(),"") ->  | BE81: =IF(BD81="","غائب",IF(BD81=$D$6," تــم الحضور في الموعد",IF(BD81<$D$6,"تم الحضور قبل الموعد",IF(BD81>$D$6,"تم الحضور بعد الموعد","")))) -> غائب | BF81: =IF(BE81="غائب","6:30",IF(BE81="تم الحضور قبل الموعد","0:00",IF(BE81="تم الحضور في الموعد","0:00",IF(BE81>$D$6,BD81-$D$6,"")))) -> 6:30 | BG81: =IF('تحضير ابوبكر'!E81=1,NOW(),"") ->  | BH81: =IF(BG81="","غائب",IF(BG81=$G$6," تم الانصراف في الموعد",IF(BG81<$G$6,"تم الانصراف قبل الموعد",IF(BG81>$G$6,"تم الانصراف بعد الموعد","")))) -> غائب | BI81: =IF(BH81="غائب","6:30",IF(BH81="تم الانصراف بعد الموعد","0:00",IF(BH81="تم الانصراف في الموعد","0:00",IF(BH81>$G$6,$G$6-BG81,"")))) -> 6:30 | BJ81: =IF('تحضير ابوبكر'!F81=1,NOW(),"") ->  | BK81: =IF(BJ81="","غائب",IF(BJ81=$J$6," تــم الحضور في الموعد",IF(BJ81<$J$6,"تم الحضور قبل الموعد",IF(BJ81>$J$6,"تم الحضور بعد الموعد","")))) -> غائب | BL81: =IF(BK81="غائب","5:00",IF(BK81="تم الحضور قبل الموعد","0:00",IF(BK81="تم الحضور في الموعد","0:00",IF(BK81>$J$6,BJ81-$J$6,"")))) -> 5:00 | BM81: =IF('تحضير ابوبكر'!G81=1,NOW(),"") ->  | BN81: =IF(BM81="","غائب",IF(BM81=$M$6," تم الانصراف في الموعد",IF(BM81<$M$6,"تم الانصراف قبل الموعد",IF(BM81>$M$6,"تم الانصراف بعد الموعد","")))) -> غائب | BO81: =IF(BN81="غائب","5:00",IF(BN81="تم الانصراف بعد الموعد","0:00",IF(BN81="تم الانصراف في الموعد","0:00",IF(BN81>$M$6,$M$6-BM81,"")))) -> 5:00 | BP81: 11:30:00 | BQ81: 690
B82: الأحد | C82: 2019-08-11 | D82: =IF('تحضير سامي'!D82=1,NOW(),"") ->  | E82: غائب | F82: 6:30 | G82: =IF('تحضير سامي'!E82=1,NOW(),"") ->  | H82: غائب | I82: 6:30 | J82: =IF('تحضير سامي'!F82=1,NOW(),"") ->  | K82: غائب | L82: 5:00 | M82: =IF('تحضير سامي'!G82=1,NOW(),"") ->  | N82: غائب | O82: 5:00 | P82: 11:30:00 | Q82: 690 | AB82: الأحد | AC82: 2019-08-11 | AD82: =IF('تحضير باهبري'!D82=1,NOW(),"") ->  | AE82: غائب | AF82: 6:30 | AG82: =IF('تحضير باهبري'!E82=1,NOW(),"") ->  | AH82: غائب | AI82: 6:30 | AJ82: =IF('تحضير باهبري'!F82=1,NOW(),"") ->  | AK82: غائب | AL82: 5:00 | AM82: =IF('تحضير باهبري'!G82=1,NOW(),"") ->  | AN82: غائب | AO82: 5:00 | AP82: 11:30:00 | AQ82: 690 | BB82: الأحد | BC82: 2019-08-11 | BD82: =IF('تحضير ابوبكر'!D82=1,NOW(),"") ->  | BE82: غائب | BF82: 6:30 | BG82: =IF('تحضير ابوبكر'!E82=1,NOW(),"") ->  | BH82: غائب | BI82: 6:30 | BJ82: =IF('تحضير ابوبكر'!F82=1,NOW(),"") ->  | BK82: غائب | BL82: 5:00 | BM82: =IF('تحضير ابوبكر'!G82=1,NOW(),"") ->  | BN82: غائب | BO82: 5:00 | BP82: 11:30:00 | BQ82: 690
B83: الإثنين | C83: 2019-08-12 | D83: =IF('تحضير سامي'!D83=1,NOW(),"") ->  | E83: غائب | F83: 6:30 | G83: =IF('تحضير سامي'!E83=1,NOW(),"") ->  | H83: غائب | I83: 6:30 | J83: =IF('تحضير سامي'!F83=1,NOW(),"") ->  | K83: غائب | L83: 5:00 | M83: =IF('تحضير سامي'!G83=1,NOW(),"") ->  | N83: غائب | O83: 5:00 | P83: 11:30:00 | Q83: 690 | AB83: الإثنين | AC83: 2019-08-12 | AD83: =IF('تحضير باهبري'!D83=1,NOW(),"") ->  | AE83: غائب | AF83: 6:30 | AG83: =IF('تحضير باهبري'!E83=1,NOW(),"") ->  | AH83: غائب | AI83: 6:30 | AJ83: =IF('تحضير باهبري'!F83=1,NOW(),"") ->  | AK83: غائب | AL83: 5:00 | AM83: =IF('تحضير باهبري'!G83=1,NOW(),"") ->  | AN83: غائب | AO83: 5:00 | AP83: 11:30:00 | AQ83: 690 | BB83: الإثنين | BC83: 2019-08-12 | BD83: =IF('تحضير ابوبكر'!D83=1,NOW(),"") ->  | BE83: غائب | BF83: 6:30 | BG83: =IF('تحضير ابوبكر'!E83=1,NOW(),"") ->  | BH83: غائب | BI83: 6:30 | BJ83: =IF('تحضير ابوبكر'!F83=1,NOW(),"") ->  | BK83: غائب | BL83: 5:00 | BM83: =IF('تحضير ابوبكر'!G83=1,NOW(),"") ->  | BN83: غائب | BO83: 5:00 | BP83: 11:30:00 | BQ83: 690
B84: الثلاثاء | C84: 2019-08-13 | D84: =IF('تحضير سامي'!D84=1,NOW(),"") ->  | E84: غائب | F84: 6:30 | G84: =IF('تحضير سامي'!E84=1,NOW(),"") ->  | H84: غائب | I84: 6:30 | J84: =IF('تحضير سامي'!F84=1,NOW(),"") ->  | K84: غائب | L84: 5:00 | M84: =IF('تحضير سامي'!G84=1,NOW(),"") ->  | N84: غائب | O84: 5:00 | P84: 11:30:00 | Q84: 690 | AB84: الثلاثاء | AC84: 2019-08-13 | AD84: =IF('تحضير باهبري'!D84=1,NOW(),"") ->  | AE84: غائب | AF84: 6:30 | AG84: =IF('تحضير باهبري'!E84=1,NOW(),"") ->  | AH84: غائب | AI84: 6:30 | AJ84: =IF('تحضير باهبري'!F84=1,NOW(),"") ->  | AK84: غائب | AL84: 5:00 | AM84: =IF('تحضير باهبري'!G84=1,NOW(),"") ->  | AN84: غائب | AO84: 5:00 | AP84: 11:30:00 | AQ84: 690 | BB84: الثلاثاء | BC84: 2019-08-13 | BD84: =IF('تحضير ابوبكر'!D84=1,NOW(),"") ->  | BE84: غائب | BF84: 6:30 | BG84: =IF('تحضير ابوبكر'!E84=1,NOW(),"") ->  | BH84: غائب | BI84: 6:30 | BJ84: =IF('تحضير ابوبكر'!F84=1,NOW(),"") ->  | BK84: غائب | BL84: 5:00 | BM84: =IF('تحضير ابوبكر'!G84=1,NOW(),"") ->  | BN84: غائب | BO84: 5:00 | BP84: 11:30:00 | BQ84: 690
B85: الأربعاء | C85: 2019-08-14 | D85: =IF('تحضير سامي'!D85=1,NOW(),"") ->  | E85: غائب | F85: 6:30 | G85: =IF('تحضير سامي'!E85=1,NOW(),"") ->  | H85: غائب | I85: 6:30 | J85: =IF('تحضير سامي'!F85=1,NOW(),"") ->  | K85: غائب | L85: 5:00 | M85: =IF('تحضير سامي'!G85=1,NOW(),"") ->  | N85: غائب | O85: 5:00 | P85: 11:30:00 | Q85: 690 | AB85: الأربعاء | AC85: 2019-08-14 | AD85: =IF('تحضير باهبري'!D85=1,NOW(),"") ->  | AE85: غائب | AF85: 6:30 | AG85: =IF('تحضير باهبري'!E85=1,NOW(),"") ->  | AH85: غائب | AI85: 6:30 | AJ85: =IF('تحضير باهبري'!F85=1,NOW(),"") ->  | AK85: غائب | AL85: 5:00 | AM85: =IF('تحضير باهبري'!G85=1,NOW(),"") ->  | AN85: غائب | AO85: 5:00 | AP85: 11:30:00 | AQ85: 690 | BB85: الأربعاء | BC85: 2019-08-14 | BD85: =IF('تحضير ابوبكر'!D85=1,NOW(),"") ->  | BE85: غائب | BF85: 6:30 | BG85: =IF('تحضير ابوبكر'!E85=1,NOW(),"") ->  | BH85: غائب | BI85: 6:30 | BJ85: =IF('تحضير ابوبكر'!F85=1,NOW(),"") ->  | BK85: غائب | BL85: 5:00 | BM85: =IF('تحضير ابوبكر'!G85=1,NOW(),"") ->  | BN85: غائب | BO85: 5:00 | BP85: 11:30:00 | BQ85: 690
B86: الخميس | C86: 2019-08-15 | D86: =IF('تحضير سامي'!D86=1,NOW(),"") ->  | E86: غائب | F86: 6:30 | G86: =IF('تحضير سامي'!E86=1,NOW(),"") ->  | H86: غائب | I86: 6:30 | J86: =IF('تحضير سامي'!F86=1,NOW(),"") ->  | K86: غائب | L86: 5:00 | M86: =IF('تحضير سامي'!G86=1,NOW(),"") ->  | N86: غائب | O86: 5:00 | P86: 11:30:00 | Q86: 690 | AB86: الخميس | AC86: 2019-08-15 | AD86: =IF('تحضير باهبري'!D86=1,NOW(),"") ->  | AE86: غائب | AF86: 6:30 | AG86: =IF('تحضير باهبري'!E86=1,NOW(),"") ->  | AH86: غائب | AI86: 6:30 | AJ86: =IF('تحضير باهبري'!F86=1,NOW(),"") ->  | AK86: غائب | AL86: 5:00 | AM86: =IF('تحضير باهبري'!G86=1,NOW(),"") ->  | AN86: غائب | AO86: 5:00 | AP86: 11:30:00 | AQ86: 690 | BB86: الخميس | BC86: 2019-08-15 | BD86: =IF('تحضير ابوبكر'!D86=1,NOW(),"") ->  | BE86: غائب | BF86: 6:30 | BG86: =IF('تحضير ابوبكر'!E86=1,NOW(),"") ->  | BH86: غائب | BI86: 6:30 | BJ86: =IF('تحضير ابوبكر'!F86=1,NOW(),"") ->  | BK86: غائب | BL86: 5:00 | BM86: =IF('تحضير ابوبكر'!G86=1,NOW(),"") ->  | BN86: غائب | BO86: 5:00 | BP86: 11:30:00 | BQ86: 690
B87: الجمعة | C87: 2019-08-16 | D87: =IF('تحضير سامي'!D87=1,NOW(),"") ->  | E87: اجازة | F87: 00:00:00 | G87: =IF('تحضير سامي'!E87=1,NOW(),"") ->  | H87: اجازة | I87: 00:00:00 | J87: =IF('تحضير سامي'!F87=1,NOW(),"") ->  | K87: اجازة | L87: 00:00:00 | M87: =IF('تحضير سامي'!G87=1,NOW(),"") ->  | N87: اجازة | O87: 00:00:00 | P87: 00:00:00 | Q87: 0 | AB87: الجمعة | AC87: 2019-08-16 | AD87: =IF('تحضير باهبري'!D87=1,NOW(),"") ->  | AE87: اجازة | AF87: 00:00:00 | AG87: =IF('تحضير باهبري'!E87=1,NOW(),"") ->  | AH87: اجازة | AI87: 00:00:00 | AJ87: =IF('تحضير باهبري'!F87=1,NOW(),"") ->  | AK87: اجازة | AL87: 00:00:00 | AM87: =IF('تحضير باهبري'!G87=1,NOW(),"") ->  | AN87: اجازة | AO87: 00:00:00 | AP87: 00:00:00 | AQ87: 0 | BB87: الجمعة | BC87: 2019-08-16 | BD87: =IF('تحضير ابوبكر'!D87=1,NOW(),"") ->  | BE87: اجازة | BF87: 00:00:00 | BG87: =IF('تحضير ابوبكر'!E87=1,NOW(),"") ->  | BH87: اجازة | BI87: 00:00:00 | BJ87: =IF('تحضير ابوبكر'!F87=1,NOW(),"") ->  | BK87: اجازة | BL87: 00:00:00 | BM87: =IF('تحضير ابوبكر'!G87=1,NOW(),"") ->  | BN87: اجازة | BO87: 00:00:00 | BP87: 00:00:00 | BQ87: 0
B88: السبت | C88: 2019-08-17 | D88: =IF('تحضير سامي'!D88=1,NOW(),"") ->  | E88: غائب | F88: 6:30 | G88: =IF('تحضير سامي'!E88=1,NOW(),"") ->  | H88: غائب | I88: 6:30 | J88: =IF('تحضير سامي'!F88=1,NOW(),"") ->  | K88: غائب | L88: 5:00 | M88: =IF('تحضير سامي'!G88=1,NOW(),"") ->  | N88: غائب | O88: 5:00 | P88: 11:30:00 | Q88: 690 | AB88: السبت | AC88: 2019-08-17 | AD88: =IF('تحضير باهبري'!D88=1,NOW(),"") ->  | AE88: =IF(AD88="","غائب",IF(AD88=$D$6," تــم الحضور في الموعد",IF(AD88<$D$6,"تم الحضور قبل الموعد",IF(AD88>$D$6,"تم الحضور بعد الموعد","")))) -> غائب | AF88: =IF(AE88="غائب","6:30",IF(AE88="تم الحضور قبل الموعد","0:00",IF(AE88="تم الحضور في الموعد","0:00",IF(AE88>$D$6,AD88-$D$6,"")))) -> 6:30 | AG88: =IF('تحضير باهبري'!E88=1,NOW(),"") ->  | AH88: =IF(AG88="","غائب",IF(AG88=$G$6," تم الانصراف في الموعد",IF(AG88<$G$6,"تم الانصراف قبل الموعد",IF(AG88>$G$6,"تم الانصراف بعد الموعد","")))) -> غائب | AI88: =IF(AH88="غائب","6:30",IF(AH88="تم الانصراف بعد الموعد","0:00",IF(AH88="تم الانصراف في الموعد","0:00",IF(AH88>$G$6,$G$6-AG88,"")))) -> 6:30 | AJ88: =IF('تحضير باهبري'!F88=1,NOW(),"") ->  | AK88: =IF(AJ88="","غائب",IF(AJ88=$J$6," تــم الحضور في الموعد",IF(AJ88<$J$6,"تم الحضور قبل الموعد",IF(AJ88>$J$6,"تم الحضور بعد الموعد","")))) -> غائب | AL88: =IF(AK88="غائب","5:00",IF(AK88="تم الحضور قبل الموعد","0:00",IF(AK88="تم الحضور في الموعد","0:00",IF(AK88>$J$6,AJ88-$J$6,"")))) -> 5:00 | AM88: =IF('تحضير باهبري'!G88=1,NOW(),"") ->  | AN88: =IF(AM88="","غائب",IF(AM88=$M$6," تم الانصراف في الموعد",IF(AM88<$M$6,"تم الانصراف قبل الموعد",IF(AM88>$M$6,"تم الانصراف بعد الموعد","")))) -> غائب | AO88: =IF(AN88="غائب","5:00",IF(AN88="تم الانصراف بعد الموعد","0:00",IF(AN88="تم الانصراف في الموعد","0:00",IF(AN88>$M$6,$M$6-AM88,"")))) -> 5:00 | AP88: 11:30:00 | AQ88: 690 | BB88: السبت | BC88: 2019-08-17 | BD88: =IF('تحضير ابوبكر'!D88=1,NOW(),"") ->  | BE88: =IF(BD88="","غائب",IF(BD88=$D$6," تــم الحضور في الموعد",IF(BD88<$D$6,"تم الحضور قبل الموعد",IF(BD88>$D$6,"تم الحضور بعد الموعد","")))) -> غائب | BF88: =IF(BE88="غائب","6:30",IF(BE88="تم الحضور قبل الموعد","0:00",IF(BE88="تم الحضور في الموعد","0:00",IF(BE88>$D$6,BD88-$D$6,"")))) -> 6:30 | BG88: =IF('تحضير ابوبكر'!E88=1,NOW(),"") ->  | BH88: =IF(BG88="","غائب",IF(BG88=$G$6," تم الانصراف في الموعد",IF(BG88<$G$6,"تم الانصراف قبل الموعد",IF(BG88>$G$6,"تم الانصراف بعد الموعد","")))) -> غائب | BI88: =IF(BH88="غائب","6:30",IF(BH88="تم الانصراف بعد الموعد","0:00",IF(BH88="تم الانصراف في الموعد","0:00",IF(BH88>$G$6,$G$6-BG88,"")))) -> 6:30 | BJ88: =IF('تحضير ابوبكر'!F88=1,NOW(),"") ->  | BK88: =IF(BJ88="","غائب",IF(BJ88=$J$6," تــم الحضور في الموعد",IF(BJ88<$J$6,"تم الحضور قبل الموعد",IF(BJ88>$J$6,"تم الحضور بعد الموعد","")))) -> غائب | BL88: =IF(BK88="غائب","5:00",IF(BK88="تم الحضور قبل الموعد","0:00",IF(BK88="تم الحضور في الموعد","0:00",IF(BK88>$J$6,BJ88-$J$6,"")))) -> 5:00 | BM88: =IF('تحضير ابوبكر'!G88=1,NOW(),"") ->  | BN88: =IF(BM88="","غائب",IF(BM88=$M$6," تم الانصراف في الموعد",IF(BM88<$M$6,"تم الانصراف قبل الموعد",IF(BM88>$M$6,"تم الانصراف بعد الموعد","")))) -> غائب | BO88: =IF(BN88="غائب","5:00",IF(BN88="تم الانصراف بعد الموعد","0:00",IF(BN88="تم الانصراف في الموعد","0:00",IF(BN88>$M$6,$M$6-BM88,"")))) -> 5:00 | BP88: 11:30:00 | BQ88: 690
B89: الأحد | C89: 2019-08-18 | D89: =IF('تحضير سامي'!D89=1,NOW(),"") ->  | E89: غائب | F89: 6:30 | G89: =IF('تحضير سامي'!E89=1,NOW(),"") ->  | H89: غائب | I89: 6:30 | J89: =IF('تحضير سامي'!F89=1,NOW(),"") ->  | K89: غائب | L89: 5:00 | M89: =IF('تحضير سامي'!G89=1,NOW(),"") ->  | N89: غائب | O89: 5:00 | P89: 11:30:00 | Q89: 690 | AB89: الأحد | AC89: 2019-08-18 | AD89: =IF('تحضير باهبري'!D89=1,NOW(),"") ->  | AE89: غائب | AF89: 6:30 | AG89: =IF('تحضير باهبري'!E89=1,NOW(),"") ->  | AH89: غائب | AI89: 6:30 | AJ89: =IF('تحضير باهبري'!F89=1,NOW(),"") ->  | AK89: غائب | AL89: 5:00 | AM89: =IF('تحضير باهبري'!G89=1,NOW(),"") ->  | AN89: غائب | AO89: 5:00 | AP89: 11:30:00 | AQ89: 690 | BB89: الأحد | BC89: 2019-08-18 | BD89: =IF('تحضير ابوبكر'!D89=1,NOW(),"") ->  | BE89: غائب | BF89: 6:30 | BG89: =IF('تحضير ابوبكر'!E89=1,NOW(),"") ->  | BH89: غائب | BI89: 6:30 | BJ89: =IF('تحضير ابوبكر'!F89=1,NOW(),"") ->  | BK89: غائب | BL89: 5:00 | BM89: =IF('تحضير ابوبكر'!G89=1,NOW(),"") ->  | BN89: غائب | BO89: 5:00 | BP89: 11:30:00 | BQ89: 690
B90: الإثنين | C90: 2019-08-19 | D90: =IF('تحضير سامي'!D90=1,NOW(),"") ->  | E90: غائب | F90: 6:30 | G90: =IF('تحضير سامي'!E90=1,NOW(),"") ->  | H90: غائب | I90: 6:30 | J90: =IF('تحضير سامي'!F90=1,NOW(),"") ->  | K90: غائب | L90: 5:00 | M90: =IF('تحضير سامي'!G90=1,NOW(),"") ->  | N90: غائب | O90: 5:00 | P90: 11:30:00 | Q90: 690 | AB90: الإثنين | AC90: 2019-08-19 | AD90: =IF('تحضير باهبري'!D90=1,NOW(),"") ->  | AE90: غائب | AF90: 6:30 | AG90: =IF('تحضير باهبري'!E90=1,NOW(),"") ->  | AH90: غائب | AI90: 6:30 | AJ90: =IF('تحضير باهبري'!F90=1,NOW(),"") ->  | AK90: غائب | AL90: 5:00 | AM90: =IF('تحضير باهبري'!G90=1,NOW(),"") ->  | AN90: غائب | AO90: 5:00 | AP90: 11:30:00 | AQ90: 690 | BB90: الإثنين | BC90: 2019-08-19 | BD90: =IF('تحضير ابوبكر'!D90=1,NOW(),"") ->  | BE90: غائب | BF90: 6:30 | BG90: =IF('تحضير ابوبكر'!E90=1,NOW(),"") ->  | BH90: غائب | BI90: 6:30 | BJ90: =IF('تحضير ابوبكر'!F90=1,NOW(),"") ->  | BK90: غائب | BL90: 5:00 | BM90: =IF('تحضير ابوبكر'!G90=1,NOW(),"") ->  | BN90: غائب | BO90: 5:00 | BP90: 11:30:00 | BQ90: 690
B91: الثلاثاء | C91: 2019-08-20 | D91: =IF('تحضير سامي'!D91=1,NOW(),"") ->  | E91: غائب | F91: 6:30 | G91: =IF('تحضير سامي'!E91=1,NOW(),"") ->  | H91: غائب | I91: 6:30 | J91: =IF('تحضير سامي'!F91=1,NOW(),"") ->  | K91: غائب | L91: 5:00 | M91: =IF('تحضير سامي'!G91=1,NOW(),"") ->  | N91: غائب | O91: 5:00 | P91: 11:30:00 | Q91: 690 | AB91: الثلاثاء | AC91: 2019-08-20 | AD91: =IF('تحضير باهبري'!D91=1,NOW(),"") ->  | AE91: غائب | AF91: 6:30 | AG91: =IF('تحضير باهبري'!E91=1,NOW(),"") ->  | AH91: غائب | AI91: 6:30 | AJ91: =IF('تحضير باهبري'!F91=1,NOW(),"") ->  | AK91: غائب | AL91: 5:00 | AM91: =IF('تحضير باهبري'!G91=1,NOW(),"") ->  | AN91: غائب | AO91: 5:00 | AP91: 11:30:00 | AQ91: 690 | BB91: الثلاثاء | BC91: 2019-08-20 | BD91: =IF('تحضير ابوبكر'!D91=1,NOW(),"") ->  | BE91: غائب | BF91: 6:30 | BG91: =IF('تحضير ابوبكر'!E91=1,NOW(),"") ->  | BH91: غائب | BI91: 6:30 | BJ91: =IF('تحضير ابوبكر'!F91=1,NOW(),"") ->  | BK91: غائب | BL91: 5:00 | BM91: =IF('تحضير ابوبكر'!G91=1,NOW(),"") ->  | BN91: غائب | BO91: 5:00 | BP91: 11:30:00 | BQ91: 690
B92: الأربعاء | C92: 2019-08-21 | D92: =IF('تحضير سامي'!D92=1,NOW(),"") ->  | E92: غائب | F92: 6:30 | G92: =IF('تحضير سامي'!E92=1,NOW(),"") ->  | H92: غائب | I92: 6:30 | J92: =IF('تحضير سامي'!F92=1,NOW(),"") ->  | K92: غائب | L92: 5:00 | M92: =IF('تحضير سامي'!G92=1,NOW(),"") ->  | N92: غائب | O92: 5:00 | P92: 11:30:00 | Q92: 690 | AB92: الأربعاء | AC92: 2019-08-21 | AD92: =IF('تحضير باهبري'!D92=1,NOW(),"") ->  | AE92: غائب | AF92: 6:30 | AG92: =IF('تحضير باهبري'!E92=1,NOW(),"") ->  | AH92: غائب | AI92: 6:30 | AJ92: =IF('تحضير باهبري'!F92=1,NOW(),"") ->  | AK92: غائب | AL92: 5:00 | AM92: =IF('تحضير باهبري'!G92=1,NOW(),"") ->  | AN92: غائب | AO92: 5:00 | AP92: 11:30:00 | AQ92: 690 | BB92: الأربعاء | BC92: 2019-08-21 | BD92: =IF('تحضير ابوبكر'!D92=1,NOW(),"") ->  | BE92: غائب | BF92: 6:30 | BG92: =IF('تحضير ابوبكر'!E92=1,NOW(),"") ->  | BH92: غائب | BI92: 6:30 | BJ92: =IF('تحضير ابوبكر'!F92=1,NOW(),"") ->  | BK92: غائب | BL92: 5:00 | BM92: =IF('تحضير ابوبكر'!G92=1,NOW(),"") ->  | BN92: غائب | BO92: 5:00 | BP92: 11:30:00 | BQ92: 690
B93: الخميس | C93: 2019-08-22 | D93: =IF('تحضير سامي'!D93=1,NOW(),"") ->  | E93: غائب | F93: 6:30 | G93: =IF('تحضير سامي'!E93=1,NOW(),"") ->  | H93: غائب | I93: 6:30 | J93: =IF('تحضير سامي'!F93=1,NOW(),"") ->  | K93: غائب | L93: 5:00 | M93: =IF('تحضير سامي'!G93=1,NOW(),"") ->  | N93: غائب | O93: 5:00 | P93: 11:30:00 | Q93: 690 | AB93: الخميس | AC93: 2019-08-22 | AD93: =IF('تحضير باهبري'!D93=1,NOW(),"") ->  | AE93: غائب | AF93: 6:30 | AG93: =IF('تحضير باهبري'!E93=1,NOW(),"") ->  | AH93: غائب | AI93: 6:30 | AJ93: =IF('تحضير باهبري'!F93=1,NOW(),"") ->  | AK93: غائب | AL93: 5:00 | AM93: =IF('تحضير باهبري'!G93=1,NOW(),"") ->  | AN93: غائب | AO93: 5:00 | AP93: 11:30:00 | AQ93: 690 | BB93: الخميس | BC93: 2019-08-22 | BD93: =IF('تحضير ابوبكر'!D93=1,NOW(),"") ->  | BE93: غائب | BF93: 6:30 | BG93: =IF('تحضير ابوبكر'!E93=1,NOW(),"") ->  | BH93: غائب | BI93: 6:30 | BJ93: =IF('تحضير ابوبكر'!F93=1,NOW(),"") ->  | BK93: غائب | BL93: 5:00 | BM93: =IF('تحضير ابوبكر'!G93=1,NOW(),"") ->  | BN93: غائب | BO93: 5:00 | BP93: 11:30:00 | BQ93: 690
B94: الجمعة | C94: 2019-08-23 | D94: =IF('تحضير سامي'!D94=1,NOW(),"") ->  | E94: اجازة | F94: 00:00:00 | G94: =IF('تحضير سامي'!E94=1,NOW(),"") ->  | H94: اجازة | I94: 00:00:00 | J94: =IF('تحضير سامي'!F94=1,NOW(),"") ->  | K94: اجازة | L94: 00:00:00 | M94: =IF('تحضير سامي'!G94=1,NOW(),"") ->  | N94: اجازة | O94: 00:00:00 | P94: 00:00:00 | Q94: 0 | AB94: الجمعة | AC94: 2019-08-23 | AD94: =IF('تحضير باهبري'!D94=1,NOW(),"") ->  | AE94: اجازة | AF94: 00:00:00 | AG94: =IF('تحضير باهبري'!E94=1,NOW(),"") ->  | AH94: اجازة | AI94: 00:00:00 | AJ94: =IF('تحضير باهبري'!F94=1,NOW(),"") ->  | AK94: اجازة | AL94: 00:00:00 | AM94: =IF('تحضير باهبري'!G94=1,NOW(),"") ->  | AN94: اجازة | AO94: 00:00:00 | AP94: 00:00:00 | AQ94: 0 | BB94: الجمعة | BC94: 2019-08-23 | BD94: =IF('تحضير ابوبكر'!D94=1,NOW(),"") ->  | BE94: اجازة | BF94: 00:00:00 | BG94: =IF('تحضير ابوبكر'!E94=1,NOW(),"") ->  | BH94: اجازة | BI94: 00:00:00 | BJ94: =IF('تحضير ابوبكر'!F94=1,NOW(),"") ->  | BK94: اجازة | BL94: 00:00:00 | BM94: =IF('تحضير ابوبكر'!G94=1,NOW(),"") ->  | BN94: اجازة | BO94: 00:00:00 | BP94: 00:00:00 | BQ94: 0
B95: السبت | C95: 2019-08-24 | D95: =IF('تحضير سامي'!D95=1,NOW(),"") ->  | E95: غائب | F95: 6:30 | G95: =IF('تحضير سامي'!E95=1,NOW(),"") ->  | H95: غائب | I95: 6:30 | J95: =IF('تحضير سامي'!F95=1,NOW(),"") ->  | K95: غائب | L95: 5:00 | M95: =IF('تحضير سامي'!G95=1,NOW(),"") ->  | N95: غائب | O95: 5:00 | P95: 11:30:00 | Q95: 690 | AB95: السبت | AC95: 2019-08-24 | AD95: =IF('تحضير باهبري'!D95=1,NOW(),"") ->  | AE95: =IF(AD95="","غائب",IF(AD95=$D$6," تــم الحضور في الموعد",IF(AD95<$D$6,"تم الحضور قبل الموعد",IF(AD95>$D$6,"تم الحضور بعد الموعد","")))) -> غائب | AF95: =IF(AE95="غائب","6:30",IF(AE95="تم الحضور قبل الموعد","0:00",IF(AE95="تم الحضور في الموعد","0:00",IF(AE95>$D$6,AD95-$D$6,"")))) -> 6:30 | AG95: =IF('تحضير باهبري'!E95=1,NOW(),"") ->  | AH95: =IF(AG95="","غائب",IF(AG95=$G$6," تم الانصراف في الموعد",IF(AG95<$G$6,"تم الانصراف قبل الموعد",IF(AG95>$G$6,"تم الانصراف بعد الموعد","")))) -> غائب | AI95: =IF(AH95="غائب","6:30",IF(AH95="تم الانصراف بعد الموعد","0:00",IF(AH95="تم الانصراف في الموعد","0:00",IF(AH95>$G$6,$G$6-AG95,"")))) -> 6:30 | AJ95: =IF('تحضير باهبري'!F95=1,NOW(),"") ->  | AK95: =IF(AJ95="","غائب",IF(AJ95=$J$6," تــم الحضور في الموعد",IF(AJ95<$J$6,"تم الحضور قبل الموعد",IF(AJ95>$J$6,"تم الحضور بعد الموعد","")))) -> غائب | AL95: =IF(AK95="غائب","5:00",IF(AK95="تم الحضور قبل الموعد","0:00",IF(AK95="تم الحضور في الموعد","0:00",IF(AK95>$J$6,AJ95-$J$6,"")))) -> 5:00 | AM95: =IF('تحضير باهبري'!G95=1,NOW(),"") ->  | AN95: =IF(AM95="","غائب",IF(AM95=$M$6," تم الانصراف في الموعد",IF(AM95<$M$6,"تم الانصراف قبل الموعد",IF(AM95>$M$6,"تم الانصراف بعد الموعد","")))) -> غائب | AO95: =IF(AN95="غائب","5:00",IF(AN95="تم الانصراف بعد الموعد","0:00",IF(AN95="تم الانصراف في الموعد","0:00",IF(AN95>$M$6,$M$6-AM95,"")))) -> 5:00 | AP95: 11:30:00 | AQ95: 690 | BB95: السبت | BC95: 2019-08-24 | BD95: =IF('تحضير ابوبكر'!D95=1,NOW(),"") ->  | BE95: =IF(BD95="","غائب",IF(BD95=$D$6," تــم الحضور في الموعد",IF(BD95<$D$6,"تم الحضور قبل الموعد",IF(BD95>$D$6,"تم الحضور بعد الموعد","")))) -> غائب | BF95: =IF(BE95="غائب","6:30",IF(BE95="تم الحضور قبل الموعد","0:00",IF(BE95="تم الحضور في الموعد","0:00",IF(BE95>$D$6,BD95-$D$6,"")))) -> 6:30 | BG95: =IF('تحضير ابوبكر'!E95=1,NOW(),"") ->  | BH95: =IF(BG95="","غائب",IF(BG95=$G$6," تم الانصراف في الموعد",IF(BG95<$G$6,"تم الانصراف قبل الموعد",IF(BG95>$G$6,"تم الانصراف بعد الموعد","")))) -> غائب | BI95: =IF(BH95="غائب","6:30",IF(BH95="تم الانصراف بعد الموعد","0:00",IF(BH95="تم الانصراف في الموعد","0:00",IF(BH95>$G$6,$G$6-BG95,"")))) -> 6:30 | BJ95: =IF('تحضير ابوبكر'!F95=1,NOW(),"") ->  | BK95: =IF(BJ95="","غائب",IF(BJ95=$J$6," تــم الحضور في الموعد",IF(BJ95<$J$6,"تم الحضور قبل الموعد",IF(BJ95>$J$6,"تم الحضور بعد الموعد","")))) -> غائب | BL95: =IF(BK95="غائب","5:00",IF(BK95="تم الحضور قبل الموعد","0:00",IF(BK95="تم الحضور في الموعد","0:00",IF(BK95>$J$6,BJ95-$J$6,"")))) -> 5:00 | BM95: =IF('تحضير ابوبكر'!G95=1,NOW(),"") ->  | BN95: =IF(BM95="","غائب",IF(BM95=$M$6," تم الانصراف في الموعد",IF(BM95<$M$6,"تم الانصراف قبل الموعد",IF(BM95>$M$6,"تم الانصراف بعد الموعد","")))) -> غائب | BO95: =IF(BN95="غائب","5:00",IF(BN95="تم الانصراف بعد الموعد","0:00",IF(BN95="تم الانصراف في الموعد","0:00",IF(BN95>$M$6,$M$6-BM95,"")))) -> 5:00 | BP95: 11:30:00 | BQ95: 690
B96: الأحد | C96: 2019-08-25 | D96: =IF('تحضير سامي'!D96=1,NOW(),"") ->  | E96: غائب | F96: 6:30 | G96: =IF('تحضير سامي'!E96=1,NOW(),"") ->  | H96: غائب | I96: 6:30 | J96: =IF('تحضير سامي'!F96=1,NOW(),"") ->  | K96: غائب | L96: 5:00 | M96: =IF('تحضير سامي'!G96=1,NOW(),"") ->  | N96: غائب | O96: 5:00 | P96: 11:30:00 | Q96: 690 | AB96: الأحد | AC96: 2019-08-25 | AD96: =IF('تحضير باهبري'!D96=1,NOW(),"") ->  | AE96: غائب | AF96: 6:30 | AG96: =IF('تحضير باهبري'!E96=1,NOW(),"") ->  | AH96: غائب | AI96: 6:30 | AJ96: =IF('تحضير باهبري'!F96=1,NOW(),"") ->  | AK96: غائب | AL96: 5:00 | AM96: =IF('تحضير باهبري'!G96=1,NOW(),"") ->  | AN96: غائب | AO96: 5:00 | AP96: 11:30:00 | AQ96: 690 | BB96: الأحد | BC96: 2019-08-25 | BD96: =IF('تحضير ابوبكر'!D96=1,NOW(),"") ->  | BE96: غائب | BF96: 6:30 | BG96: =IF('تحضير ابوبكر'!E96=1,NOW(),"") ->  | BH96: غائب | BI96: 6:30 | BJ96: =IF('تحضير ابوبكر'!F96=1,NOW(),"") ->  | BK96: غائب | BL96: 5:00 | BM96: =IF('تحضير ابوبكر'!G96=1,NOW(),"") ->  | BN96: غائب | BO96: 5:00 | BP96: 11:30:00 | BQ96: 690
B97: الإثنين | C97: 2019-08-26 | D97: =IF('تحضير سامي'!D97=1,NOW(),"") ->  | E97: غائب | F97: 6:30 | G97: =IF('تحضير سامي'!E97=1,NOW(),"") ->  | H97: غائب | I97: 6:30 | J97: =IF('تحضير سامي'!F97=1,NOW(),"") ->  | K97: غائب | L97: 5:00 | M97: =IF('تحضير سامي'!G97=1,NOW(),"") ->  | N97: غائب | O97: 5:00 | P97: 11:30:00 | Q97: 690 | AB97: الإثنين | AC97: 2019-08-26 | AD97: =IF('تحضير باهبري'!D97=1,NOW(),"") ->  | AE97: غائب | AF97: 6:30 | AG97: =IF('تحضير باهبري'!E97=1,NOW(),"") ->  | AH97: غائب | AI97: 6:30 | AJ97: =IF('تحضير باهبري'!F97=1,NOW(),"") ->  | AK97: غائب | AL97: 5:00 | AM97: =IF('تحضير باهبري'!G97=1,NOW(),"") ->  | AN97: غائب | AO97: 5:00 | AP97: 11:30:00 | AQ97: 690 | BB97: الإثنين | BC97: 2019-08-26 | BD97: =IF('تحضير ابوبكر'!D97=1,NOW(),"") ->  | BE97: غائب | BF97: 6:30 | BG97: =IF('تحضير ابوبكر'!E97=1,NOW(),"") ->  | BH97: غائب | BI97: 6:30 | BJ97: =IF('تحضير ابوبكر'!F97=1,NOW(),"") ->  | BK97: غائب | BL97: 5:00 | BM97: =IF('تحضير ابوبكر'!G97=1,NOW(),"") ->  | BN97: غائب | BO97: 5:00 | BP97: 11:30:00 | BQ97: 690
B98: الثلاثاء | C98: 2019-08-27 | D98: =IF('تحضير سامي'!D98=1,NOW(),"") ->  | E98: غائب | F98: 6:30 | G98: =IF('تحضير سامي'!E98=1,NOW(),"") ->  | H98: غائب | I98: 6:30 | J98: =IF('تحضير سامي'!F98=1,NOW(),"") ->  | K98: غائب | L98: 5:00 | M98: =IF('تحضير سامي'!G98=1,NOW(),"") ->  | N98: غائب | O98: 5:00 | P98: 11:30:00 | Q98: 690 | AB98: الثلاثاء | AC98: 2019-08-27 | AD98: =IF('تحضير باهبري'!D98=1,NOW(),"") ->  | AE98: غائب | AF98: 6:30 | AG98: =IF('تحضير باهبري'!E98=1,NOW(),"") ->  | AH98: غائب | AI98: 6:30 | AJ98: =IF('تحضير باهبري'!F98=1,NOW(),"") ->  | AK98: غائب | AL98: 5:00 | AM98: =IF('تحضير باهبري'!G98=1,NOW(),"") ->  | AN98: غائب | AO98: 5:00 | AP98: 11:30:00 | AQ98: 690 | BB98: الثلاثاء | BC98: 2019-08-27 | BD98: =IF('تحضير ابوبكر'!D98=1,NOW(),"") ->  | BE98: غائب | BF98: 6:30 | BG98: =IF('تحضير ابوبكر'!E98=1,NOW(),"") ->  | BH98: غائب | BI98: 6:30 | BJ98: =IF('تحضير ابوبكر'!F98=1,NOW(),"") ->  | BK98: غائب | BL98: 5:00 | BM98: =IF('تحضير ابوبكر'!G98=1,NOW(),"") ->  | BN98: غائب | BO98: 5:00 | BP98: 11:30:00 | BQ98: 690
B99: الأربعاء | C99: 2019-08-28 | D99: =IF('تحضير سامي'!D99=1,NOW(),"") ->  | E99: غائب | F99: 6:30 | G99: =IF('تحضير سامي'!E99=1,NOW(),"") ->  | H99: غائب | I99: 6:30 | J99: =IF('تحضير سامي'!F99=1,NOW(),"") ->  | K99: غائب | L99: 5:00 | M99: =IF('تحضير سامي'!G99=1,NOW(),"") ->  | N99: غائب | O99: 5:00 | P99: 11:30:00 | Q99: 690 | AB99: الأربعاء | AC99: 2019-08-28 | AD99: =IF('تحضير باهبري'!D99=1,NOW(),"") ->  | AE99: غائب | AF99: 6:30 | AG99: =IF('تحضير باهبري'!E99=1,NOW(),"") ->  | AH99: غائب | AI99: 6:30 | AJ99: =IF('تحضير باهبري'!F99=1,NOW(),"") ->  | AK99: غائب | AL99: 5:00 | AM99: =IF('تحضير باهبري'!G99=1,NOW(),"") ->  | AN99: غائب | AO99: 5:00 | AP99: 11:30:00 | AQ99: 690 | BB99: الأربعاء | BC99: 2019-08-28 | BD99: =IF('تحضير ابوبكر'!D99=1,NOW(),"") ->  | BE99: غائب | BF99: 6:30 | BG99: =IF('تحضير ابوبكر'!E99=1,NOW(),"") ->  | BH99: غائب | BI99: 6:30 | BJ99: =IF('تحضير ابوبكر'!F99=1,NOW(),"") ->  | BK99: غائب | BL99: 5:00 | BM99: =IF('تحضير ابوبكر'!G99=1,NOW(),"") ->  | BN99: غائب | BO99: 5:00 | BP99: 11:30:00 | BQ99: 690
B100: الخميس | C100: 2019-08-29 | D100: =IF('تحضير سامي'!D100=1,NOW(),"") ->  | E100: غائب | F100: 6:30 | G100: =IF('تحضير سامي'!E100=1,NOW(),"") ->  | H100: غائب | I100: 6:30 | J100: =IF('تحضير سامي'!F100=1,NOW(),"") ->  | K100: غائب | L100: 5:00 | M100: =IF('تحضير سامي'!G100=1,NOW(),"") ->  | N100: غائب | O100: 5:00 | P100: 11:30:00 | Q100: 690 | AB100: الخميس | AC100: 2019-08-29 | AD100: =IF('تحضير باهبري'!D100=1,NOW(),"") ->  | AE100: غائب | AF100: 6:30 | AG100: =IF('تحضير باهبري'!E100=1,NOW(),"") ->  | AH100: غائب | AI100: 6:30 | AJ100: =IF('تحضير باهبري'!F100=1,NOW(),"") ->  | AK100: غائب | AL100: 5:00 | AM100: =IF('تحضير باهبري'!G100=1,NOW(),"") ->  | AN100: غائب | AO100: 5:00 | AP100: 11:30:00 | AQ100: 690 | BB100: الخميس | BC100: 2019-08-29 | BD100: =IF('تحضير ابوبكر'!D100=1,NOW(),"") ->  | BE100: غائب | BF100: 6:30 | BG100: =IF('تحضير ابوبكر'!E100=1,NOW(),"") ->  | BH100: غائب | BI100: 6:30 | BJ100: =IF('تحضير ابوبكر'!F100=1,NOW(),"") ->  | BK100: غائب | BL100: 5:00 | BM100: =IF('تحضير ابوبكر'!G100=1,NOW(),"") ->  | BN100: غائب | BO100: 5:00 | BP100: 11:30:00 | BQ100: 690
B101: الجمعة | C101: 2019-08-30 | D101: =IF('تحضير سامي'!D101=1,NOW(),"") ->  | E101: اجازة | F101: 00:00:00 | G101: =IF('تحضير سامي'!E101=1,NOW(),"") ->  | H101: اجازة | I101: 00:00:00 | J101: =IF('تحضير سامي'!F101=1,NOW(),"") ->  | K101: اجازة | L101: 00:00:00 | M101: =IF('تحضير سامي'!G101=1,NOW(),"") ->  | N101: اجازة | O101: 00:00:00 | P101: 00:00:00 | Q101: 0 | AB101: الجمعة | AC101: 2019-08-30 | AD101: =IF('تحضير باهبري'!D101=1,NOW(),"") ->  | AE101: اجازة | AF101: 00:00:00 | AG101: =IF('تحضير باهبري'!E101=1,NOW(),"") ->  | AH101: اجازة | AI101: 00:00:00 | AJ101: =IF('تحضير باهبري'!F101=1,NOW(),"") ->  | AK101: اجازة | AL101: 00:00:00 | AM101: =IF('تحضير باهبري'!G101=1,NOW(),"") ->  | AN101: اجازة | AO101: 00:00:00 | AP101: 00:00:00 | AQ101: 0 | BB101: الجمعة | BC101: 2019-08-30 | BD101: =IF('تحضير ابوبكر'!D101=1,NOW(),"") ->  | BE101: اجازة | BF101: 00:00:00 | BG101: =IF('تحضير ابوبكر'!E101=1,NOW(),"") ->  | BH101: اجازة | BI101: 00:00:00 | BJ101: =IF('تحضير ابوبكر'!F101=1,NOW(),"") ->  | BK101: اجازة | BL101: 00:00:00 | BM101: =IF('تحضير ابوبكر'!G101=1,NOW(),"") ->  | BN101: اجازة | BO101: 00:00:00 | BP101: 00:00:00 | BQ101: 0
B102: السبت | C102: 2019-08-31 | D102: =IF('تحضير سامي'!D102=1,NOW(),"") ->  | E102: غائب | F102: 6:30 | G102: =IF('تحضير سامي'!E102=1,NOW(),"") ->  | H102: غائب | I102: 6:30 | J102: =IF('تحضير سامي'!F102=1,NOW(),"") ->  | K102: غائب | L102: 5:00 | M102: =IF('تحضير سامي'!G102=1,NOW(),"") ->  | N102: غائب | O102: 5:00 | P102: 11:30:00 | Q102: 690 | AB102: السبت | AC102: 2019-08-31 | AD102: =IF('تحضير باهبري'!D102=1,NOW(),"") ->  | AE102: =IF(AD102="","غائب",IF(AD102=$D$6," تــم الحضور في الموعد",IF(AD102<$D$6,"تم الحضور قبل الموعد",IF(AD102>$D$6,"تم الحضور بعد الموعد","")))) -> غائب | AF102: =IF(AE102="غائب","6:30",IF(AE102="تم الحضور قبل الموعد","0:00",IF(AE102="تم الحضور في الموعد","0:00",IF(AE102>$D$6,AD102-$D$6,"")))) -> 6:30 | AG102: =IF('تحضير باهبري'!E102=1,NOW(),"") ->  | AH102: =IF(AG102="","غائب",IF(AG102=$G$6," تم الانصراف في الموعد",IF(AG102<$G$6,"تم الانصراف قبل الموعد",IF(AG102>$G$6,"تم الانصراف بعد الموعد","")))) -> غائب | AI102: =IF(AH102="غائب","6:30",IF(AH102="تم الانصراف بعد الموعد","0:00",IF(AH102="تم الانصراف في الموعد","0:00",IF(AH102>$G$6,$G$6-AG102,"")))) -> 6:30 | AJ102: =IF('تحضير باهبري'!F102=1,NOW(),"") ->  | AK102: =IF(AJ102="","غائب",IF(AJ102=$J$6," تــم الحضور في الموعد",IF(AJ102<$J$6,"تم الحضور قبل الموعد",IF(AJ102>$J$6,"تم الحضور بعد الموعد","")))) -> غائب | AL102: =IF(AK102="غائب","5:00",IF(AK102="تم الحضور قبل الموعد","0:00",IF(AK102="تم الحضور في الموعد","0:00",IF(AK102>$J$6,AJ102-$J$6,"")))) -> 5:00 | AM102: =IF('تحضير باهبري'!G102=1,NOW(),"") ->  | AN102: =IF(AM102="","غائب",IF(AM102=$M$6," تم الانصراف في الموعد",IF(AM102<$M$6,"تم الانصراف قبل الموعد",IF(AM102>$M$6,"تم الانصراف بعد الموعد","")))) -> غائب | AO102: =IF(AN102="غائب","5:00",IF(AN102="تم الانصراف بعد الموعد","0:00",IF(AN102="تم الانصراف في الموعد","0:00",IF(AN102>$M$6,$M$6-AM102,"")))) -> 5:00 | AP102: 11:30:00 | AQ102: 690 | BB102: السبت | BC102: 2019-08-31 | BD102: =IF('تحضير ابوبكر'!D102=1,NOW(),"") ->  | BE102: =IF(BD102="","غائب",IF(BD102=$D$6," تــم الحضور في الموعد",IF(BD102<$D$6,"تم الحضور قبل الموعد",IF(BD102>$D$6,"تم الحضور بعد الموعد","")))) -> غائب | BF102: =IF(BE102="غائب","6:30",IF(BE102="تم الحضور قبل الموعد","0:00",IF(BE102="تم الحضور في الموعد","0:00",IF(BE102>$D$6,BD102-$D$6,"")))) -> 6:30 | BG102: =IF('تحضير ابوبكر'!E102=1,NOW(),"") ->  | BH102: =IF(BG102="","غائب",IF(BG102=$G$6," تم الانصراف في الموعد",IF(BG102<$G$6,"تم الانصراف قبل الموعد",IF(BG102>$G$6,"تم الانصراف بعد الموعد","")))) -> غائب | BI102: =IF(BH102="غائب","6:30",IF(BH102="تم الانصراف بعد الموعد","0:00",IF(BH102="تم الانصراف في الموعد","0:00",IF(BH102>$G$6,$G$6-BG102,"")))) -> 6:30 | BJ102: =IF('تحضير ابوبكر'!F102=1,NOW(),"") ->  | BK102: =IF(BJ102="","غائب",IF(BJ102=$J$6," تــم الحضور في الموعد",IF(BJ102<$J$6,"تم الحضور قبل الموعد",IF(BJ102>$J$6,"تم الحضور بعد الموعد","")))) -> غائب | BL102: =IF(BK102="غائب","5:00",IF(BK102="تم الحضور قبل الموعد","0:00",IF(BK102="تم الحضور في الموعد","0:00",IF(BK102>$J$6,BJ102-$J$6,"")))) -> 5:00 | BM102: =IF('تحضير ابوبكر'!G102=1,NOW(),"") ->  | BN102: =IF(BM102="","غائب",IF(BM102=$M$6," تم الانصراف في الموعد",IF(BM102<$M$6,"تم الانصراف قبل الموعد",IF(BM102>$M$6,"تم الانصراف بعد الموعد","")))) -> غائب | BO102: =IF(BN102="غائب","5:00",IF(BN102="تم الانصراف بعد الموعد","0:00",IF(BN102="تم الانصراف في الموعد","0:00",IF(BN102>$M$6,$M$6-BM102,"")))) -> 5:00 | BP102: 11:30:00 | BQ102: 690
C104: اجمالي وقت الدوام | E104: 19440 | F104: اجمالي وقت التاخير بالدقائق | H104: =SUM(Q72:Q102) -> 17940 | L104: الراتب | N104: 50000 | AE104: اجمالي وقت الدوام | AF104: 19440 | AH104: اجمالي وقت التاخير بالدقائق | AI104: =SUM(AQ72:AQ102) -> 17940 | AL104: الراتب | AN104: 55000 | BE104: اجمالي وقت الدوام | BF104: 19440 | BH104: اجمالي وقت التاخير بالدقائق | BI104: =SUM(BQ72:BQ102) -> 17940 | BL104: الراتب | BN104: 45000
B105: الاحد | C105: 2019-09-01 | D105: =IF('تحضير سامي'!D105=1,NOW(),"") ->  | E105: غائب | F105: =IF(E105="غائب","6:30",IF(E105="تم الحضور قبل الموعد","0:00",IF(E105="تم الحضور في الموعد","0:00",IF(E105>$D$6,D105-$D$6,"")))) -> 6:30 | G105: =IF('تحضير سامي'!E105=1,NOW(),"") ->  | H105: غائب | I105: =IF(H105="غائب","6:30",IF(H105="تم الانصراف بعد الموعد","0:00",IF(H105="تم الانصراف في الموعد","0:00",IF(H105>$G$6,$G$6-G105,"")))) -> 6:30 | J105: =IF('تحضير سامي'!F105=1,NOW(),"") ->  | K105: غائب | L105: =IF(K105="غائب","5:00",IF(K105="تم الحضور قبل الموعد","0:00",IF(K105="تم الحضور في الموعد","0:00",IF(K105>$J$6,J105-$J$6,"")))) -> 5:00 | M105: =IF('تحضير سامي'!G105=1,NOW(),"") ->  | N105: غائب | O105: =IF(N105="غائب","5:00",IF(N105="تم الانصراف بعد الموعد","0:00",IF(N105="تم الانصراف في الموعد","0:00",IF(N105>$M$6,$M$6-M105,"")))) -> 5:00 | P105: =IF(H105="غائب","6:30",I105)+IF(N105="غائب","5:00",O105)+IF(E105="غائب","0:00",F105)+IF(K105="غائب","0:00",L105) -> 11:30:00 | Q105: =(HOUR(P105)*3600+MINUTE(P105)*60+SECOND(P105))/60 -> 690 | AB105: الاحد | AC105: 2019-09-01 | AD105: =IF('تحضير باهبري'!D105=1,NOW(),"") ->  | AE105: =IF(AD105="","غائب",IF(AD105=$D$6," تــم الحضور في الموعد",IF(AD105<$D$6,"تم الحضور قبل الموعد",IF(AD105>$D$6,"تم الحضور بعد الموعد","")))) -> غائب | AF105: =IF(AE105="غائب","6:30",IF(AE105="تم الحضور قبل الموعد","0:00",IF(AE105="تم الحضور في الموعد","0:00",IF(AE105>$D$6,AD105-$D$6,"")))) -> 6:30 | AG105: =IF('تحضير باهبري'!E105=1,NOW(),"") ->  | AH105: =IF(AG105="","غائب",IF(AG105=$G$6," تم الانصراف في الموعد",IF(AG105<$G$6,"تم الانصراف قبل الموعد",IF(AG105>$G$6,"تم الانصراف بعد الموعد","")))) -> غائب | AI105: =IF(AH105="غائب","6:30",IF(AH105="تم الانصراف بعد الموعد","0:00",IF(AH105="تم الانصراف في الموعد","0:00",IF(AH105>$G$6,$G$6-AG105,"")))) -> 6:30 | AJ105: =IF('تحضير باهبري'!F105=1,NOW(),"") ->  | AK105: =IF(AJ105="","غائب",IF(AJ105=$J$6," تــم الحضور في الموعد",IF(AJ105<$J$6,"تم الحضور قبل الموعد",IF(AJ105>$J$6,"تم الحضور بعد الموعد","")))) -> غائب | AL105: =IF(AK105="غائب","5:00",IF(AK105="تم الحضور قبل الموعد","0:00",IF(AK105="تم الحضور في الموعد","0:00",IF(AK105>$J$6,AJ105-$J$6,"")))) -> 5:00 | AM105: =IF('تحضير باهبري'!G105=1,NOW(),"") ->  | AN105: =IF(AM105="","غائب",IF(AM105=$M$6," تم الانصراف في الموعد",IF(AM105<$M$6,"تم الانصراف قبل الموعد",IF(AM105>$M$6,"تم الانصراف بعد الموعد","")))) -> غائب | AO105: =IF(AN105="غائب","5:00",IF(AN105="تم الانصراف بعد الموعد","0:00",IF(AN105="تم الانصراف في الموعد","0:00",IF(AN105>$M$6,$M$6-AM105,"")))) -> 5:00 | AP105: =IF(AH105="غائب","6:30",AI105)+IF(AN105="غائب","5:00",AO105)+IF(AE105="غائب","0:00",AF105)+IF(AK105="غائب","0:00",AL105) -> 11:30:00 | AQ105: =(HOUR(AP105)*3600+MINUTE(AP105)*60+SECOND(AP105))/60 -> 690 | BB105: الاحد | BC105: 2019-09-01 | BD105: =IF('تحضير ابوبكر'!D105=1,NOW(),"") ->  | BE105: =IF(BD105="","غائب",IF(BD105=$D$6," تــم الحضور في الموعد",IF(BD105<$D$6,"تم الحضور قبل الموعد",IF(BD105>$D$6,"تم الحضور بعد الموعد","")))) -> غائب | BF105: =IF(BE105="غائب","6:30",IF(BE105="تم الحضور قبل الموعد","0:00",IF(BE105="تم الحضور في الموعد","0:00",IF(BE105>$D$6,BD105-$D$6,"")))) -> 6:30 | BG105: =IF('تحضير ابوبكر'!E105=1,NOW(),"") ->  | BH105: =IF(BG105="","غائب",IF(BG105=$G$6," تم الانصراف في الموعد",IF(BG105<$G$6,"تم الانصراف قبل الموعد",IF(BG105>$G$6,"تم الانصراف بعد الموعد","")))) -> غائب | BI105: =IF(BH105="غائب","6:30",IF(BH105="تم الانصراف بعد الموعد","0:00",IF(BH105="تم الانصراف في الموعد","0:00",IF(BH105>$G$6,$G$6-BG105,"")))) -> 6:30 | BJ105: =IF('تحضير ابوبكر'!F105=1,NOW(),"") ->  | BK105: =IF(BJ105="","غائب",IF(BJ105=$J$6," تــم الحضور في الموعد",IF(BJ105<$J$6,"تم الحضور قبل الموعد",IF(BJ105>$J$6,"تم الحضور بعد الموعد","")))) -> غائب | BL105: =IF(BK105="غائب","5:00",IF(BK105="تم الحضور قبل الموعد","0:00",IF(BK105="تم الحضور في الموعد","0:00",IF(BK105>$J$6,BJ105-$J$6,"")))) -> 5:00 | BM105: =IF('تحضير ابوبكر'!G105=1,NOW(),"") ->  | BN105: =IF(BM105="","غائب",IF(BM105=$M$6," تم الانصراف في الموعد",IF(BM105<$M$6,"تم الانصراف قبل الموعد",IF(BM105>$M$6,"تم الانصراف بعد الموعد","")))) -> غائب | BO105: =IF(BN105="غائب","5:00",IF(BN105="تم الانصراف بعد الموعد","0:00",IF(BN105="تم الانصراف في الموعد","0:00",IF(BN105>$M$6,$M$6-BM105,"")))) -> 5:00 | BP105: =IF(BH105="غائب","6:30",BI105)+IF(BN105="غائب","5:00",BO105)+IF(BE105="غائب","0:00",BF105)+IF(BK105="غائب","0:00",BL105) -> 11:30:00 | BQ105: =(HOUR(BP105)*3600+MINUTE(BP105)*60+SECOND(BP105))/60 -> 690
B106: الإثنين | C106: 2019-09-02 | D106: =IF('تحضير سامي'!D106=1,NOW(),"") ->  | E106: غائب | F106: 6:30 | G106: =IF('تحضير سامي'!E106=1,NOW(),"") ->  | H106: غائب | I106: 6:30 | J106: =IF('تحضير سامي'!F106=1,NOW(),"") ->  | K106: غائب | L106: 5:00 | M106: =IF('تحضير سامي'!G106=1,NOW(),"") ->  | N106: غائب | O106: 5:00 | P106: 11:30:00 | Q106: 690 | AB106: الإثنين | AC106: 2019-09-02 | AD106: =IF('تحضير باهبري'!D106=1,NOW(),"") ->  | AE106: غائب | AF106: 6:30 | AG106: =IF('تحضير باهبري'!E106=1,NOW(),"") ->  | AH106: غائب | AI106: 6:30 | AJ106: =IF('تحضير باهبري'!F106=1,NOW(),"") ->  | AK106: غائب | AL106: 5:00 | AM106: =IF('تحضير باهبري'!G106=1,NOW(),"") ->  | AN106: غائب | AO106: 5:00 | AP106: 11:30:00 | AQ106: 690 | BB106: الإثنين | BC106: 2019-09-02 | BD106: =IF('تحضير ابوبكر'!D106=1,NOW(),"") ->  | BE106: غائب | BF106: 6:30 | BG106: =IF('تحضير ابوبكر'!E106=1,NOW(),"") ->  | BH106: غائب | BI106: 6:30 | BJ106: =IF('تحضير ابوبكر'!F106=1,NOW(),"") ->  | BK106: غائب | BL106: 5:00 | BM106: =IF('تحضير ابوبكر'!G106=1,NOW(),"") ->  | BN106: غائب | BO106: 5:00 | BP106: 11:30:00 | BQ106: 690
B107: الثلاثاء | C107: 2019-09-03 | D107: =IF('تحضير سامي'!D107=1,NOW(),"") ->  | E107: غائب | F107: 6:30 | G107: =IF('تحضير سامي'!E107=1,NOW(),"") ->  | H107: غائب | I107: 6:30 | J107: =IF('تحضير سامي'!F107=1,NOW(),"") ->  | K107: غائب | L107: 5:00 | M107: =IF('تحضير سامي'!G107=1,NOW(),"") ->  | N107: غائب | O107: 5:00 | P107: 11:30:00 | Q107: 690 | AB107: الثلاثاء | AC107: 2019-09-03 | AD107: =IF('تحضير باهبري'!D107=1,NOW(),"") ->  | AE107: غائب | AF107: 6:30 | AG107: =IF('تحضير باهبري'!E107=1,NOW(),"") ->  | AH107: غائب | AI107: 6:30 | AJ107: =IF('تحضير باهبري'!F107=1,NOW(),"") ->  | AK107: غائب | AL107: 5:00 | AM107: =IF('تحضير باهبري'!G107=1,NOW(),"") ->  | AN107: غائب | AO107: 5:00 | AP107: 11:30:00 | AQ107: 690 | BB107: الثلاثاء | BC107: 2019-09-03 | BD107: =IF('تحضير ابوبكر'!D107=1,NOW(),"") ->  | BE107: غائب | BF107: 6:30 | BG107: =IF('تحضير ابوبكر'!E107=1,NOW(),"") ->  | BH107: غائب | BI107: 6:30 | BJ107: =IF('تحضير ابوبكر'!F107=1,NOW(),"") ->  | BK107: غائب | BL107: 5:00 | BM107: =IF('تحضير ابوبكر'!G107=1,NOW(),"") ->  | BN107: غائب | BO107: 5:00 | BP107: 11:30:00 | BQ107: 690
B108: الأربعاء | C108: 2019-09-04 | D108: =IF('تحضير سامي'!D108=1,NOW(),"") ->  | E108: غائب | F108: 6:30 | G108: =IF('تحضير سامي'!E108=1,NOW(),"") ->  | H108: غائب | I108: 6:30 | J108: =IF('تحضير سامي'!F108=1,NOW(),"") ->  | K108: غائب | L108: 5:00 | M108: =IF('تحضير سامي'!G108=1,NOW(),"") ->  | N108: غائب | O108: 5:00 | P108: 11:30:00 | Q108: 690 | AB108: الأربعاء | AC108: 2019-09-04 | AD108: =IF('تحضير باهبري'!D108=1,NOW(),"") ->  | AE108: غائب | AF108: 6:30 | AG108: =IF('تحضير باهبري'!E108=1,NOW(),"") ->  | AH108: غائب | AI108: 6:30 | AJ108: =IF('تحضير باهبري'!F108=1,NOW(),"") ->  | AK108: غائب | AL108: 5:00 | AM108: =IF('تحضير باهبري'!G108=1,NOW(),"") ->  | AN108: غائب | AO108: 5:00 | AP108: 11:30:00 | AQ108: 690 | BB108: الأربعاء | BC108: 2019-09-04 | BD108: =IF('تحضير ابوبكر'!D108=1,NOW(),"") ->  | BE108: غائب | BF108: 6:30 | BG108: =IF('تحضير ابوبكر'!E108=1,NOW(),"") ->  | BH108: غائب | BI108: 6:30 | BJ108: =IF('تحضير ابوبكر'!F108=1,NOW(),"") ->  | BK108: غائب | BL108: 5:00 | BM108: =IF('تحضير ابوبكر'!G108=1,NOW(),"") ->  | BN108: غائب | BO108: 5:00 | BP108: 11:30:00 | BQ108: 690
B109: الخميس | C109: 2019-09-05 | D109: =IF('تحضير سامي'!D109=1,NOW(),"") ->  | E109: غائب | F109: 6:30 | G109: =IF('تحضير سامي'!E109=1,NOW(),"") ->  | H109: غائب | I109: 6:30 | J109: =IF('تحضير سامي'!F109=1,NOW(),"") ->  | K109: غائب | L109: 5:00 | M109: =IF('تحضير سامي'!G109=1,NOW(),"") ->  | N109: غائب | O109: 5:00 | P109: 11:30:00 | Q109: 690 | AB109: الخميس | AC109: 2019-09-05 | AD109: =IF('تحضير باهبري'!D109=1,NOW(),"") ->  | AE109: غائب | AF109: 6:30 | AG109: =IF('تحضير باهبري'!E109=1,NOW(),"") ->  | AH109: غائب | AI109: 6:30 | AJ109: =IF('تحضير باهبري'!F109=1,NOW(),"") ->  | AK109: غائب | AL109: 5:00 | AM109: =IF('تحضير باهبري'!G109=1,NOW(),"") ->  | AN109: غائب | AO109: 5:00 | AP109: 11:30:00 | AQ109: 690 | BB109: الخميس | BC109: 2019-09-05 | BD109: =IF('تحضير ابوبكر'!D109=1,NOW(),"") ->  | BE109: غائب | BF109: 6:30 | BG109: =IF('تحضير ابوبكر'!E109=1,NOW(),"") ->  | BH109: غائب | BI109: 6:30 | BJ109: =IF('تحضير ابوبكر'!F109=1,NOW(),"") ->  | BK109: غائب | BL109: 5:00 | BM109: =IF('تحضير ابوبكر'!G109=1,NOW(),"") ->  | BN109: غائب | BO109: 5:00 | BP109: 11:30:00 | BQ109: 690
B110: الجمعة | C110: 2019-09-06 | D110: =IF('تحضير سامي'!D110=1,NOW(),"") ->  | E110: اجازة | F110: 00:00:00 | G110: =IF('تحضير سامي'!E110=1,NOW(),"") ->  | H110: اجازة | I110: 00:00:00 | J110: =IF('تحضير سامي'!F110=1,NOW(),"") ->  | K110: اجازة | L110: 00:00:00 | M110: =IF('تحضير سامي'!G110=1,NOW(),"") ->  | N110: اجازة | O110: 00:00:00 | P110: 00:00:00 | Q110: 0 | AB110: الجمعة | AC110: 2019-09-06 | AD110: =IF('تحضير باهبري'!D110=1,NOW(),"") ->  | AE110: اجازة | AF110: 00:00:00 | AG110: =IF('تحضير باهبري'!E110=1,NOW(),"") ->  | AH110: اجازة | AI110: 00:00:00 | AJ110: =IF('تحضير باهبري'!F110=1,NOW(),"") ->  | AK110: اجازة | AL110: 00:00:00 | AM110: =IF('تحضير باهبري'!G110=1,NOW(),"") ->  | AN110: اجازة | AO110: 00:00:00 | AP110: 00:00:00 | AQ110: 0 | BB110: الجمعة | BC110: 2019-09-06 | BD110: =IF('تحضير ابوبكر'!D110=1,NOW(),"") ->  | BE110: اجازة | BF110: 00:00:00 | BG110: =IF('تحضير ابوبكر'!E110=1,NOW(),"") ->  | BH110: اجازة | BI110: 00:00:00 | BJ110: =IF('تحضير ابوبكر'!F110=1,NOW(),"") ->  | BK110: اجازة | BL110: 00:00:00 | BM110: =IF('تحضير ابوبكر'!G110=1,NOW(),"") ->  | BN110: اجازة | BO110: 00:00:00 | BP110: 00:00:00 | BQ110: 0
B111: السبت | C111: 2019-09-07 | D111: =IF('تحضير سامي'!D111=1,NOW(),"") ->  | E111: غائب | F111: 6:30 | G111: =IF('تحضير سامي'!E111=1,NOW(),"") ->  | H111: غائب | I111: 6:30 | J111: =IF('تحضير سامي'!F111=1,NOW(),"") ->  | K111: غائب | L111: 5:00 | M111: =IF('تحضير سامي'!G111=1,NOW(),"") ->  | N111: غائب | O111: 5:00 | P111: 11:30:00 | Q111: 690 | AB111: السبت | AC111: 2019-09-07 | AD111: =IF('تحضير باهبري'!D111=1,NOW(),"") ->  | AE111: =IF(AD111="","غائب",IF(AD111=$D$6," تــم الحضور في الموعد",IF(AD111<$D$6,"تم الحضور قبل الموعد",IF(AD111>$D$6,"تم الحضور بعد الموعد","")))) -> غائب | AF111: =IF(AE111="غائب","6:30",IF(AE111="تم الحضور قبل الموعد","0:00",IF(AE111="تم الحضور في الموعد","0:00",IF(AE111>$D$6,AD111-$D$6,"")))) -> 6:30 | AG111: =IF('تحضير باهبري'!E111=1,NOW(),"") ->  | AH111: =IF(AG111="","غائب",IF(AG111=$G$6," تم الانصراف في الموعد",IF(AG111<$G$6,"تم الانصراف قبل الموعد",IF(AG111>$G$6,"تم الانصراف بعد الموعد","")))) -> غائب | AI111: =IF(AH111="غائب","6:30",IF(AH111="تم الانصراف بعد الموعد","0:00",IF(AH111="تم الانصراف في الموعد","0:00",IF(AH111>$G$6,$G$6-AG111,"")))) -> 6:30 | AJ111: =IF('تحضير باهبري'!F111=1,NOW(),"") ->  | AK111: =IF(AJ111="","غائب",IF(AJ111=$J$6," تــم الحضور في الموعد",IF(AJ111<$J$6,"تم الحضور قبل الموعد",IF(AJ111>$J$6,"تم الحضور بعد الموعد","")))) -> غائب | AL111: =IF(AK111="غائب","5:00",IF(AK111="تم الحضور قبل الموعد","0:00",IF(AK111="تم الحضور في الموعد","0:00",IF(AK111>$J$6,AJ111-$J$6,"")))) -> 5:00 | AM111: =IF('تحضير باهبري'!G111=1,NOW(),"") ->  | AN111: =IF(AM111="","غائب",IF(AM111=$M$6," تم الانصراف في الموعد",IF(AM111<$M$6,"تم الانصراف قبل الموعد",IF(AM111>$M$6,"تم الانصراف بعد الموعد","")))) -> غائب | AO111: =IF(AN111="غائب","5:00",IF(AN111="تم الانصراف بعد الموعد","0:00",IF(AN111="تم الانصراف في الموعد","0:00",IF(AN111>$M$6,$M$6-AM111,"")))) -> 5:00 | AP111: 11:30:00 | AQ111: 690 | BB111: السبت | BC111: 2019-09-07 | BD111: =IF('تحضير ابوبكر'!D111=1,NOW(),"") ->  | BE111: =IF(BD111="","غائب",IF(BD111=$D$6," تــم الحضور في الموعد",IF(BD111<$D$6,"تم الحضور قبل الموعد",IF(BD111>$D$6,"تم الحضور بعد الموعد","")))) -> غائب | BF111: =IF(BE111="غائب","6:30",IF(BE111="تم الحضور قبل الموعد","0:00",IF(BE111="تم الحضور في الموعد","0:00",IF(BE111>$D$6,BD111-$D$6,"")))) -> 6:30 | BG111: =IF('تحضير ابوبكر'!E111=1,NOW(),"") ->  | BH111: =IF(BG111="","غائب",IF(BG111=$G$6," تم الانصراف في الموعد",IF(BG111<$G$6,"تم الانصراف قبل الموعد",IF(BG111>$G$6,"تم الانصراف بعد الموعد","")))) -> غائب | BI111: =IF(BH111="غائب","6:30",IF(BH111="تم الانصراف بعد الموعد","0:00",IF(BH111="تم الانصراف في الموعد","0:00",IF(BH111>$G$6,$G$6-BG111,"")))) -> 6:30 | BJ111: =IF('تحضير ابوبكر'!F111=1,NOW(),"") ->  | BK111: =IF(BJ111="","غائب",IF(BJ111=$J$6," تــم الحضور في الموعد",IF(BJ111<$J$6,"تم الحضور قبل الموعد",IF(BJ111>$J$6,"تم الحضور بعد الموعد","")))) -> غائب | BL111: =IF(BK111="غائب","5:00",IF(BK111="تم الحضور قبل الموعد","0:00",IF(BK111="تم الحضور في الموعد","0:00",IF(BK111>$J$6,BJ111-$J$6,"")))) -> 5:00 | BM111: =IF('تحضير ابوبكر'!G111=1,NOW(),"") ->  | BN111: =IF(BM111="","غائب",IF(BM111=$M$6," تم الانصراف في الموعد",IF(BM111<$M$6,"تم الانصراف قبل الموعد",IF(BM111>$M$6,"تم الانصراف بعد الموعد","")))) -> غائب | BO111: =IF(BN111="غائب","5:00",IF(BN111="تم الانصراف بعد الموعد","0:00",IF(BN111="تم الانصراف في الموعد","0:00",IF(BN111>$M$6,$M$6-BM111,"")))) -> 5:00 | BP111: 11:30:00 | BQ111: 690
B112: الأحد | C112: 2019-09-08 | D112: =IF('تحضير سامي'!D112=1,NOW(),"") ->  | E112: غائب | F112: 6:30 | G112: =IF('تحضير سامي'!E112=1,NOW(),"") ->  | H112: غائب | I112: 6:30 | J112: =IF('تحضير سامي'!F112=1,NOW(),"") ->  | K112: غائب | L112: 5:00 | M112: =IF('تحضير سامي'!G112=1,NOW(),"") ->  | N112: غائب | O112: 5:00 | P112: 11:30:00 | Q112: 690 | AB112: الأحد | AC112: 2019-09-08 | AD112: =IF('تحضير باهبري'!D112=1,NOW(),"") ->  | AE112: غائب | AF112: 6:30 | AG112: =IF('تحضير باهبري'!E112=1,NOW(),"") ->  | AH112: غائب | AI112: 6:30 | AJ112: =IF('تحضير باهبري'!F112=1,NOW(),"") ->  | AK112: غائب | AL112: 5:00 | AM112: =IF('تحضير باهبري'!G112=1,NOW(),"") ->  | AN112: غائب | AO112: 5:00 | AP112: 11:30:00 | AQ112: 690 | BB112: الأحد | BC112: 2019-09-08 | BD112: =IF('تحضير ابوبكر'!D112=1,NOW(),"") ->  | BE112: غائب | BF112: 6:30 | BG112: =IF('تحضير ابوبكر'!E112=1,NOW(),"") ->  | BH112: غائب | BI112: 6:30 | BJ112: =IF('تحضير ابوبكر'!F112=1,NOW(),"") ->  | BK112: غائب | BL112: 5:00 | BM112: =IF('تحضير ابوبكر'!G112=1,NOW(),"") ->  | BN112: غائب | BO112: 5:00 | BP112: 11:30:00 | BQ112: 690
B113: الإثنين | C113: 2019-09-09 | D113: =IF('تحضير سامي'!D113=1,NOW(),"") ->  | E113: غائب | F113: 6:30 | G113: =IF('تحضير سامي'!E113=1,NOW(),"") ->  | H113: غائب | I113: 6:30 | J113: =IF('تحضير سامي'!F113=1,NOW(),"") ->  | K113: غائب | L113: 5:00 | M113: =IF('تحضير سامي'!G113=1,NOW(),"") ->  | N113: غائب | O113: 5:00 | P113: 11:30:00 | Q113: 690 | AB113: الإثنين | AC113: 2019-09-09 | AD113: =IF('تحضير باهبري'!D113=1,NOW(),"") ->  | AE113: غائب | AF113: 6:30 | AG113: =IF('تحضير باهبري'!E113=1,NOW(),"") ->  | AH113: غائب | AI113: 6:30 | AJ113: =IF('تحضير باهبري'!F113=1,NOW(),"") ->  | AK113: غائب | AL113: 5:00 | AM113: =IF('تحضير باهبري'!G113=1,NOW(),"") ->  | AN113: غائب | AO113: 5:00 | AP113: 11:30:00 | AQ113: 690 | BB113: الإثنين | BC113: 2019-09-09 | BD113: =IF('تحضير ابوبكر'!D113=1,NOW(),"") ->  | BE113: غائب | BF113: 6:30 | BG113: =IF('تحضير ابوبكر'!E113=1,NOW(),"") ->  | BH113: غائب | BI113: 6:30 | BJ113: =IF('تحضير ابوبكر'!F113=1,NOW(),"") ->  | BK113: غائب | BL113: 5:00 | BM113: =IF('تحضير ابوبكر'!G113=1,NOW(),"") ->  | BN113: غائب | BO113: 5:00 | BP113: 11:30:00 | BQ113: 690
B114: الثلاثاء | C114: 2019-09-10 | D114: =IF('تحضير سامي'!D114=1,NOW(),"") ->  | E114: غائب | F114: 6:30 | G114: =IF('تحضير سامي'!E114=1,NOW(),"") ->  | H114: غائب | I114: 6:30 | J114: =IF('تحضير سامي'!F114=1,NOW(),"") ->  | K114: غائب | L114: 5:00 | M114: =IF('تحضير سامي'!G114=1,NOW(),"") ->  | N114: غائب | O114: 5:00 | P114: 11:30:00 | Q114: 690 | AB114: الثلاثاء | AC114: 2019-09-10 | AD114: =IF('تحضير باهبري'!D114=1,NOW(),"") ->  | AE114: غائب | AF114: 6:30 | AG114: =IF('تحضير باهبري'!E114=1,NOW(),"") ->  | AH114: غائب | AI114: 6:30 | AJ114: =IF('تحضير باهبري'!F114=1,NOW(),"") ->  | AK114: غائب | AL114: 5:00 | AM114: =IF('تحضير باهبري'!G114=1,NOW(),"") ->  | AN114: غائب | AO114: 5:00 | AP114: 11:30:00 | AQ114: 690 | BB114: الثلاثاء | BC114: 2019-09-10 | BD114: =IF('تحضير ابوبكر'!D114=1,NOW(),"") ->  | BE114: غائب | BF114: 6:30 | BG114: =IF('تحضير ابوبكر'!E114=1,NOW(),"") ->  | BH114: غائب | BI114: 6:30 | BJ114: =IF('تحضير ابوبكر'!F114=1,NOW(),"") ->  | BK114: غائب | BL114: 5:00 | BM114: =IF('تحضير ابوبكر'!G114=1,NOW(),"") ->  | BN114: غائب | BO114: 5:00 | BP114: 11:30:00 | BQ114: 690
B115: الأربعاء | C115: 2019-09-11 | D115: =IF('تحضير سامي'!D115=1,NOW(),"") ->  | E115: غائب | F115: 6:30 | G115: =IF('تحضير سامي'!E115=1,NOW(),"") ->  | H115: غائب | I115: 6:30 | J115: =IF('تحضير سامي'!F115=1,NOW(),"") ->  | K115: غائب | L115: 5:00 | M115: =IF('تحضير سامي'!G115=1,NOW(),"") ->  | N115: غائب | O115: 5:00 | P115: 11:30:00 | Q115: 690 | AB115: الأربعاء | AC115: 2019-09-11 | AD115: =IF('تحضير باهبري'!D115=1,NOW(),"") ->  | AE115: غائب | AF115: 6:30 | AG115: =IF('تحضير باهبري'!E115=1,NOW(),"") ->  | AH115: غائب | AI115: 6:30 | AJ115: =IF('تحضير باهبري'!F115=1,NOW(),"") ->  | AK115: غائب | AL115: 5:00 | AM115: =IF('تحضير باهبري'!G115=1,NOW(),"") ->  | AN115: غائب | AO115: 5:00 | AP115: 11:30:00 | AQ115: 690 | BB115: الأربعاء | BC115: 2019-09-11 | BD115: =IF('تحضير ابوبكر'!D115=1,NOW(),"") ->  | BE115: غائب | BF115: 6:30 | BG115: =IF('تحضير ابوبكر'!E115=1,NOW(),"") ->  | BH115: غائب | BI115: 6:30 | BJ115: =IF('تحضير ابوبكر'!F115=1,NOW(),"") ->  | BK115: غائب | BL115: 5:00 | BM115: =IF('تحضير ابوبكر'!G115=1,NOW(),"") ->  | BN115: غائب | BO115: 5:00 | BP115: 11:30:00 | BQ115: 690
B116: الخميس | C116: 2019-09-12 | D116: =IF('تحضير سامي'!D116=1,NOW(),"") ->  | E116: غائب | F116: 6:30 | G116: =IF('تحضير سامي'!E116=1,NOW(),"") ->  | H116: غائب | I116: 6:30 | J116: =IF('تحضير سامي'!F116=1,NOW(),"") ->  | K116: غائب | L116: 5:00 | M116: =IF('تحضير سامي'!G116=1,NOW(),"") ->  | N116: غائب | O116: 5:00 | P116: 11:30:00 | Q116: 690 | AB116: الخميس | AC116: 2019-09-12 | AD116: =IF('تحضير باهبري'!D116=1,NOW(),"") ->  | AE116: غائب | AF116: 6:30 | AG116: =IF('تحضير باهبري'!E116=1,NOW(),"") ->  | AH116: غائب | AI116: 6:30 | AJ116: =IF('تحضير باهبري'!F116=1,NOW(),"") ->  | AK116: غائب | AL116: 5:00 | AM116: =IF('تحضير باهبري'!G116=1,NOW(),"") ->  | AN116: غائب | AO116: 5:00 | AP116: 11:30:00 | AQ116: 690 | BB116: الخميس | BC116: 2019-09-12 | BD116: =IF('تحضير ابوبكر'!D116=1,NOW(),"") ->  | BE116: غائب | BF116: 6:30 | BG116: =IF('تحضير ابوبكر'!E116=1,NOW(),"") ->  | BH116: غائب | BI116: 6:30 | BJ116: =IF('تحضير ابوبكر'!F116=1,NOW(),"") ->  | BK116: غائب | BL116: 5:00 | BM116: =IF('تحضير ابوبكر'!G116=1,NOW(),"") ->  | BN116: غائب | BO116: 5:00 | BP116: 11:30:00 | BQ116: 690
B117: الجمعة | C117: 2019-09-13 | D117: =IF('تحضير سامي'!D117=1,NOW(),"") ->  | E117: اجازة | F117: 00:00:00 | G117: =IF('تحضير سامي'!E117=1,NOW(),"") ->  | H117: اجازة | I117: 00:00:00 | J117: =IF('تحضير سامي'!F117=1,NOW(),"") ->  | K117: اجازة | L117: 00:00:00 | M117: =IF('تحضير سامي'!G117=1,NOW(),"") ->  | N117: اجازة | O117: 00:00:00 | P117: 00:00:00 | Q117: 0 | AB117: الجمعة | AC117: 2019-09-13 | AD117: =IF('تحضير باهبري'!D117=1,NOW(),"") ->  | AE117: اجازة | AF117: 00:00:00 | AG117: =IF('تحضير باهبري'!E117=1,NOW(),"") ->  | AH117: اجازة | AI117: 00:00:00 | AJ117: =IF('تحضير باهبري'!F117=1,NOW(),"") ->  | AK117: اجازة | AL117: 00:00:00 | AM117: =IF('تحضير باهبري'!G117=1,NOW(),"") ->  | AN117: اجازة | AO117: 00:00:00 | AP117: 00:00:00 | AQ117: 0 | BB117: الجمعة | BC117: 2019-09-13 | BD117: =IF('تحضير ابوبكر'!D117=1,NOW(),"") ->  | BE117: اجازة | BF117: 00:00:00 | BG117: =IF('تحضير ابوبكر'!E117=1,NOW(),"") ->  | BH117: اجازة | BI117: 00:00:00 | BJ117: =IF('تحضير ابوبكر'!F117=1,NOW(),"") ->  | BK117: اجازة | BL117: 00:00:00 | BM117: =IF('تحضير ابوبكر'!G117=1,NOW(),"") ->  | BN117: اجازة | BO117: 00:00:00 | BP117: 00:00:00 | BQ117: 0
B118: السبت | C118: 2019-09-14 | D118: =IF('تحضير سامي'!D118=1,NOW(),"") ->  | E118: غائب | F118: 6:30 | G118: =IF('تحضير سامي'!E118=1,NOW(),"") ->  | H118: غائب | I118: 6:30 | J118: =IF('تحضير سامي'!F118=1,NOW(),"") ->  | K118: غائب | L118: 5:00 | M118: =IF('تحضير سامي'!G118=1,NOW(),"") ->  | N118: غائب | O118: 5:00 | P118: 11:30:00 | Q118: 690 | AB118: السبت | AC118: 2019-09-14 | AD118: =IF('تحضير باهبري'!D118=1,NOW(),"") ->  | AE118: =IF(AD118="","غائب",IF(AD118=$D$6," تــم الحضور في الموعد",IF(AD118<$D$6,"تم الحضور قبل الموعد",IF(AD118>$D$6,"تم الحضور بعد الموعد","")))) -> غائب | AF118: =IF(AE118="غائب","6:30",IF(AE118="تم الحضور قبل الموعد","0:00",IF(AE118="تم الحضور في الموعد","0:00",IF(AE118>$D$6,AD118-$D$6,"")))) -> 6:30 | AG118: =IF('تحضير باهبري'!E118=1,NOW(),"") ->  | AH118: =IF(AG118="","غائب",IF(AG118=$G$6," تم الانصراف في الموعد",IF(AG118<$G$6,"تم الانصراف قبل الموعد",IF(AG118>$G$6,"تم الانصراف بعد الموعد","")))) -> غائب | AI118: =IF(AH118="غائب","6:30",IF(AH118="تم الانصراف بعد الموعد","0:00",IF(AH118="تم الانصراف في الموعد","0:00",IF(AH118>$G$6,$G$6-AG118,"")))) -> 6:30 | AJ118: =IF('تحضير باهبري'!F118=1,NOW(),"") ->  | AK118: =IF(AJ118="","غائب",IF(AJ118=$J$6," تــم الحضور في الموعد",IF(AJ118<$J$6,"تم الحضور قبل الموعد",IF(AJ118>$J$6,"تم الحضور بعد الموعد","")))) -> غائب | AL118: =IF(AK118="غائب","5:00",IF(AK118="تم الحضور قبل الموعد","0:00",IF(AK118="تم الحضور في الموعد","0:00",IF(AK118>$J$6,AJ118-$J$6,"")))) -> 5:00 | AM118: =IF('تحضير باهبري'!G118=1,NOW(),"") ->  | AN118: =IF(AM118="","غائب",IF(AM118=$M$6," تم الانصراف في الموعد",IF(AM118<$M$6,"تم الانصراف قبل الموعد",IF(AM118>$M$6,"تم الانصراف بعد الموعد","")))) -> غائب | AO118: =IF(AN118="غائب","5:00",IF(AN118="تم الانصراف بعد الموعد","0:00",IF(AN118="تم الانصراف في الموعد","0:00",IF(AN118>$M$6,$M$6-AM118,"")))) -> 5:00 | AP118: 11:30:00 | AQ118: 690 | BB118: السبت | BC118: 2019-09-14 | BD118: =IF('تحضير ابوبكر'!D118=1,NOW(),"") ->  | BE118: =IF(BD118="","غائب",IF(BD118=$D$6," تــم الحضور في الموعد",IF(BD118<$D$6,"تم الحضور قبل الموعد",IF(BD118>$D$6,"تم الحضور بعد الموعد","")))) -> غائب | BF118: =IF(BE118="غائب","6:30",IF(BE118="تم الحضور قبل الموعد","0:00",IF(BE118="تم الحضور في الموعد","0:00",IF(BE118>$D$6,BD118-$D$6,"")))) -> 6:30 | BG118: =IF('تحضير ابوبكر'!E118=1,NOW(),"") ->  | BH118: =IF(BG118="","غائب",IF(BG118=$G$6," تم الانصراف في الموعد",IF(BG118<$G$6,"تم الانصراف قبل الموعد",IF(BG118>$G$6,"تم الانصراف بعد الموعد","")))) -> غائب | BI118: =IF(BH118="غائب","6:30",IF(BH118="تم الانصراف بعد الموعد","0:00",IF(BH118="تم الانصراف في الموعد","0:00",IF(BH118>$G$6,$G$6-BG118,"")))) -> 6:30 | BJ118: =IF('تحضير ابوبكر'!F118=1,NOW(),"") ->  | BK118: =IF(BJ118="","غائب",IF(BJ118=$J$6," تــم الحضور في الموعد",IF(BJ118<$J$6,"تم الحضور قبل الموعد",IF(BJ118>$J$6,"تم الحضور بعد الموعد","")))) -> غائب | BL118: =IF(BK118="غائب","5:00",IF(BK118="تم الحضور قبل الموعد","0:00",IF(BK118="تم الحضور في الموعد","0:00",IF(BK118>$J$6,BJ118-$J$6,"")))) -> 5:00 | BM118: =IF('تحضير ابوبكر'!G118=1,NOW(),"") ->  | BN118: =IF(BM118="","غائب",IF(BM118=$M$6," تم الانصراف في الموعد",IF(BM118<$M$6,"تم الانصراف قبل الموعد",IF(BM118>$M$6,"تم الانصراف بعد الموعد","")))) -> غائب | BO118: =IF(BN118="غائب","5:00",IF(BN118="تم الانصراف بعد الموعد","0:00",IF(BN118="تم الانصراف في الموعد","0:00",IF(BN118>$M$6,$M$6-BM118,"")))) -> 5:00 | BP118: 11:30:00 | BQ118: 690
B119: الأحد | C119: 2019-09-15 | D119: =IF('تحضير سامي'!D119=1,NOW(),"") ->  | E119: غائب | F119: 6:30 | G119: =IF('تحضير سامي'!E119=1,NOW(),"") ->  | H119: غائب | I119: 6:30 | J119: =IF('تحضير سامي'!F119=1,NOW(),"") ->  | K119: غائب | L119: 5:00 | M119: =IF('تحضير سامي'!G119=1,NOW(),"") ->  | N119: غائب | O119: 5:00 | P119: 11:30:00 | Q119: 690 | AB119: الأحد | AC119: 2019-09-15 | AD119: =IF('تحضير باهبري'!D119=1,NOW(),"") ->  | AE119: غائب | AF119: 6:30 | AG119: =IF('تحضير باهبري'!E119=1,NOW(),"") ->  | AH119: غائب | AI119: 6:30 | AJ119: =IF('تحضير باهبري'!F119=1,NOW(),"") ->  | AK119: غائب | AL119: 5:00 | AM119: =IF('تحضير باهبري'!G119=1,NOW(),"") ->  | AN119: غائب | AO119: 5:00 | AP119: 11:30:00 | AQ119: 690 | BB119: الأحد | BC119: 2019-09-15 | BD119: =IF('تحضير ابوبكر'!D119=1,NOW(),"") ->  | BE119: غائب | BF119: 6:30 | BG119: =IF('تحضير ابوبكر'!E119=1,NOW(),"") ->  | BH119: غائب | BI119: 6:30 | BJ119: =IF('تحضير ابوبكر'!F119=1,NOW(),"") ->  | BK119: غائب | BL119: 5:00 | BM119: =IF('تحضير ابوبكر'!G119=1,NOW(),"") ->  | BN119: غائب | BO119: 5:00 | BP119: 11:30:00 | BQ119: 690
B120: الإثنين | C120: 2019-09-16 | D120: =IF('تحضير سامي'!D120=1,NOW(),"") ->  | E120: غائب | F120: 6:30 | G120: =IF('تحضير سامي'!E120=1,NOW(),"") ->  | H120: غائب | I120: 6:30 | J120: =IF('تحضير سامي'!F120=1,NOW(),"") ->  | K120: غائب | L120: 5:00 | M120: =IF('تحضير سامي'!G120=1,NOW(),"") ->  | N120: غائب | O120: 5:00 | P120: 11:30:00 | Q120: 690 | AB120: الإثنين | AC120: 2019-09-16 | AD120: =IF('تحضير باهبري'!D120=1,NOW(),"") ->  | AE120: غائب | AF120: 6:30 | AG120: =IF('تحضير باهبري'!E120=1,NOW(),"") ->  | AH120: غائب | AI120: 6:30 | AJ120: =IF('تحضير باهبري'!F120=1,NOW(),"") ->  | AK120: غائب | AL120: 5:00 | AM120: =IF('تحضير باهبري'!G120=1,NOW(),"") ->  | AN120: غائب | AO120: 5:00 | AP120: 11:30:00 | AQ120: 690 | BB120: الإثنين | BC120: 2019-09-16 | BD120: =IF('تحضير ابوبكر'!D120=1,NOW(),"") ->  | BE120: غائب | BF120: 6:30 | BG120: =IF('تحضير ابوبكر'!E120=1,NOW(),"") ->  | BH120: غائب | BI120: 6:30 | BJ120: =IF('تحضير ابوبكر'!F120=1,NOW(),"") ->  | BK120: غائب | BL120: 5:00 | BM120: =IF('تحضير ابوبكر'!G120=1,NOW(),"") ->  | BN120: غائب | BO120: 5:00 | BP120: 11:30:00 | BQ120: 690
B121: الثلاثاء | C121: 2019-09-17 | D121: =IF('تحضير سامي'!D121=1,NOW(),"") ->  | E121: غائب | F121: 6:30 | G121: =IF('تحضير سامي'!E121=1,NOW(),"") ->  | H121: غائب | I121: 6:30 | J121: =IF('تحضير سامي'!F121=1,NOW(),"") ->  | K121: غائب | L121: 5:00 | M121: =IF('تحضير سامي'!G121=1,NOW(),"") ->  | N121: غائب | O121: 5:00 | P121: 11:30:00 | Q121: 690 | AB121: الثلاثاء | AC121: 2019-09-17 | AD121: =IF('تحضير باهبري'!D121=1,NOW(),"") ->  | AE121: غائب | AF121: 6:30 | AG121: =IF('تحضير باهبري'!E121=1,NOW(),"") ->  | AH121: غائب | AI121: 6:30 | AJ121: =IF('تحضير باهبري'!F121=1,NOW(),"") ->  | AK121: غائب | AL121: 5:00 | AM121: =IF('تحضير باهبري'!G121=1,NOW(),"") ->  | AN121: غائب | AO121: 5:00 | AP121: 11:30:00 | AQ121: 690 | BB121: الثلاثاء | BC121: 2019-09-17 | BD121: =IF('تحضير ابوبكر'!D121=1,NOW(),"") ->  | BE121: غائب | BF121: 6:30 | BG121: =IF('تحضير ابوبكر'!E121=1,NOW(),"") ->  | BH121: غائب | BI121: 6:30 | BJ121: =IF('تحضير ابوبكر'!F121=1,NOW(),"") ->  | BK121: غائب | BL121: 5:00 | BM121: =IF('تحضير ابوبكر'!G121=1,NOW(),"") ->  | BN121: غائب | BO121: 5:00 | BP121: 11:30:00 | BQ121: 690
B122: الأربعاء | C122: 2019-09-18 | D122: =IF('تحضير سامي'!D122=1,NOW(),"") ->  | E122: غائب | F122: 6:30 | G122: =IF('تحضير سامي'!E122=1,NOW(),"") ->  | H122: غائب | I122: 6:30 | J122: =IF('تحضير سامي'!F122=1,NOW(),"") ->  | K122: غائب | L122: 5:00 | M122: =IF('تحضير سامي'!G122=1,NOW(),"") ->  | N122: غائب | O122: 5:00 | P122: 11:30:00 | Q122: 690 | AB122: الأربعاء | AC122: 2019-09-18 | AD122: =IF('تحضير باهبري'!D122=1,NOW(),"") ->  | AE122: غائب | AF122: 6:30 | AG122: =IF('تحضير باهبري'!E122=1,NOW(),"") ->  | AH122: غائب | AI122: 6:30 | AJ122: =IF('تحضير باهبري'!F122=1,NOW(),"") ->  | AK122: غائب | AL122: 5:00 | AM122: =IF('تحضير باهبري'!G122=1,NOW(),"") ->  | AN122: غائب | AO122: 5:00 | AP122: 11:30:00 | AQ122: 690 | BB122: الأربعاء | BC122: 2019-09-18 | BD122: =IF('تحضير ابوبكر'!D122=1,NOW(),"") ->  | BE122: غائب | BF122: 6:30 | BG122: =IF('تحضير ابوبكر'!E122=1,NOW(),"") ->  | BH122: غائب | BI122: 6:30 | BJ122: =IF('تحضير ابوبكر'!F122=1,NOW(),"") ->  | BK122: غائب | BL122: 5:00 | BM122: =IF('تحضير ابوبكر'!G122=1,NOW(),"") ->  | BN122: غائب | BO122: 5:00 | BP122: 11:30:00 | BQ122: 690
B123: الخميس | C123: 2019-09-19 | D123: =IF('تحضير سامي'!D123=1,NOW(),"") ->  | E123: غائب | F123: 6:30 | G123: =IF('تحضير سامي'!E123=1,NOW(),"") ->  | H123: غائب | I123: 6:30 | J123: =IF('تحضير سامي'!F123=1,NOW(),"") ->  | K123: غائب | L123: 5:00 | M123: =IF('تحضير سامي'!G123=1,NOW(),"") ->  | N123: غائب | O123: 5:00 | P123: 11:30:00 | Q123: 690 | AB123: الخميس | AC123: 2019-09-19 | AD123: =IF('تحضير باهبري'!D123=1,NOW(),"") ->  | AE123: غائب | AF123: 6:30 | AG123: =IF('تحضير باهبري'!E123=1,NOW(),"") ->  | AH123: غائب | AI123: 6:30 | AJ123: =IF('تحضير باهبري'!F123=1,NOW(),"") ->  | AK123: غائب | AL123: 5:00 | AM123: =IF('تحضير باهبري'!G123=1,NOW(),"") ->  | AN123: غائب | AO123: 5:00 | AP123: 11:30:00 | AQ123: 690 | BB123: الخميس | BC123: 2019-09-19 | BD123: =IF('تحضير ابوبكر'!D123=1,NOW(),"") ->  | BE123: غائب | BF123: 6:30 | BG123: =IF('تحضير ابوبكر'!E123=1,NOW(),"") ->  | BH123: غائب | BI123: 6:30 | BJ123: =IF('تحضير ابوبكر'!F123=1,NOW(),"") ->  | BK123: غائب | BL123: 5:00 | BM123: =IF('تحضير ابوبكر'!G123=1,NOW(),"") ->  | BN123: غائب | BO123: 5:00 | BP123: 11:30:00 | BQ123: 690
B124: الجمعة | C124: 2019-09-20 | D124: =IF('تحضير سامي'!D124=1,NOW(),"") ->  | E124: اجازة | F124: 00:00:00 | G124: =IF('تحضير سامي'!E124=1,NOW(),"") ->  | H124: اجازة | I124: 00:00:00 | J124: =IF('تحضير سامي'!F124=1,NOW(),"") ->  | K124: اجازة | L124: 00:00:00 | M124: =IF('تحضير سامي'!G124=1,NOW(),"") ->  | N124: اجازة | O124: 00:00:00 | P124: 00:00:00 | Q124: 0 | AB124: الجمعة | AC124: 2019-09-20 | AD124: =IF('تحضير باهبري'!D124=1,NOW(),"") ->  | AE124: اجازة | AF124: 00:00:00 | AG124: =IF('تحضير باهبري'!E124=1,NOW(),"") ->  | AH124: اجازة | AI124: 00:00:00 | AJ124: =IF('تحضير باهبري'!F124=1,NOW(),"") ->  | AK124: اجازة | AL124: 00:00:00 | AM124: =IF('تحضير باهبري'!G124=1,NOW(),"") ->  | AN124: اجازة | AO124: 00:00:00 | AP124: 00:00:00 | AQ124: 0 | BB124: الجمعة | BC124: 2019-09-20 | BD124: =IF('تحضير ابوبكر'!D124=1,NOW(),"") ->  | BE124: اجازة | BF124: 00:00:00 | BG124: =IF('تحضير ابوبكر'!E124=1,NOW(),"") ->  | BH124: اجازة | BI124: 00:00:00 | BJ124: =IF('تحضير ابوبكر'!F124=1,NOW(),"") ->  | BK124: اجازة | BL124: 00:00:00 | BM124: =IF('تحضير ابوبكر'!G124=1,NOW(),"") ->  | BN124: اجازة | BO124: 00:00:00 | BP124: 00:00:00 | BQ124: 0
B125: السبت | C125: 2019-09-21 | D125: =IF('تحضير سامي'!D125=1,NOW(),"") ->  | E125: غائب | F125: 6:30 | G125: =IF('تحضير سامي'!E125=1,NOW(),"") ->  | H125: غائب | I125: 6:30 | J125: =IF('تحضير سامي'!F125=1,NOW(),"") ->  | K125: غائب | L125: 5:00 | M125: =IF('تحضير سامي'!G125=1,NOW(),"") ->  | N125: غائب | O125: 5:00 | P125: 11:30:00 | Q125: 690 | AB125: السبت | AC125: 2019-09-21 | AD125: =IF('تحضير باهبري'!D125=1,NOW(),"") ->  | AE125: =IF(AD125="","غائب",IF(AD125=$D$6," تــم الحضور في الموعد",IF(AD125<$D$6,"تم الحضور قبل الموعد",IF(AD125>$D$6,"تم الحضور بعد الموعد","")))) -> غائب | AF125: =IF(AE125="غائب","6:30",IF(AE125="تم الحضور قبل الموعد","0:00",IF(AE125="تم الحضور في الموعد","0:00",IF(AE125>$D$6,AD125-$D$6,"")))) -> 6:30 | AG125: =IF('تحضير باهبري'!E125=1,NOW(),"") ->  | AH125: =IF(AG125="","غائب",IF(AG125=$G$6," تم الانصراف في الموعد",IF(AG125<$G$6,"تم الانصراف قبل الموعد",IF(AG125>$G$6,"تم الانصراف بعد الموعد","")))) -> غائب | AI125: =IF(AH125="غائب","6:30",IF(AH125="تم الانصراف بعد الموعد","0:00",IF(AH125="تم الانصراف في الموعد","0:00",IF(AH125>$G$6,$G$6-AG125,"")))) -> 6:30 | AJ125: =IF('تحضير باهبري'!F125=1,NOW(),"") ->  | AK125: =IF(AJ125="","غائب",IF(AJ125=$J$6," تــم الحضور في الموعد",IF(AJ125<$J$6,"تم الحضور قبل الموعد",IF(AJ125>$J$6,"تم الحضور بعد الموعد","")))) -> غائب | AL125: =IF(AK125="غائب","5:00",IF(AK125="تم الحضور قبل الموعد","0:00",IF(AK125="تم الحضور في الموعد","0:00",IF(AK125>$J$6,AJ125-$J$6,"")))) -> 5:00 | AM125: =IF('تحضير باهبري'!G125=1,NOW(),"") ->  | AN125: =IF(AM125="","غائب",IF(AM125=$M$6," تم الانصراف في الموعد",IF(AM125<$M$6,"تم الانصراف قبل الموعد",IF(AM125>$M$6,"تم الانصراف بعد الموعد","")))) -> غائب | AO125: =IF(AN125="غائب","5:00",IF(AN125="تم الانصراف بعد الموعد","0:00",IF(AN125="تم الانصراف في الموعد","0:00",IF(AN125>$M$6,$M$6-AM125,"")))) -> 5:00 | AP125: 11:30:00 | AQ125: 690 | BB125: السبت | BC125: 2019-09-21 | BD125: =IF('تحضير ابوبكر'!D125=1,NOW(),"") ->  | BE125: =IF(BD125="","غائب",IF(BD125=$D$6," تــم الحضور في الموعد",IF(BD125<$D$6,"تم الحضور قبل الموعد",IF(BD125>$D$6,"تم الحضور بعد الموعد","")))) -> غائب | BF125: =IF(BE125="غائب","6:30",IF(BE125="تم الحضور قبل الموعد","0:00",IF(BE125="تم الحضور في الموعد","0:00",IF(BE125>$D$6,BD125-$D$6,"")))) -> 6:30 | BG125: =IF('تحضير ابوبكر'!E125=1,NOW(),"") ->  | BH125: =IF(BG125="","غائب",IF(BG125=$G$6," تم الانصراف في الموعد",IF(BG125<$G$6,"تم الانصراف قبل الموعد",IF(BG125>$G$6,"تم الانصراف بعد الموعد","")))) -> غائب | BI125: =IF(BH125="غائب","6:30",IF(BH125="تم الانصراف بعد الموعد","0:00",IF(BH125="تم الانصراف في الموعد","0:00",IF(BH125>$G$6,$G$6-BG125,"")))) -> 6:30 | BJ125: =IF('تحضير ابوبكر'!F125=1,NOW(),"") ->  | BK125: =IF(BJ125="","غائب",IF(BJ125=$J$6," تــم الحضور في الموعد",IF(BJ125<$J$6,"تم الحضور قبل الموعد",IF(BJ125>$J$6,"تم الحضور بعد الموعد","")))) -> غائب | BL125: =IF(BK125="غائب","5:00",IF(BK125="تم الحضور قبل الموعد","0:00",IF(BK125="تم الحضور في الموعد","0:00",IF(BK125>$J$6,BJ125-$J$6,"")))) -> 5:00 | BM125: =IF('تحضير ابوبكر'!G125=1,NOW(),"") ->  | BN125: =IF(BM125="","غائب",IF(BM125=$M$6," تم الانصراف في الموعد",IF(BM125<$M$6,"تم الانصراف قبل الموعد",IF(BM125>$M$6,"تم الانصراف بعد الموعد","")))) -> غائب | BO125: =IF(BN125="غائب","5:00",IF(BN125="تم الانصراف بعد الموعد","0:00",IF(BN125="تم الانصراف في الموعد","0:00",IF(BN125>$M$6,$M$6-BM125,"")))) -> 5:00 | BP125: 11:30:00 | BQ125: 690
B126: الأحد | C126: 2019-09-22 | D126: =IF('تحضير سامي'!D126=1,NOW(),"") ->  | E126: غائب | F126: 6:30 | G126: =IF('تحضير سامي'!E126=1,NOW(),"") ->  | H126: غائب | I126: 6:30 | J126: =IF('تحضير سامي'!F126=1,NOW(),"") ->  | K126: غائب | L126: 5:00 | M126: =IF('تحضير سامي'!G126=1,NOW(),"") ->  | N126: غائب | O126: 5:00 | P126: 11:30:00 | Q126: 690 | AB126: الأحد | AC126: 2019-09-22 | AD126: =IF('تحضير باهبري'!D126=1,NOW(),"") ->  | AE126: غائب | AF126: 6:30 | AG126: =IF('تحضير باهبري'!E126=1,NOW(),"") ->  | AH126: غائب | AI126: 6:30 | AJ126: =IF('تحضير باهبري'!F126=1,NOW(),"") ->  | AK126: غائب | AL126: 5:00 | AM126: =IF('تحضير باهبري'!G126=1,NOW(),"") ->  | AN126: غائب | AO126: 5:00 | AP126: 11:30:00 | AQ126: 690 | BB126: الأحد | BC126: 2019-09-22 | BD126: =IF('تحضير ابوبكر'!D126=1,NOW(),"") ->  | BE126: غائب | BF126: 6:30 | BG126: =IF('تحضير ابوبكر'!E126=1,NOW(),"") ->  | BH126: غائب | BI126: 6:30 | BJ126: =IF('تحضير ابوبكر'!F126=1,NOW(),"") ->  | BK126: غائب | BL126: 5:00 | BM126: =IF('تحضير ابوبكر'!G126=1,NOW(),"") ->  | BN126: غائب | BO126: 5:00 | BP126: 11:30:00 | BQ126: 690
B127: الإثنين | C127: 2019-09-23 | D127: =IF('تحضير سامي'!D127=1,NOW(),"") ->  | E127: غائب | F127: 6:30 | G127: =IF('تحضير سامي'!E127=1,NOW(),"") ->  | H127: غائب | I127: 6:30 | J127: =IF('تحضير سامي'!F127=1,NOW(),"") ->  | K127: غائب | L127: 5:00 | M127: =IF('تحضير سامي'!G127=1,NOW(),"") ->  | N127: غائب | O127: 5:00 | P127: 11:30:00 | Q127: 690 | AB127: الإثنين | AC127: 2019-09-23 | AD127: =IF('تحضير باهبري'!D127=1,NOW(),"") ->  | AE127: غائب | AF127: 6:30 | AG127: =IF('تحضير باهبري'!E127=1,NOW(),"") ->  | AH127: غائب | AI127: 6:30 | AJ127: =IF('تحضير باهبري'!F127=1,NOW(),"") ->  | AK127: غائب | AL127: 5:00 | AM127: =IF('تحضير باهبري'!G127=1,NOW(),"") ->  | AN127: غائب | AO127: 5:00 | AP127: 11:30:00 | AQ127: 690 | BB127: الإثنين | BC127: 2019-09-23 | BD127: =IF('تحضير ابوبكر'!D127=1,NOW(),"") ->  | BE127: غائب | BF127: 6:30 | BG127: =IF('تحضير ابوبكر'!E127=1,NOW(),"") ->  | BH127: غائب | BI127: 6:30 | BJ127: =IF('تحضير ابوبكر'!F127=1,NOW(),"") ->  | BK127: غائب | BL127: 5:00 | BM127: =IF('تحضير ابوبكر'!G127=1,NOW(),"") ->  | BN127: غائب | BO127: 5:00 | BP127: 11:30:00 | BQ127: 690
B128: الثلاثاء | C128: 2019-09-24 | D128: =IF('تحضير سامي'!D128=1,NOW(),"") ->  | E128: غائب | F128: 6:30 | G128: =IF('تحضير سامي'!E128=1,NOW(),"") ->  | H128: غائب | I128: 6:30 | J128: =IF('تحضير سامي'!F128=1,NOW(),"") ->  | K128: غائب | L128: 5:00 | M128: =IF('تحضير سامي'!G128=1,NOW(),"") ->  | N128: غائب | O128: 5:00 | P128: 11:30:00 | Q128: 690 | AB128: الثلاثاء | AC128: 2019-09-24 | AD128: =IF('تحضير باهبري'!D128=1,NOW(),"") ->  | AE128: غائب | AF128: 6:30 | AG128: =IF('تحضير باهبري'!E128=1,NOW(),"") ->  | AH128: غائب | AI128: 6:30 | AJ128: =IF('تحضير باهبري'!F128=1,NOW(),"") ->  | AK128: غائب | AL128: 5:00 | AM128: =IF('تحضير باهبري'!G128=1,NOW(),"") ->  | AN128: غائب | AO128: 5:00 | AP128: 11:30:00 | AQ128: 690 | BB128: الثلاثاء | BC128: 2019-09-24 | BD128: =IF('تحضير ابوبكر'!D128=1,NOW(),"") ->  | BE128: غائب | BF128: 6:30 | BG128: =IF('تحضير ابوبكر'!E128=1,NOW(),"") ->  | BH128: غائب | BI128: 6:30 | BJ128: =IF('تحضير ابوبكر'!F128=1,NOW(),"") ->  | BK128: غائب | BL128: 5:00 | BM128: =IF('تحضير ابوبكر'!G128=1,NOW(),"") ->  | BN128: غائب | BO128: 5:00 | BP128: 11:30:00 | BQ128: 690
B129: الأربعاء | C129: 2019-09-25 | D129: =IF('تحضير سامي'!D129=1,NOW(),"") ->  | E129: غائب | F129: 6:30 | G129: =IF('تحضير سامي'!E129=1,NOW(),"") ->  | H129: غائب | I129: 6:30 | J129: =IF('تحضير سامي'!F129=1,NOW(),"") ->  | K129: غائب | L129: 5:00 | M129: =IF('تحضير سامي'!G129=1,NOW(),"") ->  | N129: غائب | O129: 5:00 | P129: 11:30:00 | Q129: 690 | AB129: الأربعاء | AC129: 2019-09-25 | AD129: =IF('تحضير باهبري'!D129=1,NOW(),"") ->  | AE129: غائب | AF129: 6:30 | AG129: =IF('تحضير باهبري'!E129=1,NOW(),"") ->  | AH129: غائب | AI129: 6:30 | AJ129: =IF('تحضير باهبري'!F129=1,NOW(),"") ->  | AK129: غائب | AL129: 5:00 | AM129: =IF('تحضير باهبري'!G129=1,NOW(),"") ->  | AN129: غائب | AO129: 5:00 | AP129: 11:30:00 | AQ129: 690 | BB129: الأربعاء | BC129: 2019-09-25 | BD129: =IF('تحضير ابوبكر'!D129=1,NOW(),"") ->  | BE129: غائب | BF129: 6:30 | BG129: =IF('تحضير ابوبكر'!E129=1,NOW(),"") ->  | BH129: غائب | BI129: 6:30 | BJ129: =IF('تحضير ابوبكر'!F129=1,NOW(),"") ->  | BK129: غائب | BL129: 5:00 | BM129: =IF('تحضير ابوبكر'!G129=1,NOW(),"") ->  | BN129: غائب | BO129: 5:00 | BP129: 11:30:00 | BQ129: 690
B130: الخميس | C130: 2019-09-26 | D130: =IF('تحضير سامي'!D130=1,NOW(),"") ->  | E130: غائب | F130: 6:30 | G130: =IF('تحضير سامي'!E130=1,NOW(),"") ->  | H130: غائب | I130: 6:30 | J130: =IF('تحضير سامي'!F130=1,NOW(),"") ->  | K130: غائب | L130: 5:00 | M130: =IF('تحضير سامي'!G130=1,NOW(),"") ->  | N130: غائب | O130: 5:00 | P130: 11:30:00 | Q130: 690 | AB130: الخميس | AC130: 2019-09-26 | AD130: =IF('تحضير باهبري'!D130=1,NOW(),"") ->  | AE130: غائب | AF130: 6:30 | AG130: =IF('تحضير باهبري'!E130=1,NOW(),"") ->  | AH130: غائب | AI130: 6:30 | AJ130: =IF('تحضير باهبري'!F130=1,NOW(),"") ->  | AK130: غائب | AL130: 5:00 | AM130: =IF('تحضير باهبري'!G130=1,NOW(),"") ->  | AN130: غائب | AO130: 5:00 | AP130: 11:30:00 | AQ130: 690 | BB130: الخميس | BC130: 2019-09-26 | BD130: =IF('تحضير ابوبكر'!D130=1,NOW(),"") ->  | BE130: غائب | BF130: 6:30 | BG130: =IF('تحضير ابوبكر'!E130=1,NOW(),"") ->  | BH130: غائب | BI130: 6:30 | BJ130: =IF('تحضير ابوبكر'!F130=1,NOW(),"") ->  | BK130: غائب | BL130: 5:00 | BM130: =IF('تحضير ابوبكر'!G130=1,NOW(),"") ->  | BN130: غائب | BO130: 5:00 | BP130: 11:30:00 | BQ130: 690
B131: الجمعة | C131: 2019-09-27 | D131: =IF('تحضير سامي'!D131=1,NOW(),"") ->  | E131: اجازة | F131: 00:00:00 | G131: =IF('تحضير سامي'!E131=1,NOW(),"") ->  | H131: اجازة | I131: 00:00:00 | J131: =IF('تحضير سامي'!F131=1,NOW(),"") ->  | K131: اجازة | L131: 00:00:00 | M131: =IF('تحضير سامي'!G131=1,NOW(),"") ->  | N131: اجازة | O131: 00:00:00 | P131: 00:00:00 | Q131: 0 | AB131: الجمعة | AC131: 2019-09-27 | AD131: =IF('تحضير باهبري'!D131=1,NOW(),"") ->  | AE131: اجازة | AF131: 00:00:00 | AG131: =IF('تحضير باهبري'!E131=1,NOW(),"") ->  | AH131: اجازة | AI131: 00:00:00 | AJ131: =IF('تحضير باهبري'!F131=1,NOW(),"") ->  | AK131: اجازة | AL131: 00:00:00 | AM131: =IF('تحضير باهبري'!G131=1,NOW(),"") ->  | AN131: اجازة | AO131: 00:00:00 | AP131: 00:00:00 | AQ131: 0 | BB131: الجمعة | BC131: 2019-09-27 | BD131: =IF('تحضير ابوبكر'!D131=1,NOW(),"") ->  | BE131: اجازة | BF131: 00:00:00 | BG131: =IF('تحضير ابوبكر'!E131=1,NOW(),"") ->  | BH131: اجازة | BI131: 00:00:00 | BJ131: =IF('تحضير ابوبكر'!F131=1,NOW(),"") ->  | BK131: اجازة | BL131: 00:00:00 | BM131: =IF('تحضير ابوبكر'!G131=1,NOW(),"") ->  | BN131: اجازة | BO131: 00:00:00 | BP131: 00:00:00 | BQ131: 0
B132: السبت | C132: 2019-09-28 | D132: =IF('تحضير سامي'!D132=1,NOW(),"") ->  | E132: غائب | F132: 6:30 | G132: =IF('تحضير سامي'!E132=1,NOW(),"") ->  | H132: غائب | I132: 6:30 | J132: =IF('تحضير سامي'!F132=1,NOW(),"") ->  | K132: غائب | L132: 5:00 | M132: =IF('تحضير سامي'!G132=1,NOW(),"") ->  | N132: غائب | O132: 5:00 | P132: 11:30:00 | Q132: 690 | AB132: السبت | AC132: 2019-09-28 | AD132: =IF('تحضير باهبري'!D132=1,NOW(),"") ->  | AE132: =IF(AD132="","غائب",IF(AD132=$D$6," تــم الحضور في الموعد",IF(AD132<$D$6,"تم الحضور قبل الموعد",IF(AD132>$D$6,"تم الحضور بعد الموعد","")))) -> غائب | AF132: =IF(AE132="غائب","6:30",IF(AE132="تم الحضور قبل الموعد","0:00",IF(AE132="تم الحضور في الموعد","0:00",IF(AE132>$D$6,AD132-$D$6,"")))) -> 6:30 | AG132: =IF('تحضير باهبري'!E132=1,NOW(),"") ->  | AH132: =IF(AG132="","غائب",IF(AG132=$G$6," تم الانصراف في الموعد",IF(AG132<$G$6,"تم الانصراف قبل الموعد",IF(AG132>$G$6,"تم الانصراف بعد الموعد","")))) -> غائب | AI132: =IF(AH132="غائب","6:30",IF(AH132="تم الانصراف بعد الموعد","0:00",IF(AH132="تم الانصراف في الموعد","0:00",IF(AH132>$G$6,$G$6-AG132,"")))) -> 6:30 | AJ132: =IF('تحضير باهبري'!F132=1,NOW(),"") ->  | AK132: =IF(AJ132="","غائب",IF(AJ132=$J$6," تــم الحضور في الموعد",IF(AJ132<$J$6,"تم الحضور قبل الموعد",IF(AJ132>$J$6,"تم الحضور بعد الموعد","")))) -> غائب | AL132: =IF(AK132="غائب","5:00",IF(AK132="تم الحضور قبل الموعد","0:00",IF(AK132="تم الحضور في الموعد","0:00",IF(AK132>$J$6,AJ132-$J$6,"")))) -> 5:00 | AM132: =IF('تحضير باهبري'!G132=1,NOW(),"") ->  | AN132: =IF(AM132="","غائب",IF(AM132=$M$6," تم الانصراف في الموعد",IF(AM132<$M$6,"تم الانصراف قبل الموعد",IF(AM132>$M$6,"تم الانصراف بعد الموعد","")))) -> غائب | AO132: =IF(AN132="غائب","5:00",IF(AN132="تم الانصراف بعد الموعد","0:00",IF(AN132="تم الانصراف في الموعد","0:00",IF(AN132>$M$6,$M$6-AM132,"")))) -> 5:00 | AP132: 11:30:00 | AQ132: 690 | BB132: السبت | BC132: 2019-09-28 | BD132: =IF('تحضير ابوبكر'!D132=1,NOW(),"") ->  | BE132: =IF(BD132="","غائب",IF(BD132=$D$6," تــم الحضور في الموعد",IF(BD132<$D$6,"تم الحضور قبل الموعد",IF(BD132>$D$6,"تم الحضور بعد الموعد","")))) -> غائب | BF132: =IF(BE132="غائب","6:30",IF(BE132="تم الحضور قبل الموعد","0:00",IF(BE132="تم الحضور في الموعد","0:00",IF(BE132>$D$6,BD132-$D$6,"")))) -> 6:30 | BG132: =IF('تحضير ابوبكر'!E132=1,NOW(),"") ->  | BH132: =IF(BG132="","غائب",IF(BG132=$G$6," تم الانصراف في الموعد",IF(BG132<$G$6,"تم الانصراف قبل الموعد",IF(BG132>$G$6,"تم الانصراف بعد الموعد","")))) -> غائب | BI132: =IF(BH132="غائب","6:30",IF(BH132="تم الانصراف بعد الموعد","0:00",IF(BH132="تم الانصراف في الموعد","0:00",IF(BH132>$G$6,$G$6-BG132,"")))) -> 6:30 | BJ132: =IF('تحضير ابوبكر'!F132=1,NOW(),"") ->  | BK132: =IF(BJ132="","غائب",IF(BJ132=$J$6," تــم الحضور في الموعد",IF(BJ132<$J$6,"تم الحضور قبل الموعد",IF(BJ132>$J$6,"تم الحضور بعد الموعد","")))) -> غائب | BL132: =IF(BK132="غائب","5:00",IF(BK132="تم الحضور قبل الموعد","0:00",IF(BK132="تم الحضور في الموعد","0:00",IF(BK132>$J$6,BJ132-$J$6,"")))) -> 5:00 | BM132: =IF('تحضير ابوبكر'!G132=1,NOW(),"") ->  | BN132: =IF(BM132="","غائب",IF(BM132=$M$6," تم الانصراف في الموعد",IF(BM132<$M$6,"تم الانصراف قبل الموعد",IF(BM132>$M$6,"تم الانصراف بعد الموعد","")))) -> غائب | BO132: =IF(BN132="غائب","5:00",IF(BN132="تم الانصراف بعد الموعد","0:00",IF(BN132="تم الانصراف في الموعد","0:00",IF(BN132>$M$6,$M$6-BM132,"")))) -> 5:00 | BP132: 11:30:00 | BQ132: 690
B133: الأحد | C133: 2019-09-29 | D133: =IF('تحضير سامي'!D133=1,NOW(),"") ->  | E133: غائب | F133: 6:30 | G133: =IF('تحضير سامي'!E133=1,NOW(),"") ->  | H133: غائب | I133: 6:30 | J133: =IF('تحضير سامي'!F133=1,NOW(),"") ->  | K133: غائب | L133: 5:00 | M133: =IF('تحضير سامي'!G133=1,NOW(),"") ->  | N133: غائب | O133: 5:00 | P133: 11:30:00 | Q133: 690 | AB133: الأحد | AC133: 2019-09-29 | AD133: =IF('تحضير باهبري'!D133=1,NOW(),"") ->  | AE133: غائب | AF133: 6:30 | AG133: =IF('تحضير باهبري'!E133=1,NOW(),"") ->  | AH133: غائب | AI133: 6:30 | AJ133: =IF('تحضير باهبري'!F133=1,NOW(),"") ->  | AK133: غائب | AL133: 5:00 | AM133: =IF('تحضير باهبري'!G133=1,NOW(),"") ->  | AN133: غائب | AO133: 5:00 | AP133: 11:30:00 | AQ133: 690 | BB133: الأحد | BC133: 2019-09-29 | BD133: =IF('تحضير ابوبكر'!D133=1,NOW(),"") ->  | BE133: غائب | BF133: 6:30 | BG133: =IF('تحضير ابوبكر'!E133=1,NOW(),"") ->  | BH133: غائب | BI133: 6:30 | BJ133: =IF('تحضير ابوبكر'!F133=1,NOW(),"") ->  | BK133: غائب | BL133: 5:00 | BM133: =IF('تحضير ابوبكر'!G133=1,NOW(),"") ->  | BN133: غائب | BO133: 5:00 | BP133: 11:30:00 | BQ133: 690
B134: الإثنين | C134: 2019-09-30 | D134: =IF('تحضير سامي'!D134=1,NOW(),"") ->  | E134: غائب | F134: 6:30 | G134: =IF('تحضير سامي'!E134=1,NOW(),"") ->  | H134: غائب | I134: 6:30 | J134: =IF('تحضير سامي'!F134=1,NOW(),"") ->  | K134: غائب | L134: 5:00 | M134: =IF('تحضير سامي'!G134=1,NOW(),"") ->  | N134: غائب | O134: 5:00 | P134: 11:30:00 | Q134: 690 | AB134: الإثنين | AC134: 2019-09-30 | AD134: =IF('تحضير باهبري'!D134=1,NOW(),"") ->  | AE134: غائب | AF134: 6:30 | AG134: =IF('تحضير باهبري'!E134=1,NOW(),"") ->  | AH134: غائب | AI134: 6:30 | AJ134: =IF('تحضير باهبري'!F134=1,NOW(),"") ->  | AK134: غائب | AL134: 5:00 | AM134: =IF('تحضير باهبري'!G134=1,NOW(),"") ->  | AN134: غائب | AO134: 5:00 | AP134: 11:30:00 | AQ134: 690 | BB134: الإثنين | BC134: 2019-09-30 | BD134: =IF('تحضير ابوبكر'!D134=1,NOW(),"") ->  | BE134: غائب | BF134: 6:30 | BG134: =IF('تحضير ابوبكر'!E134=1,NOW(),"") ->  | BH134: غائب | BI134: 6:30 | BJ134: =IF('تحضير ابوبكر'!F134=1,NOW(),"") ->  | BK134: غائب | BL134: 5:00 | BM134: =IF('تحضير ابوبكر'!G134=1,NOW(),"") ->  | BN134: غائب | BO134: 5:00 | BP134: 11:30:00 | BQ134: 690
C136: اجمالي وقت الدوام | E136: 19140 | F136: اجمالي وقت التاخير بالدقائق | H136: =SUM(Q105:Q134) -> 17940 | L136: الراتب | N136: 50000 | AE136: اجمالي وقت الدوام | AF136: 19140 | AH136: اجمالي وقت التاخير بالدقائق | AI136: =SUM(AQ105:AQ134) -> 17940 | AL136: الراتب | AN136: 55000 | BE136: اجمالي وقت الدوام | BF136: 19140 | BH136: اجمالي وقت التاخير بالدقائق | BI136: =SUM(BQ105:BQ134) -> 17940 | BL136: الراتب | BN136: 45000
B137: الثلاثاء | C137: 2019-10-01 | D137: =IF('تحضير سامي'!D137=1,NOW(),"") ->  | E137: غائب | F137: 6:30 | G137: =IF('تحضير سامي'!E137=1,NOW(),"") ->  | H137: غائب | I137: =IF(H137="غائب","6:30",IF(H137="تم الانصراف بعد الموعد","0:00",IF(H137="تم الانصراف في الموعد","0:00",IF(H137>$G$6,$G$6-G137,"")))) -> 6:30 | J137: =IF('تحضير سامي'!F137=1,NOW(),"") ->  | K137: غائب | L137: =IF(K137="غائب","5:00",IF(K137="تم الحضور قبل الموعد","0:00",IF(K137="تم الحضور في الموعد","0:00",IF(K137>$J$6,J137-$J$6,"")))) -> 5:00 | M137: =IF('تحضير سامي'!G137=1,NOW(),"") ->  | N137: غائب | O137: =IF(N137="غائب","5:00",IF(N137="تم الانصراف بعد الموعد","0:00",IF(N137="تم الانصراف في الموعد","0:00",IF(N137>$M$6,$M$6-M137,"")))) -> 5:00 | P137: =IF(H137="غائب","6:30",I137)+IF(N137="غائب","5:00",O137)+IF(E137="غائب","0:00",F137)+IF(K137="غائب","0:00",L137) -> 11:30:00 | Q137: =(HOUR(P137)*3600+MINUTE(P137)*60+SECOND(P137))/60 -> 690 | AB137: الثلاثاء | AC137: 2019-10-01 | AD137: =IF('تحضير باهبري'!D137=1,NOW(),"") ->  | AE137: =IF(AD137="","غائب",IF(AD137=$D$6," تــم الحضور في الموعد",IF(AD137<$D$6,"تم الحضور قبل الموعد",IF(AD137>$D$6,"تم الحضور بعد الموعد","")))) -> غائب | AF137: =IF(AE137="غائب","6:30",IF(AE137="تم الحضور قبل الموعد","0:00",IF(AE137="تم الحضور في الموعد","0:00",IF(AE137>$D$6,AD137-$D$6,"")))) -> 6:30 | AG137: =IF('تحضير باهبري'!E137=1,NOW(),"") ->  | AH137: =IF(AG137="","غائب",IF(AG137=$G$6," تم الانصراف في الموعد",IF(AG137<$G$6,"تم الانصراف قبل الموعد",IF(AG137>$G$6,"تم الانصراف بعد الموعد","")))) -> غائب | AI137: =IF(AH137="غائب","6:30",IF(AH137="تم الانصراف بعد الموعد","0:00",IF(AH137="تم الانصراف في الموعد","0:00",IF(AH137>$G$6,$G$6-AG137,"")))) -> 6:30 | AJ137: =IF('تحضير باهبري'!F137=1,NOW(),"") ->  | AK137: =IF(AJ137="","غائب",IF(AJ137=$J$6," تــم الحضور في الموعد",IF(AJ137<$J$6,"تم الحضور قبل الموعد",IF(AJ137>$J$6,"تم الحضور بعد الموعد","")))) -> غائب | AL137: =IF(AK137="غائب","5:00",IF(AK137="تم الحضور قبل الموعد","0:00",IF(AK137="تم الحضور في الموعد","0:00",IF(AK137>$J$6,AJ137-$J$6,"")))) -> 5:00 | AM137: =IF('تحضير باهبري'!G137=1,NOW(),"") ->  | AN137: =IF(AM137="","غائب",IF(AM137=$M$6," تم الانصراف في الموعد",IF(AM137<$M$6,"تم الانصراف قبل الموعد",IF(AM137>$M$6,"تم الانصراف بعد الموعد","")))) -> غائب | AO137: =IF(AN137="غائب","5:00",IF(AN137="تم الانصراف بعد الموعد","0:00",IF(AN137="تم الانصراف في الموعد","0:00",IF(AN137>$M$6,$M$6-AM137,"")))) -> 5:00 | AP137: =IF(AH137="غائب","6:30",AI137)+IF(AN137="غائب","5:00",AO137)+IF(AE137="غائب","0:00",AF137)+IF(AK137="غائب","0:00",AL137) -> 11:30:00 | AQ137: =(HOUR(AP137)*3600+MINUTE(AP137)*60+SECOND(AP137))/60 -> 690 | BB137: الثلاثاء | BC137: 2019-10-01 | BD137: =IF('تحضير ابوبكر'!D137=1,NOW(),"") ->  | BE137: =IF(BD137="","غائب",IF(BD137=$D$6," تــم الحضور في الموعد",IF(BD137<$D$6,"تم الحضور قبل الموعد",IF(BD137>$D$6,"تم الحضور بعد الموعد","")))) -> غائب | BF137: =IF(BE137="غائب","6:30",IF(BE137="تم الحضور قبل الموعد","0:00",IF(BE137="تم الحضور في الموعد","0:00",IF(BE137>$D$6,BD137-$D$6,"")))) -> 6:30 | BG137: =IF('تحضير ابوبكر'!E137=1,NOW(),"") ->  | BH137: =IF(BG137="","غائب",IF(BG137=$G$6," تم الانصراف في الموعد",IF(BG137<$G$6,"تم الانصراف قبل الموعد",IF(BG137>$G$6,"تم الانصراف بعد الموعد","")))) -> غائب | BI137: =IF(BH137="غائب","6:30",IF(BH137="تم الانصراف بعد الموعد","0:00",IF(BH137="تم الانصراف في الموعد","0:00",IF(BH137>$G$6,$G$6-BG137,"")))) -> 6:30 | BJ137: =IF('تحضير ابوبكر'!F137=1,NOW(),"") ->  | BK137: =IF(BJ137="","غائب",IF(BJ137=$J$6," تــم الحضور في الموعد",IF(BJ137<$J$6,"تم الحضور قبل الموعد",IF(BJ137>$J$6,"تم الحضور بعد الموعد","")))) -> غائب | BL137: =IF(BK137="غائب","5:00",IF(BK137="تم الحضور قبل الموعد","0:00",IF(BK137="تم الحضور في الموعد","0:00",IF(BK137>$J$6,BJ137-$J$6,"")))) -> 5:00 | BM137: =IF('تحضير ابوبكر'!G137=1,NOW(),"") ->  | BN137: =IF(BM137="","غائب",IF(BM137=$M$6," تم الانصراف في الموعد",IF(BM137<$M$6,"تم الانصراف قبل الموعد",IF(BM137>$M$6,"تم الانصراف بعد الموعد","")))) -> غائب | BO137: =IF(BN137="غائب","5:00",IF(BN137="تم الانصراف بعد الموعد","0:00",IF(BN137="تم الانصراف في الموعد","0:00",IF(BN137>$M$6,$M$6-BM137,"")))) -> 5:00 | BP137: =IF(BH137="غائب","6:30",BI137)+IF(BN137="غائب","5:00",BO137)+IF(BE137="غائب","0:00",BF137)+IF(BK137="غائب","0:00",BL137) -> 11:30:00 | BQ137: =(HOUR(BP137)*3600+MINUTE(BP137)*60+SECOND(BP137))/60 -> 690
B138: الأربعاء | C138: 2019-10-02 | D138: =IF('تحضير سامي'!D138=1,NOW(),"") ->  | E138: غائب | F138: 6:30 | G138: =IF('تحضير سامي'!E138=1,NOW(),"") ->  | H138: غائب | I138: 6:30 | J138: =IF('تحضير سامي'!F138=1,NOW(),"") ->  | K138: غائب | L138: 5:00 | M138: =IF('تحضير سامي'!G138=1,NOW(),"") ->  | N138: غائب | O138: 5:00 | P138: =IF(H138="غائب","6:30",I138)+IF(N138="غائب","5:00",O138)+IF(E138="غائب","0:00",F138)+IF(K138="غائب","0:00",L138) -> 11:30:00 | Q138: 690 | AB138: الأربعاء | AC138: 2019-10-02 | AD138: =IF('تحضير باهبري'!D138=1,NOW(),"") ->  | AE138: غائب | AF138: 6:30 | AG138: =IF('تحضير باهبري'!E138=1,NOW(),"") ->  | AH138: غائب | AI138: 6:30 | AJ138: =IF('تحضير باهبري'!F138=1,NOW(),"") ->  | AK138: غائب | AL138: 5:00 | AM138: =IF('تحضير باهبري'!G138=1,NOW(),"") ->  | AN138: غائب | AO138: 5:00 | AP138: 11:30:00 | AQ138: 690 | BB138: الأربعاء | BC138: 2019-10-02 | BD138: =IF('تحضير ابوبكر'!D138=1,NOW(),"") ->  | BE138: غائب | BF138: 6:30 | BG138: =IF('تحضير ابوبكر'!E138=1,NOW(),"") ->  | BH138: غائب | BI138: 6:30 | BJ138: =IF('تحضير ابوبكر'!F138=1,NOW(),"") ->  | BK138: غائب | BL138: 5:00 | BM138: =IF('تحضير ابوبكر'!G138=1,NOW(),"") ->  | BN138: غائب | BO138: 5:00 | BP138: 11:30:00 | BQ138: 690
B139: الخميس | C139: 2019-10-03 | D139: =IF('تحضير سامي'!D139=1,NOW(),"") ->  | E139: غائب | F139: 6:30 | G139: =IF('تحضير سامي'!E139=1,NOW(),"") ->  | H139: غائب | I139: 6:30 | J139: =IF('تحضير سامي'!F139=1,NOW(),"") ->  | K139: غائب | L139: 5:00 | M139: =IF('تحضير سامي'!G139=1,NOW(),"") ->  | N139: غائب | O139: 5:00 | P139: 11:30:00 | Q139: 690 | AB139: الخميس | AC139: 2019-10-03 | AD139: =IF('تحضير باهبري'!D139=1,NOW(),"") ->  | AE139: غائب | AF139: 6:30 | AG139: =IF('تحضير باهبري'!E139=1,NOW(),"") ->  | AH139: غائب | AI139: 6:30 | AJ139: =IF('تحضير باهبري'!F139=1,NOW(),"") ->  | AK139: غائب | AL139: 5:00 | AM139: =IF('تحضير باهبري'!G139=1,NOW(),"") ->  | AN139: غائب | AO139: 5:00 | AP139: 11:30:00 | AQ139: 690 | BB139: الخميس | BC139: 2019-10-03 | BD139: =IF('تحضير ابوبكر'!D139=1,NOW(),"") ->  | BE139: غائب | BF139: 6:30 | BG139: =IF('تحضير ابوبكر'!E139=1,NOW(),"") ->  | BH139: غائب | BI139: 6:30 | BJ139: =IF('تحضير ابوبكر'!F139=1,NOW(),"") ->  | BK139: غائب | BL139: 5:00 | BM139: =IF('تحضير ابوبكر'!G139=1,NOW(),"") ->  | BN139: غائب | BO139: 5:00 | BP139: 11:30:00 | BQ139: 690
B140: الجمعة | C140: 2019-10-04 | D140: =IF('تحضير سامي'!D140=1,NOW(),"") ->  | E140: اجازة | F140: 00:00:00 | G140: =IF('تحضير سامي'!E140=1,NOW(),"") ->  | H140: اجازة | I140: 00:00:00 | J140: =IF('تحضير سامي'!F140=1,NOW(),"") ->  | K140: اجازة | L140: 00:00:00 | M140: =IF('تحضير سامي'!G140=1,NOW(),"") ->  | N140: اجازة | O140: 00:00:00 | P140: 00:00:00 | Q140: 0 | AB140: الجمعة | AC140: 2019-10-04 | AD140: =IF('تحضير باهبري'!D140=1,NOW(),"") ->  | AE140: اجازة | AF140: 00:00:00 | AG140: =IF('تحضير باهبري'!E140=1,NOW(),"") ->  | AH140: اجازة | AI140: 00:00:00 | AJ140: =IF('تحضير باهبري'!F140=1,NOW(),"") ->  | AK140: اجازة | AL140: 00:00:00 | AM140: =IF('تحضير باهبري'!G140=1,NOW(),"") ->  | AN140: اجازة | AO140: 00:00:00 | AP140: 00:00:00 | AQ140: 0 | BB140: الجمعة | BC140: 2019-10-04 | BD140: =IF('تحضير ابوبكر'!D140=1,NOW(),"") ->  | BE140: اجازة | BF140: 00:00:00 | BG140: =IF('تحضير ابوبكر'!E140=1,NOW(),"") ->  | BH140: اجازة | BI140: 00:00:00 | BJ140: =IF('تحضير ابوبكر'!F140=1,NOW(),"") ->  | BK140: اجازة | BL140: 00:00:00 | BM140: =IF('تحضير ابوبكر'!G140=1,NOW(),"") ->  | BN140: اجازة | BO140: 00:00:00 | BP140: 00:00:00 | BQ140: 0
B141: السبت | C141: 2019-10-05 | D141: =IF('تحضير سامي'!D141=1,NOW(),"") ->  | E141: =IF(D141="","غائب",IF(D141=$D$6," تــم الحضور في الموعد",IF(D141<$D$6,"تم الحضور قبل الموعد",IF(D141>$D$6,"تم الحضور بعد الموعد","")))) -> غائب | F141: 6:30 | G141: =IF('تحضير سامي'!E141=1,NOW(),"") ->  | H141: =IF(G141="","غائب",IF(G141=$G$6," تم الانصراف في الموعد",IF(G141<$G$6,"تم الانصراف قبل الموعد",IF(G141>$G$6,"تم الانصراف بعد الموعد","")))) -> غائب | I141: 6:30 | J141: =IF('تحضير سامي'!F141=1,NOW(),"") ->  | K141: =IF(J141="","غائب",IF(J141=$J$6," تــم الحضور في الموعد",IF(J141<$J$6,"تم الحضور قبل الموعد",IF(J141>$J$6,"تم الحضور بعد الموعد","")))) -> غائب | L141: 5:00 | M141: =IF('تحضير سامي'!G141=1,NOW(),"") ->  | N141: =IF(M141="","غائب",IF(M141=$M$6," تم الانصراف في الموعد",IF(M141<$M$6,"تم الانصراف قبل الموعد",IF(M141>$M$6,"تم الانصراف بعد الموعد","")))) -> غائب | O141: 5:00 | P141: 11:30:00 | Q141: 690 | AB141: السبت | AC141: 2019-10-05 | AD141: =IF('تحضير باهبري'!D141=1,NOW(),"") ->  | AE141: =IF(AD141="","غائب",IF(AD141=$D$6," تــم الحضور في الموعد",IF(AD141<$D$6,"تم الحضور قبل الموعد",IF(AD141>$D$6,"تم الحضور بعد الموعد","")))) -> غائب | AF141: =IF(AE141="غائب","6:30",IF(AE141="تم الحضور قبل الموعد","0:00",IF(AE141="تم الحضور في الموعد","0:00",IF(AE141>$D$6,AD141-$D$6,"")))) -> 6:30 | AG141: =IF('تحضير باهبري'!E141=1,NOW(),"") ->  | AH141: =IF(AG141="","غائب",IF(AG141=$G$6," تم الانصراف في الموعد",IF(AG141<$G$6,"تم الانصراف قبل الموعد",IF(AG141>$G$6,"تم الانصراف بعد الموعد","")))) -> غائب | AI141: =IF(AH141="غائب","6:30",IF(AH141="تم الانصراف بعد الموعد","0:00",IF(AH141="تم الانصراف في الموعد","0:00",IF(AH141>$G$6,$G$6-AG141,"")))) -> 6:30 | AJ141: =IF('تحضير باهبري'!F141=1,NOW(),"") ->  | AK141: =IF(AJ141="","غائب",IF(AJ141=$J$6," تــم الحضور في الموعد",IF(AJ141<$J$6,"تم الحضور قبل الموعد",IF(AJ141>$J$6,"تم الحضور بعد الموعد","")))) -> غائب | AL141: =IF(AK141="غائب","5:00",IF(AK141="تم الحضور قبل الموعد","0:00",IF(AK141="تم الحضور في الموعد","0:00",IF(AK141>$J$6,AJ141-$J$6,"")))) -> 5:00 | AM141: =IF('تحضير باهبري'!G141=1,NOW(),"") ->  | AN141: =IF(AM141="","غائب",IF(AM141=$M$6," تم الانصراف في الموعد",IF(AM141<$M$6,"تم الانصراف قبل الموعد",IF(AM141>$M$6,"تم الانصراف بعد الموعد","")))) -> غائب | AO141: =IF(AN141="غائب","5:00",IF(AN141="تم الانصراف بعد الموعد","0:00",IF(AN141="تم الانصراف في الموعد","0:00",IF(AN141>$M$6,$M$6-AM141,"")))) -> 5:00 | AP141: 11:30:00 | AQ141: 690 | BB141: السبت | BC141: 2019-10-05 | BD141: =IF('تحضير ابوبكر'!D141=1,NOW(),"") ->  | BE141: =IF(BD141="","غائب",IF(BD141=$D$6," تــم الحضور في الموعد",IF(BD141<$D$6,"تم الحضور قبل الموعد",IF(BD141>$D$6,"تم الحضور بعد الموعد","")))) -> غائب | BF141: =IF(BE141="غائب","6:30",IF(BE141="تم الحضور قبل الموعد","0:00",IF(BE141="تم الحضور في الموعد","0:00",IF(BE141>$D$6,BD141-$D$6,"")))) -> 6:30 | BG141: =IF('تحضير ابوبكر'!E141=1,NOW(),"") ->  | BH141: =IF(BG141="","غائب",IF(BG141=$G$6," تم الانصراف في الموعد",IF(BG141<$G$6,"تم الانصراف قبل الموعد",IF(BG141>$G$6,"تم الانصراف بعد الموعد","")))) -> غائب | BI141: =IF(BH141="غائب","6:30",IF(BH141="تم الانصراف بعد الموعد","0:00",IF(BH141="تم الانصراف في الموعد","0:00",IF(BH141>$G$6,$G$6-BG141,"")))) -> 6:30 | BJ141: =IF('تحضير ابوبكر'!F141=1,NOW(),"") ->  | BK141: =IF(BJ141="","غائب",IF(BJ141=$J$6," تــم الحضور في الموعد",IF(BJ141<$J$6,"تم الحضور قبل الموعد",IF(BJ141>$J$6,"تم الحضور بعد الموعد","")))) -> غائب | BL141: =IF(BK141="غائب","5:00",IF(BK141="تم الحضور قبل الموعد","0:00",IF(BK141="تم الحضور في الموعد","0:00",IF(BK141>$J$6,BJ141-$J$6,"")))) -> 5:00 | BM141: =IF('تحضير ابوبكر'!G141=1,NOW(),"") ->  | BN141: =IF(BM141="","غائب",IF(BM141=$M$6," تم الانصراف في الموعد",IF(BM141<$M$6,"تم الانصراف قبل الموعد",IF(BM141>$M$6,"تم الانصراف بعد الموعد","")))) -> غائب | BO141: =IF(BN141="غائب","5:00",IF(BN141="تم الانصراف بعد الموعد","0:00",IF(BN141="تم الانصراف في الموعد","0:00",IF(BN141>$M$6,$M$6-BM141,"")))) -> 5:00 | BP141: 11:30:00 | BQ141: 690
B142: الأحد | C142: 2019-10-06 | D142: =IF('تحضير سامي'!D142=1,NOW(),"") ->  | E142: غائب | F142: 6:30 | G142: =IF('تحضير سامي'!E142=1,NOW(),"") ->  | H142: غائب | I142: 6:30 | J142: =IF('تحضير سامي'!F142=1,NOW(),"") ->  | K142: غائب | L142: 5:00 | M142: =IF('تحضير سامي'!G142=1,NOW(),"") ->  | N142: غائب | O142: 5:00 | P142: 11:30:00 | Q142: 690 | AB142: الأحد | AC142: 2019-10-06 | AD142: =IF('تحضير باهبري'!D142=1,NOW(),"") ->  | AE142: غائب | AF142: 6:30 | AG142: =IF('تحضير باهبري'!E142=1,NOW(),"") ->  | AH142: غائب | AI142: 6:30 | AJ142: =IF('تحضير باهبري'!F142=1,NOW(),"") ->  | AK142: غائب | AL142: 5:00 | AM142: =IF('تحضير باهبري'!G142=1,NOW(),"") ->  | AN142: غائب | AO142: 5:00 | AP142: 11:30:00 | AQ142: 690 | BB142: الأحد | BC142: 2019-10-06 | BD142: =IF('تحضير ابوبكر'!D142=1,NOW(),"") ->  | BE142: غائب | BF142: 6:30 | BG142: =IF('تحضير ابوبكر'!E142=1,NOW(),"") ->  | BH142: غائب | BI142: 6:30 | BJ142: =IF('تحضير ابوبكر'!F142=1,NOW(),"") ->  | BK142: غائب | BL142: 5:00 | BM142: =IF('تحضير ابوبكر'!G142=1,NOW(),"") ->  | BN142: غائب | BO142: 5:00 | BP142: 11:30:00 | BQ142: 690
B143: الإثنين | C143: 2019-10-07 | D143: =IF('تحضير سامي'!D143=1,NOW(),"") ->  | E143: غائب | F143: 6:30 | G143: =IF('تحضير سامي'!E143=1,NOW(),"") ->  | H143: غائب | I143: 6:30 | J143: =IF('تحضير سامي'!F143=1,NOW(),"") ->  | K143: غائب | L143: 5:00 | M143: =IF('تحضير سامي'!G143=1,NOW(),"") ->  | N143: غائب | O143: 5:00 | P143: 11:30:00 | Q143: 690 | AB143: الإثنين | AC143: 2019-10-07 | AD143: =IF('تحضير باهبري'!D143=1,NOW(),"") ->  | AE143: غائب | AF143: 6:30 | AG143: =IF('تحضير باهبري'!E143=1,NOW(),"") ->  | AH143: غائب | AI143: 6:30 | AJ143: =IF('تحضير باهبري'!F143=1,NOW(),"") ->  | AK143: غائب | AL143: 5:00 | AM143: =IF('تحضير باهبري'!G143=1,NOW(),"") ->  | AN143: غائب | AO143: 5:00 | AP143: 11:30:00 | AQ143: 690 | BB143: الإثنين | BC143: 2019-10-07 | BD143: =IF('تحضير ابوبكر'!D143=1,NOW(),"") ->  | BE143: غائب | BF143: 6:30 | BG143: =IF('تحضير ابوبكر'!E143=1,NOW(),"") ->  | BH143: غائب | BI143: 6:30 | BJ143: =IF('تحضير ابوبكر'!F143=1,NOW(),"") ->  | BK143: غائب | BL143: 5:00 | BM143: =IF('تحضير ابوبكر'!G143=1,NOW(),"") ->  | BN143: غائب | BO143: 5:00 | BP143: 11:30:00 | BQ143: 690
B144: الثلاثاء | C144: 2019-10-08 | D144: =IF('تحضير سامي'!D144=1,NOW(),"") ->  | E144: غائب | F144: 6:30 | G144: =IF('تحضير سامي'!E144=1,NOW(),"") ->  | H144: غائب | I144: 6:30 | J144: =IF('تحضير سامي'!F144=1,NOW(),"") ->  | K144: غائب | L144: 5:00 | M144: =IF('تحضير سامي'!G144=1,NOW(),"") ->  | N144: غائب | O144: 5:00 | P144: 11:30:00 | Q144: 690 | AB144: الثلاثاء | AC144: 2019-10-08 | AD144: =IF('تحضير باهبري'!D144=1,NOW(),"") ->  | AE144: غائب | AF144: 6:30 | AG144: =IF('تحضير باهبري'!E144=1,NOW(),"") ->  | AH144: غائب | AI144: 6:30 | AJ144: =IF('تحضير باهبري'!F144=1,NOW(),"") ->  | AK144: غائب | AL144: 5:00 | AM144: =IF('تحضير باهبري'!G144=1,NOW(),"") ->  | AN144: غائب | AO144: 5:00 | AP144: 11:30:00 | AQ144: 690 | BB144: الثلاثاء | BC144: 2019-10-08 | BD144: =IF('تحضير ابوبكر'!D144=1,NOW(),"") ->  | BE144: غائب | BF144: 6:30 | BG144: =IF('تحضير ابوبكر'!E144=1,NOW(),"") ->  | BH144: غائب | BI144: 6:30 | BJ144: =IF('تحضير ابوبكر'!F144=1,NOW(),"") ->  | BK144: غائب | BL144: 5:00 | BM144: =IF('تحضير ابوبكر'!G144=1,NOW(),"") ->  | BN144: غائب | BO144: 5:00 | BP144: 11:30:00 | BQ144: 690
B145: الأربعاء | C145: 2019-10-09 | D145: =IF('تحضير سامي'!D145=1,NOW(),"") ->  | E145: غائب | F145: 6:30 | G145: =IF('تحضير سامي'!E145=1,NOW(),"") ->  | H145: غائب | I145: 6:30 | J145: =IF('تحضير سامي'!F145=1,NOW(),"") ->  | K145: غائب | L145: 5:00 | M145: =IF('تحضير سامي'!G145=1,NOW(),"") ->  | N145: غائب | O145: 5:00 | P145: 11:30:00 | Q145: 690 | AB145: الأربعاء | AC145: 2019-10-09 | AD145: =IF('تحضير باهبري'!D145=1,NOW(),"") ->  | AE145: غائب | AF145: 6:30 | AG145: =IF('تحضير باهبري'!E145=1,NOW(),"") ->  | AH145: غائب | AI145: 6:30 | AJ145: =IF('تحضير باهبري'!F145=1,NOW(),"") ->  | AK145: غائب | AL145: 5:00 | AM145: =IF('تحضير باهبري'!G145=1,NOW(),"") ->  | AN145: غائب | AO145: 5:00 | AP145: 11:30:00 | AQ145: 690 | BB145: الأربعاء | BC145: 2019-10-09 | BD145: =IF('تحضير ابوبكر'!D145=1,NOW(),"") ->  | BE145: غائب | BF145: 6:30 | BG145: =IF('تحضير ابوبكر'!E145=1,NOW(),"") ->  | BH145: غائب | BI145: 6:30 | BJ145: =IF('تحضير ابوبكر'!F145=1,NOW(),"") ->  | BK145: غائب | BL145: 5:00 | BM145: =IF('تحضير ابوبكر'!G145=1,NOW(),"") ->  | BN145: غائب | BO145: 5:00 | BP145: 11:30:00 | BQ145: 690
B146: الخميس | C146: 2019-10-10 | D146: =IF('تحضير سامي'!D146=1,NOW(),"") ->  | E146: غائب | F146: 6:30 | G146: =IF('تحضير سامي'!E146=1,NOW(),"") ->  | H146: غائب | I146: 6:30 | J146: =IF('تحضير سامي'!F146=1,NOW(),"") ->  | K146: غائب | L146: 5:00 | M146: =IF('تحضير سامي'!G146=1,NOW(),"") ->  | N146: غائب | O146: 5:00 | P146: 11:30:00 | Q146: 690 | AB146: الخميس | AC146: 2019-10-10 | AD146: =IF('تحضير باهبري'!D146=1,NOW(),"") ->  | AE146: غائب | AF146: 6:30 | AG146: =IF('تحضير باهبري'!E146=1,NOW(),"") ->  | AH146: غائب | AI146: 6:30 | AJ146: =IF('تحضير باهبري'!F146=1,NOW(),"") ->  | AK146: غائب | AL146: 5:00 | AM146: =IF('تحضير باهبري'!G146=1,NOW(),"") ->  | AN146: غائب | AO146: 5:00 | AP146: 11:30:00 | AQ146: 690 | BB146: الخميس | BC146: 2019-10-10 | BD146: =IF('تحضير ابوبكر'!D146=1,NOW(),"") ->  | BE146: غائب | BF146: 6:30 | BG146: =IF('تحضير ابوبكر'!E146=1,NOW(),"") ->  | BH146: غائب | BI146: 6:30 | BJ146: =IF('تحضير ابوبكر'!F146=1,NOW(),"") ->  | BK146: غائب | BL146: 5:00 | BM146: =IF('تحضير ابوبكر'!G146=1,NOW(),"") ->  | BN146: غائب | BO146: 5:00 | BP146: 11:30:00 | BQ146: 690
B147: الجمعة | C147: 2019-10-11 | D147: =IF('تحضير سامي'!D147=1,NOW(),"") ->  | E147: اجازة | F147: 00:00:00 | G147: =IF('تحضير سامي'!E147=1,NOW(),"") ->  | H147: اجازة | I147: 00:00:00 | J147: =IF('تحضير سامي'!F147=1,NOW(),"") ->  | K147: اجازة | L147: 00:00:00 | M147: =IF('تحضير سامي'!G147=1,NOW(),"") ->  | N147: اجازة | O147: 00:00:00 | P147: 00:00:00 | Q147: 0 | AB147: الجمعة | AC147: 2019-10-11 | AD147: =IF('تحضير باهبري'!D147=1,NOW(),"") ->  | AE147: اجازة | AF147: 00:00:00 | AG147: =IF('تحضير باهبري'!E147=1,NOW(),"") ->  | AH147: اجازة | AI147: 00:00:00 | AJ147: =IF('تحضير باهبري'!F147=1,NOW(),"") ->  | AK147: اجازة | AL147: 00:00:00 | AM147: =IF('تحضير باهبري'!G147=1,NOW(),"") ->  | AN147: اجازة | AO147: 00:00:00 | AP147: 00:00:00 | AQ147: 0 | BB147: الجمعة | BC147: 2019-10-11 | BD147: =IF('تحضير ابوبكر'!D147=1,NOW(),"") ->  | BE147: اجازة | BF147: 00:00:00 | BG147: =IF('تحضير ابوبكر'!E147=1,NOW(),"") ->  | BH147: اجازة | BI147: 00:00:00 | BJ147: =IF('تحضير ابوبكر'!F147=1,NOW(),"") ->  | BK147: اجازة | BL147: 00:00:00 | BM147: =IF('تحضير ابوبكر'!G147=1,NOW(),"") ->  | BN147: اجازة | BO147: 00:00:00 | BP147: 00:00:00 | BQ147: 0
B148: السبت | C148: 2019-10-12 | D148: =IF('تحضير سامي'!D148=1,NOW(),"") ->  | E148: غائب | F148: 6:30 | G148: =IF('تحضير سامي'!E148=1,NOW(),"") ->  | H148: غائب | I148: 6:30 | J148: =IF('تحضير سامي'!F148=1,NOW(),"") ->  | K148: غائب | L148: 5:00 | M148: =IF('تحضير سامي'!G148=1,NOW(),"") ->  | N148: غائب | O148: 5:00 | P148: 11:30:00 | Q148: 690 | AB148: السبت | AC148: 2019-10-12 | AD148: =IF('تحضير باهبري'!D148=1,NOW(),"") ->  | AE148: =IF(AD148="","غائب",IF(AD148=$D$6," تــم الحضور في الموعد",IF(AD148<$D$6,"تم الحضور قبل الموعد",IF(AD148>$D$6,"تم الحضور بعد الموعد","")))) -> غائب | AF148: =IF(AE148="غائب","6:30",IF(AE148="تم الحضور قبل الموعد","0:00",IF(AE148="تم الحضور في الموعد","0:00",IF(AE148>$D$6,AD148-$D$6,"")))) -> 6:30 | AG148: =IF('تحضير باهبري'!E148=1,NOW(),"") ->  | AH148: =IF(AG148="","غائب",IF(AG148=$G$6," تم الانصراف في الموعد",IF(AG148<$G$6,"تم الانصراف قبل الموعد",IF(AG148>$G$6,"تم الانصراف بعد الموعد","")))) -> غائب | AI148: =IF(AH148="غائب","6:30",IF(AH148="تم الانصراف بعد الموعد","0:00",IF(AH148="تم الانصراف في الموعد","0:00",IF(AH148>$G$6,$G$6-AG148,"")))) -> 6:30 | AJ148: =IF('تحضير باهبري'!F148=1,NOW(),"") ->  | AK148: =IF(AJ148="","غائب",IF(AJ148=$J$6," تــم الحضور في الموعد",IF(AJ148<$J$6,"تم الحضور قبل الموعد",IF(AJ148>$J$6,"تم الحضور بعد الموعد","")))) -> غائب | AL148: =IF(AK148="غائب","5:00",IF(AK148="تم الحضور قبل الموعد","0:00",IF(AK148="تم الحضور في الموعد","0:00",IF(AK148>$J$6,AJ148-$J$6,"")))) -> 5:00 | AM148: =IF('تحضير باهبري'!G148=1,NOW(),"") ->  | AN148: =IF(AM148="","غائب",IF(AM148=$M$6," تم الانصراف في الموعد",IF(AM148<$M$6,"تم الانصراف قبل الموعد",IF(AM148>$M$6,"تم الانصراف بعد الموعد","")))) -> غائب | AO148: =IF(AN148="غائب","5:00",IF(AN148="تم الانصراف بعد الموعد","0:00",IF(AN148="تم الانصراف في الموعد","0:00",IF(AN148>$M$6,$M$6-AM148,"")))) -> 5:00 | AP148: 11:30:00 | AQ148: 690 | BB148: السبت | BC148: 2019-10-12 | BD148: =IF('تحضير ابوبكر'!D148=1,NOW(),"") ->  | BE148: =IF(BD148="","غائب",IF(BD148=$D$6," تــم الحضور في الموعد",IF(BD148<$D$6,"تم الحضور قبل الموعد",IF(BD148>$D$6,"تم الحضور بعد الموعد","")))) -> غائب | BF148: =IF(BE148="غائب","6:30",IF(BE148="تم الحضور قبل الموعد","0:00",IF(BE148="تم الحضور في الموعد","0:00",IF(BE148>$D$6,BD148-$D$6,"")))) -> 6:30 | BG148: =IF('تحضير ابوبكر'!E148=1,NOW(),"") ->  | BH148: =IF(BG148="","غائب",IF(BG148=$G$6," تم الانصراف في الموعد",IF(BG148<$G$6,"تم الانصراف قبل الموعد",IF(BG148>$G$6,"تم الانصراف بعد الموعد","")))) -> غائب | BI148: =IF(BH148="غائب","6:30",IF(BH148="تم الانصراف بعد الموعد","0:00",IF(BH148="تم الانصراف في الموعد","0:00",IF(BH148>$G$6,$G$6-BG148,"")))) -> 6:30 | BJ148: =IF('تحضير ابوبكر'!F148=1,NOW(),"") ->  | BK148: =IF(BJ148="","غائب",IF(BJ148=$J$6," تــم الحضور في الموعد",IF(BJ148<$J$6,"تم الحضور قبل الموعد",IF(BJ148>$J$6,"تم الحضور بعد الموعد","")))) -> غائب | BL148: =IF(BK148="غائب","5:00",IF(BK148="تم الحضور قبل الموعد","0:00",IF(BK148="تم الحضور في الموعد","0:00",IF(BK148>$J$6,BJ148-$J$6,"")))) -> 5:00 | BM148: =IF('تحضير ابوبكر'!G148=1,NOW(),"") ->  | BN148: =IF(BM148="","غائب",IF(BM148=$M$6," تم الانصراف في الموعد",IF(BM148<$M$6,"تم الانصراف قبل الموعد",IF(BM148>$M$6,"تم الانصراف بعد الموعد","")))) -> غائب | BO148: =IF(BN148="غائب","5:00",IF(BN148="تم الانصراف بعد الموعد","0:00",IF(BN148="تم الانصراف في الموعد","0:00",IF(BN148>$M$6,$M$6-BM148,"")))) -> 5:00 | BP148: 11:30:00 | BQ148: 690
B149: الأحد | C149: 2019-10-13 | D149: =IF('تحضير سامي'!D149=1,NOW(),"") ->  | E149: غائب | F149: 6:30 | G149: =IF('تحضير سامي'!E149=1,NOW(),"") ->  | H149: غائب | I149: 6:30 | J149: =IF('تحضير سامي'!F149=1,NOW(),"") ->  | K149: غائب | L149: 5:00 | M149: =IF('تحضير سامي'!G149=1,NOW(),"") ->  | N149: غائب | O149: 5:00 | P149: 11:30:00 | Q149: 690 | AB149: الأحد | AC149: 2019-10-13 | AD149: =IF('تحضير باهبري'!D149=1,NOW(),"") ->  | AE149: غائب | AF149: 6:30 | AG149: =IF('تحضير باهبري'!E149=1,NOW(),"") ->  | AH149: غائب | AI149: 6:30 | AJ149: =IF('تحضير باهبري'!F149=1,NOW(),"") ->  | AK149: غائب | AL149: 5:00 | AM149: =IF('تحضير باهبري'!G149=1,NOW(),"") ->  | AN149: غائب | AO149: 5:00 | AP149: 11:30:00 | AQ149: 690 | BB149: الأحد | BC149: 2019-10-13 | BD149: =IF('تحضير ابوبكر'!D149=1,NOW(),"") ->  | BE149: غائب | BF149: 6:30 | BG149: =IF('تحضير ابوبكر'!E149=1,NOW(),"") ->  | BH149: غائب | BI149: 6:30 | BJ149: =IF('تحضير ابوبكر'!F149=1,NOW(),"") ->  | BK149: غائب | BL149: 5:00 | BM149: =IF('تحضير ابوبكر'!G149=1,NOW(),"") ->  | BN149: غائب | BO149: 5:00 | BP149: 11:30:00 | BQ149: 690
B150: الإثنين | C150: 2019-10-14 | D150: =IF('تحضير سامي'!D150=1,NOW(),"") ->  | E150: غائب | F150: 6:30 | G150: =IF('تحضير سامي'!E150=1,NOW(),"") ->  | H150: غائب | I150: 6:30 | J150: =IF('تحضير سامي'!F150=1,NOW(),"") ->  | K150: غائب | L150: 5:00 | M150: =IF('تحضير سامي'!G150=1,NOW(),"") ->  | N150: غائب | O150: 5:00 | P150: 11:30:00 | Q150: 690 | AB150: الإثنين | AC150: 2019-10-14 | AD150: =IF('تحضير باهبري'!D150=1,NOW(),"") ->  | AE150: غائب | AF150: 6:30 | AG150: =IF('تحضير باهبري'!E150=1,NOW(),"") ->  | AH150: غائب | AI150: 6:30 | AJ150: =IF('تحضير باهبري'!F150=1,NOW(),"") ->  | AK150: غائب | AL150: 5:00 | AM150: =IF('تحضير باهبري'!G150=1,NOW(),"") ->  | AN150: غائب | AO150: 5:00 | AP150: 11:30:00 | AQ150: 690 | BB150: الإثنين | BC150: 2019-10-14 | BD150: =IF('تحضير ابوبكر'!D150=1,NOW(),"") ->  | BE150: غائب | BF150: 6:30 | BG150: =IF('تحضير ابوبكر'!E150=1,NOW(),"") ->  | BH150: غائب | BI150: 6:30 | BJ150: =IF('تحضير ابوبكر'!F150=1,NOW(),"") ->  | BK150: غائب | BL150: 5:00 | BM150: =IF('تحضير ابوبكر'!G150=1,NOW(),"") ->  | BN150: غائب | BO150: 5:00 | BP150: 11:30:00 | BQ150: 690
B151: الثلاثاء | C151: 2019-10-15 | D151: =IF('تحضير سامي'!D151=1,NOW(),"") ->  | E151: غائب | F151: 6:30 | G151: =IF('تحضير سامي'!E151=1,NOW(),"") ->  | H151: غائب | I151: 6:30 | J151: =IF('تحضير سامي'!F151=1,NOW(),"") ->  | K151: غائب | L151: 5:00 | M151: =IF('تحضير سامي'!G151=1,NOW(),"") ->  | N151: غائب | O151: 5:00 | P151: 11:30:00 | Q151: 690 | AB151: الثلاثاء | AC151: 2019-10-15 | AD151: =IF('تحضير باهبري'!D151=1,NOW(),"") ->  | AE151: غائب | AF151: 6:30 | AG151: =IF('تحضير باهبري'!E151=1,NOW(),"") ->  | AH151: غائب | AI151: 6:30 | AJ151: =IF('تحضير باهبري'!F151=1,NOW(),"") ->  | AK151: غائب | AL151: 5:00 | AM151: =IF('تحضير باهبري'!G151=1,NOW(),"") ->  | AN151: غائب | AO151: 5:00 | AP151: 11:30:00 | AQ151: 690 | BB151: الثلاثاء | BC151: 2019-10-15 | BD151: =IF('تحضير ابوبكر'!D151=1,NOW(),"") ->  | BE151: غائب | BF151: 6:30 | BG151: =IF('تحضير ابوبكر'!E151=1,NOW(),"") ->  | BH151: غائب | BI151: 6:30 | BJ151: =IF('تحضير ابوبكر'!F151=1,NOW(),"") ->  | BK151: غائب | BL151: 5:00 | BM151: =IF('تحضير ابوبكر'!G151=1,NOW(),"") ->  | BN151: غائب | BO151: 5:00 | BP151: 11:30:00 | BQ151: 690
B152: الأربعاء | C152: 2019-10-16 | D152: =IF('تحضير سامي'!D152=1,NOW(),"") ->  | E152: غائب | F152: 6:30 | G152: =IF('تحضير سامي'!E152=1,NOW(),"") ->  | H152: غائب | I152: 6:30 | J152: =IF('تحضير سامي'!F152=1,NOW(),"") ->  | K152: غائب | L152: 5:00 | M152: =IF('تحضير سامي'!G152=1,NOW(),"") ->  | N152: غائب | O152: 5:00 | P152: 11:30:00 | Q152: 690 | AB152: الأربعاء | AC152: 2019-10-16 | AD152: =IF('تحضير باهبري'!D152=1,NOW(),"") ->  | AE152: غائب | AF152: 6:30 | AG152: =IF('تحضير باهبري'!E152=1,NOW(),"") ->  | AH152: غائب | AI152: 6:30 | AJ152: =IF('تحضير باهبري'!F152=1,NOW(),"") ->  | AK152: غائب | AL152: 5:00 | AM152: =IF('تحضير باهبري'!G152=1,NOW(),"") ->  | AN152: غائب | AO152: 5:00 | AP152: 11:30:00 | AQ152: 690 | BB152: الأربعاء | BC152: 2019-10-16 | BD152: =IF('تحضير ابوبكر'!D152=1,NOW(),"") ->  | BE152: غائب | BF152: 6:30 | BG152: =IF('تحضير ابوبكر'!E152=1,NOW(),"") ->  | BH152: غائب | BI152: 6:30 | BJ152: =IF('تحضير ابوبكر'!F152=1,NOW(),"") ->  | BK152: غائب | BL152: 5:00 | BM152: =IF('تحضير ابوبكر'!G152=1,NOW(),"") ->  | BN152: غائب | BO152: 5:00 | BP152: 11:30:00 | BQ152: 690
B153: الخميس | C153: 2019-10-17 | D153: =IF('تحضير سامي'!D153=1,NOW(),"") ->  | E153: غائب | F153: 6:30 | G153: =IF('تحضير سامي'!E153=1,NOW(),"") ->  | H153: غائب | I153: 6:30 | J153: =IF('تحضير سامي'!F153=1,NOW(),"") ->  | K153: غائب | L153: 5:00 | M153: =IF('تحضير سامي'!G153=1,NOW(),"") ->  | N153: غائب | O153: 5:00 | P153: 11:30:00 | Q153: 690 | AB153: الخميس | AC153: 2019-10-17 | AD153: =IF('تحضير باهبري'!D153=1,NOW(),"") ->  | AE153: غائب | AF153: 6:30 | AG153: =IF('تحضير باهبري'!E153=1,NOW(),"") ->  | AH153: غائب | AI153: 6:30 | AJ153: =IF('تحضير باهبري'!F153=1,NOW(),"") ->  | AK153: غائب | AL153: 5:00 | AM153: =IF('تحضير باهبري'!G153=1,NOW(),"") ->  | AN153: غائب | AO153: 5:00 | AP153: 11:30:00 | AQ153: 690 | BB153: الخميس | BC153: 2019-10-17 | BD153: =IF('تحضير ابوبكر'!D153=1,NOW(),"") ->  | BE153: غائب | BF153: 6:30 | BG153: =IF('تحضير ابوبكر'!E153=1,NOW(),"") ->  | BH153: غائب | BI153: 6:30 | BJ153: =IF('تحضير ابوبكر'!F153=1,NOW(),"") ->  | BK153: غائب | BL153: 5:00 | BM153: =IF('تحضير ابوبكر'!G153=1,NOW(),"") ->  | BN153: غائب | BO153: 5:00 | BP153: 11:30:00 | BQ153: 690
B154: الجمعة | C154: 2019-10-18 | D154: =IF('تحضير سامي'!D154=1,NOW(),"") ->  | E154: اجازة | F154: 00:00:00 | G154: =IF('تحضير سامي'!E154=1,NOW(),"") ->  | H154: اجازة | I154: 00:00:00 | J154: =IF('تحضير سامي'!F154=1,NOW(),"") ->  | K154: اجازة | L154: 00:00:00 | M154: =IF('تحضير سامي'!G154=1,NOW(),"") ->  | N154: اجازة | O154: 00:00:00 | P154: 00:00:00 | Q154: 0 | AB154: الجمعة | AC154: 2019-10-18 | AD154: =IF('تحضير باهبري'!D154=1,NOW(),"") ->  | AE154: اجازة | AF154: 00:00:00 | AG154: =IF('تحضير باهبري'!E154=1,NOW(),"") ->  | AH154: اجازة | AI154: 00:00:00 | AJ154: =IF('تحضير باهبري'!F154=1,NOW(),"") ->  | AK154: اجازة | AL154: 00:00:00 | AM154: =IF('تحضير باهبري'!G154=1,NOW(),"") ->  | AN154: اجازة | AO154: 00:00:00 | AP154: 00:00:00 | AQ154: 0 | BB154: الجمعة | BC154: 2019-10-18 | BD154: =IF('تحضير ابوبكر'!D154=1,NOW(),"") ->  | BE154: اجازة | BF154: 00:00:00 | BG154: =IF('تحضير ابوبكر'!E154=1,NOW(),"") ->  | BH154: اجازة | BI154: 00:00:00 | BJ154: =IF('تحضير ابوبكر'!F154=1,NOW(),"") ->  | BK154: اجازة | BL154: 00:00:00 | BM154: =IF('تحضير ابوبكر'!G154=1,NOW(),"") ->  | BN154: اجازة | BO154: 00:00:00 | BP154: 00:00:00 | BQ154: 0
B155: السبت | C155: 2019-10-19 | D155: =IF('تحضير سامي'!D155=1,NOW(),"") ->  | E155: غائب | F155: 6:30 | G155: =IF('تحضير سامي'!E155=1,NOW(),"") ->  | H155: غائب | I155: 6:30 | J155: =IF('تحضير سامي'!F155=1,NOW(),"") ->  | K155: غائب | L155: 5:00 | M155: =IF('تحضير سامي'!G155=1,NOW(),"") ->  | N155: غائب | O155: 5:00 | P155: 11:30:00 | Q155: 690 | AB155: السبت | AC155: 2019-10-19 | AD155: =IF('تحضير باهبري'!D155=1,NOW(),"") ->  | AE155: =IF(AD155="","غائب",IF(AD155=$D$6," تــم الحضور في الموعد",IF(AD155<$D$6,"تم الحضور قبل الموعد",IF(AD155>$D$6,"تم الحضور بعد الموعد","")))) -> غائب | AF155: =IF(AE155="غائب","6:30",IF(AE155="تم الحضور قبل الموعد","0:00",IF(AE155="تم الحضور في الموعد","0:00",IF(AE155>$D$6,AD155-$D$6,"")))) -> 6:30 | AG155: =IF('تحضير باهبري'!E155=1,NOW(),"") ->  | AH155: =IF(AG155="","غائب",IF(AG155=$G$6," تم الانصراف في الموعد",IF(AG155<$G$6,"تم الانصراف قبل الموعد",IF(AG155>$G$6,"تم الانصراف بعد الموعد","")))) -> غائب | AI155: =IF(AH155="غائب","6:30",IF(AH155="تم الانصراف بعد الموعد","0:00",IF(AH155="تم الانصراف في الموعد","0:00",IF(AH155>$G$6,$G$6-AG155,"")))) -> 6:30 | AJ155: =IF('تحضير باهبري'!F155=1,NOW(),"") ->  | AK155: =IF(AJ155="","غائب",IF(AJ155=$J$6," تــم الحضور في الموعد",IF(AJ155<$J$6,"تم الحضور قبل الموعد",IF(AJ155>$J$6,"تم الحضور بعد الموعد","")))) -> غائب | AL155: =IF(AK155="غائب","5:00",IF(AK155="تم الحضور قبل الموعد","0:00",IF(AK155="تم الحضور في الموعد","0:00",IF(AK155>$J$6,AJ155-$J$6,"")))) -> 5:00 | AM155: =IF('تحضير باهبري'!G155=1,NOW(),"") ->  | AN155: =IF(AM155="","غائب",IF(AM155=$M$6," تم الانصراف في الموعد",IF(AM155<$M$6,"تم الانصراف قبل الموعد",IF(AM155>$M$6,"تم الانصراف بعد الموعد","")))) -> غائب | AO155: =IF(AN155="غائب","5:00",IF(AN155="تم الانصراف بعد الموعد","0:00",IF(AN155="تم الانصراف في الموعد","0:00",IF(AN155>$M$6,$M$6-AM155,"")))) -> 5:00 | AP155: 11:30:00 | AQ155: 690 | BB155: السبت | BC155: 2019-10-19 | BD155: =IF('تحضير ابوبكر'!D155=1,NOW(),"") ->  | BE155: =IF(BD155="","غائب",IF(BD155=$D$6," تــم الحضور في الموعد",IF(BD155<$D$6,"تم الحضور قبل الموعد",IF(BD155>$D$6,"تم الحضور بعد الموعد","")))) -> غائب | BF155: =IF(BE155="غائب","6:30",IF(BE155="تم الحضور قبل الموعد","0:00",IF(BE155="تم الحضور في الموعد","0:00",IF(BE155>$D$6,BD155-$D$6,"")))) -> 6:30 | BG155: =IF('تحضير ابوبكر'!E155=1,NOW(),"") ->  | BH155: =IF(BG155="","غائب",IF(BG155=$G$6," تم الانصراف في الموعد",IF(BG155<$G$6,"تم الانصراف قبل الموعد",IF(BG155>$G$6,"تم الانصراف بعد الموعد","")))) -> غائب | BI155: =IF(BH155="غائب","6:30",IF(BH155="تم الانصراف بعد الموعد","0:00",IF(BH155="تم الانصراف في الموعد","0:00",IF(BH155>$G$6,$G$6-BG155,"")))) -> 6:30 | BJ155: =IF('تحضير ابوبكر'!F155=1,NOW(),"") ->  | BK155: =IF(BJ155="","غائب",IF(BJ155=$J$6," تــم الحضور في الموعد",IF(BJ155<$J$6,"تم الحضور قبل الموعد",IF(BJ155>$J$6,"تم الحضور بعد الموعد","")))) -> غائب | BL155: =IF(BK155="غائب","5:00",IF(BK155="تم الحضور قبل الموعد","0:00",IF(BK155="تم الحضور في الموعد","0:00",IF(BK155>$J$6,BJ155-$J$6,"")))) -> 5:00 | BM155: =IF('تحضير ابوبكر'!G155=1,NOW(),"") ->  | BN155: =IF(BM155="","غائب",IF(BM155=$M$6," تم الانصراف في الموعد",IF(BM155<$M$6,"تم الانصراف قبل الموعد",IF(BM155>$M$6,"تم الانصراف بعد الموعد","")))) -> غائب | BO155: =IF(BN155="غائب","5:00",IF(BN155="تم الانصراف بعد الموعد","0:00",IF(BN155="تم الانصراف في الموعد","0:00",IF(BN155>$M$6,$M$6-BM155,"")))) -> 5:00 | BP155: 11:30:00 | BQ155: 690
B156: الأحد | C156: 2019-10-20 | D156: =IF('تحضير سامي'!D156=1,NOW(),"") ->  | E156: غائب | F156: 6:30 | G156: =IF('تحضير سامي'!E156=1,NOW(),"") ->  | H156: غائب | I156: 6:30 | J156: =IF('تحضير سامي'!F156=1,NOW(),"") ->  | K156: غائب | L156: 5:00 | M156: =IF('تحضير سامي'!G156=1,NOW(),"") ->  | N156: غائب | O156: 5:00 | P156: 11:30:00 | Q156: 690 | AB156: الأحد | AC156: 2019-10-20 | AD156: =IF('تحضير باهبري'!D156=1,NOW(),"") ->  | AE156: غائب | AF156: 6:30 | AG156: =IF('تحضير باهبري'!E156=1,NOW(),"") ->  | AH156: غائب | AI156: 6:30 | AJ156: =IF('تحضير باهبري'!F156=1,NOW(),"") ->  | AK156: غائب | AL156: 5:00 | AM156: =IF('تحضير باهبري'!G156=1,NOW(),"") ->  | AN156: غائب | AO156: 5:00 | AP156: 11:30:00 | AQ156: 690 | BB156: الأحد | BC156: 2019-10-20 | BD156: =IF('تحضير ابوبكر'!D156=1,NOW(),"") ->  | BE156: غائب | BF156: 6:30 | BG156: =IF('تحضير ابوبكر'!E156=1,NOW(),"") ->  | BH156: غائب | BI156: 6:30 | BJ156: =IF('تحضير ابوبكر'!F156=1,NOW(),"") ->  | BK156: غائب | BL156: 5:00 | BM156: =IF('تحضير ابوبكر'!G156=1,NOW(),"") ->  | BN156: غائب | BO156: 5:00 | BP156: 11:30:00 | BQ156: 690
B157: الإثنين | C157: 2019-10-21 | D157: =IF('تحضير سامي'!D157=1,NOW(),"") ->  | E157: غائب | F157: 6:30 | G157: =IF('تحضير سامي'!E157=1,NOW(),"") ->  | H157: غائب | I157: 6:30 | J157: =IF('تحضير سامي'!F157=1,NOW(),"") ->  | K157: غائب | L157: 5:00 | M157: =IF('تحضير سامي'!G157=1,NOW(),"") ->  | N157: غائب | O157: 5:00 | P157: 11:30:00 | Q157: 690 | AB157: الإثنين | AC157: 2019-10-21 | AD157: =IF('تحضير باهبري'!D157=1,NOW(),"") ->  | AE157: غائب | AF157: 6:30 | AG157: =IF('تحضير باهبري'!E157=1,NOW(),"") ->  | AH157: غائب | AI157: 6:30 | AJ157: =IF('تحضير باهبري'!F157=1,NOW(),"") ->  | AK157: غائب | AL157: 5:00 | AM157: =IF('تحضير باهبري'!G157=1,NOW(),"") ->  | AN157: غائب | AO157: 5:00 | AP157: 11:30:00 | AQ157: 690 | BB157: الإثنين | BC157: 2019-10-21 | BD157: =IF('تحضير ابوبكر'!D157=1,NOW(),"") ->  | BE157: غائب | BF157: 6:30 | BG157: =IF('تحضير ابوبكر'!E157=1,NOW(),"") ->  | BH157: غائب | BI157: 6:30 | BJ157: =IF('تحضير ابوبكر'!F157=1,NOW(),"") ->  | BK157: غائب | BL157: 5:00 | BM157: =IF('تحضير ابوبكر'!G157=1,NOW(),"") ->  | BN157: غائب | BO157: 5:00 | BP157: 11:30:00 | BQ157: 690
B158: الثلاثاء | C158: 2019-10-22 | D158: =IF('تحضير سامي'!D158=1,NOW(),"") ->  | E158: غائب | F158: 6:30 | G158: =IF('تحضير سامي'!E158=1,NOW(),"") ->  | H158: غائب | I158: 6:30 | J158: =IF('تحضير سامي'!F158=1,NOW(),"") ->  | K158: غائب | L158: 5:00 | M158: =IF('تحضير سامي'!G158=1,NOW(),"") ->  | N158: غائب | O158: 5:00 | P158: 11:30:00 | Q158: 690 | AB158: الثلاثاء | AC158: 2019-10-22 | AD158: =IF('تحضير باهبري'!D158=1,NOW(),"") ->  | AE158: غائب | AF158: 6:30 | AG158: =IF('تحضير باهبري'!E158=1,NOW(),"") ->  | AH158: غائب | AI158: 6:30 | AJ158: =IF('تحضير باهبري'!F158=1,NOW(),"") ->  | AK158: غائب | AL158: 5:00 | AM158: =IF('تحضير باهبري'!G158=1,NOW(),"") ->  | AN158: غائب | AO158: 5:00 | AP158: 11:30:00 | AQ158: 690 | BB158: الثلاثاء | BC158: 2019-10-22 | BD158: =IF('تحضير ابوبكر'!D158=1,NOW(),"") ->  | BE158: غائب | BF158: 6:30 | BG158: =IF('تحضير ابوبكر'!E158=1,NOW(),"") ->  | BH158: غائب | BI158: 6:30 | BJ158: =IF('تحضير ابوبكر'!F158=1,NOW(),"") ->  | BK158: غائب | BL158: 5:00 | BM158: =IF('تحضير ابوبكر'!G158=1,NOW(),"") ->  | BN158: غائب | BO158: 5:00 | BP158: 11:30:00 | BQ158: 690
B159: الأربعاء | C159: 2019-10-23 | D159: =IF('تحضير سامي'!D159=1,NOW(),"") ->  | E159: غائب | F159: 6:30 | G159: =IF('تحضير سامي'!E159=1,NOW(),"") ->  | H159: غائب | I159: 6:30 | J159: =IF('تحضير سامي'!F159=1,NOW(),"") ->  | K159: غائب | L159: 5:00 | M159: =IF('تحضير سامي'!G159=1,NOW(),"") ->  | N159: غائب | O159: 5:00 | P159: 11:30:00 | Q159: 690 | AB159: الأربعاء | AC159: 2019-10-23 | AD159: =IF('تحضير باهبري'!D159=1,NOW(),"") ->  | AE159: غائب | AF159: 6:30 | AG159: =IF('تحضير باهبري'!E159=1,NOW(),"") ->  | AH159: غائب | AI159: 6:30 | AJ159: =IF('تحضير باهبري'!F159=1,NOW(),"") ->  | AK159: غائب | AL159: 5:00 | AM159: =IF('تحضير باهبري'!G159=1,NOW(),"") ->  | AN159: غائب | AO159: 5:00 | AP159: 11:30:00 | AQ159: 690 | BB159: الأربعاء | BC159: 2019-10-23 | BD159: =IF('تحضير ابوبكر'!D159=1,NOW(),"") ->  | BE159: غائب | BF159: 6:30 | BG159: =IF('تحضير ابوبكر'!E159=1,NOW(),"") ->  | BH159: غائب | BI159: 6:30 | BJ159: =IF('تحضير ابوبكر'!F159=1,NOW(),"") ->  | BK159: غائب | BL159: 5:00 | BM159: =IF('تحضير ابوبكر'!G159=1,NOW(),"") ->  | BN159: غائب | BO159: 5:00 | BP159: 11:30:00 | BQ159: 690
B160: الخميس | C160: 2019-10-24 | D160: =IF('تحضير سامي'!D160=1,NOW(),"") ->  | E160: غائب | F160: 6:30 | G160: =IF('تحضير سامي'!E160=1,NOW(),"") ->  | H160: غائب | I160: 6:30 | J160: =IF('تحضير سامي'!F160=1,NOW(),"") ->  | K160: غائب | L160: 5:00 | M160: =IF('تحضير سامي'!G160=1,NOW(),"") ->  | N160: غائب | O160: 5:00 | P160: 11:30:00 | Q160: 690 | AB160: الخميس | AC160: 2019-10-24 | AD160: =IF('تحضير باهبري'!D160=1,NOW(),"") ->  | AE160: غائب | AF160: 6:30 | AG160: =IF('تحضير باهبري'!E160=1,NOW(),"") ->  | AH160: غائب | AI160: 6:30 | AJ160: =IF('تحضير باهبري'!F160=1,NOW(),"") ->  | AK160: غائب | AL160: 5:00 | AM160: =IF('تحضير باهبري'!G160=1,NOW(),"") ->  | AN160: غائب | AO160: 5:00 | AP160: 11:30:00 | AQ160: 690 | BB160: الخميس | BC160: 2019-10-24 | BD160: =IF('تحضير ابوبكر'!D160=1,NOW(),"") ->  | BE160: غائب | BF160: 6:30 | BG160: =IF('تحضير ابوبكر'!E160=1,NOW(),"") ->  | BH160: غائب | BI160: 6:30 | BJ160: =IF('تحضير ابوبكر'!F160=1,NOW(),"") ->  | BK160: غائب | BL160: 5:00 | BM160: =IF('تحضير ابوبكر'!G160=1,NOW(),"") ->  | BN160: غائب | BO160: 5:00 | BP160: 11:30:00 | BQ160: 690
B161: الجمعة | C161: 2019-10-25 | D161: =IF('تحضير سامي'!D161=1,NOW(),"") ->  | E161: اجازة | F161: 00:00:00 | G161: =IF('تحضير سامي'!E161=1,NOW(),"") ->  | H161: اجازة | I161: 00:00:00 | J161: =IF('تحضير سامي'!F161=1,NOW(),"") ->  | K161: اجازة | L161: 00:00:00 | M161: =IF('تحضير سامي'!G161=1,NOW(),"") ->  | N161: اجازة | O161: 00:00:00 | P161: 00:00:00 | Q161: 0 | AB161: الجمعة | AC161: 2019-10-25 | AD161: =IF('تحضير باهبري'!D161=1,NOW(),"") ->  | AE161: اجازة | AF161: 00:00:00 | AG161: =IF('تحضير باهبري'!E161=1,NOW(),"") ->  | AH161: اجازة | AI161: 00:00:00 | AJ161: =IF('تحضير باهبري'!F161=1,NOW(),"") ->  | AK161: اجازة | AL161: 00:00:00 | AM161: =IF('تحضير باهبري'!G161=1,NOW(),"") ->  | AN161: اجازة | AO161: 00:00:00 | AP161: 00:00:00 | AQ161: 0 | BB161: الجمعة | BC161: 2019-10-25 | BD161: =IF('تحضير ابوبكر'!D161=1,NOW(),"") ->  | BE161: اجازة | BF161: 00:00:00 | BG161: =IF('تحضير ابوبكر'!E161=1,NOW(),"") ->  | BH161: اجازة | BI161: 00:00:00 | BJ161: =IF('تحضير ابوبكر'!F161=1,NOW(),"") ->  | BK161: اجازة | BL161: 00:00:00 | BM161: =IF('تحضير ابوبكر'!G161=1,NOW(),"") ->  | BN161: اجازة | BO161: 00:00:00 | BP161: 00:00:00 | BQ161: 0
B162: السبت | C162: 2019-10-26 | D162: =IF('تحضير سامي'!D162=1,NOW(),"") ->  | E162: غائب | F162: 6:30 | G162: =IF('تحضير سامي'!E162=1,NOW(),"") ->  | H162: غائب | I162: 6:30 | J162: =IF('تحضير سامي'!F162=1,NOW(),"") ->  | K162: غائب | L162: 5:00 | M162: =IF('تحضير سامي'!G162=1,NOW(),"") ->  | N162: غائب | O162: 5:00 | P162: 11:30:00 | Q162: 690 | AB162: السبت | AC162: 2019-10-26 | AD162: =IF('تحضير باهبري'!D162=1,NOW(),"") ->  | AE162: =IF(AD162="","غائب",IF(AD162=$D$6," تــم الحضور في الموعد",IF(AD162<$D$6,"تم الحضور قبل الموعد",IF(AD162>$D$6,"تم الحضور بعد الموعد","")))) -> غائب | AF162: =IF(AE162="غائب","6:30",IF(AE162="تم الحضور قبل الموعد","0:00",IF(AE162="تم الحضور في الموعد","0:00",IF(AE162>$D$6,AD162-$D$6,"")))) -> 6:30 | AG162: =IF('تحضير باهبري'!E162=1,NOW(),"") ->  | AH162: =IF(AG162="","غائب",IF(AG162=$G$6," تم الانصراف في الموعد",IF(AG162<$G$6,"تم الانصراف قبل الموعد",IF(AG162>$G$6,"تم الانصراف بعد الموعد","")))) -> غائب | AI162: =IF(AH162="غائب","6:30",IF(AH162="تم الانصراف بعد الموعد","0:00",IF(AH162="تم الانصراف في الموعد","0:00",IF(AH162>$G$6,$G$6-AG162,"")))) -> 6:30 | AJ162: =IF('تحضير باهبري'!F162=1,NOW(),"") ->  | AK162: =IF(AJ162="","غائب",IF(AJ162=$J$6," تــم الحضور في الموعد",IF(AJ162<$J$6,"تم الحضور قبل الموعد",IF(AJ162>$J$6,"تم الحضور بعد الموعد","")))) -> غائب | AL162: =IF(AK162="غائب","5:00",IF(AK162="تم الحضور قبل الموعد","0:00",IF(AK162="تم الحضور في الموعد","0:00",IF(AK162>$J$6,AJ162-$J$6,"")))) -> 5:00 | AM162: =IF('تحضير باهبري'!G162=1,NOW(),"") ->  | AN162: =IF(AM162="","غائب",IF(AM162=$M$6," تم الانصراف في الموعد",IF(AM162<$M$6,"تم الانصراف قبل الموعد",IF(AM162>$M$6,"تم الانصراف بعد الموعد","")))) -> غائب | AO162: =IF(AN162="غائب","5:00",IF(AN162="تم الانصراف بعد الموعد","0:00",IF(AN162="تم الانصراف في الموعد","0:00",IF(AN162>$M$6,$M$6-AM162,"")))) -> 5:00 | AP162: 11:30:00 | AQ162: 690 | BB162: السبت | BC162: 2019-10-26 | BD162: =IF('تحضير ابوبكر'!D162=1,NOW(),"") ->  | BE162: =IF(BD162="","غائب",IF(BD162=$D$6," تــم الحضور في الموعد",IF(BD162<$D$6,"تم الحضور قبل الموعد",IF(BD162>$D$6,"تم الحضور بعد الموعد","")))) -> غائب | BF162: =IF(BE162="غائب","6:30",IF(BE162="تم الحضور قبل الموعد","0:00",IF(BE162="تم الحضور في الموعد","0:00",IF(BE162>$D$6,BD162-$D$6,"")))) -> 6:30 | BG162: =IF('تحضير ابوبكر'!E162=1,NOW(),"") ->  | BH162: =IF(BG162="","غائب",IF(BG162=$G$6," تم الانصراف في الموعد",IF(BG162<$G$6,"تم الانصراف قبل الموعد",IF(BG162>$G$6,"تم الانصراف بعد الموعد","")))) -> غائب | BI162: =IF(BH162="غائب","6:30",IF(BH162="تم الانصراف بعد الموعد","0:00",IF(BH162="تم الانصراف في الموعد","0:00",IF(BH162>$G$6,$G$6-BG162,"")))) -> 6:30 | BJ162: =IF('تحضير ابوبكر'!F162=1,NOW(),"") ->  | BK162: =IF(BJ162="","غائب",IF(BJ162=$J$6," تــم الحضور في الموعد",IF(BJ162<$J$6,"تم الحضور قبل الموعد",IF(BJ162>$J$6,"تم الحضور بعد الموعد","")))) -> غائب | BL162: =IF(BK162="غائب","5:00",IF(BK162="تم الحضور قبل الموعد","0:00",IF(BK162="تم الحضور في الموعد","0:00",IF(BK162>$J$6,BJ162-$J$6,"")))) -> 5:00 | BM162: =IF('تحضير ابوبكر'!G162=1,NOW(),"") ->  | BN162: =IF(BM162="","غائب",IF(BM162=$M$6," تم الانصراف في الموعد",IF(BM162<$M$6,"تم الانصراف قبل الموعد",IF(BM162>$M$6,"تم الانصراف بعد الموعد","")))) -> غائب | BO162: =IF(BN162="غائب","5:00",IF(BN162="تم الانصراف بعد الموعد","0:00",IF(BN162="تم الانصراف في الموعد","0:00",IF(BN162>$M$6,$M$6-BM162,"")))) -> 5:00 | BP162: 11:30:00 | BQ162: 690
B163: الأحد | C163: 2019-10-27 | D163: =IF('تحضير سامي'!D163=1,NOW(),"") ->  | E163: غائب | F163: 6:30 | G163: =IF('تحضير سامي'!E163=1,NOW(),"") ->  | H163: غائب | I163: 6:30 | J163: =IF('تحضير سامي'!F163=1,NOW(),"") ->  | K163: غائب | L163: 5:00 | M163: =IF('تحضير سامي'!G163=1,NOW(),"") ->  | N163: غائب | O163: 5:00 | P163: 11:30:00 | Q163: 690 | AB163: الأحد | AC163: 2019-10-27 | AD163: =IF('تحضير باهبري'!D163=1,NOW(),"") ->  | AE163: غائب | AF163: 6:30 | AG163: =IF('تحضير باهبري'!E163=1,NOW(),"") ->  | AH163: غائب | AI163: 6:30 | AJ163: =IF('تحضير باهبري'!F163=1,NOW(),"") ->  | AK163: غائب | AL163: 5:00 | AM163: =IF('تحضير باهبري'!G163=1,NOW(),"") ->  | AN163: غائب | AO163: 5:00 | AP163: 11:30:00 | AQ163: 690 | BB163: الأحد | BC163: 2019-10-27 | BD163: =IF('تحضير ابوبكر'!D163=1,NOW(),"") ->  | BE163: غائب | BF163: 6:30 | BG163: =IF('تحضير ابوبكر'!E163=1,NOW(),"") ->  | BH163: غائب | BI163: 6:30 | BJ163: =IF('تحضير ابوبكر'!F163=1,NOW(),"") ->  | BK163: غائب | BL163: 5:00 | BM163: =IF('تحضير ابوبكر'!G163=1,NOW(),"") ->  | BN163: غائب | BO163: 5:00 | BP163: 11:30:00 | BQ163: 690
B164: الإثنين | C164: 2019-10-28 | D164: =IF('تحضير سامي'!D164=1,NOW(),"") ->  | E164: غائب | F164: 6:30 | G164: =IF('تحضير سامي'!E164=1,NOW(),"") ->  | H164: غائب | I164: 6:30 | J164: =IF('تحضير سامي'!F164=1,NOW(),"") ->  | K164: غائب | L164: 5:00 | M164: =IF('تحضير سامي'!G164=1,NOW(),"") ->  | N164: غائب | O164: 5:00 | P164: 11:30:00 | Q164: 690 | AB164: الإثنين | AC164: 2019-10-28 | AD164: =IF('تحضير باهبري'!D164=1,NOW(),"") ->  | AE164: غائب | AF164: 6:30 | AG164: =IF('تحضير باهبري'!E164=1,NOW(),"") ->  | AH164: غائب | AI164: 6:30 | AJ164: =IF('تحضير باهبري'!F164=1,NOW(),"") ->  | AK164: غائب | AL164: 5:00 | AM164: =IF('تحضير باهبري'!G164=1,NOW(),"") ->  | AN164: غائب | AO164: 5:00 | AP164: 11:30:00 | AQ164: 690 | BB164: الإثنين | BC164: 2019-10-28 | BD164: =IF('تحضير ابوبكر'!D164=1,NOW(),"") ->  | BE164: غائب | BF164: 6:30 | BG164: =IF('تحضير ابوبكر'!E164=1,NOW(),"") ->  | BH164: غائب | BI164: 6:30 | BJ164: =IF('تحضير ابوبكر'!F164=1,NOW(),"") ->  | BK164: غائب | BL164: 5:00 | BM164: =IF('تحضير ابوبكر'!G164=1,NOW(),"") ->  | BN164: غائب | BO164: 5:00 | BP164: 11:30:00 | BQ164: 690
B165: الثلاثاء | C165: 2019-10-29 | D165: =IF('تحضير سامي'!D165=1,NOW(),"") ->  | E165: غائب | F165: 6:30 | G165: =IF('تحضير سامي'!E165=1,NOW(),"") ->  | H165: غائب | I165: 6:30 | J165: =IF('تحضير سامي'!F165=1,NOW(),"") ->  | K165: غائب | L165: 5:00 | M165: =IF('تحضير سامي'!G165=1,NOW(),"") ->  | N165: غائب | O165: 5:00 | P165: 11:30:00 | Q165: 690 | AB165: الثلاثاء | AC165: 2019-10-29 | AD165: =IF('تحضير باهبري'!D165=1,NOW(),"") ->  | AE165: غائب | AF165: 6:30 | AG165: =IF('تحضير باهبري'!E165=1,NOW(),"") ->  | AH165: غائب | AI165: 6:30 | AJ165: =IF('تحضير باهبري'!F165=1,NOW(),"") ->  | AK165: غائب | AL165: 5:00 | AM165: =IF('تحضير باهبري'!G165=1,NOW(),"") ->  | AN165: غائب | AO165: 5:00 | AP165: 11:30:00 | AQ165: 690 | BB165: الثلاثاء | BC165: 2019-10-29 | BD165: =IF('تحضير ابوبكر'!D165=1,NOW(),"") ->  | BE165: غائب | BF165: 6:30 | BG165: =IF('تحضير ابوبكر'!E165=1,NOW(),"") ->  | BH165: غائب | BI165: 6:30 | BJ165: =IF('تحضير ابوبكر'!F165=1,NOW(),"") ->  | BK165: غائب | BL165: 5:00 | BM165: =IF('تحضير ابوبكر'!G165=1,NOW(),"") ->  | BN165: غائب | BO165: 5:00 | BP165: 11:30:00 | BQ165: 690
B166: الأربعاء | C166: 2019-10-30 | D166: =IF('تحضير سامي'!D166=1,NOW(),"") ->  | E166: غائب | F166: 6:30 | G166: =IF('تحضير سامي'!E166=1,NOW(),"") ->  | H166: غائب | I166: 6:30 | J166: =IF('تحضير سامي'!F166=1,NOW(),"") ->  | K166: غائب | L166: 5:00 | M166: =IF('تحضير سامي'!G166=1,NOW(),"") ->  | N166: غائب | O166: 5:00 | P166: 11:30:00 | Q166: 690 | AB166: الأربعاء | AC166: 2019-10-30 | AD166: =IF('تحضير باهبري'!D166=1,NOW(),"") ->  | AE166: غائب | AF166: 6:30 | AG166: =IF('تحضير باهبري'!E166=1,NOW(),"") ->  | AH166: غائب | AI166: 6:30 | AJ166: =IF('تحضير باهبري'!F166=1,NOW(),"") ->  | AK166: غائب | AL166: 5:00 | AM166: =IF('تحضير باهبري'!G166=1,NOW(),"") ->  | AN166: غائب | AO166: 5:00 | AP166: 11:30:00 | AQ166: 690 | BB166: الأربعاء | BC166: 2019-10-30 | BD166: =IF('تحضير ابوبكر'!D166=1,NOW(),"") ->  | BE166: غائب | BF166: 6:30 | BG166: =IF('تحضير ابوبكر'!E166=1,NOW(),"") ->  | BH166: غائب | BI166: 6:30 | BJ166: =IF('تحضير ابوبكر'!F166=1,NOW(),"") ->  | BK166: غائب | BL166: 5:00 | BM166: =IF('تحضير ابوبكر'!G166=1,NOW(),"") ->  | BN166: غائب | BO166: 5:00 | BP166: 11:30:00 | BQ166: 690
B167: الخميس | C167: 2019-10-31 | D167: =IF('تحضير سامي'!D167=1,NOW(),"") ->  | E167: غائب | F167: 6:30 | G167: =IF('تحضير سامي'!E167=1,NOW(),"") ->  | H167: غائب | I167: 6:30 | J167: =IF('تحضير سامي'!F167=1,NOW(),"") ->  | K167: غائب | L167: 5:00 | M167: =IF('تحضير سامي'!G167=1,NOW(),"") ->  | N167: غائب | O167: 5:00 | P167: 11:30:00 | Q167: 690 | AB167: الخميس | AC167: 2019-10-31 | AD167: =IF('تحضير باهبري'!D167=1,NOW(),"") ->  | AE167: غائب | AF167: 6:30 | AG167: =IF('تحضير باهبري'!E167=1,NOW(),"") ->  | AH167: غائب | AI167: 6:30 | AJ167: =IF('تحضير باهبري'!F167=1,NOW(),"") ->  | AK167: غائب | AL167: 5:00 | AM167: =IF('تحضير باهبري'!G167=1,NOW(),"") ->  | AN167: غائب | AO167: 5:00 | AP167: 11:30:00 | AQ167: 690 | BB167: الخميس | BC167: 2019-10-31 | BD167: =IF('تحضير ابوبكر'!D167=1,NOW(),"") ->  | BE167: غائب | BF167: 6:30 | BG167: =IF('تحضير ابوبكر'!E167=1,NOW(),"") ->  | BH167: غائب | BI167: 6:30 | BJ167: =IF('تحضير ابوبكر'!F167=1,NOW(),"") ->  | BK167: غائب | BL167: 5:00 | BM167: =IF('تحضير ابوبكر'!G167=1,NOW(),"") ->  | BN167: غائب | BO167: 5:00 | BP167: 11:30:00 | BQ167: 690
E169: اجمالي وقت الدوام | F169: 19830 | H169: اجمالي وقت التاخير بالدقائق | I169: =SUM(Q137:Q167) -> 18630 | L169: الراتب | N169: 50000 | AE169: اجمالي وقت الدوام | AF169: 19830 | AH169: اجمالي وقت التاخير بالدقائق | AI169: =SUM(AQ137:AQ167) -> 18630 | AL169: الراتب | AN169: 55000 | BE169: اجمالي وقت الدوام | BF169: 19830 | BH169: اجمالي وقت التاخير بالدقائق | BI169: =SUM(BQ137:BQ167) -> 18630 | BL169: الراتب | BN169: 45000
B170: الجمعة | C170: 2019-11-01 | D170: =IF('تحضير سامي'!D170=1,NOW(),"") ->  | E170: اجازة | F170: 00:00:00 | G170: =IF('تحضير سامي'!E170=1,NOW(),"") ->  | H170: اجازة | I170: 00:00:00 | J170: =IF('تحضير سامي'!F170=1,NOW(),"") ->  | K170: اجازة | L170: 00:00:00 | M170: =IF('تحضير سامي'!G170=1,NOW(),"") ->  | N170: اجازة | O170: 00:00:00 | P170: =IF(H170="غائب","6:30",I170)+IF(N170="غائب","5:00",O170)+IF(E170="غائب","0:00",F170)+IF(K170="غائب","0:00",L170) -> 00:00:00 | Q170: =(HOUR(P170)*3600+MINUTE(P170)*60+SECOND(P170))/60 -> 0 | AB170: الجمعة | AC170: 2019-11-01 | AD170: =IF('تحضير باهبري'!D170=1,NOW(),"") ->  | AE170: اجازة | AF170: 00:00:00 | AG170: =IF('تحضير باهبري'!E170=1,NOW(),"") ->  | AH170: اجازة | AI170: 00:00:00 | AJ170: =IF('تحضير باهبري'!F170=1,NOW(),"") ->  | AK170: اجازة | AL170: 00:00:00 | AM170: =IF('تحضير باهبري'!G170=1,NOW(),"") ->  | AN170: اجازة | AO170: 00:00:00 | AP170: =IF(AH170="غائب","6:30",AI170)+IF(AN170="غائب","5:00",AO170)+IF(AE170="غائب","0:00",AF170)+IF(AK170="غائب","0:00",AL170) -> 00:00:00 | AQ170: =(HOUR(AP170)*3600+MINUTE(AP170)*60+SECOND(AP170))/60 -> 0 | BB170: الجمعة | BC170: 2019-11-01 | BD170: =IF('تحضير ابوبكر'!D170=1,NOW(),"") ->  | BE170: اجازة | BF170: 00:00:00 | BG170: =IF('تحضير ابوبكر'!E170=1,NOW(),"") ->  | BH170: اجازة | BI170: 00:00:00 | BJ170: =IF('تحضير ابوبكر'!F170=1,NOW(),"") ->  | BK170: اجازة | BL170: 00:00:00 | BM170: =IF('تحضير ابوبكر'!G170=1,NOW(),"") ->  | BN170: اجازة | BO170: 00:00:00 | BP170: =IF(BH170="غائب","6:30",BI170)+IF(BN170="غائب","5:00",BO170)+IF(BE170="غائب","0:00",BF170)+IF(BK170="غائب","0:00",BL170) -> 00:00:00 | BQ170: =(HOUR(BP170)*3600+MINUTE(BP170)*60+SECOND(BP170))/60 -> 0
B171: السبت | C171: 2019-11-02 | D171: =IF('تحضير سامي'!D171=1,NOW(),"") ->  | E171: غائب | F171: =IF(E171="غائب","6:30",IF(E171="تم الحضور قبل الموعد","0:00",IF(E171="تم الحضور في الموعد","0:00",IF(E171>$D$6,D171-$D$6,"")))) -> 6:30 | G171: =IF('تحضير سامي'!E171=1,NOW(),"") ->  | H171: غائب | I171: =IF(H171="غائب","6:30",IF(H171="تم الانصراف بعد الموعد","0:00",IF(H171="تم الانصراف في الموعد","0:00",IF(H171>$G$6,$G$6-G171,"")))) -> 6:30 | J171: =IF('تحضير سامي'!F171=1,NOW(),"") ->  | K171: غائب | L171: =IF(K171="غائب","5:00",IF(K171="تم الحضور قبل الموعد","0:00",IF(K171="تم الحضور في الموعد","0:00",IF(K171>$J$6,J171-$J$6,"")))) -> 5:00 | M171: =IF('تحضير سامي'!G171=1,NOW(),"") ->  | N171: غائب | O171: =IF(N171="غائب","5:00",IF(N171="تم الانصراف بعد الموعد","0:00",IF(N171="تم الانصراف في الموعد","0:00",IF(N171>$M$6,$M$6-M171,"")))) -> 5:00 | P171: =IF(H171="غائب","6:30",I171)+IF(N171="غائب","5:00",O171)+IF(E171="غائب","0:00",F171)+IF(K171="غائب","0:00",L171) -> 11:30:00 | Q171: 690 | AB171: السبت | AC171: 2019-11-02 | AD171: =IF('تحضير باهبري'!D171=1,NOW(),"") ->  | AE171: =IF(AD171="","غائب",IF(AD171=$D$6," تــم الحضور في الموعد",IF(AD171<$D$6,"تم الحضور قبل الموعد",IF(AD171>$D$6,"تم الحضور بعد الموعد","")))) -> غائب | AF171: =IF(AE171="غائب","6:30",IF(AE171="تم الحضور قبل الموعد","0:00",IF(AE171="تم الحضور في الموعد","0:00",IF(AE171>$D$6,AD171-$D$6,"")))) -> 6:30 | AG171: =IF('تحضير باهبري'!E171=1,NOW(),"") ->  | AH171: =IF(AG171="","غائب",IF(AG171=$G$6," تم الانصراف في الموعد",IF(AG171<$G$6,"تم الانصراف قبل الموعد",IF(AG171>$G$6,"تم الانصراف بعد الموعد","")))) -> غائب | AI171: =IF(AH171="غائب","6:30",IF(AH171="تم الانصراف بعد الموعد","0:00",IF(AH171="تم الانصراف في الموعد","0:00",IF(AH171>$G$6,$G$6-AG171,"")))) -> 6:30 | AJ171: =IF('تحضير باهبري'!F171=1,NOW(),"") ->  | AK171: =IF(AJ171="","غائب",IF(AJ171=$J$6," تــم الحضور في الموعد",IF(AJ171<$J$6,"تم الحضور قبل الموعد",IF(AJ171>$J$6,"تم الحضور بعد الموعد","")))) -> غائب | AL171: =IF(AK171="غائب","5:00",IF(AK171="تم الحضور قبل الموعد","0:00",IF(AK171="تم الحضور في الموعد","0:00",IF(AK171>$J$6,AJ171-$J$6,"")))) -> 5:00 | AM171: =IF('تحضير باهبري'!G171=1,NOW(),"") ->  | AN171: =IF(AM171="","غائب",IF(AM171=$M$6," تم الانصراف في الموعد",IF(AM171<$M$6,"تم الانصراف قبل الموعد",IF(AM171>$M$6,"تم الانصراف بعد الموعد","")))) -> غائب | AO171: =IF(AN171="غائب","5:00",IF(AN171="تم الانصراف بعد الموعد","0:00",IF(AN171="تم الانصراف في الموعد","0:00",IF(AN171>$M$6,$M$6-AM171,"")))) -> 5:00 | AP171: 11:30:00 | AQ171: 690 | BB171: السبت | BC171: 2019-11-02 | BD171: =IF('تحضير ابوبكر'!D171=1,NOW(),"") ->  | BE171: =IF(BD171="","غائب",IF(BD171=$D$6," تــم الحضور في الموعد",IF(BD171<$D$6,"تم الحضور قبل الموعد",IF(BD171>$D$6,"تم الحضور بعد الموعد","")))) -> غائب | BF171: =IF(BE171="غائب","6:30",IF(BE171="تم الحضور قبل الموعد","0:00",IF(BE171="تم الحضور في الموعد","0:00",IF(BE171>$D$6,BD171-$D$6,"")))) -> 6:30 | BG171: =IF('تحضير ابوبكر'!E171=1,NOW(),"") ->  | BH171: =IF(BG171="","غائب",IF(BG171=$G$6," تم الانصراف في الموعد",IF(BG171<$G$6,"تم الانصراف قبل الموعد",IF(BG171>$G$6,"تم الانصراف بعد الموعد","")))) -> غائب | BI171: =IF(BH171="غائب","6:30",IF(BH171="تم الانصراف بعد الموعد","0:00",IF(BH171="تم الانصراف في الموعد","0:00",IF(BH171>$G$6,$G$6-BG171,"")))) -> 6:30 | BJ171: =IF('تحضير ابوبكر'!F171=1,NOW(),"") ->  | BK171: =IF(BJ171="","غائب",IF(BJ171=$J$6," تــم الحضور في الموعد",IF(BJ171<$J$6,"تم الحضور قبل الموعد",IF(BJ171>$J$6,"تم الحضور بعد الموعد","")))) -> غائب | BL171: =IF(BK171="غائب","5:00",IF(BK171="تم الحضور قبل الموعد","0:00",IF(BK171="تم الحضور في الموعد","0:00",IF(BK171>$J$6,BJ171-$J$6,"")))) -> 5:00 | BM171: =IF('تحضير ابوبكر'!G171=1,NOW(),"") ->  | BN171: =IF(BM171="","غائب",IF(BM171=$M$6," تم الانصراف في الموعد",IF(BM171<$M$6,"تم الانصراف قبل الموعد",IF(BM171>$M$6,"تم الانصراف بعد الموعد","")))) -> غائب | BO171: =IF(BN171="غائب","5:00",IF(BN171="تم الانصراف بعد الموعد","0:00",IF(BN171="تم الانصراف في الموعد","0:00",IF(BN171>$M$6,$M$6-BM171,"")))) -> 5:00 | BP171: 11:30:00 | BQ171: 690
B172: الأحد | C172: 2019-11-03 | D172: =IF('تحضير سامي'!D172=1,NOW(),"") ->  | E172: غائب | F172: 6:30 | G172: =IF('تحضير سامي'!E172=1,NOW(),"") ->  | H172: غائب | I172: 6:30 | J172: =IF('تحضير سامي'!F172=1,NOW(),"") ->  | K172: غائب | L172: 5:00 | M172: =IF('تحضير سامي'!G172=1,NOW(),"") ->  | N172: غائب | O172: 5:00 | P172: 11:30:00 | Q172: 690 | AB172: الأحد | AC172: 2019-11-03 | AD172: =IF('تحضير باهبري'!D172=1,NOW(),"") ->  | AE172: غائب | AF172: 6:30 | AG172: =IF('تحضير باهبري'!E172=1,NOW(),"") ->  | AH172: غائب | AI172: 6:30 | AJ172: =IF('تحضير باهبري'!F172=1,NOW(),"") ->  | AK172: غائب | AL172: 5:00 | AM172: =IF('تحضير باهبري'!G172=1,NOW(),"") ->  | AN172: غائب | AO172: 5:00 | AP172: 11:30:00 | AQ172: 690 | BB172: الأحد | BC172: 2019-11-03 | BD172: =IF('تحضير ابوبكر'!D172=1,NOW(),"") ->  | BE172: غائب | BF172: 6:30 | BG172: =IF('تحضير ابوبكر'!E172=1,NOW(),"") ->  | BH172: غائب | BI172: 6:30 | BJ172: =IF('تحضير ابوبكر'!F172=1,NOW(),"") ->  | BK172: غائب | BL172: 5:00 | BM172: =IF('تحضير ابوبكر'!G172=1,NOW(),"") ->  | BN172: غائب | BO172: 5:00 | BP172: 11:30:00 | BQ172: 690
B173: الإثنين | C173: 2019-11-04 | D173: =IF('تحضير سامي'!D173=1,NOW(),"") ->  | E173: غائب | F173: 6:30 | G173: =IF('تحضير سامي'!E173=1,NOW(),"") ->  | H173: غائب | I173: 6:30 | J173: =IF('تحضير سامي'!F173=1,NOW(),"") ->  | K173: غائب | L173: 5:00 | M173: =IF('تحضير سامي'!G173=1,NOW(),"") ->  | N173: غائب | O173: 5:00 | P173: 11:30:00 | Q173: 690 | AB173: الإثنين | AC173: 2019-11-04 | AD173: =IF('تحضير باهبري'!D173=1,NOW(),"") ->  | AE173: غائب | AF173: 6:30 | AG173: =IF('تحضير باهبري'!E173=1,NOW(),"") ->  | AH173: غائب | AI173: 6:30 | AJ173: =IF('تحضير باهبري'!F173=1,NOW(),"") ->  | AK173: غائب | AL173: 5:00 | AM173: =IF('تحضير باهبري'!G173=1,NOW(),"") ->  | AN173: غائب | AO173: 5:00 | AP173: 11:30:00 | AQ173: 690 | BB173: الإثنين | BC173: 2019-11-04 | BD173: =IF('تحضير ابوبكر'!D173=1,NOW(),"") ->  | BE173: غائب | BF173: 6:30 | BG173: =IF('تحضير ابوبكر'!E173=1,NOW(),"") ->  | BH173: غائب | BI173: 6:30 | BJ173: =IF('تحضير ابوبكر'!F173=1,NOW(),"") ->  | BK173: غائب | BL173: 5:00 | BM173: =IF('تحضير ابوبكر'!G173=1,NOW(),"") ->  | BN173: غائب | BO173: 5:00 | BP173: 11:30:00 | BQ173: 690
B174: الثلاثاء | C174: 2019-11-05 | D174: =IF('تحضير سامي'!D174=1,NOW(),"") ->  | E174: غائب | F174: 6:30 | G174: =IF('تحضير سامي'!E174=1,NOW(),"") ->  | H174: غائب | I174: 6:30 | J174: =IF('تحضير سامي'!F174=1,NOW(),"") ->  | K174: غائب | L174: 5:00 | M174: =IF('تحضير سامي'!G174=1,NOW(),"") ->  | N174: غائب | O174: 5:00 | P174: 11:30:00 | Q174: 690 | AB174: الثلاثاء | AC174: 2019-11-05 | AD174: =IF('تحضير باهبري'!D174=1,NOW(),"") ->  | AE174: غائب | AF174: 6:30 | AG174: =IF('تحضير باهبري'!E174=1,NOW(),"") ->  | AH174: غائب | AI174: 6:30 | AJ174: =IF('تحضير باهبري'!F174=1,NOW(),"") ->  | AK174: غائب | AL174: 5:00 | AM174: =IF('تحضير باهبري'!G174=1,NOW(),"") ->  | AN174: غائب | AO174: 5:00 | AP174: 11:30:00 | AQ174: 690 | BB174: الثلاثاء | BC174: 2019-11-05 | BD174: =IF('تحضير ابوبكر'!D174=1,NOW(),"") ->  | BE174: غائب | BF174: 6:30 | BG174: =IF('تحضير ابوبكر'!E174=1,NOW(),"") ->  | BH174: غائب | BI174: 6:30 | BJ174: =IF('تحضير ابوبكر'!F174=1,NOW(),"") ->  | BK174: غائب | BL174: 5:00 | BM174: =IF('تحضير ابوبكر'!G174=1,NOW(),"") ->  | BN174: غائب | BO174: 5:00 | BP174: 11:30:00 | BQ174: 690
B175: الأربعاء | C175: 2019-11-06 | D175: =IF('تحضير سامي'!D175=1,NOW(),"") ->  | E175: غائب | F175: 6:30 | G175: =IF('تحضير سامي'!E175=1,NOW(),"") ->  | H175: غائب | I175: 6:30 | J175: =IF('تحضير سامي'!F175=1,NOW(),"") ->  | K175: غائب | L175: 5:00 | M175: =IF('تحضير سامي'!G175=1,NOW(),"") ->  | N175: غائب | O175: 5:00 | P175: 11:30:00 | Q175: 690 | AB175: الأربعاء | AC175: 2019-11-06 | AD175: =IF('تحضير باهبري'!D175=1,NOW(),"") ->  | AE175: غائب | AF175: 6:30 | AG175: =IF('تحضير باهبري'!E175=1,NOW(),"") ->  | AH175: غائب | AI175: 6:30 | AJ175: =IF('تحضير باهبري'!F175=1,NOW(),"") ->  | AK175: غائب | AL175: 5:00 | AM175: =IF('تحضير باهبري'!G175=1,NOW(),"") ->  | AN175: غائب | AO175: 5:00 | AP175: 11:30:00 | AQ175: 690 | BB175: الأربعاء | BC175: 2019-11-06 | BD175: =IF('تحضير ابوبكر'!D175=1,NOW(),"") ->  | BE175: غائب | BF175: 6:30 | BG175: =IF('تحضير ابوبكر'!E175=1,NOW(),"") ->  | BH175: غائب | BI175: 6:30 | BJ175: =IF('تحضير ابوبكر'!F175=1,NOW(),"") ->  | BK175: غائب | BL175: 5:00 | BM175: =IF('تحضير ابوبكر'!G175=1,NOW(),"") ->  | BN175: غائب | BO175: 5:00 | BP175: 11:30:00 | BQ175: 690
B176: الخميس | C176: 2019-11-07 | D176: =IF('تحضير سامي'!D176=1,NOW(),"") ->  | E176: غائب | F176: 6:30 | G176: =IF('تحضير سامي'!E176=1,NOW(),"") ->  | H176: غائب | I176: 6:30 | J176: =IF('تحضير سامي'!F176=1,NOW(),"") ->  | K176: غائب | L176: 5:00 | M176: =IF('تحضير سامي'!G176=1,NOW(),"") ->  | N176: غائب | O176: 5:00 | P176: 11:30:00 | Q176: 690 | AB176: الخميس | AC176: 2019-11-07 | AD176: =IF('تحضير باهبري'!D176=1,NOW(),"") ->  | AE176: غائب | AF176: 6:30 | AG176: =IF('تحضير باهبري'!E176=1,NOW(),"") ->  | AH176: غائب | AI176: 6:30 | AJ176: =IF('تحضير باهبري'!F176=1,NOW(),"") ->  | AK176: غائب | AL176: 5:00 | AM176: =IF('تحضير باهبري'!G176=1,NOW(),"") ->  | AN176: غائب | AO176: 5:00 | AP176: 11:30:00 | AQ176: 690 | BB176: الخميس | BC176: 2019-11-07 | BD176: =IF('تحضير ابوبكر'!D176=1,NOW(),"") ->  | BE176: غائب | BF176: 6:30 | BG176: =IF('تحضير ابوبكر'!E176=1,NOW(),"") ->  | BH176: غائب | BI176: 6:30 | BJ176: =IF('تحضير ابوبكر'!F176=1,NOW(),"") ->  | BK176: غائب | BL176: 5:00 | BM176: =IF('تحضير ابوبكر'!G176=1,NOW(),"") ->  | BN176: غائب | BO176: 5:00 | BP176: 11:30:00 | BQ176: 690
B177: الجمعة | C177: 2019-11-08 | D177: =IF('تحضير سامي'!D177=1,NOW(),"") ->  | E177: اجازة | F177: 00:00:00 | G177: =IF('تحضير سامي'!E177=1,NOW(),"") ->  | H177: اجازة | I177: 00:00:00 | J177: =IF('تحضير سامي'!F177=1,NOW(),"") ->  | K177: اجازة | L177: 00:00:00 | M177: =IF('تحضير سامي'!G177=1,NOW(),"") ->  | N177: اجازة | O177: 00:00:00 | P177: 00:00:00 | Q177: 0 | AB177: الجمعة | AC177: 2019-11-08 | AD177: =IF('تحضير باهبري'!D177=1,NOW(),"") ->  | AE177: اجازة | AF177: 00:00:00 | AG177: =IF('تحضير باهبري'!E177=1,NOW(),"") ->  | AH177: اجازة | AI177: 00:00:00 | AJ177: =IF('تحضير باهبري'!F177=1,NOW(),"") ->  | AK177: اجازة | AL177: 00:00:00 | AM177: =IF('تحضير باهبري'!G177=1,NOW(),"") ->  | AN177: اجازة | AO177: 00:00:00 | AP177: 00:00:00 | AQ177: 0 | BB177: الجمعة | BC177: 2019-11-08 | BD177: =IF('تحضير ابوبكر'!D177=1,NOW(),"") ->  | BE177: اجازة | BF177: 00:00:00 | BG177: =IF('تحضير ابوبكر'!E177=1,NOW(),"") ->  | BH177: اجازة | BI177: 00:00:00 | BJ177: =IF('تحضير ابوبكر'!F177=1,NOW(),"") ->  | BK177: اجازة | BL177: 00:00:00 | BM177: =IF('تحضير ابوبكر'!G177=1,NOW(),"") ->  | BN177: اجازة | BO177: 00:00:00 | BP177: 00:00:00 | BQ177: 0
B178: السبت | C178: 2019-11-09 | D178: =IF('تحضير سامي'!D178=1,NOW(),"") ->  | E178: غائب | F178: 6:30 | G178: =IF('تحضير سامي'!E178=1,NOW(),"") ->  | H178: غائب | I178: 6:30 | J178: =IF('تحضير سامي'!F178=1,NOW(),"") ->  | K178: غائب | L178: 5:00 | M178: =IF('تحضير سامي'!G178=1,NOW(),"") ->  | N178: غائب | O178: 5:00 | P178: 11:30:00 | Q178: 690 | AB178: السبت | AC178: 2019-11-09 | AD178: =IF('تحضير باهبري'!D178=1,NOW(),"") ->  | AE178: =IF(AD178="","غائب",IF(AD178=$D$6," تــم الحضور في الموعد",IF(AD178<$D$6,"تم الحضور قبل الموعد",IF(AD178>$D$6,"تم الحضور بعد الموعد","")))) -> غائب | AF178: =IF(AE178="غائب","6:30",IF(AE178="تم الحضور قبل الموعد","0:00",IF(AE178="تم الحضور في الموعد","0:00",IF(AE178>$D$6,AD178-$D$6,"")))) -> 6:30 | AG178: =IF('تحضير باهبري'!E178=1,NOW(),"") ->  | AH178: =IF(AG178="","غائب",IF(AG178=$G$6," تم الانصراف في الموعد",IF(AG178<$G$6,"تم الانصراف قبل الموعد",IF(AG178>$G$6,"تم الانصراف بعد الموعد","")))) -> غائب | AI178: =IF(AH178="غائب","6:30",IF(AH178="تم الانصراف بعد الموعد","0:00",IF(AH178="تم الانصراف في الموعد","0:00",IF(AH178>$G$6,$G$6-AG178,"")))) -> 6:30 | AJ178: =IF('تحضير باهبري'!F178=1,NOW(),"") ->  | AK178: =IF(AJ178="","غائب",IF(AJ178=$J$6," تــم الحضور في الموعد",IF(AJ178<$J$6,"تم الحضور قبل الموعد",IF(AJ178>$J$6,"تم الحضور بعد الموعد","")))) -> غائب | AL178: =IF(AK178="غائب","5:00",IF(AK178="تم الحضور قبل الموعد","0:00",IF(AK178="تم الحضور في الموعد","0:00",IF(AK178>$J$6,AJ178-$J$6,"")))) -> 5:00 | AM178: =IF('تحضير باهبري'!G178=1,NOW(),"") ->  | AN178: =IF(AM178="","غائب",IF(AM178=$M$6," تم الانصراف في الموعد",IF(AM178<$M$6,"تم الانصراف قبل الموعد",IF(AM178>$M$6,"تم الانصراف بعد الموعد","")))) -> غائب | AO178: =IF(AN178="غائب","5:00",IF(AN178="تم الانصراف بعد الموعد","0:00",IF(AN178="تم الانصراف في الموعد","0:00",IF(AN178>$M$6,$M$6-AM178,"")))) -> 5:00 | AP178: 11:30:00 | AQ178: 690 | BB178: السبت | BC178: 2019-11-09 | BD178: =IF('تحضير ابوبكر'!D178=1,NOW(),"") ->  | BE178: =IF(BD178="","غائب",IF(BD178=$D$6," تــم الحضور في الموعد",IF(BD178<$D$6,"تم الحضور قبل الموعد",IF(BD178>$D$6,"تم الحضور بعد الموعد","")))) -> غائب | BF178: =IF(BE178="غائب","6:30",IF(BE178="تم الحضور قبل الموعد","0:00",IF(BE178="تم الحضور في الموعد","0:00",IF(BE178>$D$6,BD178-$D$6,"")))) -> 6:30 | BG178: =IF('تحضير ابوبكر'!E178=1,NOW(),"") ->  | BH178: =IF(BG178="","غائب",IF(BG178=$G$6," تم الانصراف في الموعد",IF(BG178<$G$6,"تم الانصراف قبل الموعد",IF(BG178>$G$6,"تم الانصراف بعد الموعد","")))) -> غائب | BI178: =IF(BH178="غائب","6:30",IF(BH178="تم الانصراف بعد الموعد","0:00",IF(BH178="تم الانصراف في الموعد","0:00",IF(BH178>$G$6,$G$6-BG178,"")))) -> 6:30 | BJ178: =IF('تحضير ابوبكر'!F178=1,NOW(),"") ->  | BK178: =IF(BJ178="","غائب",IF(BJ178=$J$6," تــم الحضور في الموعد",IF(BJ178<$J$6,"تم الحضور قبل الموعد",IF(BJ178>$J$6,"تم الحضور بعد الموعد","")))) -> غائب | BL178: =IF(BK178="غائب","5:00",IF(BK178="تم الحضور قبل الموعد","0:00",IF(BK178="تم الحضور في الموعد","0:00",IF(BK178>$J$6,BJ178-$J$6,"")))) -> 5:00 | BM178: =IF('تحضير ابوبكر'!G178=1,NOW(),"") ->  | BN178: =IF(BM178="","غائب",IF(BM178=$M$6," تم الانصراف في الموعد",IF(BM178<$M$6,"تم الانصراف قبل الموعد",IF(BM178>$M$6,"تم الانصراف بعد الموعد","")))) -> غائب | BO178: =IF(BN178="غائب","5:00",IF(BN178="تم الانصراف بعد الموعد","0:00",IF(BN178="تم الانصراف في الموعد","0:00",IF(BN178>$M$6,$M$6-BM178,"")))) -> 5:00 | BP178: 11:30:00 | BQ178: 690
B179: الأحد | C179: 2019-11-10 | D179: =IF('تحضير سامي'!D179=1,NOW(),"") ->  | E179: غائب | F179: 6:30 | G179: =IF('تحضير سامي'!E179=1,NOW(),"") ->  | H179: غائب | I179: 6:30 | J179: =IF('تحضير سامي'!F179=1,NOW(),"") ->  | K179: غائب | L179: 5:00 | M179: =IF('تحضير سامي'!G179=1,NOW(),"") ->  | N179: غائب | O179: 5:00 | P179: 11:30:00 | Q179: 690 | AB179: الأحد | AC179: 2019-11-10 | AD179: =IF('تحضير باهبري'!D179=1,NOW(),"") ->  | AE179: غائب | AF179: 6:30 | AG179: =IF('تحضير باهبري'!E179=1,NOW(),"") ->  | AH179: غائب | AI179: 6:30 | AJ179: =IF('تحضير باهبري'!F179=1,NOW(),"") ->  | AK179: غائب | AL179: 5:00 | AM179: =IF('تحضير باهبري'!G179=1,NOW(),"") ->  | AN179: غائب | AO179: 5:00 | AP179: 11:30:00 | AQ179: 690 | BB179: الأحد | BC179: 2019-11-10 | BD179: =IF('تحضير ابوبكر'!D179=1,NOW(),"") ->  | BE179: غائب | BF179: 6:30 | BG179: =IF('تحضير ابوبكر'!E179=1,NOW(),"") ->  | BH179: غائب | BI179: 6:30 | BJ179: =IF('تحضير ابوبكر'!F179=1,NOW(),"") ->  | BK179: غائب | BL179: 5:00 | BM179: =IF('تحضير ابوبكر'!G179=1,NOW(),"") ->  | BN179: غائب | BO179: 5:00 | BP179: 11:30:00 | BQ179: 690
B180: الإثنين | C180: 2019-11-11 | D180: =IF('تحضير سامي'!D180=1,NOW(),"") ->  | E180: غائب | F180: 6:30 | G180: =IF('تحضير سامي'!E180=1,NOW(),"") ->  | H180: غائب | I180: 6:30 | J180: =IF('تحضير سامي'!F180=1,NOW(),"") ->  | K180: غائب | L180: 5:00 | M180: =IF('تحضير سامي'!G180=1,NOW(),"") ->  | N180: غائب | O180: 5:00 | P180: 11:30:00 | Q180: 690 | AB180: الإثنين | AC180: 2019-11-11 | AD180: =IF('تحضير باهبري'!D180=1,NOW(),"") ->  | AE180: غائب | AF180: 6:30 | AG180: =IF('تحضير باهبري'!E180=1,NOW(),"") ->  | AH180: غائب | AI180: 6:30 | AJ180: =IF('تحضير باهبري'!F180=1,NOW(),"") ->  | AK180: غائب | AL180: 5:00 | AM180: =IF('تحضير باهبري'!G180=1,NOW(),"") ->  | AN180: غائب | AO180: 5:00 | AP180: 11:30:00 | AQ180: 690 | BB180: الإثنين | BC180: 2019-11-11 | BD180: =IF('تحضير ابوبكر'!D180=1,NOW(),"") ->  | BE180: غائب | BF180: 6:30 | BG180: =IF('تحضير ابوبكر'!E180=1,NOW(),"") ->  | BH180: غائب | BI180: 6:30 | BJ180: =IF('تحضير ابوبكر'!F180=1,NOW(),"") ->  | BK180: غائب | BL180: 5:00 | BM180: =IF('تحضير ابوبكر'!G180=1,NOW(),"") ->  | BN180: غائب | BO180: 5:00 | BP180: 11:30:00 | BQ180: 690
B181: الثلاثاء | C181: 2019-11-12 | D181: =IF('تحضير سامي'!D181=1,NOW(),"") ->  | E181: غائب | F181: 6:30 | G181: =IF('تحضير سامي'!E181=1,NOW(),"") ->  | H181: غائب | I181: 6:30 | J181: =IF('تحضير سامي'!F181=1,NOW(),"") ->  | K181: غائب | L181: 5:00 | M181: =IF('تحضير سامي'!G181=1,NOW(),"") ->  | N181: غائب | O181: 5:00 | P181: 11:30:00 | Q181: 690 | AB181: الثلاثاء | AC181: 2019-11-12 | AD181: =IF('تحضير باهبري'!D181=1,NOW(),"") ->  | AE181: غائب | AF181: 6:30 | AG181: =IF('تحضير باهبري'!E181=1,NOW(),"") ->  | AH181: غائب | AI181: 6:30 | AJ181: =IF('تحضير باهبري'!F181=1,NOW(),"") ->  | AK181: غائب | AL181: 5:00 | AM181: =IF('تحضير باهبري'!G181=1,NOW(),"") ->  | AN181: غائب | AO181: 5:00 | AP181: 11:30:00 | AQ181: 690 | BB181: الثلاثاء | BC181: 2019-11-12 | BD181: =IF('تحضير ابوبكر'!D181=1,NOW(),"") ->  | BE181: غائب | BF181: 6:30 | BG181: =IF('تحضير ابوبكر'!E181=1,NOW(),"") ->  | BH181: غائب | BI181: 6:30 | BJ181: =IF('تحضير ابوبكر'!F181=1,NOW(),"") ->  | BK181: غائب | BL181: 5:00 | BM181: =IF('تحضير ابوبكر'!G181=1,NOW(),"") ->  | BN181: غائب | BO181: 5:00 | BP181: 11:30:00 | BQ181: 690
B182: الأربعاء | C182: 2019-11-13 | D182: =IF('تحضير سامي'!D182=1,NOW(),"") ->  | E182: غائب | F182: 6:30 | G182: =IF('تحضير سامي'!E182=1,NOW(),"") ->  | H182: غائب | I182: 6:30 | J182: =IF('تحضير سامي'!F182=1,NOW(),"") ->  | K182: غائب | L182: 5:00 | M182: =IF('تحضير سامي'!G182=1,NOW(),"") ->  | N182: غائب | O182: 5:00 | P182: 11:30:00 | Q182: 690 | AB182: الأربعاء | AC182: 2019-11-13 | AD182: =IF('تحضير باهبري'!D182=1,NOW(),"") ->  | AE182: غائب | AF182: 6:30 | AG182: =IF('تحضير باهبري'!E182=1,NOW(),"") ->  | AH182: غائب | AI182: 6:30 | AJ182: =IF('تحضير باهبري'!F182=1,NOW(),"") ->  | AK182: غائب | AL182: 5:00 | AM182: =IF('تحضير باهبري'!G182=1,NOW(),"") ->  | AN182: غائب | AO182: 5:00 | AP182: 11:30:00 | AQ182: 690 | BB182: الأربعاء | BC182: 2019-11-13 | BD182: =IF('تحضير ابوبكر'!D182=1,NOW(),"") ->  | BE182: غائب | BF182: 6:30 | BG182: =IF('تحضير ابوبكر'!E182=1,NOW(),"") ->  | BH182: غائب | BI182: 6:30 | BJ182: =IF('تحضير ابوبكر'!F182=1,NOW(),"") ->  | BK182: غائب | BL182: 5:00 | BM182: =IF('تحضير ابوبكر'!G182=1,NOW(),"") ->  | BN182: غائب | BO182: 5:00 | BP182: 11:30:00 | BQ182: 690
B183: الخميس | C183: 2019-11-14 | D183: =IF('تحضير سامي'!D183=1,NOW(),"") ->  | E183: غائب | F183: 6:30 | G183: =IF('تحضير سامي'!E183=1,NOW(),"") ->  | H183: غائب | I183: 6:30 | J183: =IF('تحضير سامي'!F183=1,NOW(),"") ->  | K183: غائب | L183: 5:00 | M183: =IF('تحضير سامي'!G183=1,NOW(),"") ->  | N183: غائب | O183: 5:00 | P183: 11:30:00 | Q183: 690 | AB183: الخميس | AC183: 2019-11-14 | AD183: =IF('تحضير باهبري'!D183=1,NOW(),"") ->  | AE183: غائب | AF183: 6:30 | AG183: =IF('تحضير باهبري'!E183=1,NOW(),"") ->  | AH183: غائب | AI183: 6:30 | AJ183: =IF('تحضير باهبري'!F183=1,NOW(),"") ->  | AK183: غائب | AL183: 5:00 | AM183: =IF('تحضير باهبري'!G183=1,NOW(),"") ->  | AN183: غائب | AO183: 5:00 | AP183: 11:30:00 | AQ183: 690 | BB183: الخميس | BC183: 2019-11-14 | BD183: =IF('تحضير ابوبكر'!D183=1,NOW(),"") ->  | BE183: غائب | BF183: 6:30 | BG183: =IF('تحضير ابوبكر'!E183=1,NOW(),"") ->  | BH183: غائب | BI183: 6:30 | BJ183: =IF('تحضير ابوبكر'!F183=1,NOW(),"") ->  | BK183: غائب | BL183: 5:00 | BM183: =IF('تحضير ابوبكر'!G183=1,NOW(),"") ->  | BN183: غائب | BO183: 5:00 | BP183: 11:30:00 | BQ183: 690
B184: الجمعة | C184: 2019-11-15 | D184: =IF('تحضير سامي'!D184=1,NOW(),"") ->  | E184: اجازة | F184: 00:00:00 | G184: =IF('تحضير سامي'!E184=1,NOW(),"") ->  | H184: اجازة | I184: 00:00:00 | J184: =IF('تحضير سامي'!F184=1,NOW(),"") ->  | K184: اجازة | L184: 00:00:00 | M184: =IF('تحضير سامي'!G184=1,NOW(),"") ->  | N184: اجازة | O184: 00:00:00 | P184: 00:00:00 | Q184: 0 | AB184: الجمعة | AC184: 2019-11-15 | AD184: =IF('تحضير باهبري'!D184=1,NOW(),"") ->  | AE184: اجازة | AF184: 00:00:00 | AG184: =IF('تحضير باهبري'!E184=1,NOW(),"") ->  | AH184: اجازة | AI184: 00:00:00 | AJ184: =IF('تحضير باهبري'!F184=1,NOW(),"") ->  | AK184: اجازة | AL184: 00:00:00 | AM184: =IF('تحضير باهبري'!G184=1,NOW(),"") ->  | AN184: اجازة | AO184: 00:00:00 | AP184: 00:00:00 | AQ184: 0 | BB184: الجمعة | BC184: 2019-11-15 | BD184: =IF('تحضير ابوبكر'!D184=1,NOW(),"") ->  | BE184: اجازة | BF184: 00:00:00 | BG184: =IF('تحضير ابوبكر'!E184=1,NOW(),"") ->  | BH184: اجازة | BI184: 00:00:00 | BJ184: =IF('تحضير ابوبكر'!F184=1,NOW(),"") ->  | BK184: اجازة | BL184: 00:00:00 | BM184: =IF('تحضير ابوبكر'!G184=1,NOW(),"") ->  | BN184: اجازة | BO184: 00:00:00 | BP184: 00:00:00 | BQ184: 0
B185: السبت | C185: 2019-11-16 | D185: =IF('تحضير سامي'!D185=1,NOW(),"") ->  | E185: غائب | F185: 6:30 | G185: =IF('تحضير سامي'!E185=1,NOW(),"") ->  | H185: غائب | I185: 6:30 | J185: =IF('تحضير سامي'!F185=1,NOW(),"") ->  | K185: غائب | L185: 5:00 | M185: =IF('تحضير سامي'!G185=1,NOW(),"") ->  | N185: غائب | O185: 5:00 | P185: 11:30:00 | Q185: 690 | AB185: السبت | AC185: 2019-11-16 | AD185: =IF('تحضير باهبري'!D185=1,NOW(),"") ->  | AE185: =IF(AD185="","غائب",IF(AD185=$D$6," تــم الحضور في الموعد",IF(AD185<$D$6,"تم الحضور قبل الموعد",IF(AD185>$D$6,"تم الحضور بعد الموعد","")))) -> غائب | AF185: =IF(AE185="غائب","6:30",IF(AE185="تم الحضور قبل الموعد","0:00",IF(AE185="تم الحضور في الموعد","0:00",IF(AE185>$D$6,AD185-$D$6,"")))) -> 6:30 | AG185: =IF('تحضير باهبري'!E185=1,NOW(),"") ->  | AH185: =IF(AG185="","غائب",IF(AG185=$G$6," تم الانصراف في الموعد",IF(AG185<$G$6,"تم الانصراف قبل الموعد",IF(AG185>$G$6,"تم الانصراف بعد الموعد","")))) -> غائب | AI185: =IF(AH185="غائب","6:30",IF(AH185="تم الانصراف بعد الموعد","0:00",IF(AH185="تم الانصراف في الموعد","0:00",IF(AH185>$G$6,$G$6-AG185,"")))) -> 6:30 | AJ185: =IF('تحضير باهبري'!F185=1,NOW(),"") ->  | AK185: =IF(AJ185="","غائب",IF(AJ185=$J$6," تــم الحضور في الموعد",IF(AJ185<$J$6,"تم الحضور قبل الموعد",IF(AJ185>$J$6,"تم الحضور بعد الموعد","")))) -> غائب | AL185: =IF(AK185="غائب","5:00",IF(AK185="تم الحضور قبل الموعد","0:00",IF(AK185="تم الحضور في الموعد","0:00",IF(AK185>$J$6,AJ185-$J$6,"")))) -> 5:00 | AM185: =IF('تحضير باهبري'!G185=1,NOW(),"") ->  | AN185: =IF(AM185="","غائب",IF(AM185=$M$6," تم الانصراف في الموعد",IF(AM185<$M$6,"تم الانصراف قبل الموعد",IF(AM185>$M$6,"تم الانصراف بعد الموعد","")))) -> غائب | AO185: =IF(AN185="غائب","5:00",IF(AN185="تم الانصراف بعد الموعد","0:00",IF(AN185="تم الانصراف في الموعد","0:00",IF(AN185>$M$6,$M$6-AM185,"")))) -> 5:00 | AP185: 11:30:00 | AQ185: 690 | BB185: السبت | BC185: 2019-11-16 | BD185: =IF('تحضير ابوبكر'!D185=1,NOW(),"") ->  | BE185: =IF(BD185="","غائب",IF(BD185=$D$6," تــم الحضور في الموعد",IF(BD185<$D$6,"تم الحضور قبل الموعد",IF(BD185>$D$6,"تم الحضور بعد الموعد","")))) -> غائب | BF185: =IF(BE185="غائب","6:30",IF(BE185="تم الحضور قبل الموعد","0:00",IF(BE185="تم الحضور في الموعد","0:00",IF(BE185>$D$6,BD185-$D$6,"")))) -> 6:30 | BG185: =IF('تحضير ابوبكر'!E185=1,NOW(),"") ->  | BH185: =IF(BG185="","غائب",IF(BG185=$G$6," تم الانصراف في الموعد",IF(BG185<$G$6,"تم الانصراف قبل الموعد",IF(BG185>$G$6,"تم الانصراف بعد الموعد","")))) -> غائب | BI185: =IF(BH185="غائب","6:30",IF(BH185="تم الانصراف بعد الموعد","0:00",IF(BH185="تم الانصراف في الموعد","0:00",IF(BH185>$G$6,$G$6-BG185,"")))) -> 6:30 | BJ185: =IF('تحضير ابوبكر'!F185=1,NOW(),"") ->  | BK185: =IF(BJ185="","غائب",IF(BJ185=$J$6," تــم الحضور في الموعد",IF(BJ185<$J$6,"تم الحضور قبل الموعد",IF(BJ185>$J$6,"تم الحضور بعد الموعد","")))) -> غائب | BL185: =IF(BK185="غائب","5:00",IF(BK185="تم الحضور قبل الموعد","0:00",IF(BK185="تم الحضور في الموعد","0:00",IF(BK185>$J$6,BJ185-$J$6,"")))) -> 5:00 | BM185: =IF('تحضير ابوبكر'!G185=1,NOW(),"") ->  | BN185: =IF(BM185="","غائب",IF(BM185=$M$6," تم الانصراف في الموعد",IF(BM185<$M$6,"تم الانصراف قبل الموعد",IF(BM185>$M$6,"تم الانصراف بعد الموعد","")))) -> غائب | BO185: =IF(BN185="غائب","5:00",IF(BN185="تم الانصراف بعد الموعد","0:00",IF(BN185="تم الانصراف في الموعد","0:00",IF(BN185>$M$6,$M$6-BM185,"")))) -> 5:00 | BP185: 11:30:00 | BQ185: 690
B186: الأحد | C186: 2019-11-17 | D186: =IF('تحضير سامي'!D186=1,NOW(),"") ->  | E186: غائب | F186: 6:30 | G186: =IF('تحضير سامي'!E186=1,NOW(),"") ->  | H186: غائب | I186: 6:30 | J186: =IF('تحضير سامي'!F186=1,NOW(),"") ->  | K186: غائب | L186: 5:00 | M186: =IF('تحضير سامي'!G186=1,NOW(),"") ->  | N186: غائب | O186: 5:00 | P186: 11:30:00 | Q186: 690 | AB186: الأحد | AC186: 2019-11-17 | AD186: =IF('تحضير باهبري'!D186=1,NOW(),"") ->  | AE186: غائب | AF186: 6:30 | AG186: =IF('تحضير باهبري'!E186=1,NOW(),"") ->  | AH186: غائب | AI186: 6:30 | AJ186: =IF('تحضير باهبري'!F186=1,NOW(),"") ->  | AK186: غائب | AL186: 5:00 | AM186: =IF('تحضير باهبري'!G186=1,NOW(),"") ->  | AN186: غائب | AO186: 5:00 | AP186: 11:30:00 | AQ186: 690 | BB186: الأحد | BC186: 2019-11-17 | BD186: =IF('تحضير ابوبكر'!D186=1,NOW(),"") ->  | BE186: غائب | BF186: 6:30 | BG186: =IF('تحضير ابوبكر'!E186=1,NOW(),"") ->  | BH186: غائب | BI186: 6:30 | BJ186: =IF('تحضير ابوبكر'!F186=1,NOW(),"") ->  | BK186: غائب | BL186: 5:00 | BM186: =IF('تحضير ابوبكر'!G186=1,NOW(),"") ->  | BN186: غائب | BO186: 5:00 | BP186: 11:30:00 | BQ186: 690
B187: الإثنين | C187: 2019-11-18 | D187: =IF('تحضير سامي'!D187=1,NOW(),"") ->  | E187: غائب | F187: 6:30 | G187: =IF('تحضير سامي'!E187=1,NOW(),"") ->  | H187: غائب | I187: 6:30 | J187: =IF('تحضير سامي'!F187=1,NOW(),"") ->  | K187: غائب | L187: 5:00 | M187: =IF('تحضير سامي'!G187=1,NOW(),"") ->  | N187: غائب | O187: 5:00 | P187: 11:30:00 | Q187: 690 | AB187: الإثنين | AC187: 2019-11-18 | AD187: =IF('تحضير باهبري'!D187=1,NOW(),"") ->  | AE187: غائب | AF187: 6:30 | AG187: =IF('تحضير باهبري'!E187=1,NOW(),"") ->  | AH187: غائب | AI187: 6:30 | AJ187: =IF('تحضير باهبري'!F187=1,NOW(),"") ->  | AK187: غائب | AL187: 5:00 | AM187: =IF('تحضير باهبري'!G187=1,NOW(),"") ->  | AN187: غائب | AO187: 5:00 | AP187: 11:30:00 | AQ187: 690 | BB187: الإثنين | BC187: 2019-11-18 | BD187: =IF('تحضير ابوبكر'!D187=1,NOW(),"") ->  | BE187: غائب | BF187: 6:30 | BG187: =IF('تحضير ابوبكر'!E187=1,NOW(),"") ->  | BH187: غائب | BI187: 6:30 | BJ187: =IF('تحضير ابوبكر'!F187=1,NOW(),"") ->  | BK187: غائب | BL187: 5:00 | BM187: =IF('تحضير ابوبكر'!G187=1,NOW(),"") ->  | BN187: غائب | BO187: 5:00 | BP187: 11:30:00 | BQ187: 690
B188: الثلاثاء | C188: 2019-11-19 | D188: =IF('تحضير سامي'!D188=1,NOW(),"") ->  | E188: غائب | F188: 6:30 | G188: =IF('تحضير سامي'!E188=1,NOW(),"") ->  | H188: غائب | I188: 6:30 | J188: =IF('تحضير سامي'!F188=1,NOW(),"") ->  | K188: غائب | L188: 5:00 | M188: =IF('تحضير سامي'!G188=1,NOW(),"") ->  | N188: غائب | O188: 5:00 | P188: 11:30:00 | Q188: 690 | AB188: الثلاثاء | AC188: 2019-11-19 | AD188: =IF('تحضير باهبري'!D188=1,NOW(),"") ->  | AE188: غائب | AF188: 6:30 | AG188: =IF('تحضير باهبري'!E188=1,NOW(),"") ->  | AH188: غائب | AI188: 6:30 | AJ188: =IF('تحضير باهبري'!F188=1,NOW(),"") ->  | AK188: غائب | AL188: 5:00 | AM188: =IF('تحضير باهبري'!G188=1,NOW(),"") ->  | AN188: غائب | AO188: 5:00 | AP188: 11:30:00 | AQ188: 690 | BB188: الثلاثاء | BC188: 2019-11-19 | BD188: =IF('تحضير ابوبكر'!D188=1,NOW(),"") ->  | BE188: غائب | BF188: 6:30 | BG188: =IF('تحضير ابوبكر'!E188=1,NOW(),"") ->  | BH188: غائب | BI188: 6:30 | BJ188: =IF('تحضير ابوبكر'!F188=1,NOW(),"") ->  | BK188: غائب | BL188: 5:00 | BM188: =IF('تحضير ابوبكر'!G188=1,NOW(),"") ->  | BN188: غائب | BO188: 5:00 | BP188: 11:30:00 | BQ188: 690
B189: الأربعاء | C189: 2019-11-20 | D189: =IF('تحضير سامي'!D189=1,NOW(),"") ->  | E189: غائب | F189: 6:30 | G189: =IF('تحضير سامي'!E189=1,NOW(),"") ->  | H189: غائب | I189: 6:30 | J189: =IF('تحضير سامي'!F189=1,NOW(),"") ->  | K189: غائب | L189: 5:00 | M189: =IF('تحضير سامي'!G189=1,NOW(),"") ->  | N189: غائب | O189: 5:00 | P189: 11:30:00 | Q189: 690 | AB189: الأربعاء | AC189: 2019-11-20 | AD189: =IF('تحضير باهبري'!D189=1,NOW(),"") ->  | AE189: غائب | AF189: 6:30 | AG189: =IF('تحضير باهبري'!E189=1,NOW(),"") ->  | AH189: غائب | AI189: 6:30 | AJ189: =IF('تحضير باهبري'!F189=1,NOW(),"") ->  | AK189: غائب | AL189: 5:00 | AM189: =IF('تحضير باهبري'!G189=1,NOW(),"") ->  | AN189: غائب | AO189: 5:00 | AP189: 11:30:00 | AQ189: 690 | BB189: الأربعاء | BC189: 2019-11-20 | BD189: =IF('تحضير ابوبكر'!D189=1,NOW(),"") ->  | BE189: غائب | BF189: 6:30 | BG189: =IF('تحضير ابوبكر'!E189=1,NOW(),"") ->  | BH189: غائب | BI189: 6:30 | BJ189: =IF('تحضير ابوبكر'!F189=1,NOW(),"") ->  | BK189: غائب | BL189: 5:00 | BM189: =IF('تحضير ابوبكر'!G189=1,NOW(),"") ->  | BN189: غائب | BO189: 5:00 | BP189: 11:30:00 | BQ189: 690
B190: الخميس | C190: 2019-11-21 | D190: =IF('تحضير سامي'!D190=1,NOW(),"") ->  | E190: غائب | F190: 6:30 | G190: =IF('تحضير سامي'!E190=1,NOW(),"") ->  | H190: غائب | I190: 6:30 | J190: =IF('تحضير سامي'!F190=1,NOW(),"") ->  | K190: غائب | L190: 5:00 | M190: =IF('تحضير سامي'!G190=1,NOW(),"") ->  | N190: غائب | O190: 5:00 | P190: 11:30:00 | Q190: 690 | AB190: الخميس | AC190: 2019-11-21 | AD190: =IF('تحضير باهبري'!D190=1,NOW(),"") ->  | AE190: غائب | AF190: 6:30 | AG190: =IF('تحضير باهبري'!E190=1,NOW(),"") ->  | AH190: غائب | AI190: 6:30 | AJ190: =IF('تحضير باهبري'!F190=1,NOW(),"") ->  | AK190: غائب | AL190: 5:00 | AM190: =IF('تحضير باهبري'!G190=1,NOW(),"") ->  | AN190: غائب | AO190: 5:00 | AP190: 11:30:00 | AQ190: 690 | BB190: الخميس | BC190: 2019-11-21 | BD190: =IF('تحضير ابوبكر'!D190=1,NOW(),"") ->  | BE190: غائب | BF190: 6:30 | BG190: =IF('تحضير ابوبكر'!E190=1,NOW(),"") ->  | BH190: غائب | BI190: 6:30 | BJ190: =IF('تحضير ابوبكر'!F190=1,NOW(),"") ->  | BK190: غائب | BL190: 5:00 | BM190: =IF('تحضير ابوبكر'!G190=1,NOW(),"") ->  | BN190: غائب | BO190: 5:00 | BP190: 11:30:00 | BQ190: 690
B191: الجمعة | C191: 2019-11-22 | D191: =IF('تحضير سامي'!D191=1,NOW(),"") ->  | E191: اجازة | F191: 00:00:00 | G191: =IF('تحضير سامي'!E191=1,NOW(),"") ->  | H191: اجازة | I191: 00:00:00 | J191: =IF('تحضير سامي'!F191=1,NOW(),"") ->  | K191: اجازة | L191: 00:00:00 | M191: =IF('تحضير سامي'!G191=1,NOW(),"") ->  | N191: اجازة | O191: 00:00:00 | P191: 00:00:00 | Q191: 0 | AB191: الجمعة | AC191: 2019-11-22 | AD191: =IF('تحضير باهبري'!D191=1,NOW(),"") ->  | AE191: اجازة | AF191: 00:00:00 | AG191: =IF('تحضير باهبري'!E191=1,NOW(),"") ->  | AH191: اجازة | AI191: 00:00:00 | AJ191: =IF('تحضير باهبري'!F191=1,NOW(),"") ->  | AK191: اجازة | AL191: 00:00:00 | AM191: =IF('تحضير باهبري'!G191=1,NOW(),"") ->  | AN191: اجازة | AO191: 00:00:00 | AP191: 00:00:00 | AQ191: 0 | BB191: الجمعة | BC191: 2019-11-22 | BD191: =IF('تحضير ابوبكر'!D191=1,NOW(),"") ->  | BE191: اجازة | BF191: 00:00:00 | BG191: =IF('تحضير ابوبكر'!E191=1,NOW(),"") ->  | BH191: اجازة | BI191: 00:00:00 | BJ191: =IF('تحضير ابوبكر'!F191=1,NOW(),"") ->  | BK191: اجازة | BL191: 00:00:00 | BM191: =IF('تحضير ابوبكر'!G191=1,NOW(),"") ->  | BN191: اجازة | BO191: 00:00:00 | BP191: 00:00:00 | BQ191: 0
B192: السبت | C192: 2019-11-23 | D192: =IF('تحضير سامي'!D192=1,NOW(),"") ->  | E192: غائب | F192: 6:30 | G192: =IF('تحضير سامي'!E192=1,NOW(),"") ->  | H192: غائب | I192: 6:30 | J192: =IF('تحضير سامي'!F192=1,NOW(),"") ->  | K192: غائب | L192: 5:00 | M192: =IF('تحضير سامي'!G192=1,NOW(),"") ->  | N192: غائب | O192: 5:00 | P192: 11:30:00 | Q192: 690 | AB192: السبت | AC192: 2019-11-23 | AD192: =IF('تحضير باهبري'!D192=1,NOW(),"") ->  | AE192: =IF(AD192="","غائب",IF(AD192=$D$6," تــم الحضور في الموعد",IF(AD192<$D$6,"تم الحضور قبل الموعد",IF(AD192>$D$6,"تم الحضور بعد الموعد","")))) -> غائب | AF192: =IF(AE192="غائب","6:30",IF(AE192="تم الحضور قبل الموعد","0:00",IF(AE192="تم الحضور في الموعد","0:00",IF(AE192>$D$6,AD192-$D$6,"")))) -> 6:30 | AG192: =IF('تحضير باهبري'!E192=1,NOW(),"") ->  | AH192: =IF(AG192="","غائب",IF(AG192=$G$6," تم الانصراف في الموعد",IF(AG192<$G$6,"تم الانصراف قبل الموعد",IF(AG192>$G$6,"تم الانصراف بعد الموعد","")))) -> غائب | AI192: =IF(AH192="غائب","6:30",IF(AH192="تم الانصراف بعد الموعد","0:00",IF(AH192="تم الانصراف في الموعد","0:00",IF(AH192>$G$6,$G$6-AG192,"")))) -> 6:30 | AJ192: =IF('تحضير باهبري'!F192=1,NOW(),"") ->  | AK192: =IF(AJ192="","غائب",IF(AJ192=$J$6," تــم الحضور في الموعد",IF(AJ192<$J$6,"تم الحضور قبل الموعد",IF(AJ192>$J$6,"تم الحضور بعد الموعد","")))) -> غائب | AL192: =IF(AK192="غائب","5:00",IF(AK192="تم الحضور قبل الموعد","0:00",IF(AK192="تم الحضور في الموعد","0:00",IF(AK192>$J$6,AJ192-$J$6,"")))) -> 5:00 | AM192: =IF('تحضير باهبري'!G192=1,NOW(),"") ->  | AN192: =IF(AM192="","غائب",IF(AM192=$M$6," تم الانصراف في الموعد",IF(AM192<$M$6,"تم الانصراف قبل الموعد",IF(AM192>$M$6,"تم الانصراف بعد الموعد","")))) -> غائب | AO192: =IF(AN192="غائب","5:00",IF(AN192="تم الانصراف بعد الموعد","0:00",IF(AN192="تم الانصراف في الموعد","0:00",IF(AN192>$M$6,$M$6-AM192,"")))) -> 5:00 | AP192: 11:30:00 | AQ192: 690 | BB192: السبت | BC192: 2019-11-23 | BD192: =IF('تحضير ابوبكر'!D192=1,NOW(),"") ->  | BE192: =IF(BD192="","غائب",IF(BD192=$D$6," تــم الحضور في الموعد",IF(BD192<$D$6,"تم الحضور قبل الموعد",IF(BD192>$D$6,"تم الحضور بعد الموعد","")))) -> غائب | BF192: =IF(BE192="غائب","6:30",IF(BE192="تم الحضور قبل الموعد","0:00",IF(BE192="تم الحضور في الموعد","0:00",IF(BE192>$D$6,BD192-$D$6,"")))) -> 6:30 | BG192: =IF('تحضير ابوبكر'!E192=1,NOW(),"") ->  | BH192: =IF(BG192="","غائب",IF(BG192=$G$6," تم الانصراف في الموعد",IF(BG192<$G$6,"تم الانصراف قبل الموعد",IF(BG192>$G$6,"تم الانصراف بعد الموعد","")))) -> غائب | BI192: =IF(BH192="غائب","6:30",IF(BH192="تم الانصراف بعد الموعد","0:00",IF(BH192="تم الانصراف في الموعد","0:00",IF(BH192>$G$6,$G$6-BG192,"")))) -> 6:30 | BJ192: =IF('تحضير ابوبكر'!F192=1,NOW(),"") ->  | BK192: =IF(BJ192="","غائب",IF(BJ192=$J$6," تــم الحضور في الموعد",IF(BJ192<$J$6,"تم الحضور قبل الموعد",IF(BJ192>$J$6,"تم الحضور بعد الموعد","")))) -> غائب | BL192: =IF(BK192="غائب","5:00",IF(BK192="تم الحضور قبل الموعد","0:00",IF(BK192="تم الحضور في الموعد","0:00",IF(BK192>$J$6,BJ192-$J$6,"")))) -> 5:00 | BM192: =IF('تحضير ابوبكر'!G192=1,NOW(),"") ->  | BN192: =IF(BM192="","غائب",IF(BM192=$M$6," تم الانصراف في الموعد",IF(BM192<$M$6,"تم الانصراف قبل الموعد",IF(BM192>$M$6,"تم الانصراف بعد الموعد","")))) -> غائب | BO192: =IF(BN192="غائب","5:00",IF(BN192="تم الانصراف بعد الموعد","0:00",IF(BN192="تم الانصراف في الموعد","0:00",IF(BN192>$M$6,$M$6-BM192,"")))) -> 5:00 | BP192: 11:30:00 | BQ192: 690
B193: الأحد | C193: 2019-11-24 | D193: =IF('تحضير سامي'!D193=1,NOW(),"") ->  | E193: غائب | F193: 6:30 | G193: =IF('تحضير سامي'!E193=1,NOW(),"") ->  | H193: غائب | I193: 6:30 | J193: =IF('تحضير سامي'!F193=1,NOW(),"") ->  | K193: غائب | L193: 5:00 | M193: =IF('تحضير سامي'!G193=1,NOW(),"") ->  | N193: غائب | O193: 5:00 | P193: 11:30:00 | Q193: 690 | AB193: الأحد | AC193: 2019-11-24 | AD193: =IF('تحضير باهبري'!D193=1,NOW(),"") ->  | AE193: غائب | AF193: 6:30 | AG193: =IF('تحضير باهبري'!E193=1,NOW(),"") ->  | AH193: غائب | AI193: 6:30 | AJ193: =IF('تحضير باهبري'!F193=1,NOW(),"") ->  | AK193: غائب | AL193: 5:00 | AM193: =IF('تحضير باهبري'!G193=1,NOW(),"") ->  | AN193: غائب | AO193: 5:00 | AP193: 11:30:00 | AQ193: 690 | BB193: الأحد | BC193: 2019-11-24 | BD193: =IF('تحضير ابوبكر'!D193=1,NOW(),"") ->  | BE193: غائب | BF193: 6:30 | BG193: =IF('تحضير ابوبكر'!E193=1,NOW(),"") ->  | BH193: غائب | BI193: 6:30 | BJ193: =IF('تحضير ابوبكر'!F193=1,NOW(),"") ->  | BK193: غائب | BL193: 5:00 | BM193: =IF('تحضير ابوبكر'!G193=1,NOW(),"") ->  | BN193: غائب | BO193: 5:00 | BP193: 11:30:00 | BQ193: 690
B194: الإثنين | C194: 2019-11-25 | D194: =IF('تحضير سامي'!D194=1,NOW(),"") ->  | E194: غائب | F194: 6:30 | G194: =IF('تحضير سامي'!E194=1,NOW(),"") ->  | H194: غائب | I194: 6:30 | J194: =IF('تحضير سامي'!F194=1,NOW(),"") ->  | K194: غائب | L194: 5:00 | M194: =IF('تحضير سامي'!G194=1,NOW(),"") ->  | N194: غائب | O194: 5:00 | P194: 11:30:00 | Q194: 690 | AB194: الإثنين | AC194: 2019-11-25 | AD194: =IF('تحضير باهبري'!D194=1,NOW(),"") ->  | AE194: غائب | AF194: 6:30 | AG194: =IF('تحضير باهبري'!E194=1,NOW(),"") ->  | AH194: غائب | AI194: 6:30 | AJ194: =IF('تحضير باهبري'!F194=1,NOW(),"") ->  | AK194: غائب | AL194: 5:00 | AM194: =IF('تحضير باهبري'!G194=1,NOW(),"") ->  | AN194: غائب | AO194: 5:00 | AP194: 11:30:00 | AQ194: 690 | BB194: الإثنين | BC194: 2019-11-25 | BD194: =IF('تحضير ابوبكر'!D194=1,NOW(),"") ->  | BE194: غائب | BF194: 6:30 | BG194: =IF('تحضير ابوبكر'!E194=1,NOW(),"") ->  | BH194: غائب | BI194: 6:30 | BJ194: =IF('تحضير ابوبكر'!F194=1,NOW(),"") ->  | BK194: غائب | BL194: 5:00 | BM194: =IF('تحضير ابوبكر'!G194=1,NOW(),"") ->  | BN194: غائب | BO194: 5:00 | BP194: 11:30:00 | BQ194: 690
B195: الثلاثاء | C195: 2019-11-26 | D195: =IF('تحضير سامي'!D195=1,NOW(),"") ->  | E195: غائب | F195: 6:30 | G195: =IF('تحضير سامي'!E195=1,NOW(),"") ->  | H195: غائب | I195: 6:30 | J195: =IF('تحضير سامي'!F195=1,NOW(),"") ->  | K195: غائب | L195: 5:00 | M195: =IF('تحضير سامي'!G195=1,NOW(),"") ->  | N195: غائب | O195: 5:00 | P195: 11:30:00 | Q195: 690 | AB195: الثلاثاء | AC195: 2019-11-26 | AD195: =IF('تحضير باهبري'!D195=1,NOW(),"") ->  | AE195: غائب | AF195: 6:30 | AG195: =IF('تحضير باهبري'!E195=1,NOW(),"") ->  | AH195: غائب | AI195: 6:30 | AJ195: =IF('تحضير باهبري'!F195=1,NOW(),"") ->  | AK195: غائب | AL195: 5:00 | AM195: =IF('تحضير باهبري'!G195=1,NOW(),"") ->  | AN195: غائب | AO195: 5:00 | AP195: 11:30:00 | AQ195: 690 | BB195: الثلاثاء | BC195: 2019-11-26 | BD195: =IF('تحضير ابوبكر'!D195=1,NOW(),"") ->  | BE195: غائب | BF195: 6:30 | BG195: =IF('تحضير ابوبكر'!E195=1,NOW(),"") ->  | BH195: غائب | BI195: 6:30 | BJ195: =IF('تحضير ابوبكر'!F195=1,NOW(),"") ->  | BK195: غائب | BL195: 5:00 | BM195: =IF('تحضير ابوبكر'!G195=1,NOW(),"") ->  | BN195: غائب | BO195: 5:00 | BP195: 11:30:00 | BQ195: 690
B196: الأربعاء | C196: 2019-11-27 | D196: =IF('تحضير سامي'!D196=1,NOW(),"") ->  | E196: غائب | F196: 6:30 | G196: =IF('تحضير سامي'!E196=1,NOW(),"") ->  | H196: غائب | I196: 6:30 | J196: =IF('تحضير سامي'!F196=1,NOW(),"") ->  | K196: غائب | L196: 5:00 | M196: =IF('تحضير سامي'!G196=1,NOW(),"") ->  | N196: غائب | O196: 5:00 | P196: 11:30:00 | Q196: 690 | AB196: الأربعاء | AC196: 2019-11-27 | AD196: =IF('تحضير باهبري'!D196=1,NOW(),"") ->  | AE196: غائب | AF196: 6:30 | AG196: =IF('تحضير باهبري'!E196=1,NOW(),"") ->  | AH196: غائب | AI196: 6:30 | AJ196: =IF('تحضير باهبري'!F196=1,NOW(),"") ->  | AK196: غائب | AL196: 5:00 | AM196: =IF('تحضير باهبري'!G196=1,NOW(),"") ->  | AN196: غائب | AO196: 5:00 | AP196: 11:30:00 | AQ196: 690 | BB196: الأربعاء | BC196: 2019-11-27 | BD196: =IF('تحضير ابوبكر'!D196=1,NOW(),"") ->  | BE196: غائب | BF196: 6:30 | BG196: =IF('تحضير ابوبكر'!E196=1,NOW(),"") ->  | BH196: غائب | BI196: 6:30 | BJ196: =IF('تحضير ابوبكر'!F196=1,NOW(),"") ->  | BK196: غائب | BL196: 5:00 | BM196: =IF('تحضير ابوبكر'!G196=1,NOW(),"") ->  | BN196: غائب | BO196: 5:00 | BP196: 11:30:00 | BQ196: 690
B197: الخميس | C197: 2019-11-28 | D197: =IF('تحضير سامي'!D197=1,NOW(),"") ->  | E197: غائب | F197: 6:30 | G197: =IF('تحضير سامي'!E197=1,NOW(),"") ->  | H197: غائب | I197: 6:30 | J197: =IF('تحضير سامي'!F197=1,NOW(),"") ->  | K197: غائب | L197: 5:00 | M197: =IF('تحضير سامي'!G197=1,NOW(),"") ->  | N197: غائب | O197: 5:00 | P197: 11:30:00 | Q197: 690 | AB197: الخميس | AC197: 2019-11-28 | AD197: =IF('تحضير باهبري'!D197=1,NOW(),"") ->  | AE197: غائب | AF197: 6:30 | AG197: =IF('تحضير باهبري'!E197=1,NOW(),"") ->  | AH197: غائب | AI197: 6:30 | AJ197: =IF('تحضير باهبري'!F197=1,NOW(),"") ->  | AK197: غائب | AL197: 5:00 | AM197: =IF('تحضير باهبري'!G197=1,NOW(),"") ->  | AN197: غائب | AO197: 5:00 | AP197: 11:30:00 | AQ197: 690 | BB197: الخميس | BC197: 2019-11-28 | BD197: =IF('تحضير ابوبكر'!D197=1,NOW(),"") ->  | BE197: غائب | BF197: 6:30 | BG197: =IF('تحضير ابوبكر'!E197=1,NOW(),"") ->  | BH197: غائب | BI197: 6:30 | BJ197: =IF('تحضير ابوبكر'!F197=1,NOW(),"") ->  | BK197: غائب | BL197: 5:00 | BM197: =IF('تحضير ابوبكر'!G197=1,NOW(),"") ->  | BN197: غائب | BO197: 5:00 | BP197: 11:30:00 | BQ197: 690
B198: الجمعة | C198: 2019-11-29 | D198: =IF('تحضير سامي'!D198=1,NOW(),"") ->  | E198: اجازة | F198: 00:00:00 | G198: =IF('تحضير سامي'!E198=1,NOW(),"") ->  | H198: اجازة | I198: 00:00:00 | J198: =IF('تحضير سامي'!F198=1,NOW(),"") ->  | K198: اجازة | L198: 00:00:00 | M198: =IF('تحضير سامي'!G198=1,NOW(),"") ->  | N198: اجازة | O198: 00:00:00 | P198: 00:00:00 | Q198: 0 | AB198: الجمعة | AC198: 2019-11-29 | AD198: =IF('تحضير باهبري'!D198=1,NOW(),"") ->  | AE198: اجازة | AF198: 00:00:00 | AG198: =IF('تحضير باهبري'!E198=1,NOW(),"") ->  | AH198: اجازة | AI198: 00:00:00 | AJ198: =IF('تحضير باهبري'!F198=1,NOW(),"") ->  | AK198: اجازة | AL198: 00:00:00 | AM198: =IF('تحضير باهبري'!G198=1,NOW(),"") ->  | AN198: اجازة | AO198: 00:00:00 | AP198: 00:00:00 | AQ198: 0 | BB198: الجمعة | BC198: 2019-11-29 | BD198: =IF('تحضير ابوبكر'!D198=1,NOW(),"") ->  | BE198: اجازة | BF198: 00:00:00 | BG198: =IF('تحضير ابوبكر'!E198=1,NOW(),"") ->  | BH198: اجازة | BI198: 00:00:00 | BJ198: =IF('تحضير ابوبكر'!F198=1,NOW(),"") ->  | BK198: اجازة | BL198: 00:00:00 | BM198: =IF('تحضير ابوبكر'!G198=1,NOW(),"") ->  | BN198: اجازة | BO198: 00:00:00 | BP198: 00:00:00 | BQ198: 0
B199: السبت | C199: 2019-11-30 | D199: =IF('تحضير سامي'!D199=1,NOW(),"") ->  | E199: غائب | F199: 6:30 | G199: =IF('تحضير سامي'!E199=1,NOW(),"") ->  | H199: غائب | I199: 6:30 | J199: =IF('تحضير سامي'!F199=1,NOW(),"") ->  | K199: غائب | L199: 5:00 | M199: =IF('تحضير سامي'!G199=1,NOW(),"") ->  | N199: غائب | O199: 5:00 | P199: 11:30:00 | Q199: 690 | AB199: السبت | AC199: 2019-11-30 | AD199: =IF('تحضير باهبري'!D199=1,NOW(),"") ->  | AE199: =IF(AD199="","غائب",IF(AD199=$D$6," تــم الحضور في الموعد",IF(AD199<$D$6,"تم الحضور قبل الموعد",IF(AD199>$D$6,"تم الحضور بعد الموعد","")))) -> غائب | AF199: =IF(AE199="غائب","6:30",IF(AE199="تم الحضور قبل الموعد","0:00",IF(AE199="تم الحضور في الموعد","0:00",IF(AE199>$D$6,AD199-$D$6,"")))) -> 6:30 | AG199: =IF('تحضير باهبري'!E199=1,NOW(),"") ->  | AH199: =IF(AG199="","غائب",IF(AG199=$G$6," تم الانصراف في الموعد",IF(AG199<$G$6,"تم الانصراف قبل الموعد",IF(AG199>$G$6,"تم الانصراف بعد الموعد","")))) -> غائب | AI199: =IF(AH199="غائب","6:30",IF(AH199="تم الانصراف بعد الموعد","0:00",IF(AH199="تم الانصراف في الموعد","0:00",IF(AH199>$G$6,$G$6-AG199,"")))) -> 6:30 | AJ199: =IF('تحضير باهبري'!F199=1,NOW(),"") ->  | AK199: =IF(AJ199="","غائب",IF(AJ199=$J$6," تــم الحضور في الموعد",IF(AJ199<$J$6,"تم الحضور قبل الموعد",IF(AJ199>$J$6,"تم الحضور بعد الموعد","")))) -> غائب | AL199: =IF(AK199="غائب","5:00",IF(AK199="تم الحضور قبل الموعد","0:00",IF(AK199="تم الحضور في الموعد","0:00",IF(AK199>$J$6,AJ199-$J$6,"")))) -> 5:00 | AM199: =IF('تحضير باهبري'!G199=1,NOW(),"") ->  | AN199: =IF(AM199="","غائب",IF(AM199=$M$6," تم الانصراف في الموعد",IF(AM199<$M$6,"تم الانصراف قبل الموعد",IF(AM199>$M$6,"تم الانصراف بعد الموعد","")))) -> غائب | AO199: =IF(AN199="غائب","5:00",IF(AN199="تم الانصراف بعد الموعد","0:00",IF(AN199="تم الانصراف في الموعد","0:00",IF(AN199>$M$6,$M$6-AM199,"")))) -> 5:00 | AP199: 11:30:00 | AQ199: 690 | BB199: السبت | BC199: 2019-11-30 | BD199: =IF('تحضير ابوبكر'!D199=1,NOW(),"") ->  | BE199: =IF(BD199="","غائب",IF(BD199=$D$6," تــم الحضور في الموعد",IF(BD199<$D$6,"تم الحضور قبل الموعد",IF(BD199>$D$6,"تم الحضور بعد الموعد","")))) -> غائب | BF199: =IF(BE199="غائب","6:30",IF(BE199="تم الحضور قبل الموعد","0:00",IF(BE199="تم الحضور في الموعد","0:00",IF(BE199>$D$6,BD199-$D$6,"")))) -> 6:30 | BG199: =IF('تحضير ابوبكر'!E199=1,NOW(),"") ->  | BH199: =IF(BG199="","غائب",IF(BG199=$G$6," تم الانصراف في الموعد",IF(BG199<$G$6,"تم الانصراف قبل الموعد",IF(BG199>$G$6,"تم الانصراف بعد الموعد","")))) -> غائب | BI199: =IF(BH199="غائب","6:30",IF(BH199="تم الانصراف بعد الموعد","0:00",IF(BH199="تم الانصراف في الموعد","0:00",IF(BH199>$G$6,$G$6-BG199,"")))) -> 6:30 | BJ199: =IF('تحضير ابوبكر'!F199=1,NOW(),"") ->  | BK199: =IF(BJ199="","غائب",IF(BJ199=$J$6," تــم الحضور في الموعد",IF(BJ199<$J$6,"تم الحضور قبل الموعد",IF(BJ199>$J$6,"تم الحضور بعد الموعد","")))) -> غائب | BL199: =IF(BK199="غائب","5:00",IF(BK199="تم الحضور قبل الموعد","0:00",IF(BK199="تم الحضور في الموعد","0:00",IF(BK199>$J$6,BJ199-$J$6,"")))) -> 5:00 | BM199: =IF('تحضير ابوبكر'!G199=1,NOW(),"") ->  | BN199: =IF(BM199="","غائب",IF(BM199=$M$6," تم الانصراف في الموعد",IF(BM199<$M$6,"تم الانصراف قبل الموعد",IF(BM199>$M$6,"تم الانصراف بعد الموعد","")))) -> غائب | BO199: =IF(BN199="غائب","5:00",IF(BN199="تم الانصراف بعد الموعد","0:00",IF(BN199="تم الانصراف في الموعد","0:00",IF(BN199>$M$6,$M$6-BM199,"")))) -> 5:00 | BP199: 11:30:00 | BQ199: 690
E201: اجمالي وقت الدوام | F201: 18750 | H201: اجمالي وقت التاخير بالدقائق | I201: =SUM(Q170:Q199) -> 17250 | L201: الراتب | N201: 50000 | AE201: اجمالي وقت الدوام | AF201: 18750 | AH201: اجمالي وقت التاخير بالدقائق | AI201: =SUM(AQ170:AQ199) -> 17250 | AL201: الراتب | AN201: 55000 | BE201: اجمالي وقت الدوام | BF201: 18750 | BH201: اجمالي وقت التاخير بالدقائق | BI201: =SUM(BQ170:BQ199) -> 17250 | BL201: الراتب | BN201: 45000
B202: الاحد | C202: 2019-12-01 | D202: =IF('تحضير سامي'!D202=1,NOW(),"") ->  | E202: غائب | F202: =IF(E202="غائب","6:30",IF(E202="تم الحضور قبل الموعد","0:00",IF(E202="تم الحضور في الموعد","0:00",IF(E202>$D$6,D202-$D$6,"")))) -> 6:30 | G202: =IF('تحضير سامي'!E202=1,NOW(),"") ->  | H202: غائب | I202: =IF(H202="غائب","6:30",IF(H202="تم الانصراف بعد الموعد","0:00",IF(H202="تم الانصراف في الموعد","0:00",IF(H202>$G$6,$G$6-G202,"")))) -> 6:30 | J202: =IF('تحضير سامي'!F202=1,NOW(),"") ->  | K202: غائب | L202: =IF(K202="غائب","5:00",IF(K202="تم الحضور قبل الموعد","0:00",IF(K202="تم الحضور في الموعد","0:00",IF(K202>$J$6,J202-$J$6,"")))) -> 5:00 | M202: =IF('تحضير سامي'!G202=1,NOW(),"") ->  | N202: غائب | O202: =IF(N202="غائب","5:00",IF(N202="تم الانصراف بعد الموعد","0:00",IF(N202="تم الانصراف في الموعد","0:00",IF(N202>$M$6,$M$6-M202,"")))) -> 5:00 | P202: =IF(H202="غائب","6:30",I202)+IF(N202="غائب","5:00",O202)+IF(E202="غائب","0:00",F202)+IF(K202="غائب","0:00",L202) -> 11:30:00 | Q202: =(HOUR(P202)*3600+MINUTE(P202)*60+SECOND(P202))/60 -> 690 | AB202: الاحد | AC202: 2019-12-01 | AD202: =IF('تحضير باهبري'!D202=1,NOW(),"") ->  | AE202: =IF(AD202="","غائب",IF(AD202=$D$6," تــم الحضور في الموعد",IF(AD202<$D$6,"تم الحضور قبل الموعد",IF(AD202>$D$6,"تم الحضور بعد الموعد","")))) -> غائب | AF202: =IF(AE202="غائب","6:30",IF(AE202="تم الحضور قبل الموعد","0:00",IF(AE202="تم الحضور في الموعد","0:00",IF(AE202>$D$6,AD202-$D$6,"")))) -> 6:30 | AG202: =IF('تحضير باهبري'!E202=1,NOW(),"") ->  | AH202: =IF(AG202="","غائب",IF(AG202=$G$6," تم الانصراف في الموعد",IF(AG202<$G$6,"تم الانصراف قبل الموعد",IF(AG202>$G$6,"تم الانصراف بعد الموعد","")))) -> غائب | AI202: =IF(AH202="غائب","6:30",IF(AH202="تم الانصراف بعد الموعد","0:00",IF(AH202="تم الانصراف في الموعد","0:00",IF(AH202>$G$6,$G$6-AG202,"")))) -> 6:30 | AJ202: =IF('تحضير باهبري'!F202=1,NOW(),"") ->  | AK202: =IF(AJ202="","غائب",IF(AJ202=$J$6," تــم الحضور في الموعد",IF(AJ202<$J$6,"تم الحضور قبل الموعد",IF(AJ202>$J$6,"تم الحضور بعد الموعد","")))) -> غائب | AL202: =IF(AK202="غائب","5:00",IF(AK202="تم الحضور قبل الموعد","0:00",IF(AK202="تم الحضور في الموعد","0:00",IF(AK202>$J$6,AJ202-$J$6,"")))) -> 5:00 | AM202: =IF('تحضير باهبري'!G202=1,NOW(),"") ->  | AN202: =IF(AM202="","غائب",IF(AM202=$M$6," تم الانصراف في الموعد",IF(AM202<$M$6,"تم الانصراف قبل الموعد",IF(AM202>$M$6,"تم الانصراف بعد الموعد","")))) -> غائب | AO202: =IF(AN202="غائب","5:00",IF(AN202="تم الانصراف بعد الموعد","0:00",IF(AN202="تم الانصراف في الموعد","0:00",IF(AN202>$M$6,$M$6-AM202,"")))) -> 5:00 | AP202: =IF(AH202="غائب","6:30",AI202)+IF(AN202="غائب","5:00",AO202)+IF(AE202="غائب","0:00",AF202)+IF(AK202="غائب","0:00",AL202) -> 11:30:00 | AQ202: =(HOUR(AP202)*3600+MINUTE(AP202)*60+SECOND(AP202))/60 -> 690 | BB202: الاحد | BC202: 2019-12-01 | BD202: =IF('تحضير ابوبكر'!D202=1,NOW(),"") ->  | BE202: =IF(BD202="","غائب",IF(BD202=$D$6," تــم الحضور في الموعد",IF(BD202<$D$6,"تم الحضور قبل الموعد",IF(BD202>$D$6,"تم الحضور بعد الموعد","")))) -> غائب | BF202: =IF(BE202="غائب","6:30",IF(BE202="تم الحضور قبل الموعد","0:00",IF(BE202="تم الحضور في الموعد","0:00",IF(BE202>$D$6,BD202-$D$6,"")))) -> 6:30 | BG202: =IF('تحضير ابوبكر'!E202=1,NOW(),"") ->  | BH202: =IF(BG202="","غائب",IF(BG202=$G$6," تم الانصراف في الموعد",IF(BG202<$G$6,"تم الانصراف قبل الموعد",IF(BG202>$G$6,"تم الانصراف بعد الموعد","")))) -> غائب | BI202: =IF(BH202="غائب","6:30",IF(BH202="تم الانصراف بعد الموعد","0:00",IF(BH202="تم الانصراف في الموعد","0:00",IF(BH202>$G$6,$G$6-BG202,"")))) -> 6:30 | BJ202: =IF('تحضير ابوبكر'!F202=1,NOW(),"") ->  | BK202: =IF(BJ202="","غائب",IF(BJ202=$J$6," تــم الحضور في الموعد",IF(BJ202<$J$6,"تم الحضور قبل الموعد",IF(BJ202>$J$6,"تم الحضور بعد الموعد","")))) -> غائب | BL202: =IF(BK202="غائب","5:00",IF(BK202="تم الحضور قبل الموعد","0:00",IF(BK202="تم الحضور في الموعد","0:00",IF(BK202>$J$6,BJ202-$J$6,"")))) -> 5:00 | BM202: =IF('تحضير ابوبكر'!G202=1,NOW(),"") ->  | BN202: =IF(BM202="","غائب",IF(BM202=$M$6," تم الانصراف في الموعد",IF(BM202<$M$6,"تم الانصراف قبل الموعد",IF(BM202>$M$6,"تم الانصراف بعد الموعد","")))) -> غائب | BO202: =IF(BN202="غائب","5:00",IF(BN202="تم الانصراف بعد الموعد","0:00",IF(BN202="تم الانصراف في الموعد","0:00",IF(BN202>$M$6,$M$6-BM202,"")))) -> 5:00 | BP202: =IF(BH202="غائب","6:30",BI202)+IF(BN202="غائب","5:00",BO202)+IF(BE202="غائب","0:00",BF202)+IF(BK202="غائب","0:00",BL202) -> 11:30:00 | BQ202: =(HOUR(BP202)*3600+MINUTE(BP202)*60+SECOND(BP202))/60 -> 690
B203: الإثنين | C203: 2019-12-02 | D203: =IF('تحضير سامي'!D203=1,NOW(),"") ->  | E203: غائب | F203: 6:30 | G203: =IF('تحضير سامي'!E203=1,NOW(),"") ->  | H203: غائب | I203: 6:30 | J203: =IF('تحضير سامي'!F203=1,NOW(),"") ->  | K203: غائب | L203: 5:00 | M203: =IF('تحضير سامي'!G203=1,NOW(),"") ->  | N203: غائب | O203: 5:00 | P203: =IF(H203="غائب","6:30",I203)+IF(N203="غائب","5:00",O203)+IF(E203="غائب","0:00",F203)+IF(K203="غائب","0:00",L203) -> 11:30:00 | Q203: 690 | AB203: الإثنين | AC203: 2019-12-02 | AD203: =IF('تحضير باهبري'!D203=1,NOW(),"") ->  | AE203: غائب | AF203: 6:30 | AG203: =IF('تحضير باهبري'!E203=1,NOW(),"") ->  | AH203: غائب | AI203: 6:30 | AJ203: =IF('تحضير باهبري'!F203=1,NOW(),"") ->  | AK203: غائب | AL203: 5:00 | AM203: =IF('تحضير باهبري'!G203=1,NOW(),"") ->  | AN203: غائب | AO203: 5:00 | AP203: 11:30:00 | AQ203: 690 | BB203: الإثنين | BC203: 2019-12-02 | BD203: =IF('تحضير ابوبكر'!D203=1,NOW(),"") ->  | BE203: غائب | BF203: 6:30 | BG203: =IF('تحضير ابوبكر'!E203=1,NOW(),"") ->  | BH203: غائب | BI203: 6:30 | BJ203: =IF('تحضير ابوبكر'!F203=1,NOW(),"") ->  | BK203: غائب | BL203: 5:00 | BM203: =IF('تحضير ابوبكر'!G203=1,NOW(),"") ->  | BN203: غائب | BO203: 5:00 | BP203: 11:30:00 | BQ203: 690
B204: الثلاثاء | C204: 2019-12-03 | D204: =IF('تحضير سامي'!D204=1,NOW(),"") ->  | E204: غائب | F204: 6:30 | G204: =IF('تحضير سامي'!E204=1,NOW(),"") ->  | H204: غائب | I204: 6:30 | J204: =IF('تحضير سامي'!F204=1,NOW(),"") ->  | K204: غائب | L204: 5:00 | M204: =IF('تحضير سامي'!G204=1,NOW(),"") ->  | N204: غائب | O204: 5:00 | P204: 11:30:00 | Q204: 690 | AB204: الثلاثاء | AC204: 2019-12-03 | AD204: =IF('تحضير باهبري'!D204=1,NOW(),"") ->  | AE204: غائب | AF204: 6:30 | AG204: =IF('تحضير باهبري'!E204=1,NOW(),"") ->  | AH204: غائب | AI204: 6:30 | AJ204: =IF('تحضير باهبري'!F204=1,NOW(),"") ->  | AK204: غائب | AL204: 5:00 | AM204: =IF('تحضير باهبري'!G204=1,NOW(),"") ->  | AN204: غائب | AO204: 5:00 | AP204: 11:30:00 | AQ204: 690 | BB204: الثلاثاء | BC204: 2019-12-03 | BD204: =IF('تحضير ابوبكر'!D204=1,NOW(),"") ->  | BE204: غائب | BF204: 6:30 | BG204: =IF('تحضير ابوبكر'!E204=1,NOW(),"") ->  | BH204: غائب | BI204: 6:30 | BJ204: =IF('تحضير ابوبكر'!F204=1,NOW(),"") ->  | BK204: غائب | BL204: 5:00 | BM204: =IF('تحضير ابوبكر'!G204=1,NOW(),"") ->  | BN204: غائب | BO204: 5:00 | BP204: 11:30:00 | BQ204: 690
B205: الأربعاء | C205: 2019-12-04 | D205: =IF('تحضير سامي'!D205=1,NOW(),"") ->  | E205: غائب | F205: 6:30 | G205: =IF('تحضير سامي'!E205=1,NOW(),"") ->  | H205: غائب | I205: 6:30 | J205: =IF('تحضير سامي'!F205=1,NOW(),"") ->  | K205: غائب | L205: 5:00 | M205: =IF('تحضير سامي'!G205=1,NOW(),"") ->  | N205: غائب | O205: 5:00 | P205: 11:30:00 | Q205: 690 | AB205: الأربعاء | AC205: 2019-12-04 | AD205: =IF('تحضير باهبري'!D205=1,NOW(),"") ->  | AE205: غائب | AF205: 6:30 | AG205: =IF('تحضير باهبري'!E205=1,NOW(),"") ->  | AH205: غائب | AI205: 6:30 | AJ205: =IF('تحضير باهبري'!F205=1,NOW(),"") ->  | AK205: غائب | AL205: 5:00 | AM205: =IF('تحضير باهبري'!G205=1,NOW(),"") ->  | AN205: غائب | AO205: 5:00 | AP205: 11:30:00 | AQ205: 690 | BB205: الأربعاء | BC205: 2019-12-04 | BD205: =IF('تحضير ابوبكر'!D205=1,NOW(),"") ->  | BE205: غائب | BF205: 6:30 | BG205: =IF('تحضير ابوبكر'!E205=1,NOW(),"") ->  | BH205: غائب | BI205: 6:30 | BJ205: =IF('تحضير ابوبكر'!F205=1,NOW(),"") ->  | BK205: غائب | BL205: 5:00 | BM205: =IF('تحضير ابوبكر'!G205=1,NOW(),"") ->  | BN205: غائب | BO205: 5:00 | BP205: 11:30:00 | BQ205: 690
B206: الخميس | C206: 2019-12-05 | D206: =IF('تحضير سامي'!D206=1,NOW(),"") ->  | E206: =IF(D206="","غائب",IF(D206=$D$6," تــم الحضور في الموعد",IF(D206<$D$6,"تم الحضور قبل الموعد",IF(D206>$D$6,"تم الحضور بعد الموعد","")))) -> غائب | F206: =IF(E206="غائب","6:30",IF(E206="تم الحضور قبل الموعد","0:00",IF(E206="تم الحضور في الموعد","0:00",IF(E206>$D$6,D206-$D$6,"")))) -> 6:30 | G206: =IF('تحضير سامي'!E206=1,NOW(),"") ->  | H206: =IF(G206="","غائب",IF(G206=$G$6," تم الانصراف في الموعد",IF(G206<$G$6,"تم الانصراف قبل الموعد",IF(G206>$G$6,"تم الانصراف بعد الموعد","")))) -> غائب | I206: 6:30 | J206: =IF('تحضير سامي'!F206=1,NOW(),"") ->  | K206: =IF(J206="","غائب",IF(J206=$J$6," تــم الحضور في الموعد",IF(J206<$J$6,"تم الحضور قبل الموعد",IF(J206>$J$6,"تم الحضور بعد الموعد","")))) -> غائب | L206: 5:00 | M206: =IF('تحضير سامي'!G206=1,NOW(),"") ->  | N206: =IF(M206="","غائب",IF(M206=$M$6," تم الانصراف في الموعد",IF(M206<$M$6,"تم الانصراف قبل الموعد",IF(M206>$M$6,"تم الانصراف بعد الموعد","")))) -> غائب | O206: 5:00 | P206: 11:30:00 | Q206: 690 | AB206: الخميس | AC206: 2019-12-05 | AD206: =IF('تحضير باهبري'!D206=1,NOW(),"") ->  | AE206: غائب | AF206: 6:30 | AG206: =IF('تحضير باهبري'!E206=1,NOW(),"") ->  | AH206: غائب | AI206: 6:30 | AJ206: =IF('تحضير باهبري'!F206=1,NOW(),"") ->  | AK206: غائب | AL206: 5:00 | AM206: =IF('تحضير باهبري'!G206=1,NOW(),"") ->  | AN206: غائب | AO206: 5:00 | AP206: 11:30:00 | AQ206: 690 | BB206: الخميس | BC206: 2019-12-05 | BD206: =IF('تحضير ابوبكر'!D206=1,NOW(),"") ->  | BE206: غائب | BF206: 6:30 | BG206: =IF('تحضير ابوبكر'!E206=1,NOW(),"") ->  | BH206: غائب | BI206: 6:30 | BJ206: =IF('تحضير ابوبكر'!F206=1,NOW(),"") ->  | BK206: غائب | BL206: 5:00 | BM206: =IF('تحضير ابوبكر'!G206=1,NOW(),"") ->  | BN206: غائب | BO206: 5:00 | BP206: 11:30:00 | BQ206: 690
B207: الجمعة | C207: 2019-12-06 | D207: =IF('تحضير سامي'!D207=1,NOW(),"") ->  | E207: اجازة | F207: 00:00:00 | G207: =IF('تحضير سامي'!E207=1,NOW(),"") ->  | H207: اجازة | I207: 00:00:00 | J207: =IF('تحضير سامي'!F207=1,NOW(),"") ->  | K207: اجازة | L207: 00:00:00 | M207: =IF('تحضير سامي'!G207=1,NOW(),"") ->  | N207: اجازة | O207: 00:00:00 | P207: 00:00:00 | Q207: 0 | AB207: الجمعة | AC207: 2019-12-06 | AD207: =IF('تحضير باهبري'!D207=1,NOW(),"") ->  | AE207: اجازة | AF207: 00:00:00 | AG207: =IF('تحضير باهبري'!E207=1,NOW(),"") ->  | AH207: اجازة | AI207: 00:00:00 | AJ207: =IF('تحضير باهبري'!F207=1,NOW(),"") ->  | AK207: اجازة | AL207: 00:00:00 | AM207: =IF('تحضير باهبري'!G207=1,NOW(),"") ->  | AN207: اجازة | AO207: 00:00:00 | AP207: 00:00:00 | AQ207: 0 | BB207: الجمعة | BC207: 2019-12-06 | BD207: =IF('تحضير ابوبكر'!D207=1,NOW(),"") ->  | BE207: اجازة | BF207: 00:00:00 | BG207: =IF('تحضير ابوبكر'!E207=1,NOW(),"") ->  | BH207: اجازة | BI207: 00:00:00 | BJ207: =IF('تحضير ابوبكر'!F207=1,NOW(),"") ->  | BK207: اجازة | BL207: 00:00:00 | BM207: =IF('تحضير ابوبكر'!G207=1,NOW(),"") ->  | BN207: اجازة | BO207: 00:00:00 | BP207: 00:00:00 | BQ207: 0
B208: السبت | C208: 2019-12-07 | D208: =IF('تحضير سامي'!D208=1,NOW(),"") ->  | E208: غائب | F208: 6:30 | G208: =IF('تحضير سامي'!E208=1,NOW(),"") ->  | H208: غائب | I208: 6:30 | J208: =IF('تحضير سامي'!F208=1,NOW(),"") ->  | K208: غائب | L208: 5:00 | M208: =IF('تحضير سامي'!G208=1,NOW(),"") ->  | N208: غائب | O208: 5:00 | P208: 11:30:00 | Q208: 690 | AB208: السبت | AC208: 2019-12-07 | AD208: =IF('تحضير باهبري'!D208=1,NOW(),"") ->  | AE208: =IF(AD208="","غائب",IF(AD208=$D$6," تــم الحضور في الموعد",IF(AD208<$D$6,"تم الحضور قبل الموعد",IF(AD208>$D$6,"تم الحضور بعد الموعد","")))) -> غائب | AF208: =IF(AE208="غائب","6:30",IF(AE208="تم الحضور قبل الموعد","0:00",IF(AE208="تم الحضور في الموعد","0:00",IF(AE208>$D$6,AD208-$D$6,"")))) -> 6:30 | AG208: =IF('تحضير باهبري'!E208=1,NOW(),"") ->  | AH208: =IF(AG208="","غائب",IF(AG208=$G$6," تم الانصراف في الموعد",IF(AG208<$G$6,"تم الانصراف قبل الموعد",IF(AG208>$G$6,"تم الانصراف بعد الموعد","")))) -> غائب | AI208: =IF(AH208="غائب","6:30",IF(AH208="تم الانصراف بعد الموعد","0:00",IF(AH208="تم الانصراف في الموعد","0:00",IF(AH208>$G$6,$G$6-AG208,"")))) -> 6:30 | AJ208: =IF('تحضير باهبري'!F208=1,NOW(),"") ->  | AK208: =IF(AJ208="","غائب",IF(AJ208=$J$6," تــم الحضور في الموعد",IF(AJ208<$J$6,"تم الحضور قبل الموعد",IF(AJ208>$J$6,"تم الحضور بعد الموعد","")))) -> غائب | AL208: =IF(AK208="غائب","5:00",IF(AK208="تم الحضور قبل الموعد","0:00",IF(AK208="تم الحضور في الموعد","0:00",IF(AK208>$J$6,AJ208-$J$6,"")))) -> 5:00 | AM208: =IF('تحضير باهبري'!G208=1,NOW(),"") ->  | AN208: =IF(AM208="","غائب",IF(AM208=$M$6," تم الانصراف في الموعد",IF(AM208<$M$6,"تم الانصراف قبل الموعد",IF(AM208>$M$6,"تم الانصراف بعد الموعد","")))) -> غائب | AO208: =IF(AN208="غائب","5:00",IF(AN208="تم الانصراف بعد الموعد","0:00",IF(AN208="تم الانصراف في الموعد","0:00",IF(AN208>$M$6,$M$6-AM208,"")))) -> 5:00 | AP208: 11:30:00 | AQ208: 690 | BB208: السبت | BC208: 2019-12-07 | BD208: =IF('تحضير ابوبكر'!D208=1,NOW(),"") ->  | BE208: =IF(BD208="","غائب",IF(BD208=$D$6," تــم الحضور في الموعد",IF(BD208<$D$6,"تم الحضور قبل الموعد",IF(BD208>$D$6,"تم الحضور بعد الموعد","")))) -> غائب | BF208: =IF(BE208="غائب","6:30",IF(BE208="تم الحضور قبل الموعد","0:00",IF(BE208="تم الحضور في الموعد","0:00",IF(BE208>$D$6,BD208-$D$6,"")))) -> 6:30 | BG208: =IF('تحضير ابوبكر'!E208=1,NOW(),"") ->  | BH208: =IF(BG208="","غائب",IF(BG208=$G$6," تم الانصراف في الموعد",IF(BG208<$G$6,"تم الانصراف قبل الموعد",IF(BG208>$G$6,"تم الانصراف بعد الموعد","")))) -> غائب | BI208: =IF(BH208="غائب","6:30",IF(BH208="تم الانصراف بعد الموعد","0:00",IF(BH208="تم الانصراف في الموعد","0:00",IF(BH208>$G$6,$G$6-BG208,"")))) -> 6:30 | BJ208: =IF('تحضير ابوبكر'!F208=1,NOW(),"") ->  | BK208: =IF(BJ208="","غائب",IF(BJ208=$J$6," تــم الحضور في الموعد",IF(BJ208<$J$6,"تم الحضور قبل الموعد",IF(BJ208>$J$6,"تم الحضور بعد الموعد","")))) -> غائب | BL208: =IF(BK208="غائب","5:00",IF(BK208="تم الحضور قبل الموعد","0:00",IF(BK208="تم الحضور في الموعد","0:00",IF(BK208>$J$6,BJ208-$J$6,"")))) -> 5:00 | BM208: =IF('تحضير ابوبكر'!G208=1,NOW(),"") ->  | BN208: =IF(BM208="","غائب",IF(BM208=$M$6," تم الانصراف في الموعد",IF(BM208<$M$6,"تم الانصراف قبل الموعد",IF(BM208>$M$6,"تم الانصراف بعد الموعد","")))) -> غائب | BO208: =IF(BN208="غائب","5:00",IF(BN208="تم الانصراف بعد الموعد","0:00",IF(BN208="تم الانصراف في الموعد","0:00",IF(BN208>$M$6,$M$6-BM208,"")))) -> 5:00 | BP208: 11:30:00 | BQ208: 690
... 25 more rows

Sheet تحضير سامي (hidden)
B3: كشف تحضير | AB3: كشف تحضير | BB3: كشف تحضير
A4: اسم الموظف / | C4: سامي عيظه بن بشر | AA4: اسم الموظف / | AC4: عوض | BA4: اسم الموظف / | BC4: عوض
B5: اليوم | C5: التاريخ | D5: الصباح | F5: المساء | AB5: اليوم | AC5: التاريخ | AD5: الصباح | AF5: المساء | BB5: اليوم | BC5: التاريخ | BD5: الصباح | BF5: المساء
D6: حضور | E6: انصراف | F6: حضور | G6: انصراف | AD6: حضور | AE6: انصراف | AF6: حضور | AG6: انصراف | BD6: حضور | BE6: انصراف | BF6: حضور | BG6: انصراف
B7: السبت | C7: 2019-06-01 | D7: 1 | E7: 1 | F7: 1 | G7: 1 | AB7: السبت | AC7: 2019-06-01 | BB7: السبت | BC7: 2019-06-01
B8: الأحد | C8: 2019-06-02 | D8: 1 | E8: 1 | F8: 1 | G8: 1 | AB8: الأحد | AC8: 2019-06-02 | BB8: الأحد | BC8: 2019-06-02
B9: الإثنين | C9: 2019-06-03 | D9: 1 | E9: 1 | F9: 1 | G9: 1 | AB9: الإثنين | AC9: 2019-06-03 | BB9: الإثنين | BC9: 2019-06-03
B10: الثلاثاء | C10: 2019-06-04 | D10: 1 | E10: 1 | F10: 1 | G10: 1 | AB10: الثلاثاء | AC10: 2019-06-04 | BB10: الثلاثاء | BC10: 2019-06-04
B11: الأربعاء | C11: 2019-06-05 | D11: 1 | E11: 1 | F11: 1 | G11: 1 | AB11: الأربعاء | AC11: 2019-06-05 | BB11: الأربعاء | BC11: 2019-06-05
B12: الخميس | C12: 2019-06-06 | D12: 1 | E12: 1 | F12: 1 | G12: 1 | AB12: الخميس | AC12: 2019-06-06 | BB12: الخميس | BC12: 2019-06-06
B13: الجمعة | C13: 2019-06-07 | D13: 1 | E13: 1 | F13: 1 | G13: 1 | AB13: الجمعة | AC13: 2019-06-07 | BB13: الجمعة | BC13: 2019-06-07
B14: السبت | C14: 2019-06-08 | D14: 1 | E14: 1 | F14: 1 | G14: 1 | AB14: السبت | AC14: 2019-06-08 | BB14: السبت | BC14: 2019-06-08
B15: الأحد | C15: 2019-06-09 | D15: 1 | E15: 1 | F15: 1 | G15: 1 | AB15: الأحد | AC15: 2019-06-09 | BB15: الأحد | BC15: 2019-06-09
B16: الإثنين | C16: 2019-06-10 | D16: 1 | E16: 1 | F16: 1 | G16: 1 | AB16: الإثنين | AC16: 2019-06-10 | BB16: الإثنين | BC16: 2019-06-10
B17: الثلاثاء | C17: 2019-06-11 | D17: 1 | E17: 1 | F17: 1 | G17: 1 | AB17: الثلاثاء | AC17: 2019-06-11 | BB17: الثلاثاء | BC17: 2019-06-11
B18: الأربعاء | C18: 2019-06-12 | D18: 1 | E18: 1 | F18: 1 | G18: 1 | AB18: الأربعاء | AC18: 2019-06-12 | BB18: الأربعاء | BC18: 2019-06-12
B19: الخميس | C19: 2019-06-13 | D19: 1 | E19: 1 | F19: 1 | G19: 1 | AB19: الخميس | AC19: 2019-06-13 | BB19: الخميس | BC19: 2019-06-13
B20: الجمعة | C20: 2019-06-14 | D20: 1 | E20: 1 | F20: 1 | G20: 1 | AB20: الجمعة | AC20: 2019-06-14 | BB20: الجمعة | BC20: 2019-06-14
B21: السبت | C21: 2019-06-15 | D21: 1 | E21: 1 | F21: 1 | G21: 1 | AB21: السبت | AC21: 2019-06-15 | BB21: السبت | BC21: 2019-06-15
B22: الأحد | C22: 2019-06-16 | D22: 1 | E22: 1 | F22: 1 | G22: 1 | AB22: الأحد | AC22: 2019-06-16 | BB22: الأحد | BC22: 2019-06-16
B23: الإثنين | C23: 2019-06-17 | D23: 1 | E23: 1 | F23: 1 | G23: 1 | AB23: الإثنين | AC23: 2019-06-17 | BB23: الإثنين | BC23: 2019-06-17
B24: الثلاثاء | C24: 2019-06-18 | D24: 1 | E24: 1 | F24: 1 | G24: 1 | AB24: الثلاثاء | AC24: 2019-06-18 | BB24: الثلاثاء | BC24: 2019-06-18
B25: الأربعاء | C25: 2019-06-19 | D25: 1 | E25: 1 | F25: 1 | G25: 1 | AB25: الأربعاء | AC25: 2019-06-19 | BB25: الأربعاء | BC25: 2019-06-19
B26: الخميس | C26: 2019-06-20 | D26: 1 | AB26: الخميس | AC26: 2019-06-20 | BB26: الخميس | BC26: 2019-06-20
B27: الجمعة | C27: 2019-06-21 | AB27: الجمعة | AC27: 2019-06-21 | BB27: الجمعة | BC27: 2019-06-21
B28: السبت | C28: 2019-06-22 | AB28: السبت | AC28: 2019-06-22 | BB28: السبت | BC28: 2019-06-22
B29: الأحد | C29: 2019-06-23 | AB29: الأحد | AC29: 2019-06-23 | BB29: الأحد | BC29: 2019-06-23
B30: الإثنين | C30: 2019-06-24 | AB30: الإثنين | AC30: 2019-06-24 | BB30: الإثنين | BC30: 2019-06-24
B31: الثلاثاء | C31: 2019-06-25 | AB31: الثلاثاء | AC31: 2019-06-25 | BB31: الثلاثاء | BC31: 2019-06-25
B32: الأربعاء | C32: 2019-06-26 | AB32: الأربعاء | AC32: 2019-06-26 | BB32: الأربعاء | BC32: 2019-06-26
B33: الخميس | C33: 2019-06-27 | AB33: الخميس | AC33: 2019-06-27 | BB33: الخميس | BC33: 2019-06-27
B34: الجمعة | C34: 2019-06-28 | AB34: الجمعة | AC34: 2019-06-28 | BB34: الجمعة | BC34: 2019-06-28
B35: السبت | C35: 2019-06-29 | AB35: السبت | AC35: 2019-06-29 | BB35: السبت | BC35: 2019-06-29
B36: الأحد | C36: 2019-06-30 | AB36: الأحد | AC36: 2019-06-30 | BB36: الأحد | BC36: 2019-06-30
B39: الإثنين | C39: 2019-07-01 | AB39: الإثنين | AC39: 2019-07-01 | BB39: الإثنين | BC39: 2019-07-01
B40: الثلاثاء | C40: 2019-07-02 | AB40: الثلاثاء | AC40: 2019-07-02 | BB40: الثلاثاء | BC40: 2019-07-02
B41: الأربعاء | C41: 2019-07-03 | AB41: الأربعاء | AC41: 2019-07-03 | BB41: الأربعاء | BC41: 2019-07-03
B42: الخميس | C42: 2019-07-04 | AB42: الخميس | AC42: 2019-07-04 | BB42: الخميس | BC42: 2019-07-04
B43: الجمعة | C43: 2019-07-05 | AB43: الجمعة | AC43: 2019-07-05 | BB43: الجمعة | BC43: 2019-07-05
B44: السبت | C44: 2019-07-06 | AB44: السبت | AC44: 2019-07-06 | BB44: السبت | BC44: 2019-07-06
B45: الأحد | C45: 2019-07-07 | AB45: الأحد | AC45: 2019-07-07 | BB45: الأحد | BC45: 2019-07-07
B46: الإثنين | C46: 2019-07-08 | AB46: الإثنين | AC46: 2019-07-08 | BB46: الإثنين | BC46: 2019-07-08
B47: الثلاثاء | C47: 2019-07-09 | AB47: الثلاثاء | AC47: 2019-07-09 | BB47: الثلاثاء | BC47: 2019-07-09
B48: الأربعاء | C48: 2019-07-10 | AB48: الأربعاء | AC48: 2019-07-10 | BB48: الأربعاء | BC48: 2019-07-10
B49: الخميس | C49: 2019-07-11 | AB49: الخميس | AC49: 2019-07-11 | BB49: الخميس | BC49: 2019-07-11
B50: الجمعة | C50: 2019-07-12 | AB50: الجمعة | AC50: 2019-07-12 | BB50: الجمعة | BC50: 2019-07-12
B51: السبت | C51: 2019-07-13 | AB51: السبت | AC51: 2019-07-13 | BB51: السبت | BC51: 2019-07-13
B52: الأحد | C52: 2019-07-14 | AB52: الأحد | AC52: 2019-07-14 | BB52: الأحد | BC52: 2019-07-14
B53: الإثنين | C53: 2019-07-15 | AB53: الإثنين | AC53: 2019-07-15 | BB53: الإثنين | BC53: 2019-07-15
B54: الثلاثاء | C54: 2019-07-16 | AB54: الثلاثاء | AC54: 2019-07-16 | BB54: الثلاثاء | BC54: 2019-07-16
B55: الأربعاء | C55: 2019-07-17 | AB55: الأربعاء | AC55: 2019-07-17 | BB55: الأربعاء | BC55: 2019-07-17
B56: الخميس | C56: 2019-07-18 | AB56: الخميس | AC56: 2019-07-18 | BB56: الخميس | BC56: 2019-07-18
B57: الجمعة | C57: 2019-07-19 | AB57: الجمعة | AC57: 2019-07-19 | BB57: الجمعة | BC57: 2019-07-19
B58: السبت | C58: 2019-07-20 | AB58: السبت | AC58: 2019-07-20 | BB58: السبت | BC58: 2019-07-20
B59: الأحد | C59: 2019-07-21 | AB59: الأحد | AC59: 2019-07-21 | BB59: الأحد | BC59: 2019-07-21
B60: الإثنين | C60: 2019-07-22 | AB60: الإثنين | AC60: 2019-07-22 | BB60: الإثنين | BC60: 2019-07-22
B61: الثلاثاء | C61: 2019-07-23 | AB61: الثلاثاء | AC61: 2019-07-23 | BB61: الثلاثاء | BC61: 2019-07-23
B62: الأربعاء | C62: 2019-07-24 | AB62: الأربعاء | AC62: 2019-07-24 | BB62: الأربعاء | BC62: 2019-07-24
B63: الخميس | C63: 2019-07-25 | AB63: الخميس | AC63: 2019-07-25 | BB63: الخميس | BC63: 2019-07-25
